Workbook

Sheet Start
K13: Dit begrotingsmodel is ontwikkeld door Infinite Financieel
K14: in opdracht van het Steunpunt Passend Onderwijs van de
K15: PO-Raad en de VO-raad.
A33: Versie 8.0

Sheet Menu
A21: =Start!$A$33 -> Versie 8.0

Sheet Handleiding (hidden)
A1: Handleiding bestand klaarmaken voor het volgende jaar:
A3: 1. | B3: Verbergen kolommen van het voorbije jaar, gegevens uit deze kolommen verwijderen.
A4: 2. | B4: In sub llakkoord het jaartal aanpassen van de jaren waarvan de oude gegevens als waarden worden geplakt.
A5: 3. | B5: Vanaf 2021 kan het tabblad Herbestedingsverplichting eruit.

Sheet SWV gegevens (hidden)
C7: Uw gegevens:
C8: SWV nummer: | E8: PO0001
C9: Naam: | E9: =VLOOKUP(E8,Verbanden!A3:P79,2,FALSE) -> Reformatorisch Samenwerkingsverband PO
C15: =Start!$A$33 -> Versie 8.0

Sheet Begrotingsmodel (hidden)
C9: Algemene vragen
C10: U gaat uw begroting baseren op | D10: schooljaar | F10: kalenderjaar | G10: kalenderjaar

Sheet Programma's (hidden)
B1: =Start!$A$33 -> Versie 8.0 | K1: =IF(L1="Programma ## 'naam programma'","Programma ",IF(L1="Pr. ## 'naam programma'","Pr. ","")) -> Programma | L1: Programma ## 'naam programma'
B2: Naam programma | D2: Nummer | F2: Verkorte naam | H2: Label tbv benchmark | J2: Werkblad | L2: Weergave in overzichten | P2: =20 - COUNTBLANK(INDIRECT("L3:L22")) -> 0

Sheet LLaantal (hidden)
AU1: 1 | AV1: =INDEX(kalenderjaren_LL_aantal,AU1) -> 2011 | AW1: =INDEX(kalenderjaren_LL_aantal,AX1) -> 2024 | AX1: 14
D2: =Start!$A$33 -> Versie 8.0
F3: =E3 ->  | H3: =G3 ->  | J3: =I3 ->  | L3: =K3 ->  | N3: =M3 ->  | P3: =O3 ->  | R3: =Q3 ->  | T3: =S3 ->  | V3: =U3 ->  | X3: =W3 ->  | Y3: =IF(AND(YEAR(Y$4)>=$AV$1,YEAR(Y$4)<=$AW$1),"","x") ->  | Z3: =Y3 ->  | AB3: =AA3 ->  | AD3: =AC3 ->  | AF3: =AE3 ->  | AG3: x | AH3: =AG3 -> x | AI3: x | AJ3: =AI3 -> x | AK3: x | AL3: =AK3 -> x | AM3: x | AN3: =AM3 -> x | AO3: x | AP3: =AO3 -> x | AQ3: x | AR3: =AQ3 -> x
C4: Leerlingen op teldatum | E4: 2011-10-01 | G4: 2012-10-01 | I4: 2013-10-01 | K4: 2014-10-01 | M4: 2015-10-01 | O4: 2016-10-01 | Q4: 2017-10-01 | S4: 2018-10-01 | U4: 2019-10-01 | W4: 2020-10-01 | Y4: 2021-10-01 | AA4: 2022-10-01 | AC4: 2023-10-01 | AE4: 2024-10-01 | AG4: 2025-10-01 | AI4: 2026-10-01 | AK4: 2027-10-01 | AM4: 2028-10-01 | AO4: 2029-10-01 | AQ4: 2030-10-01
C5: bao | E5: =IF(VLOOKUP('SWV gegevens'!$E$8,Verbanden!$EH$1:$FO$79,1,0)='SWV gegevens'!$E$8,VLOOKUP('SWV gegevens'!$E$8,Verbanden!$EH$1:$FO$79,3,0)) -> 38368 | G5: =IF(VLOOKUP('SWV gegevens'!$E$8,Verbanden!$CY$1:$EF$79,1,0)='SWV gegevens'!$E$8,VLOOKUP('SWV gegevens'!$E$8,Verbanden!$CY$1:$EF$79,3,0)) -> 38365 | I5: =IF(VLOOKUP('SWV gegevens'!$E$8,Verbanden!$BP$1:$CW$79,1,0)='SWV gegevens'!$E$8,VLOOKUP('SWV gegevens'!$E$8,Verbanden!$BP$1:$CW$79,3,0)) -> 38137 | K5: =IF(VLOOKUP('SWV gegevens'!$E$8,Verbanden!$AZ$1:$BN$79,1,0)='SWV gegevens'!$E$8,VLOOKUP('SWV gegevens'!$E$8,Verbanden!$AZ$1:$BN$79,3,0)) -> 38063 | M5: =IF(VLOOKUP('SWV gegevens'!$E$8,Verbanden!$AK$1:$AY$79,1,0)='SWV gegevens'!$E$8,VLOOKUP('SWV gegevens'!$E$8,Verbanden!$AK$1:$AY$79,3,0)) -> 38168 | O5: =IF(VLOOKUP('SWV gegevens'!$E$8,Verbanden!$S$1:$AI$79,1,0)='SWV gegevens'!$E$8,VLOOKUP('SWV gegevens'!$E$8,Verbanden!$S$1:$AI$79,3,0)) -> 38129 | Q5: =IF(VLOOKUP('SWV gegevens'!$E$8,Verbanden!$A$1:$Q$79,1,0)='SWV gegevens'!$E$8,VLOOKUP('SWV gegevens'!$E$8,Verbanden!$A$1:$Q$79,3,0)) -> 38041 | S5: =IF(VLOOKUP('SWV gegevens'!$E$8,Verbanden!$FQ$1:$GG$79,1,0)='SWV gegevens'!$E$8,VLOOKUP('SWV gegevens'!$E$8,Verbanden!$FQ$1:$GG$79,3,0)) -> 37903 | U5: =IF(VLOOKUP('SWV gegevens'!$E$8,Verbanden!$GI$1:$GU$79,1,0)='SWV gegevens'!$E$8,VLOOKUP('SWV gegevens'!$E$8,Verbanden!$GI$1:$GU$79,3,0)) -> 37709
C6: sbo | E6: =IF(VLOOKUP('SWV gegevens'!$E$8,Verbanden!$EH$1:$FO$79,1,0)='SWV gegevens'!$E$8,VLOOKUP('SWV gegevens'!$E$8,Verbanden!$EH$1:$FO$79,4,0)) -> 884 | G6: =IF(VLOOKUP('SWV gegevens'!$E$8,Verbanden!$CY$1:$EF$79,1,0)='SWV gegevens'!$E$8,VLOOKUP('SWV gegevens'!$E$8,Verbanden!$CY$1:$EF$79,4,0)) -> 864 | I6: =IF(VLOOKUP('SWV gegevens'!$E$8,Verbanden!$BP$1:$CW$79,1,0)='SWV gegevens'!$E$8,VLOOKUP('SWV gegevens'!$E$8,Verbanden!$BP$1:$CW$79,4,0)) -> 844 | K6: =IF(VLOOKUP('SWV gegevens'!$E$8,Verbanden!$AZ$1:$BN$79,1,0)='SWV gegevens'!$E$8,VLOOKUP('SWV gegevens'!$E$8,Verbanden!$AZ$1:$BN$79,4,0)) -> 859 | M6: =IF(VLOOKUP('SWV gegevens'!$E$8,Verbanden!$AK$1:$AY$79,1,0)='SWV gegevens'!$E$8,VLOOKUP('SWV gegevens'!$E$8,Verbanden!$AK$1:$AY$79,4,0)) -> 802 | O6: =IF(VLOOKUP('SWV gegevens'!$E$8,Verbanden!$S$1:$AI$79,1,0)='SWV gegevens'!$E$8,VLOOKUP('SWV gegevens'!$E$8,Verbanden!$S$1:$AI$79,4,0)) -> 818 | Q6: =IF(VLOOKUP('SWV gegevens'!$E$8,Verbanden!$A$1:$Q$79,1,0)='SWV gegevens'!$E$8,VLOOKUP('SWV gegevens'!$E$8,Verbanden!$A$1:$Q$79,4,0)) -> 846 | S6: =IF(VLOOKUP('SWV gegevens'!$E$8,Verbanden!$FQ$1:$GG$79,1,0)='SWV gegevens'!$E$8,VLOOKUP('SWV gegevens'!$E$8,Verbanden!$FQ$1:$GG$79,4,0)) -> 865 | U6: =IF(VLOOKUP('SWV gegevens'!$E$8,Verbanden!$GI$1:$GU$79,1,0)='SWV gegevens'!$E$8,VLOOKUP('SWV gegevens'!$E$8,Verbanden!$GI$1:$GU$79,4,0)) -> 875
C8: totaal leerlingen bao en sbo | E8: =SUM(E5:E7) -> 39252 | G8: =SUM(G5:G6) -> 39229 | I8: =SUM(I5:I6) -> 38981 | K8: =SUM(K5:K6) -> 38922 | M8: =SUM(M5:M6) -> 38970 | O8: =SUM(O5:O6) -> 38947 | Q8: =SUM(Q5:Q6) -> 38887 | S8: =SUM(S5:S6) -> 38768 | U8: =SUM(U5:U6) -> 38584 | W8: =SUM(W5:W6) -> 0 | Y8: =SUM(Y5:Y6) -> 0 | AA8: =SUM(AA5:AA6) -> 0 | AC8: =SUM(AC5:AC6) -> 0 | AE8: =SUM(AE5:AE6) -> 0 | AG8: =SUM(AG5:AG6) -> 0 | AI8: =SUM(AI5:AI6) -> 0 | AK8: =SUM(AK5:AK6) -> 0 | AM8: =SUM(AM5:AM6) -> 0 | AO8: =SUM(AO5:AO6) -> 0 | AQ8: =SUM(AQ5:AQ6) -> 0
C9: (2% deelname) | E9: =ROUND(E8*0.02,0) -> 785 | G9: 785 | I9: 780 | K9: =ROUND(K8*0.02,0) -> 778 | M9: =ROUND(M8*0.02,0) -> 779 | O9: =ROUND(O8*0.02,0) -> 779 | Q9: =ROUND(Q8*0.02,0) -> 778 | S9: 775 | U9: =ROUND(U8*0.02,0) -> 772 | W9: =ROUND(W8*0.02,0) -> 0 | Y9: =ROUND(Y8*0.02,0) -> 0 | AA9: 0 | AC9: =ROUND(AC8*0.02,0) -> 0 | AE9: =ROUND(AE8*0.02,0) -> 0 | AG9: =ROUND(AG8*0.02,0) -> 0 | AI9: =ROUND(AI8*0.02,0) -> 0 | AK9: =ROUND(AK8*0.02,0) -> 0 | AM9: =ROUND(AM8*0.02,0) -> 0 | AO9: =ROUND(AO8*0.02,0) -> 0 | AQ9: =ROUND(AQ8*0.02,0) -> 0
C11: Woonachtig in gebied swv
C12: bao | E12: =IF(VLOOKUP('SWV gegevens'!$E$8,Verbanden!$EH$1:$FO$79,1,0)='SWV gegevens'!$E$8,VLOOKUP('SWV gegevens'!$E$8,Verbanden!$EH$1:$FO$79,11,0)) -> 38347 | G12: =IF(VLOOKUP('SWV gegevens'!$E$8,Verbanden!$CY$1:$EF$79,1,0)='SWV gegevens'!$E$8,VLOOKUP('SWV gegevens'!$E$8,Verbanden!$CY$1:$EF$79,11,0)) -> 38350 | I12: =IF(VLOOKUP('SWV gegevens'!$E$8,Verbanden!$BP$1:$CW$79,1,0)='SWV gegevens'!$E$8,VLOOKUP('SWV gegevens'!$E$8,Verbanden!$BP$1:$CW$79,11,0)) -> 38120 | K12: =IF(VLOOKUP('SWV gegevens'!$E$8,Verbanden!$AZ$1:$BN$79,1,0)='SWV gegevens'!$E$8,VLOOKUP('SWV gegevens'!$E$8,Verbanden!$AZ$1:$BN$79,11,0)) -> 38049 | M12: =IF(VLOOKUP('SWV gegevens'!$E$8,Verbanden!$AK$1:$AY$79,1,0)='SWV gegevens'!$E$8,VLOOKUP('SWV gegevens'!$E$8,Verbanden!$AK$1:$AY$79,11,0)) -> 38150 | O12: =IF(VLOOKUP('SWV gegevens'!$E$8,Verbanden!$S$1:$AI$79,1,0)='SWV gegevens'!$E$8,VLOOKUP('SWV gegevens'!$E$8,Verbanden!$S$1:$AI$79,11,0)) -> 38129 | Q12: =IF(VLOOKUP('SWV gegevens'!$E$8,Verbanden!$A$1:$Q$79,1,0)='SWV gegevens'!$E$8,VLOOKUP('SWV gegevens'!$E$8,Verbanden!$A$1:$Q$79,11,0)) -> 38129 | S12: =IF(VLOOKUP('SWV gegevens'!$E$8,Verbanden!$FQ$1:$GG$79,1,0)='SWV gegevens'!$E$8,VLOOKUP('SWV gegevens'!$E$8,Verbanden!$FQ$1:$GG$79,11,0)) -> 37646 | U12: =IF(VLOOKUP('SWV gegevens'!$E$8,Verbanden!$GI$1:$GU$79,1,0)='SWV gegevens'!$E$8,VLOOKUP('SWV gegevens'!$E$8,Verbanden!$GI$1:$GU$79,11,0)) -> 0
C13: sbo | E13: =IF(VLOOKUP('SWV gegevens'!$E$8,Verbanden!$EH$1:$FO$79,1,0)='SWV gegevens'!$E$8,VLOOKUP('SWV gegevens'!$E$8,Verbanden!$EH$1:$FO$79,12,0)) -> 884 | G13: =IF(VLOOKUP('SWV gegevens'!$E$8,Verbanden!$CY$1:$EF$79,1,0)='SWV gegevens'!$E$8,VLOOKUP('SWV gegevens'!$E$8,Verbanden!$CY$1:$EF$79,12,0)) -> 864 | I13: =IF(VLOOKUP('SWV gegevens'!$E$8,Verbanden!$BP$1:$CW$79,1,0)='SWV gegevens'!$E$8,VLOOKUP('SWV gegevens'!$E$8,Verbanden!$BP$1:$CW$79,12,0)) -> 844 | K13: =IF(VLOOKUP('SWV gegevens'!$E$8,Verbanden!$AZ$1:$BN$79,1,0)='SWV gegevens'!$E$8,VLOOKUP('SWV gegevens'!$E$8,Verbanden!$AZ$1:$BN$79,12,0)) -> 859 | M13: =IF(VLOOKUP('SWV gegevens'!$E$8,Verbanden!$AK$1:$AY$79,1,0)='SWV gegevens'!$E$8,VLOOKUP('SWV gegevens'!$E$8,Verbanden!$AK$1:$AY$79,12,0)) -> 802 | O13: =IF(VLOOKUP('SWV gegevens'!$E$8,Verbanden!$S$1:$AI$79,1,0)='SWV gegevens'!$E$8,VLOOKUP('SWV gegevens'!$E$8,Verbanden!$S$1:$AI$79,12,0)) -> 818 | Q13: =IF(VLOOKUP('SWV gegevens'!$E$8,Verbanden!$A$1:$Q$79,1,0)='SWV gegevens'!$E$8,VLOOKUP('SWV gegevens'!$E$8,Verbanden!$A$1:$Q$79,12,0)) -> 818 | S13: =IF(VLOOKUP('SWV gegevens'!$E$8,Verbanden!$FQ$1:$GG$79,1,0)='SWV gegevens'!$E$8,VLOOKUP('SWV gegevens'!$E$8,Verbanden!$FQ$1:$GG$79,12,0)) -> 865 | U13: =IF(VLOOKUP('SWV gegevens'!$E$8,Verbanden!$GI$1:$GU$79,1,0)='SWV gegevens'!$E$8,VLOOKUP('SWV gegevens'!$E$8,Verbanden!$GI$1:$GU$79,12,0)) -> 0
C15: Schoolmaatschappelijk werk
C16: Totaal achterstandscores | K16: 0 | M16: =K16 -> 0 | O16: =M16 -> 0 | Q16: =O16 -> 0 | S16: =Q16 -> 0 | U16: =S16 -> 0 | W16: =U16 -> 0 | Y16: =W16 -> 0 | AA16: =Y16 -> 0 | AC16: =AA16 -> 0 | AE16: =AC16 -> 0 | AG16: =AE16 -> 0 | AI16: =AG16 -> 0 | AK16: =AI16 -> 0 | AM16: =AK16 -> 0 | AO16: =AM16 -> 0 | AQ16: =AO16 -> 0
C17: =CONCATENATE("Aan het swv po, waarvan de som van de achterstandscores van de scholen binnen het swv 1 of meer is, wordt een bedrag van € ",Bekostigingsgegevens!R12,"0 per achterstandscore toegekend. De gegevens voor deze invoer kan het swv zelf verzamelen, voorlopig schatten of uit de meest recente beschikking overnemen.") -> Aan het swv po, waarvan de som van de achterstandscores van de scholen binnen het swv 1 of meer is, wordt een bedrag van € 13,310 per achterstandscore toegekend. De gegevens voor deze invoer kan het swv zelf verzamelen, voorlopig schatten of uit de meest recente beschikking overnemen. | E17: 1
C19: Grensverkeer sbo
C20: indicatie saldo grensverkeer | K20: =K6-K13 -> 0 | M20: =M6-M13 -> 0 | O20: =O6-O13 -> 0 | Q20: =Q6-Q13 -> 28 | S20: =S6-S13 -> 0 | U20: =U6-U13 -> 875 | W20: =W6-W13 -> 0 | Y20: =Y6-Y13 -> 0 | AA20: =AA6-AA13 -> 0 | AC20: =AC6-AC13 -> 0 | AE20: =AE6-AE13 -> 0 | AG20: =AG6-AG13 -> 0 | AI20: =AI6-AI13 -> 0 | AK20: =AK6-AK13 -> 0 | AM20: =AM6-AM13 -> 0 | AO20: =AO6-AO13 -> 0 | AQ20: =AQ6-AQ13 -> 0
C21: in grensverkeer lln voor of op 1 oktober | M21: =K21 -> 0 | O21: =M21 -> 0 | Q21: =O21 -> 0 | S21: =Q21 -> 0 | U21: =S21 -> 0 | W21: =U21 -> 0 | Y21: =W21 -> 0 | AA21: =Y21 -> 0 | AC21: =AA21 -> 0 | AE21: =AC21 -> 0 | AG21: =AE21 -> 0 | AI21: =AG21 -> 0 | AK21: =AI21 -> 0 | AM21: =AK21 -> 0 | AO21: =AM21 -> 0 | AQ21: =AO21 -> 0
C22: in grensverkeer lln na 1 oktober | M22: =K22 -> 0 | O22: =M22 -> 0 | Q22: =O22 -> 0 | S22: =Q22 -> 0 | U22: =S22 -> 0 | W22: =U22 -> 0 | Y22: =W22 -> 0 | AA22: =Y22 -> 0 | AC22: =AA22 -> 0 | AE22: =AC22 -> 0 | AG22: =AE22 -> 0 | AI22: =AG22 -> 0 | AK22: =AI22 -> 0 | AM22: =AK22 -> 0 | AO22: =AM22 -> 0 | AQ22: =AO22 -> 0
C23: uit grensverkeer lln voor of op 1 oktober | M23: =K23 -> 0 | O23: =M23 -> 0 | Q23: =O23 -> 0 | S23: =Q23 -> 0 | U23: =S23 -> 0 | W23: =U23 -> 0 | Y23: =W23 -> 0 | AA23: =Y23 -> 0 | AC23: =AA23 -> 0 | AE23: =AC23 -> 0 | AG23: =AE23 -> 0 | AI23: =AG23 -> 0 | AK23: =AI23 -> 0 | AM23: =AK23 -> 0 | AO23: =AM23 -> 0 | AQ23: =AO23 -> 0
C24: uit grensverkeer lln na 1 oktober | M24: =K24 -> 0 | O24: =M24 -> 0 | Q24: =O24 -> 0 | S24: =Q24 -> 0 | U24: =S24 -> 0 | W24: =U24 -> 0 | Y24: =W24 -> 0 | AA24: =Y24 -> 0 | AC24: =AA24 -> 0 | AE24: =AC24 -> 0 | AG24: =AE24 -> 0 | AI24: =AG24 -> 0 | AK24: =AI24 -> 0 | AM24: =AK24 -> 0 | AO24: =AM24 -> 0 | AQ24: =AO24 -> 0
C27: so lln op teldatum | E27: 2011-10-01 | G27: 2012-10-01 | I27: 2013-10-01 | K27: 2014-10-01 | M27: 2015-10-01 | O27: 2016-10-01 | Q27: 2017-10-01 | S27: 2018-10-01 | U27: 2019-10-01 | W27: 2020-10-01 | Y27: 2021-10-01 | AA27: 2022-10-01 | AC27: =AC4 -> 2023-10-01 | AE27: =AE4 -> 2024-10-01 | AG27: =AG4 -> 2025-10-01 | AI27: =AI4 -> 2026-10-01 | AK27: =AK4 -> 2027-10-01 | AM27: =AM4 -> 2028-10-01 | AO27: =AO4 -> 2029-10-01 | AQ27: =AQ4 -> 2030-10-01
C28: so lln jonger dan 8 jaar
C29: categorie 1 (laag) | E29: =IF(VLOOKUP('SWV gegevens'!$E$8,Verbanden!$EH$1:$FO$79,1,0)='SWV gegevens'!$E$8,VLOOKUP('SWV gegevens'!$E$8,Verbanden!$EH$1:$FO$79,5,0)) -> 58 | G29: =IF(VLOOKUP('SWV gegevens'!$E$8,Verbanden!$CY$1:$EF$79,1,0)='SWV gegevens'!$E$8,VLOOKUP('SWV gegevens'!$E$8,Verbanden!$CY$1:$EF$79,5,0)) -> 47 | I29: =IF(VLOOKUP('SWV gegevens'!$E$8,Verbanden!$BP$1:$CW$79,1,0)='SWV gegevens'!$E$8,VLOOKUP('SWV gegevens'!$E$8,Verbanden!$BP$1:$CW$79,5,0)) -> 59 | K29: =IF(VLOOKUP('SWV gegevens'!$E$8,Verbanden!$AZ$1:$BN$79,1,0)='SWV gegevens'!$E$8,VLOOKUP('SWV gegevens'!$E$8,Verbanden!$AZ$1:$BN$79,5,0)) -> 65 | M29: =IF(VLOOKUP('SWV gegevens'!$E$8,Verbanden!$AK$1:$AY$79,1,0)='SWV gegevens'!$E$8,VLOOKUP('SWV gegevens'!$E$8,Verbanden!$AK$1:$AY$79,5,0)) -> 91 | O29: =IF(VLOOKUP('SWV gegevens'!$E$8,Verbanden!$S$1:$AI$79,1,0)='SWV gegevens'!$E$8,VLOOKUP('SWV gegevens'!$E$8,Verbanden!$S$1:$AI$79,5,0)) -> 83 | Q29: =IF(VLOOKUP('SWV gegevens'!$E$8,Verbanden!$A$1:$Q$79,1,0)='SWV gegevens'!$E$8,VLOOKUP('SWV gegevens'!$E$8,Verbanden!$A$1:$Q$79,5,0)) -> 99 | S29: =IF(VLOOKUP('SWV gegevens'!$E$8,Verbanden!$FQ$1:$GG$79,1,0)='SWV gegevens'!$E$8,VLOOKUP('SWV gegevens'!$E$8,Verbanden!$FQ$1:$GG$79,5,0)) -> 86 | U29: =IF(VLOOKUP('SWV gegevens'!$E$8,Verbanden!$GI$1:$GU$79,1,0)='SWV gegevens'!$E$8,VLOOKUP('SWV gegevens'!$E$8,Verbanden!$GI$1:$GU$79,5,0)) -> 101 | W29: =U29 -> 101 | Y29: =W29 -> 101 | AA29: =Y29 -> 101 | AC29: =AA29 -> 101 | AE29: =AC29 -> 101 | AG29: =AE29 -> 101 | AI29: =AG29 -> 101 | AK29: =AI29 -> 101 | AM29: =AK29 -> 101 | AO29: =AM29 -> 101 | AQ29: =AO29 -> 101
C30: categorie 2 (midden) | E30: =IF(VLOOKUP('SWV gegevens'!$E$8,Verbanden!$EH$1:$FO$79,1,0)='SWV gegevens'!$E$8,VLOOKUP('SWV gegevens'!$E$8,Verbanden!$EH$1:$FO$79,6,0)) -> 0 | G30: =IF(VLOOKUP('SWV gegevens'!$E$8,Verbanden!$CY$1:$EF$79,1,0)='SWV gegevens'!$E$8,VLOOKUP('SWV gegevens'!$E$8,Verbanden!$CY$1:$EF$79,6,0)) -> 0 | I30: =IF(VLOOKUP('SWV gegevens'!$E$8,Verbanden!$BP$1:$CW$79,1,0)='SWV gegevens'!$E$8,VLOOKUP('SWV gegevens'!$E$8,Verbanden!$BP$1:$CW$79,6,0)) -> 0 | K30: =IF(VLOOKUP('SWV gegevens'!$E$8,Verbanden!$AZ$1:$BN$79,1,0)='SWV gegevens'!$E$8,VLOOKUP('SWV gegevens'!$E$8,Verbanden!$AZ$1:$BN$79,6,0)) -> 0 | M30: =IF(VLOOKUP('SWV gegevens'!$E$8,Verbanden!$AK$1:$AY$79,1,0)='SWV gegevens'!$E$8,VLOOKUP('SWV gegevens'!$E$8,Verbanden!$AK$1:$AY$79,6,0)) -> 1 | O30: =IF(VLOOKUP('SWV gegevens'!$E$8,Verbanden!$S$1:$AI$79,1,0)='SWV gegevens'!$E$8,VLOOKUP('SWV gegevens'!$E$8,Verbanden!$S$1:$AI$79,6,0)) -> 5 | Q30: =IF(VLOOKUP('SWV gegevens'!$E$8,Verbanden!$A$1:$Q$79,1,0)='SWV gegevens'!$E$8,VLOOKUP('SWV gegevens'!$E$8,Verbanden!$A$1:$Q$79,6,0)) -> 9 | S30: =IF(VLOOKUP('SWV gegevens'!$E$8,Verbanden!$FQ$1:$GG$79,1,0)='SWV gegevens'!$E$8,VLOOKUP('SWV gegevens'!$E$8,Verbanden!$FQ$1:$GG$79,6,0)) -> 16 | U30: =IF(VLOOKUP('SWV gegevens'!$E$8,Verbanden!$GI$1:$GU$79,1,0)='SWV gegevens'!$E$8,VLOOKUP('SWV gegevens'!$E$8,Verbanden!$GI$1:$GU$79,6,0)) -> 10 | W30: =U30 -> 10 | Y30: =W30 -> 10 | AA30: =Y30 -> 10 | AC30: =AA30 -> 10 | AE30: =AC30 -> 10 | AG30: =AE30 -> 10 | AI30: =AG30 -> 10 | AK30: =AI30 -> 10 | AM30: =AK30 -> 10 | AO30: =AM30 -> 10 | AQ30: =AO30 -> 10
C31: categorie 3 (hoog) | E31: =IF(VLOOKUP('SWV gegevens'!$E$8,Verbanden!$EH$1:$FO$79,1,0)='SWV gegevens'!$E$8,VLOOKUP('SWV gegevens'!$E$8,Verbanden!$EH$1:$FO$79,7,0)) -> 5 | G31: =IF(VLOOKUP('SWV gegevens'!$E$8,Verbanden!$CY$1:$EF$79,1,0)='SWV gegevens'!$E$8,VLOOKUP('SWV gegevens'!$E$8,Verbanden!$CY$1:$EF$79,7,0)) -> 1 | I31: =IF(VLOOKUP('SWV gegevens'!$E$8,Verbanden!$BP$1:$CW$79,1,0)='SWV gegevens'!$E$8,VLOOKUP('SWV gegevens'!$E$8,Verbanden!$BP$1:$CW$79,7,0)) -> 7 | K31: =IF(VLOOKUP('SWV gegevens'!$E$8,Verbanden!$AZ$1:$BN$79,1,0)='SWV gegevens'!$E$8,VLOOKUP('SWV gegevens'!$E$8,Verbanden!$AZ$1:$BN$79,7,0)) -> 11 | M31: =IF(VLOOKUP('SWV gegevens'!$E$8,Verbanden!$AK$1:$AY$79,1,0)='SWV gegevens'!$E$8,VLOOKUP('SWV gegevens'!$E$8,Verbanden!$AK$1:$AY$79,7,0)) -> 12 | O31: =IF(VLOOKUP('SWV gegevens'!$E$8,Verbanden!$S$1:$AI$79,1,0)='SWV gegevens'!$E$8,VLOOKUP('SWV gegevens'!$E$8,Verbanden!$S$1:$AI$79,7,0)) -> 18 | Q31: =IF(VLOOKUP('SWV gegevens'!$E$8,Verbanden!$A$1:$Q$79,1,0)='SWV gegevens'!$E$8,VLOOKUP('SWV gegevens'!$E$8,Verbanden!$A$1:$Q$79,7,0)) -> 16 | S31: =IF(VLOOKUP('SWV gegevens'!$E$8,Verbanden!$FQ$1:$GG$79,1,0)='SWV gegevens'!$E$8,VLOOKUP('SWV gegevens'!$E$8,Verbanden!$FQ$1:$GG$79,7,0)) -> 13 | U31: =IF(VLOOKUP('SWV gegevens'!$E$8,Verbanden!$GI$1:$GU$79,1,0)='SWV gegevens'!$E$8,VLOOKUP('SWV gegevens'!$E$8,Verbanden!$GI$1:$GU$79,7,0)) -> 15 | W31: =U31 -> 15 | Y31: =W31 -> 15 | AA31: =Y31 -> 15 | AC31: =AA31 -> 15 | AE31: =AC31 -> 15 | AG31: =AE31 -> 15 | AI31: =AG31 -> 15 | AK31: =AI31 -> 15 | AM31: =AK31 -> 15 | AO31: =AM31 -> 15 | AQ31: =AO31 -> 15
C32: so lln 8 jaar en ouder
C33: categorie 1 (laag) | E33: =IF(VLOOKUP('SWV gegevens'!$E$8,Verbanden!$EH$1:$FO$79,1,0)='SWV gegevens'!$E$8,VLOOKUP('SWV gegevens'!$E$8,Verbanden!$EH$1:$FO$79,8,0)) -> 212 | G33: =IF(VLOOKUP('SWV gegevens'!$E$8,Verbanden!$CY$1:$EF$79,1,0)='SWV gegevens'!$E$8,VLOOKUP('SWV gegevens'!$E$8,Verbanden!$CY$1:$EF$79,8,0)) -> 213 | I33: =IF(VLOOKUP('SWV gegevens'!$E$8,Verbanden!$BP$1:$CW$79,1,0)='SWV gegevens'!$E$8,VLOOKUP('SWV gegevens'!$E$8,Verbanden!$BP$1:$CW$79,8,0)) -> 235 | K33: =IF(VLOOKUP('SWV gegevens'!$E$8,Verbanden!$AZ$1:$BN$79,1,0)='SWV gegevens'!$E$8,VLOOKUP('SWV gegevens'!$E$8,Verbanden!$AZ$1:$BN$79,8,0)) -> 245 | M33: =IF(VLOOKUP('SWV gegevens'!$E$8,Verbanden!$AK$1:$AY$79,1,0)='SWV gegevens'!$E$8,VLOOKUP('SWV gegevens'!$E$8,Verbanden!$AK$1:$AY$79,8,0)) -> 235 | O33: =IF(VLOOKUP('SWV gegevens'!$E$8,Verbanden!$S$1:$AI$79,1,0)='SWV gegevens'!$E$8,VLOOKUP('SWV gegevens'!$E$8,Verbanden!$S$1:$AI$79,8,0)) -> 253 | Q33: =IF(VLOOKUP('SWV gegevens'!$E$8,Verbanden!$A$1:$Q$79,1,0)='SWV gegevens'!$E$8,VLOOKUP('SWV gegevens'!$E$8,Verbanden!$A$1:$Q$79,8,0)) -> 232 | S33: =IF(VLOOKUP('SWV gegevens'!$E$8,Verbanden!$FQ$1:$GG$79,1,0)='SWV gegevens'!$E$8,VLOOKUP('SWV gegevens'!$E$8,Verbanden!$FQ$1:$GG$79,8,0)) -> 241 | U33: =IF(VLOOKUP('SWV gegevens'!$E$8,Verbanden!$GI$1:$GU$79,1,0)='SWV gegevens'!$E$8,VLOOKUP('SWV gegevens'!$E$8,Verbanden!$GI$1:$GU$79,8,0)) -> 274 | W33: =U33 -> 274 | Y33: =W33 -> 274 | AA33: =Y33 -> 274 | AC33: =AA33 -> 274 | AE33: =AC33 -> 274 | AG33: =AE33 -> 274 | AI33: =AG33 -> 274 | AK33: =AI33 -> 274 | AM33: =AK33 -> 274 | AO33: =AM33 -> 274 | AQ33: =AO33 -> 274
C34: categorie 2 (midden) | E34: =IF(VLOOKUP('SWV gegevens'!$E$8,Verbanden!$EH$1:$FO$79,1,0)='SWV gegevens'!$E$8,VLOOKUP('SWV gegevens'!$E$8,Verbanden!$EH$1:$FO$79,9,0)) -> 0 | G34: =IF(VLOOKUP('SWV gegevens'!$E$8,Verbanden!$CY$1:$EF$79,1,0)='SWV gegevens'!$E$8,VLOOKUP('SWV gegevens'!$E$8,Verbanden!$CY$1:$EF$79,9,0)) -> 0 | I34: =IF(VLOOKUP('SWV gegevens'!$E$8,Verbanden!$BP$1:$CW$79,1,0)='SWV gegevens'!$E$8,VLOOKUP('SWV gegevens'!$E$8,Verbanden!$BP$1:$CW$79,9,0)) -> 0 | K34: =IF(VLOOKUP('SWV gegevens'!$E$8,Verbanden!$AZ$1:$BN$79,1,0)='SWV gegevens'!$E$8,VLOOKUP('SWV gegevens'!$E$8,Verbanden!$AZ$1:$BN$79,9,0)) -> 0 | M34: =IF(VLOOKUP('SWV gegevens'!$E$8,Verbanden!$AK$1:$AY$79,1,0)='SWV gegevens'!$E$8,VLOOKUP('SWV gegevens'!$E$8,Verbanden!$AK$1:$AY$79,9,0)) -> 1 | O34: =IF(VLOOKUP('SWV gegevens'!$E$8,Verbanden!$S$1:$AI$79,1,0)='SWV gegevens'!$E$8,VLOOKUP('SWV gegevens'!$E$8,Verbanden!$S$1:$AI$79,9,0)) -> 2 | Q34: =IF(VLOOKUP('SWV gegevens'!$E$8,Verbanden!$A$1:$Q$79,1,0)='SWV gegevens'!$E$8,VLOOKUP('SWV gegevens'!$E$8,Verbanden!$A$1:$Q$79,9,0)) -> 4 | S34: =IF(VLOOKUP('SWV gegevens'!$E$8,Verbanden!$FQ$1:$GG$79,1,0)='SWV gegevens'!$E$8,VLOOKUP('SWV gegevens'!$E$8,Verbanden!$FQ$1:$GG$79,9,0)) -> 5 | U34: =IF(VLOOKUP('SWV gegevens'!$E$8,Verbanden!$GI$1:$GU$79,1,0)='SWV gegevens'!$E$8,VLOOKUP('SWV gegevens'!$E$8,Verbanden!$GI$1:$GU$79,9,0)) -> 12 | W34: =U34 -> 12 | Y34: =W34 -> 12 | AA34: =Y34 -> 12 | AC34: =AA34 -> 12 | AE34: =AC34 -> 12 | AG34: =AE34 -> 12 | AI34: =AG34 -> 12 | AK34: =AI34 -> 12 | AM34: =AK34 -> 12 | AO34: =AM34 -> 12 | AQ34: =AO34 -> 12
C35: categorie 3 (hoog) | E35: =IF(VLOOKUP('SWV gegevens'!$E$8,Verbanden!$EH$1:$FO$79,1,0)='SWV gegevens'!$E$8,VLOOKUP('SWV gegevens'!$E$8,Verbanden!$EH$1:$FO$79,10,0)) -> 43 | G35: =IF(VLOOKUP('SWV gegevens'!$E$8,Verbanden!$CY$1:$EF$79,1,0)='SWV gegevens'!$E$8,VLOOKUP('SWV gegevens'!$E$8,Verbanden!$CY$1:$EF$79,10,0)) -> 52 | I35: =IF(VLOOKUP('SWV gegevens'!$E$8,Verbanden!$BP$1:$CW$79,1,0)='SWV gegevens'!$E$8,VLOOKUP('SWV gegevens'!$E$8,Verbanden!$BP$1:$CW$79,10,0)) -> 46 | K35: =IF(VLOOKUP('SWV gegevens'!$E$8,Verbanden!$AZ$1:$BN$79,1,0)='SWV gegevens'!$E$8,VLOOKUP('SWV gegevens'!$E$8,Verbanden!$AZ$1:$BN$79,10,0)) -> 35 | M35: =IF(VLOOKUP('SWV gegevens'!$E$8,Verbanden!$AK$1:$AY$79,1,0)='SWV gegevens'!$E$8,VLOOKUP('SWV gegevens'!$E$8,Verbanden!$AK$1:$AY$79,10,0)) -> 40 | O35: =IF(VLOOKUP('SWV gegevens'!$E$8,Verbanden!$S$1:$AI$79,1,0)='SWV gegevens'!$E$8,VLOOKUP('SWV gegevens'!$E$8,Verbanden!$S$1:$AI$79,10,0)) -> 46 | Q35: =IF(VLOOKUP('SWV gegevens'!$E$8,Verbanden!$A$1:$Q$79,1,0)='SWV gegevens'!$E$8,VLOOKUP('SWV gegevens'!$E$8,Verbanden!$A$1:$Q$79,10,0)) -> 56 | S35: =IF(VLOOKUP('SWV gegevens'!$E$8,Verbanden!$FQ$1:$GG$79,1,0)='SWV gegevens'!$E$8,VLOOKUP('SWV gegevens'!$E$8,Verbanden!$FQ$1:$GG$79,10,0)) -> 68 | U35: =IF(VLOOKUP('SWV gegevens'!$E$8,Verbanden!$GI$1:$GU$79,1,0)='SWV gegevens'!$E$8,VLOOKUP('SWV gegevens'!$E$8,Verbanden!$GI$1:$GU$79,10,0)) -> 71 | W35: =U35 -> 71 | Y35: =W35 -> 71 | AA35: =Y35 -> 71 | AC35: =AA35 -> 71 | AE35: =AC35 -> 71 | AG35: =AE35 -> 71 | AI35: =AG35 -> 71 | AK35: =AI35 -> 71 | AM35: =AK35 -> 71 | AO35: =AM35 -> 71 | AQ35: =AO35 -> 71
C36: Totaal so | E36: =SUM(E29:E35) -> 318 | G36: =SUM(G29:G35) -> 313 | I36: =SUM(I29:I35) -> 347 | K36: =SUM(K29:K35) -> 356 | M36: =SUM(M29:M35) -> 380 | O36: =SUM(O29:O35) -> 407 | Q36: =SUM(Q29:Q35) -> 416 | S36: =SUM(S29:S35) -> 429 | U36: =SUM(U29:U35) -> 483 | W36: =SUM(W29:W31,W33:W35) -> 483 | Y36: =SUM(Y29:Y31,Y33:Y35) -> 483 | AA36: =SUM(AA29:AA31,AA33:AA35) -> 483 | AC36: =SUM(AC29:AC31,AC33:AC35) -> 483 | AE36: =SUM(AE29:AE31,AE33:AE35) -> 483 | AG36: =SUM(AG29:AG31,AG33:AG35) -> 483 | AI36: =SUM(AI29:AI31,AI33:AI35) -> 483 | AK36: =SUM(AK29:AK31,AK33:AK35) -> 483 | AM36: =SUM(AM29:AM31,AM33:AM35) -> 483 | AO36: =SUM(AO29:AO31,AO33:AO35) -> 483 | AQ36: =SUM(AQ29:AQ31,AQ33:AQ35) -> 483
C39: Peildatum 1-2
C40: Groei sbo | K40: 2015-02-01 | M40: 2016-02-01 | O40: 2017-02-01 | Q40: 2018-02-01 | S40: 2019-02-01 | U40: 2020-02-01 | W40: 2021-02-01 | Y40: 2022-02-01 | AA40: 2023-02-01 | AC40: 2024-02-01 | AE40: 2025-02-01 | AG40: 2026-02-01 | AI40: 2027-02-01 | AK40: 2028-02-01 | AM40: 2029-02-01 | AO40: 2030-02-01 | AQ40: 2031-02-01
C41: aantal sbo leerlingen op peildatum | K41: 0 | M41: =K41 -> 0 | O41: =M41 -> 0 | Q41: =O41 -> 0 | S41: =Q41 -> 0 | U41: =S41 -> 0 | W41: =U41 -> 0 | Y41: =W41 -> 0 | AA41: =Y41 -> 0 | AC41: =AA41 -> 0 | AE41: =AC41 -> 0 | AG41: =AE41 -> 0 | AI41: =AG41 -> 0 | AK41: =AI41 -> 0 | AM41: =AK41 -> 0 | AO41: =AM41 -> 0 | AQ41: =AO41 -> 0
C42: groei aantal leerlingen | K42: =K41-K6 -> -859 | M42: =M41-M6 -> -802 | O42: =O41-O6 -> -818 | Q42: =Q41-Q6 -> -846 | S42: =S41-S6 -> -865 | U42: =U41-U6 -> -875 | W42: =W41-W6 -> 0 | Y42: =Y41-Y6 -> 0 | AA42: =AA41-AA6 -> 0 | AC42: =AC41-AC6 -> 0 | AE42: =AE41-AE6 -> 0 | AG42: =AG41-AG6 -> 0 | AI42: =AI41-AI6 -> 0 | AK42: =AK41-AK6 -> 0 | AM42: =AM41-AM6 -> 0 | AO42: =AO41-AO6 -> 0 | AQ42: =AQ41-AQ6 -> 0
C44: verschil SBAO lln op peildatum en 2% deelname | K44: =K41-K9 -> -778 | M44: =M41-M9 -> -779 | O44: =O41-O9 -> -779 | Q44: =Q41-Q9 -> -778 | S44: =S41-S9 -> -775 | U44: =U41-U9 -> -772 | W44: =W41-W9 -> 0 | Y44: =Y41-Y9 -> 0 | AA44: =AA41-AA9 -> 0 | AC44: =AC41-AC9 -> 0 | AE44: =AE41-AE9 -> 0 | AG44: =AG41-AG9 -> 0 | AI44: =AI41-AI9 -> 0 | AK44: =AK41-AK9 -> 0 | AM44: =AM41-AM9 -> 0 | AO44: =AO41-AO9 -> 0 | AQ44: =AQ41-AQ9 -> 0
C45: overdracht pers.ondersteuningsbekostiging ivm deelname > of < 2% | K45: =-K44*Bekostigingsgegevens!H67 -> 3329840 | M45: =-M44*Bekostigingsgegevens!J67 -> 3424811.18 | O45: =-O44*Bekostigingsgegevens!L67 -> 3604199.3 | Q45: =-Q44*Bekostigingsgegevens!N67 -> 3767387.2 | S45: =-S44*Bekostigingsgegevens!P67 -> 3886648.25 | U45: =-U44*Bekostigingsgegevens!R67 -> 3935015.24 | W45: =-W44*Bekostigingsgegevens!T67 -> 0 | Y45: =-Y44*Bekostigingsgegevens!V67 -> 0 | AA45: =-AA44*Bekostigingsgegevens!X67 -> 0 | AC45: =-AC44*Bekostigingsgegevens!Z67 -> 0 | AE45: =-AE44*Bekostigingsgegevens!AB67 -> 0 | AG45: =-AG44*Bekostigingsgegevens!AD67 -> 0 | AI45: =-AI44*Bekostigingsgegevens!AF67 -> 0 | AK45: =-AK44*Bekostigingsgegevens!AH67 -> 0 | AM45: =-AM44*Bekostigingsgegevens!AJ67 -> 0 | AO45: =-AO44*Bekostigingsgegevens!AL67 -> 0 | AQ45: =-AQ44*Bekostigingsgegevens!AN67 -> 0
C46: overdracht mat.ondersteuningsbekostiging ivm deelname > of < 2% | K46: =-K44*Bekostigingsgegevens!I$68 -> 174093.06 | M46: =-M44*Bekostigingsgegevens!K$68 -> 174667.38 | O46: =-O44*Bekostigingsgegevens!M$68 -> 178531.22 | Q46: =-Q44*Bekostigingsgegevens!O$68 -> 180978.36 | S46: =-S44*Bekostigingsgegevens!Q$68 -> 183163.5 | U46: =-U44*Bekostigingsgegevens!S$68 -> 182454.48 | W46: =-W44*Bekostigingsgegevens!U$68 -> 0 | Y46: =-Y44*Bekostigingsgegevens!W$68 -> 0 | AA46: =-AA44*Bekostigingsgegevens!Y$68 -> 0 | AC46: =-AC44*Bekostigingsgegevens!AA$68 -> 0 | AE46: =-AE44*Bekostigingsgegevens!AC$68 -> 0 | AG46: =-AG44*Bekostigingsgegevens!AE$68 -> 0 | AI46: =-AI44*Bekostigingsgegevens!AG$68 -> 0 | AK46: =-AK44*Bekostigingsgegevens!AI$68 -> 0 | AM46: =-AM44*Bekostigingsgegevens!AK$68 -> 0 | AO46: =-AO44*Bekostigingsgegevens!AM$68 -> 0 | AQ46: =-AQ44*Bekostigingsgegevens!AO$68 -> 0
C47: overdracht basisbekostiging ivm groei peildatum | K47: =IF(K42>0,(-K42*Bekostigingsgegevens!H65)-(K42*Bekostigingsgegevens!I66),0) -> 0 | M47: =IF(M42>0,(-M42*Bekostigingsgegevens!J65)-(M42*Bekostigingsgegevens!K66),0) -> 0 | O47: =IF(O42>0,(-O42*Bekostigingsgegevens!L65)-(O42*Bekostigingsgegevens!M66),0) -> 0 | Q47: =IF(Q42>0,(-Q42*Bekostigingsgegevens!N65)-(Q42*Bekostigingsgegevens!O66),0) -> 0 | S47: =IF(S42>0,(-S42*Bekostigingsgegevens!P65)-(S42*Bekostigingsgegevens!Q66),0) -> 0 | U47: =IF(U42>0,(-U42*Bekostigingsgegevens!R65)-(U42*Bekostigingsgegevens!S66),0) -> 0 | W47: =IF(W42>0,(-W42*Bekostigingsgegevens!T65)-(W42*Bekostigingsgegevens!U66),0) -> 0 | Y47: =IF(Y42>0,(-Y42*Bekostigingsgegevens!V65)-(Y42*Bekostigingsgegevens!W66),0) -> 0 | AA47: =IF(AA42>0,(-AA42*Bekostigingsgegevens!X65)-(AA42*Bekostigingsgegevens!Y66),0) -> 0 | AC47: =IF(AC42>0,(-AC42*Bekostigingsgegevens!Z65)-(AC42*Bekostigingsgegevens!AA66),0) -> 0 | AE47: =IF(AE42>0,(-AE42*Bekostigingsgegevens!AB65)-(AE42*Bekostigingsgegevens!AC66),0) -> 0 | AG47: =IF(AG42>0,(-AG42*Bekostigingsgegevens!AD65)-(AG42*Bekostigingsgegevens!AE66),0) -> 0 | AI47: =IF(AI42>0,(-AI42*Bekostigingsgegevens!AF65)-(AI42*Bekostigingsgegevens!AG66),0) -> 0 | AK47: =IF(AK42>0,(-AK42*Bekostigingsgegevens!AH65)-(AK42*Bekostigingsgegevens!AI66),0) -> 0 | AM47: =IF(AM42>0,(-AM42*Bekostigingsgegevens!AJ65)-(AM42*Bekostigingsgegevens!AK66),0) -> 0 | AO47: =IF(AO42>0,(-AO42*Bekostigingsgegevens!AL65)-(AO42*Bekostigingsgegevens!AM66),0) -> 0 | AQ47: =IF(AQ42>0,(-AQ42*Bekostigingsgegevens!AN65)-(AQ42*Bekostigingsgegevens!AO66),0) -> 0
C48: subtotaal baten € naar SWV/(lasten € naar SBAO) | K48: =SUM(K45:K47) -> 3503933.06 | M48: 3599478.56 | O48: 3782730.52 | Q48: 3948365.56 | S48: 4069811.75 | U48: =SUM(U45:U47) -> 4117469.72 | W48: =SUM(W45:W47) -> 0 | Y48: =SUM(Y45:Y47) -> 0 | AA48: 0 | AC48: 0 | AE48: 0 | AG48: 0 | AI48: 0 | AK48: =SUM(AK45:AK47) -> 0 | AM48: =SUM(AM45:AM47) -> 0 | AO48: =SUM(AO45:AO47) -> 0 | AQ48: =SUM(AQ45:AQ47) -> 0
C51: Groei so lln jonger dan 8 jaar | K51: 2015-02-01 | M51: 2016-02-01 | O51: 2017-02-01 | Q51: 2018-02-01 | S51: 2019-02-01 | U51: 2020-02-01 | W51: 2021-02-01 | Y51: 2022-02-01 | AA51: 2023-02-01 | AC51: =AC40 -> 2024-02-01 | AE51: =AE40 -> 2025-02-01 | AG51: =AG40 -> 2026-02-01 | AI51: =AI40 -> 2027-02-01 | AK51: =AK40 -> 2028-02-01 | AM51: =AM40 -> 2029-02-01 | AO51: =AO40 -> 2030-02-01 | AQ51: =AQ40 -> 2031-02-01
C52: aantal categorie 1 (laag) | K52: =InUitstroom!AE619 -> 12 | M52: 0 | O52: =M52 -> 0 | Q52: =O52 -> 0 | S52: =Q52 -> 0 | U52: =S52 -> 0 | W52: =U52 -> 0 | Y52: =W52 -> 0 | AA52: =Y52 -> 0 | AC52: =AA52 -> 0 | AE52: =AC52 -> 0 | AG52: =AE52 -> 0 | AI52: =AG52 -> 0 | AK52: =AI52 -> 0 | AM52: =AK52 -> 0 | AO52: =AM52 -> 0 | AQ52: =AO52 -> 0
C53: aantal categorie 2 (midden) | K53: =InUitstroom!AF619 -> 0 | M53: 0 | O53: =M53 -> 0 | Q53: =O53 -> 0 | S53: =Q53 -> 0 | U53: =S53 -> 0 | W53: =U53 -> 0 | Y53: =W53 -> 0 | AA53: =Y53 -> 0 | AC53: =AA53 -> 0 | AE53: =AC53 -> 0 | AG53: =AE53 -> 0 | AI53: =AG53 -> 0 | AK53: =AI53 -> 0 | AM53: =AK53 -> 0 | AO53: =AM53 -> 0 | AQ53: =AO53 -> 0
C54: aantal categorie 3 (hoog) | K54: =InUitstroom!AG619 -> 1 | M54: 0 | O54: =M54 -> 0 | Q54: =O54 -> 0 | S54: =Q54 -> 0 | U54: =S54 -> 0 | W54: =U54 -> 0 | Y54: =W54 -> 0 | AA54: =Y54 -> 0 | AC54: =AA54 -> 0 | AE54: =AC54 -> 0 | AG54: =AE54 -> 0 | AI54: =AG54 -> 0 | AK54: =AI54 -> 0 | AM54: =AK54 -> 0 | AO54: =AM54 -> 0 | AQ54: =AO54 -> 0
C55: groei totaal so lln jonger dan 8 jaar | K55: =SUM(K52:K54) -> 13 | M55: =SUM(M52:M54) -> 0 | O55: 0 | Q55: 0 | S55: 0 | U55: =SUM(U52:U54) -> 0 | W55: =SUM(W52:W54) -> 0 | Y55: =SUM(Y52:Y54) -> 0 | AA55: 0 | AC55: =SUM(AC52:AC54) -> 0 | AE55: =SUM(AE52:AE54) -> 0 | AG55: =SUM(AG52:AG54) -> 0 | AI55: =SUM(AI52:AI54) -> 0 | AK55: =SUM(AK52:AK54) -> 0 | AM55: =SUM(AM52:AM54) -> 0 | AO55: =SUM(AO52:AO54) -> 0 | AQ55: =SUM(AQ52:AQ54) -> 0
C57: Groei so lln 8 jaar en ouder
C58: aantal categorie 1 (laag) | K58: =InUitstroom!AI619 -> 5 | M58: 0 | O58: =M58 -> 0 | Q58: =O58 -> 0 | S58: =Q58 -> 0 | U58: =S58 -> 0 | W58: =U58 -> 0 | Y58: =W58 -> 0 | AA58: =Y58 -> 0 | AC58: =AA58 -> 0 | AE58: =AC58 -> 0 | AG58: =AE58 -> 0 | AI58: =AG58 -> 0 | AK58: =AI58 -> 0 | AM58: =AK58 -> 0 | AO58: =AM58 -> 0 | AQ58: =AO58 -> 0
C59: aantal categorie 2 (midden) | K59: =InUitstroom!AJ619 -> 0 | M59: 0 | O59: =M59 -> 0 | Q59: =O59 -> 0 | S59: =Q59 -> 0 | U59: =S59 -> 0 | W59: =U59 -> 0 | Y59: =W59 -> 0 | AA59: =Y59 -> 0 | AC59: =AA59 -> 0 | AE59: =AC59 -> 0 | AG59: =AE59 -> 0 | AI59: =AG59 -> 0 | AK59: =AI59 -> 0 | AM59: =AK59 -> 0 | AO59: =AM59 -> 0 | AQ59: =AO59 -> 0
C60: aantal categorie 3 (hoog) | K60: =InUitstroom!AK619 -> 0 | M60: 0 | O60: =M60 -> 0 | Q60: =O60 -> 0 | S60: =Q60 -> 0 | U60: =S60 -> 0 | W60: =U60 -> 0 | Y60: =W60 -> 0 | AA60: =Y60 -> 0 | AC60: =AA60 -> 0 | AE60: =AC60 -> 0 | AG60: =AE60 -> 0 | AI60: =AG60 -> 0 | AK60: =AI60 -> 0 | AM60: =AK60 -> 0 | AO60: =AM60 -> 0 | AQ60: =AO60 -> 0
C61: groei totaal so lln 8 jaar en ouder | K61: =SUM(K58:K60) -> 5 | M61: =SUM(M58:M60) -> 0 | O61: =SUM(O58:O60) -> 0 | Q61: 0 | S61: 0 | U61: =SUM(U58:U60) -> 0 | W61: =SUM(W58:W60) -> 0 | Y61: =SUM(Y58:Y60) -> 0 | AA61: 0 | AC61: =SUM(AC58:AC60) -> 0 | AE61: =SUM(AE58:AE60) -> 0 | AG61: =SUM(AG58:AG60) -> 0 | AI61: =SUM(AI58:AI60) -> 0 | AK61: =SUM(AK58:AK60) -> 0 | AM61: =SUM(AM58:AM60) -> 0 | AO61: =SUM(AO58:AO60) -> 0 | AQ61: =SUM(AQ58:AQ60) -> 0
C63: Totaal groei so | K63: =SUM(K52:K54)+SUM(K58:K60) -> 18 | M63: =SUM(M52:M54)+SUM(M58:M60) -> 0 | O63: 0 | Q63: 0 | S63: 0 | U63: =SUM(U52:U54)+SUM(U58:U60) -> 0 | W63: =SUM(W52:W54)+SUM(W58:W60) -> 0 | Y63: =SUM(Y52:Y54)+SUM(Y58:Y60) -> 0 | AA63: 0 | AC63: 0 | AE63: 0 | AG63: 0 | AI63: 0 | AK63: =SUM(AK52:AK54)+SUM(AK58:AK60) -> 0 | AM63: =SUM(AM52:AM54)+SUM(AM58:AM60) -> 0 | AO63: =SUM(AO52:AO54)+SUM(AO58:AO60) -> 0 | AQ63: =SUM(AQ52:AQ54)+SUM(AQ58:AQ60) -> 0

Sheet Verbanden (hidden)
A1: 2017 | P1: 0.00191 | Q1: 0.0221 | S1: 2016 | AH1: 0.02506 | AI1: 0.002 | AK1: 2015 | AZ1: 2014 | BP1: 2013 | BR1: 3 | BS1: 4 | BT1: 5 | BU1: 6 | BV1: 7 | BW1: 8 | BX1: 9 | BY1: 10 | BZ1: 11 | CA1: 12 | CB1: 13 | CC1: 14 | CD1: 15 | CE1: 16 | CF1: 17 | CG1: 18 | CH1: 19 | CI1: 20 | CJ1: 21 | CK1: 22 | CL1: 23 | CM1: 24 | CN1: 25 | CO1: 26 | CP1: 27 | CQ1: 28 | CR1: 29 | CS1: 30 | CT1: 31 | CU1: 32 | CV1: 33 | CW1: 34 | CY1: 2012 | DA1: 3 | DB1: 4 | DC1: 5 | DD1: 6 | DE1: 7 | DF1: 8 | DG1: 9 | DH1: 10 | DI1: 11 | DJ1: 12 | DK1: 13 | DL1: 14 | DM1: 15 | DN1: 16 | DO1: 17 | DP1: 18 | DQ1: 19 | DR1: 20 | DS1: 21 | DT1: 22 | DU1: 23 | DV1: 24 | DW1: 25 | DX1: 26 | DY1: 27 | DZ1: 28 | EA1: 29 | EB1: 30 | EC1: 31 | ED1: 32 | EE1: 33 | EF1: 34 | EH1: 2011 | EJ1: 3 | EK1: 4 | EL1: 5 | EM1: 6 | EN1: 7 | EO1: 8 | EP1: 9 | EQ1: 10 | ER1: 11 | ES1: 12 | ET1: 13 | EU1: 14 | EV1: 15 | EW1: 16 | EX1: 17 | EY1: 18 | EZ1: 19 | FA1: 20 | FB1: 21 | FC1: 22 | FD1: 23 | FE1: 24 | FF1: 25 | FG1: 26 | FH1: 27 | FI1: 28 | FJ1: 29 | FK1: 30 | FL1: 31 | FM1: 32 | FN1: 33 | FO1: 34 | FQ1: 2018 | GF1: 0.00049 | GG1: 0.015 | GI1: 2019
A2: SWV_lrl | B2: SWV | C2: bao | D2: sbao | E2: so cat 1 <8 | F2: so cat 2 <8 | G2: so cat 3 <8 | H2: so cat 1 >=8 | I2: so cat 2 >=8 | J2: so cat 3 >=8 | K2: bao | L2: sbao | M2: woon | N2: cl1 | O2: cl2 | P2: Verevening P 2017-2018 voorlopig | Q2: Verevening M 2017 | S2: SWV_lrl | T2: SWV | U2: bao | V2: sbao | W2: so cat 1 <8 | X2: so cat 2 <8 | Y2: so cat 3 <8 | Z2: so cat 1 >=8 | AA2: so cat 2 >=8 | AB2: so cat 3 >=8 | AC2: bao | AD2: sbao | AE2: woon | AF2: cl1 | AG2: cl2 | AH2: Verevening P 2017-2018 voorlopig | AI2: Verevening M 2017 | AK2: SWV_lrl | AL2: SWV | AM2: bao | AN2: sbao | AO2: so cat 1 <8 | AP2: so cat 2 <8 | AQ2: so cat 3 <8 | AR2: so cat 1 >=8 | AS2: so cat 2 >=8 | AT2: so cat 3 >=8 | AU2: bao | AV2: sbao | AW2: woon | AX2: cl1 | AY2: cl2 | AZ2: SWV_lrl | BA2: SWV | BB2: BAO | BC2: SBAO | BD2: SO cat 1 <8 | BE2: SO cat 2 <8 | BF2: SO cat 3 <8 | BG2: SO cat 1 >=8 | BH2: SO cat 2 >=8 | BI2: SO cat 3 >=8 | BJ2: BAO | BK2: SBAO | BL2: woon | BM2: cl1 | BN2: cl2 | BP2: SWV_lrl | BQ2: SWV | BR2: BAO | BS2: SBAO | BT2: SO cat 1 <8 | BU2: SO cat 2 <8 | BV2: SO cat 3 <8 | BW2: SO cat 1 >=8 | BX2: SO cat 2 >=8 | BY2: SO cat 3 >=8 | BZ2: BAO | CA2: SBAO | CB2: woon | CC2: Verevening | CD2: Cluster 4 | CE2: LG | CF2: MGF | CG2: LZ/S | CH2: ZMLK | CI2: CLUSTER 4 | CJ2: LG | CK2: MG | CL2: LZ | CM2: ZMLK | CN2: CLUSTER 4 | CO2: LG | CP2: MG | CQ2: LZ | CR2: ZMLK | CS2: ZMLKBB | CT2: cluster 2 | CU2: PO_cl2 | CV2: cluster 1 | CW2: PO cl1 | CY2: SWV_lrl | CZ2: SWV | DA2: BAO | DB2: SBAO | DC2: SO cat 1 <8 | DD2: SO cat 2 <8 | DE2: SO cat 3 <8 | DF2: SO cat 1 >=8 | DG2: SO cat 2 >=8 | DH2: SO cat 3 >=8 | DI2: BAO | DJ2: SBAO | DK2: woon | DL2: Verevening | DM2: Cluster 4 | DN2: LG | DO2: MGF | DP2: LZ/S | DQ2: ZMLK | DR2: CLUSTER 4 | DS2: LG | DT2: MG | DU2: LZ | DV2: ZMLK | DW2: CLUSTER 4 | DX2: LG | DY2: MG | DZ2: LZ | EA2: ZMLK | EB2: ZMLKBB | EC2: cluster 2 | ED2: PO_cl2 | EE2: cluster 1 | EF2: PO cl1 | EH2: Naam | EI2: SWV | EJ2: BAO | EK2: SBAO | EL2: SO cat 1 | EM2: SO cat 2 | EN2: SO cat 3 | EO2: SO cat 1 | EP2: SO cat 2 | EQ2: SO cat 3 | ER2: BAO | ES2: SBAO | ET2: woon | EU2: tot_po | EV2: Cluster 4 | EW2: LG | EX2: MGF | EY2: LZ/S | EZ2: ZMLK | FA2: CLUSTER 4 | FB2: LG | FC2: MG | FD2: LZ | FE2: ZMLK | FF2: CLUSTER 4 | FG2: LG | FH2: MG | FI2: LZ | FJ2: ZMLK | FK2: ZMLKBB | FL2: cluster 2 | FM2: PO_cl2 | FN2: cluster 1 | FO2: PO cl1 | FQ2: SWV_lrl | FR2: SWV | FS2: bao | FT2: sbao | FU2: so cat 1 <8 | FV2: so cat 2 <8 | FW2: so cat 3 <8 | FX2: so cat 1 >=8 | FY2: so cat 2 >=8 | FZ2: so cat 3 >=8 | GA2: bao | GB2: sbao | GC2: woon | GD2: cl1 | GE2: cl2 | GF2: Verevening P 2019-2020 voorlopig | GG2: Verevening M 2019 | GI2: SWV_lrl | GJ2: SWV | GK2: bao | GL2: sbao | GM2: so cat 1 <8 | GN2: so cat 2 <8 | GO2: so cat 3 <8 | GP2: so cat 1 >=8 | GQ2: so cat 2 >=8 | GR2: so cat 3 >=8 | GS2: bao | GT2: sbao | GU2: woon
A3: PO0001 | B3: Reformatorisch Samenwerkingsverband PO | C3: 38041 | D3: 846 | E3: 99 | F3: 9 | G3: 16 | H3: 232 | I3: 4 | J3: 56 | K3: 38129 | L3: 818 | M3: 38947 | N3: 0 | O3: 0 | P3: =ROUND(AH3*(1+P$1),2) -> -3211208.24 | Q3: =ROUND(AI3*(1+Q$1),2) -> -240021 | S3: PO0001 | T3: Reformatorisch Samenwerkingsverband PO | U3: 38129 | V3: 818 | W3: 83 | X3: 5 | Y3: 18 | Z3: 253 | AA3: 2 | AB3: 46 | AC3: 38129 | AD3: 818 | AE3: 38947 | AF3: 0 | AG3: 0 | AH3: -3205086.52 | AI3: -234831.23 | AK3: PO0001 | AL3: Reformatorisch Samenwerkingsverband PO | AM3: 38168 | AN3: 802 | AO3: 91 | AP3: 1 | AQ3: 12 | AR3: 235 | AS3: 1 | AT3: 40 | AU3: 38150 | AV3: 802 | AW3: 38952 | AX3: 0 | AY3: 0 | AZ3: PO0001 | BA3: Reformatorisch Samenwerkingsverband PO | BB3: 38063 | BC3: 859 | BD3: 65 | BE3: 0 | BF3: 11 | BG3: 245 | BH3: 0 | BI3: 35 | BJ3: 38049 | BK3: 859 | BL3: 38908 | BM3: 0 | BN3: 0 | BP3: PO0001 | BQ3: Reformatorisch Samenwerkingsverband PO | BR3: 38137 | BS3: 844 | BT3: 59 | BU3: 0 | BV3: 7 | BW3: 235 | BX3: 0 | BY3: 46 | BZ3: 38120 | CA3: 844 | CB3: 38964 | CC3: 0 | CD3: 123 | CE3: 0 | CF3: 53 | CG3: 0 | CH3: 171 | CI3: 199 | CJ3: 39 | CK3: 3 | CL3: 35 | CM3: 43 | CN3: 82 | CO3: 6 | CP3: 1 | CQ3: 6 | CR3: 10 | CS3: 24 | CT3: 0 | CU3: 188 | CV3: 0 | CW3: 46 | CY3: PO0001 | CZ3: Reformatorisch Samenwerkingsverband PO | DA3: 38365 | DB3: 864 | DC3: 47 | DD3: 0 | DE3: 1 | DF3: 213 | DG3: 0 | DH3: 52 | DI3: 38350 | DJ3: 864 | DK3: 39214 | DL3: 3265448.36 | DM3: 94 | DN3: 0 | DO3: 53 | DP3: 0 | DQ3: 166 | DR3: 205 | DS3: 43 | DT3: 5 | DU3: 20 | DV3: 49 | DW3: 73 | DX3: 6 | DY3: 3 | DZ3: 5 | EA3: 6 | EB3: 25 | EC3: 0 | ED3: 195 | EE3: 0 | EF3: 46 | EH3: PO0001 | EI3: Reformatorisch Samenwerkingsverband PO | EJ3: 38368 | EK3: 884 | EL3: 58 | EM3: 0 | EN3: 5 | EO3: 212 | EP3: 0 | EQ3: 43 | ER3: 38347 | ES3: 884 | ET3: 39231 | EU3: 39252 | EV3: 82 | EW3: 0 | EX3: 48 | EY3: 0 | EZ3: 188 | FA3: 213 | FB3: 38 | FC3: 6 | FD3: 20 | FE3: 57 | FF3: 88 | FG3: 6 | FH3: 4 | FI3: 5 | FJ3: 8 | FK3: 36 | FL3: 0 | FM3: 190 | FN3: 0 | FO3: 46 | FQ3: PO0001 | FR3: Reformatorisch Samenwerkingsverband PO | FS3: 37903 | FT3: 865 | FU3: 86 | FV3: 16 | FW3: 13 | FX3: 241 | FY3: 5 | FZ3: 68 | GA3: 37646 | GB3: 865 | GC3: =GB3+GA3 -> 38511 | GF3: =ROUND(HN3*(1+GF$1),2) -> 0 | GG3: =ROUND(HO3*(1+GG$1),2) -> 0 | GI3: PO0001 | GJ3: Reformatorisch Samenwerkingsverband PO | GK3: 37709 | GL3: 875 | GM3: 101 | GN3: 10 | GO3: 15 | GP3: 274 | GQ3: 12 | GR3: 71 | GU3: =GT3+GS3 -> 0
A4: PO2001 | B4: Stichting Samenwerkingsverband PO 20-01 | C4: 45190 | D4: 1409 | E4: 138 | F4: 18 | G4: 0 | H4: 379 | I4: 23 | J4: 9 | K4: 46035 | L4: 1310 | M4: 47345 | N4: 14 | O4: 166 | P4: =ROUND(AH4*(1+P$1),2) -> -513339.33 | Q4: 47974.06 | S4: PO2001 | T4: Stichting Samenwerkingsverband PO 20-01 | U4: 45936 | V4: 1379 | W4: 134 | X4: 20 | Y4: 1 | Z4: 380 | AA4: 28 | AB4: 7 | AC4: 46035 | AD4: 1310 | AE4: 47345 | AF4: 14 | AG4: 166 | AH4: -512360.72 | AI4: 46936.76 | AK4: PO2001 | AL4: Stichting Samenwerkingsverband PO 20-01 | AM4: 46714 | AN4: 1359 | AO4: 130 | AP4: 20 | AQ4: 0 | AR4: 391 | AS4: 17 | AT4: 22 | AU4: 46728 | AV4: 1295 | AW4: 48023 | AX4: 18 | AY4: 182 | AZ4: PO2001 | BA4: Stichting Samenwerkingsverband PO 20-01 | BB4: 47397 | BC4: 1474 | BD4: 155 | BE4: 11 | BF4: 3 | BG4: 450 | BH4: 17 | BI4: 25 | BJ4: 47473 | BK4: 1393 | BL4: 48866 | BM4: 17 | BN4: 185 | BP4: PO2001 | BQ4: Stichting Samenwerkingsverband PO 20-01 | BR4: 48110 | BS4: 1490 | BT4: 159 | BU4: 9 | BV4: 5 | BW4: 473 | BX4: 12 | BY4: 29 | BZ4: 48072 | CA4: 1417 | CB4: 49489 | CC4: 0 | CD4: 315 | CE4: 21 | CF4: 34 | CG4: 44 | CH4: 273 | CI4: 253 | CJ4: 75 | CK4: 2 | CL4: 40 | CM4: 47 | CN4: 106 | CO4: 8 | CP4: 1 | CQ4: 8 | CR4: 23 | CS4: 29 | CT4: 208 | CU4: 140 | CV4: 18 | CW4: 23 | CY4: PO2001 | CZ4: Stichting Samenwerkingsverband PO 20-01 | DA4: 49017 | DB4: 1511 | DC4: 169 | DD4: 7 | DE4: 8 | DF4: 509 | DG4: 14 | DH4: 30 | DI4: 48999 | DJ4: 1427 | DK4: 50426 | DL4: 404719.02 | DM4: 342 | DN4: 21 | DO4: 38 | DP4: 53 | DQ4: 283 | DR4: 261 | DS4: 75 | DT4: 3 | DU4: 43 | DV4: 53 | DW4: 94 | DX4: 8 | DY4: 0 | DZ4: 10 | EA4: 25 | EB4: 38 | EC4: 213 | ED4: 128 | EE4: 23 | EF4: 23 | EH4: PO2001 | EI4: Provincie Groningen | EJ4: 50039 | EK4: 1515 | EL4: 182 | EM4: 9 | EN4: 7 | EO4: 532 | EP4: 14 | EQ4: 38 | ER4: 49930 | ES4: 1438 | ET4: 51368 | EU4: 51554 | EV4: 353 | EW4: 23 | EX4: 45 | EY4: 47 | EZ4: 314 | FA4: 306 | FB4: 75 | FC4: 2 | FD4: 49 | FE4: 61 | FF4: 92 | FG4: 7 | FH4: 0 | FI4: 10 | FJ4: 32 | FK4: 44 | FL4: 199 | FM4: 124 | FN4: 21 | FO4: 23 | FQ4: PO2001 | FR4: Stichting Samenwerkingsverband PO 20-01 | FS4: 44563 | FT4: 1431 | FU4: 180 | FV4: 11 | FW4: 2 | FX4: 397 | FY4: 23 | FZ4: 14 | GA4: 44749 | GB4: 1365 | GC4: =GB4+GA4 -> 46114 | GF4: 0 | GG4: 0 | GI4: PO2001 | GJ4: Stichting Samenwerkingsverband PO 20-01 | GK4: 43794 | GL4: 1466 | GM4: 171 | GN4: 20 | GO4: 2 | GP4: 442 | GQ4: 26 | GR4: 12 | GU4: =GT4+GS4 -> 0
A5: PO2101 | B5: Stg. Samenwerkingsverband Passend Onderwijs PO Friesland 2101 | C5: 54226 | D5: 1634 | E5: 168 | F5: 31 | G5: 30 | H5: 426 | I5: 57 | J5: 110 | K5: 55046 | L5: 1676 | M5: 56722 | N5: 7 | O5: 149 | P5: -1754163.45 | Q5: -254625.06 | S5: PO2101 | T5: Stg. Samenwerkingsverband Passend Onderwijs PO Friesland 2101 | U5: 55074 | V5: 1679 | W5: 176 | X5: 27 | Y5: 27 | Z5: 459 | AA5: 52 | AB5: 105 | AC5: 55046 | AD5: 1676 | AE5: 56722 | AF5: 7 | AG5: 149 | AH5: -1750819.38 | AI5: -249119.52 | AK5: PO2101 | AL5: Stg. Samenwerkingsverband Passend Onderwijs PO Friesland 2101 | AM5: 56331 | AN5: 1728 | AO5: 194 | AP5: 27 | AQ5: 37 | AR5: 496 | AS5: 41 | AT5: 83 | AU5: 56335 | AV5: 1714 | AW5: 58049 | AX5: 6 | AY5: 187 | AZ5: PO2101 | BA5: Stg. Samenwerkingsverband Passend Onderwijs PO Friesland 2101 | BB5: 57482 | BC5: 1821 | BD5: 216 | BE5: 32 | BF5: 37 | BG5: 542 | BH5: 44 | BI5: 100 | BJ5: 57464 | BK5: 1812 | BL5: 59276 | BM5: 4 | BN5: 191 | BP5: PO2101 | BQ5: Stg. Samenwerkingsverband Passend Onderwijs PO Friesland 2101 | BR5: 58596 | BS5: 1812 | BT5: 227 | BU5: 25 | BV5: 38 | BW5: 519 | BX5: 43 | BY5: 112 | BZ5: 58553 | CA5: 1794 | CB5: 60347 | CC5: 0 | CD5: 389 | CE5: 68 | CF5: 150 | CG5: 13 | CH5: 344 | CI5: 268 | CJ5: 77 | CK5: 7 | CL5: 43 | CM5: 53 | CN5: 21 | CO5: 8 | CP5: 2 | CQ5: 6 | CR5: 12 | CS5: 42 | CT5: 192 | CU5: 225 | CV5: 7 | CW5: 32 | CY5: PO2101 | CZ5: Stg. Samenwerkingsverband Passend Onderwijs PO Friesland 2101 | DA5: 59742 | DB5: 1890 | DC5: 228 | DD5: 24 | DE5: 44 | DF5: 491 | DG5: 43 | DH5: 98 | DI5: 59747 | DJ5: 1879 | DK5: 61626 | DL5: 2026462.4 | DM5: 383 | DN5: 67 | DO5: 142 | DP5: 10 | DQ5: 326 | DR5: 263 | DS5: 55 | DT5: 6 | DU5: 36 | DV5: 62 | DW5: 24 | DX5: 8 | DY5: 2 | DZ5: 3 | EA5: 10 | EB5: 50 | EC5: 181 | ED5: 206 | EE5: 8 | EF5: 32 | EH5: PO2101 | EI5: Provincie Friesland | EJ5: 60964 | EK5: 2009 | EL5: 230 | EM5: 20 | EN5: 32 | EO5: 498 | EP5: 49 | EQ5: 109 | ER5: 60943 | ES5: 1997 | ET5: 62940 | EU5: 62973 | EV5: 397 | EW5: 69 | EX5: 141 | EY5: 12 | EZ5: 319 | FA5: 288 | FB5: 45 | FC5: 10 | FD5: 40 | FE5: 67 | FF5: 33 | FG5: 8 | FH5: 2 | FI5: 1 | FJ5: 13 | FK5: 56 | FL5: 181 | FM5: 196 | FN5: 8 | FO5: 32 | FQ5: PO2101 | FR5: Stg. Samenwerkingsverband Passend Onderwijs PO Friesland 2101 | FS5: 53534 | FT5: 1679 | FU5: 179 | FV5: 30 | FW5: 25 | FX5: 413 | FY5: 51 | FZ5: 109 | GA5: 53798 | GB5: 1707 | GC5: 55505 | GF5: 0 | GG5: 0 | GI5: PO2101 | GJ5: Stg. Samenwerkingsverband Passend Onderwijs PO Friesland 2101 | GK5: 52698 | GL5: 1741 | GM5: 183 | GN5: 24 | GO5: 21 | GP5: 438 | GQ5: 53 | GR5: 88 | GU5: 0
A6: PO2201 | B6: Samenwerkingsverband PO Noord-Drenthe. | C6: 13610 | D6: 275 | E6: 35 | F6: 3 | G6: 1 | H6: 71 | I6: 8 | J6: 3 | K6: 13650 | L6: 336 | M6: 13986 | N6: 1 | O6: 35 | P6: -766027.21 | Q6: -29153.86 | S6: PO2201 | T6: Samenwerkingsverband PO Noord-Drenthe. | U6: 13830 | V6: 275 | W6: 32 | X6: 3 | Y6: 0 | Z6: 75 | AA6: 8 | AB6: 3 | AC6: 13650 | AD6: 336 | AE6: 13986 | AF6: 1 | AG6: 35 | AH6: -764566.89 | AI6: -28523.49 | AK6: PO2201 | AL6: Samenwerkingsverband PO Noord-Drenthe. | AM6: 14125 | AN6: 293 | AO6: 26 | AP6: 2 | AQ6: 0 | AR6: 82 | AS6: 4 | AT6: 4 | AU6: 13951 | AV6: 352 | AW6: 14303 | AX6: 1 | AY6: 38 | AZ6: PO2201 | BA6: Samenwerkingsverband PO Noord-Drenthe. | BB6: 14390 | BC6: 306 | BD6: 27 | BE6: 3 | BF6: 1 | BG6: 98 | BH6: 7 | BI6: 3 | BJ6: 14211 | BK6: 395 | BL6: 14606 | BM6: 1 | BN6: 39 | BP6: PO2201 | BQ6: Samenwerkingsverband PO Noord-Drenthe. | BR6: 14813 | BS6: 324 | BT6: 31 | BU6: 4 | BV6: 2 | BW6: 115 | BX6: 5 | BY6: 3 | BZ6: 14669 | CA6: 417 | CB6: 15086 | CC6: 0 | CD6: 63 | CE6: 9 | CF6: 5 | CG6: 13 | CH6: 70 | CI6: 100 | CJ6: 26 | CK6: 0 | CL6: 15 | CM6: 12 | CN6: 30 | CO6: 2 | CP6: 0 | CQ6: 3 | CR6: 2 | CS6: 10 | CT6: 29 | CU6: 48 | CV6: 3 | CW6: 6 | CY6: PO2201 | CZ6: Samenwerkingsverband PO Noord-Drenthe. | DA6: 15133 | DB6: 320 | DC6: 27 | DD6: 2 | DE6: 1 | DF6: 106 | DG6: 6 | DH6: 5 | DI6: 15031 | DJ6: 422 | DK6: 15453 | DL6: 682185.37 | DM6: 56 | DN6: 8 | DO6: 6 | DP6: 18 | DQ6: 59 | DR6: 110 | DS6: 32 | DT6: 0 | DU6: 14 | DV6: 16 | DW6: 24 | DX6: 3 | DY6: 1 | DZ6: 0 | EA6: 3 | EB6: 13 | EC6: 39 | ED6: 35 | EE6: 7 | EF6: 6 | EH6: PO2201 | EI6: Samenwerkingsverband PO Noord-Drenthe. | EJ6: 15397 | EK6: 356 | EL6: 39 | EM6: 2 | EN6: 3 | EO6: 108 | EP6: 3 | EQ6: 6 | ER6: 15279 | ES6: 441 | ET6: 15720 | EU6: 15753 | EV6: 71 | EW6: 5 | EX6: 9 | EY6: 15 | EZ6: 61 | FA6: 103 | FB6: 37 | FC6: 0 | FD6: 18 | FE6: 16 | FF6: 23 | FG6: 2 | FH6: 1 | FI6: 0 | FJ6: 7 | FK6: 8 | FL6: 46 | FM6: 36 | FN6: 10 | FO6: 7 | FQ6: PO2201 | FR6: Samenwerkingsverband PO Noord-Drenthe. | FS6: 13498 | FT6: 290 | FU6: 20 | FV6: 3 | FW6: 1 | FX6: 77 | FY6: 10 | FZ6: 1 | GA6: 13281 | GB6: 341 | GC6: 13622 | GF6: 0 | GG6: 0 | GI6: PO2201 | GJ6: Samenwerkingsverband PO Noord-Drenthe. | GK6: 13198 | GL6: 320 | GM6: 26 | GN6: 3 | GO6: 1 | GP6: 75 | GQ6: 7 | GR6: 1 | GU6: 0 | GZ6: Verbanden zichtbaar maken.
A7: PO2202 | B7: Stichting samenwerkingsverband 22-02 | C7: 10337 | D7: 259 | E7: 16 | F7: 1 | G7: 2 | H7: 68 | I7: 2 | J7: 8 | K7: 10503 | L7: 265 | M7: 10768 | N7: 2 | O7: 41 | P7: -333169.43 | Q7: 13801.73 | S7: PO2202 | T7: Stichting samenwerkingsverband 22-02 | U7: 10626 | V7: 259 | W7: 11 | X7: 5 | Y7: 2 | Z7: 79 | AA7: 7 | AB7: 7 | AC7: 10503 | AD7: 265 | AE7: 10768 | AF7: 2 | AG7: 41 | AH7: -332534.29 | AI7: 13503.31 | AK7: PO2202 | AL7: Stichting samenwerkingsverband 22-02 | AM7: 10910 | AN7: 262 | AO7: 15 | AP7: 3 | AQ7: 2 | AR7: 73 | AS7: 4 | AT7: 7 | AU7: 10802 | AV7: 280 | AW7: 11082 | AX7: 2 | AY7: 56 | AZ7: PO2202 | BA7: Stichting samenwerkingsverband 22-02 | BB7: 11081 | BC7: 294 | BD7: 14 | BE7: 4 | BF7: 2 | BG7: 76 | BH7: 3 | BI7: 7 | BJ7: 10962 | BK7: 301 | BL7: 11263 | BM7: 2 | BN7: 68 | BP7: PO2202 | BQ7: Stichting samenwerkingsverband 22-02 | BR7: 11396 | BS7: 290 | BT7: 12 | BU7: 4 | BV7: 0 | BW7: 60 | BX7: 2 | BY7: 8 | BZ7: 11306 | CA7: 290 | CB7: 11596 | CC7: 0 | CD7: 23 | CE7: 6 | CF7: 8 | CG7: 1 | CH7: 48 | CI7: 74 | CJ7: 12 | CK7: 1 | CL7: 21 | CM7: 14 | CN7: 37 | CO7: 0 | CP7: 0 | CQ7: 2 | CR7: 9 | CS7: 12 | CT7: 69 | CU7: 38 | CV7: 2 | CW7: 8 | CY7: PO2202 | CZ7: Stichting samenwerkingsverband 22-02 | DA7: 11740 | DB7: 299 | DC7: 12 | DD7: 4 | DE7: 0 | DF7: 52 | DG7: 0 | DH7: 11 | DI7: 11642 | DJ7: 308 | DK7: 11950 | DL7: 283064.77 | DM7: 17 | DN7: 4 | DO7: 11 | DP7: 2 | DQ7: 45 | DR7: 84 | DS7: 17 | DT7: 1 | DU7: 24 | DV7: 19 | DW7: 36 | DX7: 0 | DY7: 0 | DZ7: 2 | EA7: 7 | EB7: 17 | EC7: 64 | ED7: 29 | EE7: 1 | EF7: 8 | EH7: PO2202 | EI7: Stichting samenwerkingsverband 22-02 | EJ7: 11952 | EK7: 332 | EL7: 21 | EM7: 3 | EN7: 0 | EO7: 66 | EP7: 0 | EQ7: 13 | ER7: 11927 | ES7: 330 | ET7: 12257 | EU7: 12284 | EV7: 32 | EW7: 3 | EX7: 13 | EY7: 2 | EZ7: 53 | FA7: 75 | FB7: 18 | FC7: 1 | FD7: 30 | FE7: 23 | FF7: 38 | FG7: 1 | FH7: 0 | FI7: 1 | FJ7: 10 | FK7: 19 | FL7: 58 | FM7: 27 | FN7: 2 | FO7: 8 | FQ7: PO2202 | FR7: Stichting samenwerkingsverband 22-02 | FS7: 10092 | FT7: 263 | FU7: 15 | FV7: 6 | FW7: 0 | FX7: 71 | FY7: 9 | FZ7: 6 | GA7: 9968 | GB7: 280 | GC7: 10248 | GF7: 0 | GG7: 0 | GI7: PO2202 | GJ7: Stichting samenwerkingsverband 22-02 | GK7: 9893 | GL7: 279 | GM7: 21 | GN7: 5 | GO7: 1 | GP7: 51 | GQ7: 26 | GR7: 2 | GU7: 0
A8: PO2203 | B8: SWV PO Hoogeveen, Meppel, Steenwijk e.o. | C8: 15431 | D8: 390 | E8: 24 | F8: 9 | G8: 2 | H8: 131 | I8: 26 | J8: 17 | K8: 15616 | L8: 419 | M8: 16035 | N8: 1 | O8: 31 | P8: 755263.44 | Q8: 149964.49 | S8: PO2203 | T8: SWV PO Hoogeveen, Meppel, Steenwijk e.o. | U8: 15633 | V8: 422 | W8: 25 | X8: 10 | Y8: 5 | Z8: 124 | AA8: 20 | AB8: 13 | AC8: 15616 | AD8: 419 | AE8: 16035 | AF8: 1 | AG8: 31 | AH8: 753823.64 | AI8: 146721.94 | AK8: PO2203 | AL8: SWV PO Hoogeveen, Meppel, Steenwijk e.o. | AM8: 16054 | AN8: 406 | AO8: 42 | AP8: 5 | AQ8: 6 | AR8: 147 | AS8: 4 | AT8: 15 | AU8: 16033 | AV8: 413 | AW8: 16446 | AX8: 1 | AY8: 39 | AZ8: PO2203 | BA8: SWV PO Hoogeveen, Meppel, Steenwijk e.o. | BB8: 16364 | BC8: 430 | BD8: 38 | BE8: 2 | BF8: 8 | BG8: 166 | BH8: 5 | BI8: 14 | BJ8: 16352 | BK8: 435 | BL8: 16787 | BM8: 4 | BN8: 39 | BP8: PO2203 | BQ8: SWV PO Hoogeveen, Meppel, Steenwijk e.o. | BR8: 16840 | BS8: 459 | BT8: 40 | BU8: 2 | BV8: 9 | BW8: 166 | BX8: 7 | BY8: 13 | BZ8: 16814 | CA8: 471 | CB8: 17285 | CC8: 0 | CD8: 121 | CE8: 9 | CF8: 22 | CG8: 6 | CH8: 79 | CI8: 119 | CJ8: 38 | CK8: 2 | CL8: 13 | CM8: 19 | CN8: 41 | CO8: 2 | CP8: 3 | CQ8: 0 | CR8: 18 | CS8: 15 | CT8: 39 | CU8: 74 | CV8: 5 | CW8: 13 | CY8: PO2203 | CZ8: SWV PO Hoogeveen, Meppel, Steenwijk e.o. | DA8: 17266 | DB8: 507 | DC8: 42 | DD8: 1 | DE8: 6 | DF8: 169 | DG8: 6 | DH8: 16 | DI8: 17238 | DJ8: 518 | DK8: 17756 | DL8: -872845.79 | DM8: 132 | DN8: 7 | DO8: 22 | DP8: 4 | DQ8: 75 | DR8: 155 | DS8: 46 | DT8: 1 | DU8: 12 | DV8: 19 | DW8: 40 | DX8: 4 | DY8: 4 | DZ8: 0 | EA8: 13 | EB8: 14 | EC8: 47 | ED8: 74 | EE8: 5 | EF8: 13 | EH8: PO2203 | EI8: SWV PO Hoogeveen, Meppel, Steenwijk e.o. | EJ8: 17778 | EK8: 517 | EL8: 56 | EM8: 2 | EN8: 4 | EO8: 162 | EP8: 9 | EQ8: 15 | ER8: 17762 | ES8: 540 | ET8: 18302 | EU8: 18295 | EV8: 138 | EW8: 11 | EX8: 19 | EY8: 3 | EZ8: 77 | FA8: 170 | FB8: 50 | FC8: 1 | FD8: 16 | FE8: 26 | FF8: 37 | FG8: 4 | FH8: 5 | FI8: 0 | FJ8: 16 | FK8: 14 | FL8: 45 | FM8: 70 | FN8: 5 | FO8: 14 | FQ8: PO2203 | FR8: SWV PO Hoogeveen, Meppel, Steenwijk e.o. | FS8: 15382 | FT8: 463 | FU8: 26 | FV8: 4 | FW8: 1 | FX8: 73 | FY8: 32 | FZ8: 13 | GA8: 16323 | GB8: 436 | GC8: 16759 | GF8: 0 | GG8: 0 | GI8: PO2203 | GJ8: SWV PO Hoogeveen, Meppel, Steenwijk e.o. | GK8: 15173 | GL8: 452 | GM8: 35 | GN8: 5 | GO8: 1 | GP8: 93 | GQ8: 29 | GR8: 10 | GU8: 0
A9: PO2301 | B9: Samenwerkingsverband Twente Noord PO | C9: 19213 | D9: 479 | E9: 112 | F9: 6 | G9: 11 | H9: 282 | I9: 19 | J9: 19 | K9: 19744 | L9: 525 | M9: 20269 | N9: 0 | O9: 42 | P9: 2411458.04 | Q9: 283151.23 | S9: PO2301 | T9: Samenwerkingsverband Twente Noord PO | U9: 19764 | V9: 524 | W9: 108 | X9: 5 | Y9: 10 | Z9: 296 | AA9: 18 | AB9: 21 | AC9: 19744 | AD9: 525 | AE9: 20269 | AF9: 0 | AG9: 42 | AH9: 2406860.94 | AI9: 277028.89 | AK9: PO2301 | AL9: Samenwerkingsverband Twente Noord PO | AM9: 20323 | AN9: 540 | AO9: 104 | AP9: 9 | AQ9: 9 | AR9: 293 | AS9: 20 | AT9: 18 | AU9: 20304 | AV9: 545 | AW9: 20849 | AX9: 1 | AY9: 49 | AZ9: PO2301 | BA9: Samenwerkingsverband Twente Noord PO | BB9: 20734 | BC9: 589 | BD9: 117 | BE9: 3 | BF9: 17 | BG9: 301 | BH9: 15 | BI9: 42 | BJ9: 20743 | BK9: 597 | BL9: 21340 | BM9: 2 | BN9: 53 | BP9: PO2301 | BQ9: Samenwerkingsverband Twente Noord PO | BR9: 21167 | BS9: 615 | BT9: 130 | BU9: 1 | BV9: 21 | BW9: 326 | BX9: 10 | BY9: 41 | BZ9: 21205 | CA9: 623 | CB9: 21828 | CC9: 0 | CD9: 331 | CE9: 11 | CF9: 62 | CG9: 12 | CH9: 113 | CI9: 183 | CJ9: 23 | CK9: 2 | CL9: 28 | CM9: 20 | CN9: 53 | CO9: 1 | CP9: 2 | CQ9: 3 | CR9: 11 | CS9: 10 | CT9: 63 | CU9: 53 | CV9: 4 | CW9: 22 | CY9: PO2301 | CZ9: Samenwerkingsverband Twente Noord PO | DA9: 21691 | DB9: 662 | DC9: 145 | DD9: 0 | DE9: 21 | DF9: 306 | DG9: 9 | DH9: 40 | DI9: 21736 | DJ9: 669 | DK9: 22405 | DL9: -2462419.38 | DM9: 318 | DN9: 9 | DO9: 61 | DP9: 14 | DQ9: 119 | DR9: 204 | DS9: 25 | DT9: 1 | DU9: 28 | DV9: 21 | DW9: 59 | DX9: 3 | DY9: 2 | DZ9: 1 | EA9: 11 | EB9: 13 | EC9: 63 | ED9: 55 | EE9: 5 | EF9: 22 | EH9: PO2301 | EI9: Samenwerkingsverband Twente Noord PO | EJ9: 21981 | EK9: 686 | EL9: 132 | EM9: 1 | EN9: 16 | EO9: 300 | EP9: 5 | EQ9: 44 | ER9: 22053 | ES9: 693 | ET9: 22746 | EU9: 22667 | EV9: 297 | EW9: 6 | EX9: 60 | EY9: 14 | EZ9: 121 | FA9: 196 | FB9: 26 | FC9: 2 | FD9: 24 | FE9: 26 | FF9: 59 | FG9: 3 | FH9: 1 | FI9: 1 | FJ9: 15 | FK9: 14 | FL9: 68 | FM9: 57 | FN9: 6 | FO9: 22 | FQ9: PO2301 | FR9: Samenwerkingsverband Twente Noord PO | FS9: 18751 | FT9: 491 | FU9: 122 | FV9: 8 | FW9: 6 | FX9: 282 | FY9: 18 | FZ9: 19 | GA9: 20234 | GB9: 504 | GC9: 20738 | GF9: 0 | GG9: 0 | GI9: PO2301 | GJ9: Samenwerkingsverband Twente Noord PO | GK9: 18319 | GL9: 477 | GM9: 139 | GN9: 6 | GO9: 6 | GP9: 273 | GQ9: 15 | GR9: 22 | GU9: 0
A10: PO2302 | B10: Stichting Samenwerkingsverband 23-02 | C10: 32706 | D10: 913 | E10: 172 | F10: 13 | G10: 20 | H10: 392 | I10: 24 | J10: 60 | K10: 33017 | L10: 961 | M10: 33978 | N10: 5 | O10: 134 | P10: 3077567.97 | Q10: 272654 | S10: PO2302 | T10: Stichting Samenwerkingsverband 23-02 | U10: 33376 | V10: 925 | W10: 174 | X10: 18 | Y10: 21 | Z10: 389 | AA10: 30 | AB10: 60 | AC10: 33017 | AD10: 961 | AE10: 33978 | AF10: 5 | AG10: 134 | AH10: 3071701.02 | AI10: 266758.63 | AK10: PO2302 | AL10: Stichting Samenwerkingsverband 23-02 | AM10: 34288 | AN10: 944 | AO10: 194 | AP10: 11 | AQ10: 29 | AR10: 389 | AS10: 31 | AT10: 62 | AU10: 33905 | AV10: 982 | AW10: 34887 | AX10: 7 | AY10: 120 | AZ10: PO2302 | BA10: Stichting Samenwerkingsverband 23-02 | BB10: 35261 | BC10: 1022 | BD10: 187 | BE10: 12 | BF10: 36 | BG10: 435 | BH10: 29 | BI10: 91 | BJ10: 34873 | BK10: 1072 | BL10: 35945 | BM10: 9 | BN10: 112 | BP10: PO2302 | BQ10: Stichting Samenwerkingsverband 23-02 | BR10: 35850 | BS10: 1035 | BT10: 222 | BU10: 4 | BV10: 50 | BW10: 481 | BX10: 27 | BY10: 105 | BZ10: 35440 | CA10: 1087 | CB10: 36527 | CC10: 0 | CD10: 512 | CE10: 31 | CF10: 155 | CG10: 55 | CH10: 136 | CI10: 170 | CJ10: 31 | CK10: 3 | CL10: 28 | CM10: 14 | CN10: 66 | CO10: 2 | CP10: 0 | CQ10: 1 | CR10: 12 | CS10: 10 | CT10: 130 | CU10: 67 | CV10: 9 | CW10: 32 | CY10: PO2302 | CZ10: Stichting Samenwerkingsverband 23-02 | DA10: 36466 | DB10: 1090 | DC10: 221 | DD10: 3 | DE10: 48 | DF10: 426 | DG10: 30 | DH10: 102 | DI10: 36052 | DJ10: 1146 | DK10: 37198 | DL10: -3140449.9 | DM10: 436 | DN10: 33 | DO10: 150 | DP10: 60 | DQ10: 151 | DR10: 200 | DS10: 45 | DT10: 2 | DU10: 23 | DV10: 17 | DW10: 82 | DX10: 0 | DY10: 0 | DZ10: 1 | EA10: 11 | EB10: 11 | EC10: 143 | ED10: 78 | EE10: 8 | EF10: 32 | EH10: PO2302 | EI10: Stichting Samenwerkingsverband 23-02 | EJ10: 37019 | EK10: 1127 | EL10: 285 | EM10: 6 | EN10: 47 | EO10: 396 | EP10: 27 | EQ10: 97 | ER10: 36614 | ES10: 1186 | ET10: 37800 | EU10: 38146 | EV10: 439 | EW10: 33 | EX10: 144 | EY10: 69 | EZ10: 173 | FA10: 227 | FB10: 49 | FC10: 0 | FD10: 25 | FE10: 19 | FF10: 84 | FG10: 1 | FH10: 0 | FI10: 0 | FJ10: 15 | FK10: 14 | FL10: 143 | FM10: 78 | FN10: 7 | FO10: 33 | FQ10: PO2302 | FR10: Stichting Samenwerkingsverband 23-02 | FS10: 32063 | FT10: 902 | FU10: 175 | FV10: 9 | FW10: 21 | FX10: 386 | FY10: 27 | FZ10: 59 | GA10: 31699 | GB10: 934 | GC10: 32633 | GF10: 0 | GG10: 0 | GI10: PO2302 | GJ10: Stichting Samenwerkingsverband 23-02 | GK10: 31428 | GL10: 898 | GM10: 180 | GN10: 13 | GO10: 20 | GP10: 405 | GQ10: 22 | GR10: 47 | GU10: 0
A11: PO2303 | B11: Sine Limite, Cooperatie Passend Ond. Deventer | C11: 8687 | D11: 298 | E11: 47 | F11: 2 | G11: 2 | H11: 70 | I11: 5 | J11: 1 | K11: 8738 | L11: 261 | M11: 8999 | N11: 1 | O11: 15 | P11: 882196.84 | Q11: 94229.47 | S11: PO2303 | T11: Sine Limite, Cooperatie Passend Ond. Deventer | U11: 8859 | V11: 263 | W11: 43 | X11: 4 | Y11: 2 | Z11: 128 | AA11: 5 | AB11: 2 | AC11: 8738 | AD11: 261 | AE11: 8999 | AF11: 1 | AG11: 15 | AH11: 880515.06 | AI11: 92192.03 | AK11: PO2303 | AL11: Sine Limite, Cooperatie Passend Ond. Deventer | AM11: 8986 | AN11: 245 | AO11: 41 | AP11: 1 | AQ11: 4 | AR11: 133 | AS11: 2 | AT11: 6 | AU11: 8869 | AV11: 245 | AW11: 9114 | AX11: 0 | AY11: 18 | AZ11: PO2303 | BA11: Sine Limite, Cooperatie Passend Ond. Deventer | BB11: 9208 | BC11: 243 | BD11: 46 | BE11: 1 | BF11: 5 | BG11: 129 | BH11: 3 | BI11: 9 | BJ11: 9122 | BK11: 247 | BL11: 9369 | BM11: 0 | BN11: 20 | BP11: PO2303 | BQ11: Sine Limite, Cooperatie Passend Ond. Deventer | BR11: 9223 | BS11: 247 | BT11: 40 | BU11: 1 | BV11: 1 | BW11: 131 | BX11: 2 | BY11: 15 | BZ11: 9182 | CA11: 248 | CB11: 9430 | CC11: 0 | CD11: 109 | CE11: 3 | CF11: 16 | CG11: 1 | CH11: 61 | CI11: 65 | CJ11: 20 | CK11: 0 | CL11: 18 | CM11: 9 | CN11: 8 | CO11: 2 | CP11: 0 | CQ11: 0 | CR11: 0 | CS11: 8 | CT11: 17 | CU11: 26 | CV11: 0 | CW11: 10 | CY11: PO2303 | CZ11: Sine Limite, Cooperatie Passend Ond. Deventer | DA11: 9380 | DB11: 246 | DC11: 46 | DD11: 2 | DE11: 5 | DF11: 135 | DG11: 3 | DH11: 15 | DI11: 9345 | DJ11: 246 | DK11: 9591 | DL11: -842797.84 | DM11: 122 | DN11: 5 | DO11: 20 | DP11: 2 | DQ11: 57 | DR11: 74 | DS11: 20 | DT11: 1 | DU11: 7 | DV11: 17 | DW11: 14 | DX11: 1 | DY11: 0 | DZ11: 1 | EA11: 0 | EB11: 14 | EC11: 16 | ED11: 27 | EE11: 0 | EF11: 10 | EH11: PO2303 | EI11: Sine Limite, Cooperatie Passend Ond. Deventer | EJ11: 9484 | EK11: 259 | EL11: 45 | EM11: 2 | EN11: 6 | EO11: 135 | EP11: 2 | EQ11: 21 | ER11: 9448 | ES11: 252 | ET11: 9700 | EU11: 9743 | EV11: 116 | EW11: 4 | EX11: 27 | EY11: 1 | EZ11: 63 | FA11: 73 | FB11: 19 | FC11: 1 | FD11: 7 | FE11: 14 | FF11: 13 | FG11: 1 | FH11: 0 | FI11: 1 | FJ11: 1 | FK11: 10 | FL11: 16 | FM11: 23 | FN11: 2 | FO11: 10 | FQ11: PO2303 | FR11: Sine Limite, Cooperatie Passend Ond. Deventer | FS11: 8572 | FT11: 310 | FU11: 37 | FV11: 1 | FW11: 4 | FX11: 77 | FY11: 3 | FZ11: 3 | GA11: 8472 | GB11: 306 | GC11: 8778 | GF11: 0 | GG11: 0 | GI11: PO2303 | GJ11: Sine Limite, Cooperatie Passend Ond. Deventer | GK11: 8383 | GL11: 302 | GM11: 37 | GO11: 4 | GP11: 93 | GR11: 3 | GU11: 0
A12: PO2304 | B12: Samenwerkingsverband PO Veld Vaart & Vecht | C12: 12374 | D12: 339 | E12: 12 | F12: 5 | G12: 5 | H12: 50 | I12: 9 | J12: 9 | K12: 12438 | L12: 343 | M12: 12781 | N12: 2 | O12: 22 | P12: -69227.75 | Q12: 62163.45 | S12: PO2304 | T12: Samenwerkingsverband PO Veld Vaart & Vecht | U12: 12522 | V12: 321 | W12: 12 | X12: 3 | Y12: 2 | Z12: 57 | AA12: 7 | AB12: 11 | AC12: 12438 | AD12: 343 | AE12: 12781 | AF12: 2 | AG12: 22 | AH12: -69095.78 | AI12: 60819.34 | AK12: PO2304 | AL12: Samenwerkingsverband PO Veld Vaart & Vecht | AM12: 12840 | AN12: 302 | AO12: 15 | AP12: 3 | AQ12: 3 | AR12: 69 | AS12: 4 | AT12: 11 | AU12: 12741 | AV12: 316 | AW12: 13057 | AX12: 2 | AY12: 31 | AZ12: PO2304 | BA12: Samenwerkingsverband PO Veld Vaart & Vecht | BB12: 13340 | BC12: 311 | BD12: 24 | BE12: 2 | BF12: 3 | BG12: 71 | BH12: 6 | BI12: 13 | BJ12: 13205 | BK12: 328 | BL12: 13533 | BM12: 1 | BN12: 34 | BP12: PO2304 | BQ12: Samenwerkingsverband PO Veld Vaart & Vecht | BR12: 13816 | BS12: 328 | BT12: 24 | BU12: 4 | BV12: 4 | BW12: 77 | BX12: 5 | BY12: 11 | BZ12: 13688 | CA12: 350 | CB12: 14038 | CC12: 0 | CD12: 55 | CE12: 9 | CF12: 15 | CG12: 3 | CH12: 43 | CI12: 105 | CJ12: 15 | CK12: 2 | CL12: 20 | CM12: 22 | CN12: 39 | CO12: 1 | CP12: 3 | CQ12: 4 | CR12: 4 | CS12: 13 | CT12: 31 | CU12: 50 | CV12: 1 | CW12: 10 | CY12: PO2304 | CZ12: Samenwerkingsverband PO Veld Vaart & Vecht | DA12: 14142 | DB12: 345 | DC12: 29 | DD12: 5 | DE12: 4 | DF12: 73 | DG12: 5 | DH12: 17 | DI12: 13995 | DJ12: 362 | DK12: 14357 | DL12: -31503.3 | DM12: 58 | DN12: 10 | DO12: 21 | DP12: 3 | DQ12: 41 | DR12: 127 | DS12: 14 | DT12: 2 | DU12: 12 | DV12: 21 | DW12: 47 | DX12: 1 | DY12: 3 | DZ12: 3 | EA12: 4 | EB12: 11 | EC12: 34 | ED12: 55 | EE12: 0 | EF12: 10 | EH12: PO2304 | EI12: Ommen e.o. | EJ12: 14448 | EK12: 370 | EL12: 23 | EM12: 2 | EN12: 4 | EO12: 81 | EP12: 3 | EQ12: 17 | ER12: 14284 | ES12: 392 | ET12: 14676 | EU12: 14818 | EV12: 56 | EW12: 5 | EX12: 21 | EY12: 1 | EZ12: 47 | FA12: 140 | FB12: 20 | FC12: 2 | FD12: 17 | FE12: 19 | FF12: 52 | FG12: 2 | FH12: 3 | FI12: 1 | FJ12: 5 | FK12: 11 | FL12: 39 | FM12: 52 | FN12: 0 | FO12: 10 | FQ12: PO2304 | FR12: Samenwerkingsverband PO Veld Vaart & Vecht | FS12: 12199 | FT12: 351 | FU12: 13 | FV12: 4 | FW12: 6 | FX12: 55 | FY12: 9 | FZ12: 13 | GA12: 12206 | GB12: 369 | GC12: 12575 | GF12: 0 | GG12: 0 | GI12: PO2304 | GJ12: Samenwerkingsverband PO Veld Vaart & Vecht | GK12: 12073 | GL12: 384 | GM12: 13 | GN12: 5 | GO12: 5 | GP12: 49 | GQ12: 10 | GR12: 9 | GU12: 0
A13: PO2305 | B13: Stichting Passend Onderwijs 23-05 | C13: 27618 | D13: 705 | E13: 76 | F13: 23 | G13: 11 | H13: 244 | I13: 63 | J13: 21 | K13: 27821 | L13: 689 | M13: 28510 | N13: 4 | O13: 105 | P13: 2502996.71 | Q13: 326326.88 | S13: PO2305 | T13: Stichting Passend Onderwijs 23-05 | U13: 27749 | V13: 711 | W13: 78 | X13: 21 | Y13: 8 | Z13: 258 | AA13: 39 | AB13: 25 | AC13: 27821 | AD13: 689 | AE13: 28510 | AF13: 4 | AG13: 105 | AH13: 2498225.1 | AI13: 319270.99 | AK13: PO2305 | AL13: Stichting Passend Onderwijs 23-05 | AM13: 27826 | AN13: 738 | AO13: 64 | AP13: 21 | AQ13: 11 | AR13: 285 | AS13: 21 | AT13: 38 | AU13: 27890 | AV13: 702 | AW13: 28592 | AX13: 4 | AY13: 126 | AZ13: PO2305 | BA13: Stichting Passend Onderwijs 23-05 | BB13: 27989 | BC13: 813 | BD13: 87 | BE13: 24 | BF13: 18 | BG13: 315 | BH13: 20 | BI13: 40 | BJ13: 28010 | BK13: 758 | BL13: 28768 | BM13: 4 | BN13: 139 | BP13: PO2305 | BQ13: Stichting Passend Onderwijs 23-05 | BR13: 28269 | BS13: 869 | BT13: 94 | BU13: 18 | BV13: 17 | BW13: 315 | BX13: 18 | BY13: 41 | BZ13: 28302 | CA13: 814 | CB13: 29116 | CC13: 0 | CD13: 294 | CE13: 36 | CF13: 58 | CG13: 8 | CH13: 107 | CI13: 187 | CJ13: 50 | CK13: 7 | CL13: 31 | CM13: 25 | CN13: 51 | CO13: 4 | CP13: 3 | CQ13: 3 | CR13: 11 | CS13: 19 | CT13: 138 | CU13: 98 | CV13: 4 | CW13: 31 | CY13: PO2305 | CZ13: Stichting Passend Onderwijs 23-05 | DA13: 28479 | DB13: 901 | DC13: 94 | DD13: 14 | DE13: 19 | DF13: 345 | DG13: 18 | DH13: 53 | DI13: 28481 | DJ13: 838 | DK13: 29319 | DL13: -2629628.65 | DM13: 305 | DN13: 32 | DO13: 72 | DP13: 8 | DQ13: 126 | DR13: 246 | DS13: 52 | DT13: 10 | DU13: 24 | DV13: 26 | DW13: 79 | DX13: 5 | DY13: 4 | DZ13: 2 | EA13: 16 | EB13: 18 | EC13: 143 | ED13: 100 | EE13: 5 | EF13: 31 | EH13: PO2305 | EI13: Stichting Passend Onderwijs 23-05 | EJ13: 28688 | EK13: 912 | EL13: 110 | EM13: 10 | EN13: 16 | EO13: 338 | EP13: 15 | EQ13: 55 | ER13: 28694 | ES13: 844 | ET13: 29538 | EU13: 29600 | EV13: 318 | EW13: 25 | EX13: 71 | EY13: 4 | EZ13: 126 | FA13: 261 | FB13: 48 | FC13: 9 | FD13: 27 | FE13: 27 | FF13: 87 | FG13: 6 | FH13: 1 | FI13: 3 | FJ13: 14 | FK13: 19 | FL13: 120 | FM13: 98 | FN13: 3 | FO13: 32 | FQ13: PO2305 | FR13: Stichting Passend Onderwijs 23-05 | FS13: 27395 | FT13: 693 | FU13: 101 | FV13: 24 | FW13: 9 | FX13: 283 | FY13: 61 | FZ13: 22 | GA13: 29064 | GB13: 730 | GC13: 29794 | GF13: 0 | GG13: 0 | GI13: PO2305 | GJ13: Stichting Passend Onderwijs 23-05 | GK13: 27202 | GL13: 734 | GM13: 110 | GN13: 24 | GO13: 6 | GP13: 314 | GQ13: 56 | GR13: 25 | GU13: 0
A14: PO2401 | B14: Stichting Leerlingzorg Primair Onderwijs Almere | C14: 19819 | D14: 677 | E14: 31 | F14: 15 | G14: 12 | H14: 111 | I14: 52 | J14: 16 | K14: 19852 | L14: 650 | M14: 20502 | N14: 3 | O14: 39 | P14: -1129657.95 | Q14: -70670.17 | S14: PO2401 | T14: Stichting Leerlingzorg Primair Onderwijs Almere | U14: 19905 | V14: 650 | W14: 22 | X14: 15 | Y14: 8 | Z14: 131 | AA14: 29 | AB14: 19 | AC14: 19852 | AD14: 650 | AE14: 20502 | AF14: 3 | AG14: 39 | AH14: -1127504.42 | AI14: -69142.13 | AK14: PO2401 | AL14: Stichting Leerlingzorg Primair Onderwijs Almere | AM14: 20088 | AN14: 681 | AO14: 26 | AP14: 12 | AQ14: 5 | AR14: 127 | AS14: 13 | AT14: 20 | AU14: 20103 | AV14: 681 | AW14: 20784 | AX14: 3 | AY14: 26 | AZ14: PO2401 | BA14: Stichting Leerlingzorg Primair Onderwijs Almere | BB14: 20396 | BC14: 718 | BD14: 14 | BE14: 10 | BF14: 5 | BG14: 101 | BH14: 27 | BI14: 19 | BJ14: 20388 | BK14: 709 | BL14: 21097 | BM14: 3 | BN14: 14 | BP14: PO2401 | BQ14: Stichting Leerlingzorg Primair Onderwijs Almere | BR14: 20708 | BS14: 738 | BT14: 21 | BU14: 5 | BV14: 6 | BW14: 140 | BX14: 11 | BY14: 16 | BZ14: 20710 | CA14: 735 | CB14: 21445 | CC14: 0 | CD14: 116 | CE14: 16 | CF14: 22 | CG14: 6 | CH14: 39 | CI14: 102 | CJ14: 5 | CK14: 1 | CL14: 21 | CM14: 40 | CN14: 77 | CO14: 0 | CP14: 0 | CQ14: 4 | CR14: 10 | CS14: 34 | CT14: 17 | CU14: 5 | CV14: 4 | CW14: 5 | CY14: PO2401 | CZ14: Stichting Leerlingzorg Primair Onderwijs Almere | DA14: 21048 | DB14: 775 | DC14: 25 | DD14: 7 | DE14: 6 | DF14: 133 | DG14: 12 | DH14: 14 | DI14: 21073 | DJ14: 775 | DK14: 21848 | DL14: 1047851.43 | DM14: 106 | DN14: 19 | DO14: 20 | DP14: 9 | DQ14: 43 | DR14: 97 | DS14: 6 | DT14: 2 | DU14: 15 | DV14: 45 | DW14: 68 | DX14: 0 | DY14: 1 | DZ14: 1 | EA14: 10 | EB14: 27 | EC14: 19 | ED14: 5 | EE14: 3 | EF14: 5 | EH14: PO2401 | EI14: Almere | EJ14: 21148 | EK14: 783 | EL14: 34 | EM14: 10 | EN14: 10 | EO14: 144 | EP14: 14 | EQ14: 11 | ER14: 21165 | ES14: 788 | ET14: 21953 | EU14: 21931 | EV14: 103 | EW14: 24 | EX14: 21 | EY14: 13 | EZ14: 62 | FA14: 115 | FB14: 3 | FC14: 2 | FD14: 17 | FE14: 44 | FF14: 77 | FG14: 0 | FH14: 1 | FI14: 1 | FJ14: 6 | FK14: 28 | FL14: 22 | FM14: 134 | FN14: 1 | FO14: 6 | FQ14: PO2401 | FR14: Stichting Leerlingzorg Primair Onderwijs Almere | FS14: 19735 | FT14: 684 | FU14: 43 | FV14: 15 | FW14: 6 | FX14: 138 | FY14: 50 | FZ14: 12 | GA14: 19701 | GB14: 695 | GC14: 20396 | GF14: 0 | GG14: 0 | GI14: PO2401 | GJ14: Stichting Leerlingzorg Primair Onderwijs Almere | GK14: 19838 | GL14: 695 | GM14: 42 | GN14: 9 | GO14: 9 | GP14: 162 | GQ14: 41 | GR14: 11 | GU14: 0
A15: PO2402 | B15: Samenwerkingsverband PO Noordoostpolder-Urk | C15: 6465 | D15: 120 | E15: 19 | F15: 3 | G15: 1 | H15: 72 | I15: 8 | J15: 13 | K15: 6454 | L15: 120 | M15: 6574 | N15: 0 | O15: 45 | P15: 1242774.05 | Q15: 122303.82 | S15: PO2402 | T15: Samenwerkingsverband PO Noordoostpolder-Urk | U15: 6439 | V15: 121 | W15: 24 | X15: 4 | Y15: 0 | Z15: 86 | AA15: 8 | AB15: 14 | AC15: 6454 | AD15: 120 | AE15: 6574 | AF15: 0 | AG15: 45 | AH15: 1240404.88 | AI15: 119659.35 | AK15: PO2402 | AL15: Samenwerkingsverband PO Noordoostpolder-Urk | AM15: 6557 | AN15: 131 | AO15: 24 | AP15: 1 | AQ15: 0 | AR15: 112 | AS15: 9 | AT15: 14 | AU15: 6564 | AV15: 132 | AW15: 6696 | AX15: 0 | AY15: 48 | AZ15: PO2402 | BA15: Samenwerkingsverband PO Noordoostpolder-Urk | BB15: 6533 | BC15: 138 | BD15: 33 | BE15: 3 | BF15: 3 | BG15: 112 | BH15: 6 | BI15: 14 | BJ15: 6561 | BK15: 133 | BL15: 6694 | BM15: 1 | BN15: 55 | BP15: PO2402 | BQ15: Samenwerkingsverband PO Noordoostpolder-Urk | BR15: 6551 | BS15: 145 | BT15: 30 | BU15: 2 | BV15: 5 | BW15: 133 | BX15: 5 | BY15: 16 | BZ15: 6591 | CA15: 136 | CB15: 6727 | CC15: 0 | CD15: 113 | CE15: 7 | CF15: 21 | CG15: 1 | CH15: 49 | CI15: 47 | CJ15: 13 | CK15: 1 | CL15: 5 | CM15: 8 | CN15: 0 | CO15: 1 | CP15: 0 | CQ15: 0 | CR15: 0 | CS15: 8 | CT15: 61 | CU15: 38 | CV15: 1 | CW15: 11 | CY15: PO2402 | CZ15: Samenwerkingsverband PO Noordoostpolder-Urk | DA15: 6649 | DB15: 153 | DC15: 43 | DD15: 1 | DE15: 5 | DF15: 127 | DG15: 3 | DH15: 18 | DI15: 6671 | DJ15: 144 | DK15: 6815 | DL15: -1216546.56 | DM15: 115 | DN15: 4 | DO15: 23 | DP15: 0 | DQ15: 55 | DR15: 73 | DS15: 9 | DT15: 2 | DU15: 4 | DV15: 8 | DW15: 1 | DX15: 1 | DY15: 0 | DZ15: 0 | EA15: 0 | EB15: 8 | EC15: 66 | ED15: 33 | EE15: 1 | EF15: 11 | EH15: PO2402 | EI15: Samenwerkingsverband PO Noordoostpolder-Urk | EJ15: 6726 | EK15: 144 | EL15: 41 | EM15: 1 | EN15: 5 | EO15: 138 | EP15: 4 | EQ15: 14 | ER15: 6730 | ES15: 140 | ET15: 6870 | EU15: 6870 | EV15: 120 | EW15: 5 | EX15: 19 | EY15: 0 | EZ15: 59 | FA15: 77 | FB15: 7 | FC15: 1 | FD15: 1 | FE15: 10 | FF15: 1 | FG15: 0 | FH15: 0 | FI15: 0 | FJ15: 0 | FK15: 9 | FL15: 54 | FM15: 34 | FN15: 2 | FO15: 11 | FQ15: PO2402 | FR15: Samenwerkingsverband PO Noordoostpolder-Urk | FS15: 6394 | FT15: 111 | FU15: 18 | FV15: 6 | FW15: 2 | FX15: 65 | FY15: 6 | FZ15: 12 | GA15: 7525 | GB15: 112 | GC15: 7637 | GF15: 0 | GG15: 0 | GI15: PO2402 | GJ15: Samenwerkingsverband PO Noordoostpolder-Urk | GK15: 6360 | GL15: 120 | GM15: 23 | GN15: 5 | GO15: 4 | GP15: 77 | GQ15: 6 | GR15: 7 | GU15: 0
A16: PO2403 | B16: Stichting Samenwerkingsverband 24-03 | C16: 10970 | D16: 293 | E16: 49 | F16: 2 | G16: 6 | H16: 171 | I16: 5 | J16: 12 | K16: 11340 | L16: 289 | M16: 11629 | N16: 2 | O16: 33 | P16: 1922428.5 | Q16: 191962.88 | S16: PO2403 | T16: Stichting Samenwerkingsverband 24-03 | U16: 11268 | V16: 280 | W16: 54 | X16: 2 | Y16: 7 | Z16: 169 | AA16: 7 | AB16: 11 | AC16: 11340 | AD16: 289 | AE16: 11629 | AF16: 2 | AG16: 33 | AH16: 1918763.66 | AI16: 187812.23 | AK16: PO2403 | AL16: Stichting Samenwerkingsverband 24-03 | AM16: 11340 | AN16: 288 | AO16: 50 | AP16: 3 | AQ16: 4 | AR16: 182 | AS16: 6 | AT16: 12 | AU16: 11378 | AV16: 302 | AW16: 11680 | AX16: 4 | AY16: 34 | AZ16: PO2403 | BA16: Stichting Samenwerkingsverband 24-03 | BB16: 11429 | BC16: 303 | BD16: 70 | BE16: 3 | BF16: 6 | BG16: 207 | BH16: 5 | BI16: 17 | BJ16: 11471 | BK16: 317 | BL16: 11788 | BM16: 4 | BN16: 42 | BP16: PO2403 | BQ16: Stichting Samenwerkingsverband 24-03 | BR16: 11475 | BS16: 330 | BT16: 77 | BU16: 2 | BV16: 7 | BW16: 238 | BX16: 6 | BY16: 21 | BZ16: 11519 | CA16: 351 | CB16: 11870 | CC16: 0 | CD16: 243 | CE16: 8 | CF16: 28 | CG16: 9 | CH16: 63 | CI16: 89 | CJ16: 8 | CK16: 3 | CL16: 5 | CM16: 2 | CN16: 4 | CO16: 1 | CP16: 1 | CQ16: 0 | CR16: 2 | CS16: 2 | CT16: 54 | CU16: 29 | CV16: 5 | CW16: 3 | CY16: PO2403 | CZ16: Stichting Samenwerkingsverband 24-03 | DA16: 11506 | DB16: 368 | DC16: 85 | DD16: 4 | DE16: 5 | DF16: 250 | DG16: 2 | DH16: 25 | DI16: 11567 | DJ16: 383 | DK16: 11950 | DL16: -1905388.17 | DM16: 271 | DN16: 6 | DO16: 30 | DP16: 6 | DQ16: 58 | DR16: 97 | DS16: 8 | DT16: 1 | DU16: 6 | DV16: 6 | DW16: 8 | DX16: 1 | DY16: 1 | DZ16: 0 | EA16: 3 | EB16: 5 | EC16: 53 | ED16: 23 | EE16: 7 | EF16: 3 | EH16: PO2403 | EI16: Stichting Samenwerkingsverband 24-03 | EJ16: 11624 | EK16: 401 | EL16: 79 | EM16: 4 | EN16: 7 | EO16: 250 | EP16: 2 | EQ16: 22 | ER16: 11679 | ES16: 410 | ET16: 12089 | EU16: 12025 | EV16: 261 | EW16: 6 | EX16: 29 | EY16: 4 | EZ16: 64 | FA16: 120 | FB16: 7 | FC16: 2 | FD16: 10 | FE16: 7 | FF16: 8 | FG16: 0 | FH16: 0 | FI16: 1 | FJ16: 2 | FK16: 6 | FL16: 42 | FM16: 23 | FN16: 6 | FO16: 3 | FQ16: PO2403 | FR16: Stichting Samenwerkingsverband 24-03 | FS16: 10890 | FT16: 296 | FU16: 48 | FV16: 1 | FW16: 6 | FX16: 166 | FY16: 5 | FZ16: 13 | GA16: 11053 | GB16: 300 | GC16: 11353 | GF16: 0 | GG16: 0 | GI16: PO2403 | GJ16: Stichting Samenwerkingsverband 24-03 | GK16: 10800 | GL16: 271 | GM16: 41 | GN16: 2 | GO16: 7 | GP16: 163 | GQ16: 7 | GR16: 13 | GU16: 0
A17: PO2501 | B17: Samenwerkingsverband IJssel/Berkel | C17: 14109 | D17: 252 | E17: 28 | F17: 2 | G17: 13 | H17: 122 | I17: 6 | J17: 23 | K17: 14317 | L17: 306 | M17: 14623 | N17: 4 | O17: 25 | P17: 1475539.44 | Q17: 176448.23 | S17: PO2501 | T17: Samenwerkingsverband IJssel/Berkel | U17: 14495 | V17: 304 | W17: 23 | X17: 1 | Y17: 14 | Z17: 122 | AA17: 9 | AB17: 23 | AC17: 14317 | AD17: 306 | AE17: 14623 | AF17: 4 | AG17: 25 | AH17: 1472726.53 | AI17: 172633.04 | AK17: PO2501 | AL17: Samenwerkingsverband IJssel/Berkel | AM17: 14752 | AN17: 318 | AO17: 25 | AP17: 3 | AQ17: 13 | AR17: 157 | AS17: 4 | AT17: 25 | AU17: 14657 | AV17: 328 | AW17: 14985 | AX17: 4 | AY17: 31 | AZ17: PO2501 | BA17: Samenwerkingsverband IJssel/Berkel | BB17: 15164 | BC17: 373 | BD17: 32 | BE17: 4 | BF17: 15 | BG17: 190 | BH17: 5 | BI17: 25 | BJ17: 15074 | BK17: 386 | BL17: 15460 | BM17: 5 | BN17: 37 | BP17: PO2501 | BQ17: Samenwerkingsverband IJssel/Berkel | BR17: 15732 | BS17: 372 | BT17: 44 | BU17: 2 | BV17: 10 | BW17: 200 | BX17: 3 | BY17: 40 | BZ17: 15670 | CA17: 380 | CB17: 16050 | CC17: 0 | CD17: 138 | CE17: 5 | CF17: 50 | CG17: 9 | CH17: 97 | CI17: 84 | CJ17: 28 | CK17: 4 | CL17: 30 | CM17: 14 | CN17: 14 | CO17: 3 | CP17: 1 | CQ17: 2 | CR17: 4 | CS17: 9 | CT17: 43 | CU17: 50 | CV17: 6 | CW17: 10 | CY17: PO2501 | CZ17: Samenwerkingsverband IJssel/Berkel | DA17: 16187 | DB17: 378 | DC17: 47 | DD17: 2 | DE17: 10 | DF17: 200 | DG17: 5 | DH17: 39 | DI17: 16093 | DJ17: 389 | DK17: 16482 | DL17: -1511862.65 | DM17: 145 | DN17: 7 | DO17: 49 | DP17: 7 | DQ17: 95 | DR17: 111 | DS17: 34 | DT17: 1 | DU17: 30 | DV17: 12 | DW17: 15 | DX17: 2 | DY17: 1 | DZ17: 0 | EA17: 4 | EB17: 10 | EC17: 53 | ED17: 55 | EE17: 5 | EF17: 17 | EH17: PO2501 | EI17: Samenwerkingsverband IJssel/Berkel | EJ17: 16704 | EK17: 416 | EL17: 49 | EM17: 0 | EN17: 11 | EO17: 204 | EP17: 5 | EQ17: 48 | ER17: 16628 | ES17: 423 | ET17: 17051 | EU17: 17120 | EV17: 141 | EW17: 5 | EX17: 59 | EY17: 6 | EZ17: 106 | FA17: 151 | FB17: 37 | FC17: 1 | FD17: 29 | FE17: 13 | FF17: 17 | FG17: 2 | FH17: 1 | FI17: 2 | FJ17: 3 | FK17: 10 | FL17: 44 | FM17: 60 | FN17: 7 | FO17: 18 | FQ17: PO2501 | FR17: Samenwerkingsverband IJssel/Berkel | FS17: 13702 | FT17: 236 | FU17: 35 | FV17: 3 | FW17: 13 | FX17: 123 | FY17: 8 | FZ17: 26 | GA17: 13667 | GB17: 241 | GC17: 13908 | GF17: 0 | GG17: 0 | GI17: PO2501 | GJ17: Samenwerkingsverband IJssel/Berkel | GK17: 13306 | GL17: 239 | GM17: 36 | GN17: 6 | GO17: 16 | GP17: 116 | GQ17: 9 | GR17: 29 | GU17: 0
A18: PO2502 | B18: SWV Oost Achterhoek | C18: 7067 | D18: 290 | E18: 4 | F18: 0 | G18: 1 | H18: 40 | I18: 0 | J18: 2 | K18: 7085 | L18: 261 | M18: 7346 | N18: 0 | O18: 10 | P18: 434611.79 | Q18: 93932.32 | S18: PO2502 | T18: SWV Oost Achterhoek | U18: 7223 | V18: 286 | W18: 9 | X18: 0 | Y18: 1 | Z18: 37 | AA18: 5 | AB18: 3 | AC18: 7085 | AD18: 261 | AE18: 7346 | AF18: 0 | AG18: 10 | AH18: 433783.26 | AI18: 91901.3 | AK18: PO2502 | AL18: SWV Oost Achterhoek | AM18: 7570 | AN18: 300 | AO18: 11 | AP18: 2 | AQ18: 1 | AR18: 39 | AS18: 2 | AT18: 8 | AU18: 7448 | AV18: 270 | AW18: 7718 | AX18: 2 | AY18: 9 | AZ18: PO2502 | BA18: SWV Oost Achterhoek | BB18: 7872 | BC18: 298 | BD18: 11 | BE18: 2 | BF18: 1 | BG18: 43 | BH18: 3 | BI18: 10 | BJ18: 7727 | BK18: 260 | BL18: 7987 | BM18: 1 | BN18: 11 | BP18: PO2502 | BQ18: SWV Oost Achterhoek | BR18: 8065 | BS18: 323 | BT18: 8 | BU18: 0 | BV18: 3 | BW18: 43 | BX18: 2 | BY18: 13 | BZ18: 7906 | CA18: 282 | CB18: 8188 | CC18: 0 | CD18: 25 | CE18: 2 | CF18: 16 | CG18: 2 | CH18: 24 | CI18: 59 | CJ18: 20 | CK18: 4 | CL18: 9 | CM18: 6 | CN18: 36 | CO18: 3 | CP18: 1 | CQ18: 1 | CR18: 10 | CS18: 5 | CT18: 13 | CU18: 23 | CV18: 1 | CW18: 13 | CY18: PO2502 | CZ18: SWV Oost Achterhoek | DA18: 8265 | DB18: 313 | DC18: 9 | DD18: 0 | DE18: 7 | DF18: 52 | DG18: 0 | DH18: 14 | DI18: 8108 | DJ18: 278 | DK18: 8386 | DL18: -505336.84 | DM18: 27 | DN18: 0 | DO18: 21 | DP18: 2 | DQ18: 32 | DR18: 68 | DS18: 21 | DT18: 5 | DU18: 13 | DV18: 7 | DW18: 36 | DX18: 3 | DY18: 2 | DZ18: 2 | EA18: 6 | EB18: 6 | EC18: 15 | ED18: 22 | EE18: 1 | EF18: 13 | EH18: PO2502 | EI18: SWV Oost Achterhoek | EJ18: 8546 | EK18: 317 | EL18: 14 | EM18: 0 | EN18: 6 | EO18: 55 | EP18: 0 | EQ18: 16 | ER18: 8376 | ES18: 273 | ET18: 8649 | EU18: 8863 | EV18: 25 | EW18: 0 | EX18: 22 | EY18: 1 | EZ18: 43 | FA18: 78 | FB18: 22 | FC18: 4 | FD18: 17 | FE18: 9 | FF18: 37 | FG18: 3 | FH18: 1 | FI18: 4 | FJ18: 9 | FK18: 7 | FL18: 15 | FM18: 19 | FN18: 1 | FO18: 13 | FQ18: PO2502 | FR18: SWV Oost Achterhoek | FS18: 6782 | FT18: 273 | FU18: 4 | FV18: 0 | FW18: 2 | FX18: 32 | FY18: 4 | FZ18: 4 | GA18: 6647 | GB18: 254 | GC18: 6901 | GF18: 0 | GG18: 0 | GI18: PO2502 | GJ18: SWV Oost Achterhoek | GK18: 6577 | GL18: 275 | GM18: 8 | GN18: 1 | GO18: 2 | GP18: 28 | GQ18: 5 | GR18: 4 | GU18: 0
A19: PO2503 | B19: SWV Primair Passend Onderwijs Doetinchem | C19: 11698 | D19: 220 | E19: 29 | F19: 9 | G19: 9 | H19: 123 | I19: 5 | J19: 19 | K19: 12013 | L19: 288 | M19: 12301 | N19: 0 | O19: 54 | P19: 870826.61 | Q19: 107143.2 | S19: PO2503 | T19: SWV Primair Passend Onderwijs Doetinchem | U19: 12044 | V19: 233 | W19: 21 | X19: 8 | Y19: 12 | Z19: 146 | AA19: 7 | AB19: 21 | AC19: 12013 | AD19: 288 | AE19: 12301 | AF19: 0 | AG19: 54 | AH19: 869166.5 | AI19: 104826.53 | AK19: PO2503 | AL19: SWV Primair Passend Onderwijs Doetinchem | AM19: 12361 | AN19: 273 | AO19: 35 | AP19: 5 | AQ19: 9 | AR19: 147 | AS19: 6 | AT19: 24 | AU19: 12320 | AV19: 333 | AW19: 12653 | AX19: 0 | AY19: 69 | AZ19: PO2503 | BA19: SWV Primair Passend Onderwijs Doetinchem | BB19: 12749 | BC19: 316 | BD19: 33 | BE19: 5 | BF19: 7 | BG19: 165 | BH19: 7 | BI19: 25 | BJ19: 12690 | BK19: 375 | BL19: 13065 | BM19: 2 | BN19: 81 | BP19: PO2503 | BQ19: SWV Primair Passend Onderwijs Doetinchem | BR19: 13288 | BS19: 375 | BT19: 38 | BU19: 2 | BV19: 7 | BW19: 174 | BX19: 5 | BY19: 26 | BZ19: 13236 | CA19: 431 | CB19: 13667 | CC19: 0 | CD19: 158 | CE19: 7 | CF19: 33 | CG19: 2 | CH19: 52 | CI19: 73 | CJ19: 29 | CK19: 2 | CL19: 21 | CM19: 13 | CN19: 6 | CO19: 7 | CP19: 1 | CQ19: 1 | CR19: 7 | CS19: 11 | CT19: 69 | CU19: 62 | CV19: 4 | CW19: 12 | CY19: PO2503 | CZ19: SWV Primair Passend Onderwijs Doetinchem | DA19: 13807 | DB19: 432 | DC19: 42 | DD19: 2 | DE19: 10 | DF19: 165 | DG19: 3 | DH19: 25 | DI19: 13776 | DJ19: 484 | DK19: 14260 | DL19: -902037.37 | DM19: 142 | DN19: 5 | DO19: 35 | DP19: 3 | DQ19: 62 | DR19: 104 | DS19: 34 | DT19: 5 | DU19: 16 | DV19: 13 | DW19: 12 | DX19: 4 | DY19: 1 | DZ19: 1 | EA19: 5 | EB19: 8 | EC19: 71 | ED19: 68 | EE19: 5 | EF19: 12 | EH19: PO2503 | EI19: SWV Primair Passend Onderwijs Doetinchem | EJ19: 14318 | EK19: 476 | EL19: 50 | EM19: 1 | EN19: 10 | EO19: 165 | EP19: 3 | EQ19: 27 | ER19: 14279 | ES19: 535 | ET19: 14814 | EU19: 14794 | EV19: 143 | EW19: 4 | EX19: 37 | EY19: 1 | EZ19: 71 | FA19: 112 | FB19: 39 | FC19: 6 | FD19: 16 | FE19: 16 | FF19: 10 | FG19: 3 | FH19: 1 | FI19: 0 | FJ19: 6 | FK19: 13 | FL19: 69 | FM19: 76 | FN19: 4 | FO19: 12 | FQ19: PO2503 | FR19: SWV Primair Passend Onderwijs Doetinchem | FS19: 11385 | FT19: 217 | FU19: 34 | FV19: 8 | FW19: 6 | FX19: 132 | FY19: 8 | FZ19: 16 | GA19: 11477 | GB19: 261 | GC19: 11738 | GF19: 0 | GG19: 0 | GI19: PO2503 | GJ19: SWV Primair Passend Onderwijs Doetinchem | GK19: 11082 | GL19: 208 | GM19: 55 | GN19: 6 | GO19: 4 | GP19: 136 | GQ19: 13 | GR19: 19 | GU19: 0
A20: PO2504 | B20: Samenwerkingsverband De Liemers PO | C20: 7645 | D20: 250 | E20: 31 | F20: 9 | G20: 5 | H20: 94 | I20: 5 | J20: 8 | K20: 7584 | L20: 243 | M20: 7827 | N20: 1 | O20: 36 | P20: -79604.37 | Q20: -25057.02 | S20: PO2504 | T20: Samenwerkingsverband De Liemers PO | U20: 7734 | V20: 242 | W20: 37 | X20: 9 | Y20: 3 | Z20: 107 | AA20: 4 | AB20: 7 | AC20: 7584 | AD20: 243 | AE20: 7827 | AF20: 1 | AG20: 36 | AH20: -79452.62 | AI20: -24515.23 | AK20: PO2504 | AL20: Samenwerkingsverband De Liemers PO | AM20: 8002 | AN20: 248 | AO20: 36 | AP20: 7 | AQ20: 1 | AR20: 98 | AS20: 6 | AT20: 12 | AU20: 7813 | AV20: 244 | AW20: 8057 | AX20: 1 | AY20: 37 | AZ20: PO2504 | BA20: Samenwerkingsverband De Liemers PO | BB20: 8321 | BC20: 270 | BD20: 35 | BE20: 6 | BF20: 1 | BG20: 98 | BH20: 5 | BI20: 17 | BJ20: 8148 | BK20: 269 | BL20: 8417 | BM20: 1 | BN20: 37 | BP20: PO2504 | BQ20: Samenwerkingsverband De Liemers PO | BR20: 8564 | BS20: 264 | BT20: 27 | BU20: 4 | BV20: 4 | BW20: 99 | BX20: 7 | BY20: 20 | BZ20: 8389 | CA20: 261 | CB20: 8650 | CC20: 0 | CD20: 87 | CE20: 11 | CF20: 24 | CG20: 2 | CH20: 37 | CI20: 19 | CJ20: 15 | CK20: 1 | CL20: 8 | CM20: 3 | CN20: 5 | CO20: 2 | CP20: 0 | CQ20: 2 | CR20: 4 | CS20: 2 | CT20: 42 | CU20: 39 | CV20: 1 | CW20: 5 | CY20: PO2504 | CZ20: Samenwerkingsverband De Liemers PO | DA20: 8961 | DB20: 253 | DC20: 25 | DD20: 2 | DE20: 7 | DF20: 98 | DG20: 11 | DH20: 15 | DI20: 8800 | DJ20: 249 | DK20: 9049 | DL20: 133502.95 | DM20: 82 | DN20: 13 | DO20: 22 | DP20: 3 | DQ20: 38 | DR20: 20 | DS20: 17 | DT20: 3 | DU20: 7 | DV20: 4 | DW20: 2 | DX20: 4 | DY20: 0 | DZ20: 1 | EA20: 4 | EB20: 3 | EC20: 45 | ED20: 36 | EE20: 2 | EF20: 5 | EH20: PO2504 | EI20: Samenwerkingsverband De Liemers PO | EJ20: 9234 | EK20: 273 | EL20: 22 | EM20: 3 | EN20: 9 | EO20: 83 | EP20: 15 | EQ20: 19 | ER20: 9089 | ES20: 264 | ET20: 9353 | EU20: 9507 | EV20: 69 | EW20: 18 | EX20: 28 | EY20: 4 | EZ20: 32 | FA20: 21 | FB20: 19 | FC20: 3 | FD20: 9 | FE20: 9 | FF20: 2 | FG20: 5 | FH20: 0 | FI20: 2 | FJ20: 4 | FK20: 8 | FL20: 35 | FM20: 28 | FN20: 2 | FO20: 5 | FQ20: PO2504 | FR20: Samenwerkingsverband De Liemers PO | FS20: 7560 | FT20: 242 | FU20: 40 | FV20: 7 | FW20: 4 | FX20: 95 | FY20: 5 | FZ20: 8 | GA20: 7415 | GB20: 240 | GC20: 7655 | GF20: 0 | GG20: 0 | GI20: PO2504 | GJ20: Samenwerkingsverband De Liemers PO | GK20: 7558 | GL20: 233 | GM20: 32 | GN20: 9 | GO20: 5 | GP20: 99 | GQ20: 5 | GR20: 10 | GU20: 0
A21: PO2505 | B21: St. Samenwerkingsverband Passend Onderwijs Apeldoorn | C21: 12435 | D21: 371 | E21: 34 | F21: 4 | G21: 15 | H21: 103 | I21: 7 | J21: 24 | K21: 12682 | L21: 317 | M21: 12999 | N21: 0 | O21: 36 | P21: 368083 | Q21: 55877.49 | S21: PO2505 | T21: St. Samenwerkingsverband Passend Onderwijs Apeldoorn | U21: 12474 | V21: 360 | W21: 32 | X21: 5 | Y21: 13 | Z21: 83 | AA21: 6 | AB21: 27 | AC21: 12682 | AD21: 317 | AE21: 12999 | AF21: 0 | AG21: 36 | AH21: 367381.3 | AI21: 54669.3 | AK21: PO2505 | AL21: St. Samenwerkingsverband Passend Onderwijs Apeldoorn | AM21: 12650 | AN21: 395 | AO21: 23 | AP21: 2 | AQ21: 12 | AR21: 101 | AS21: 5 | AT21: 30 | AU21: 12834 | AV21: 335 | AW21: 13169 | AX21: 0 | AY21: 37 | AZ21: PO2505 | BA21: St. Samenwerkingsverband Passend Onderwijs Apeldoorn | BB21: 12744 | BC21: 455 | BD21: 23 | BE21: 6 | BF21: 5 | BG21: 114 | BH21: 4 | BI21: 27 | BJ21: 12926 | BK21: 390 | BL21: 13316 | BM21: 1 | BN21: 40 | BP21: PO2505 | BQ21: St. Samenwerkingsverband Passend Onderwijs Apeldoorn | BR21: 13069 | BS21: 500 | BT21: 28 | BU21: 6 | BV21: 7 | BW21: 103 | BX21: 3 | BY21: 29 | BZ21: 13220 | CA21: 424 | CB21: 13644 | CC21: 0 | CD21: 65 | CE21: 9 | CF21: 36 | CG21: 2 | CH21: 64 | CI21: 46 | CJ21: 13 | CK21: 1 | CL21: 9 | CM21: 9 | CN21: 29 | CO21: 1 | CP21: 0 | CQ21: 5 | CR21: 9 | CS21: 5 | CT21: 44 | CU21: 49 | CV21: 0 | CW21: 8 | CY21: PO2505 | CZ21: St. Samenwerkingsverband Passend Onderwijs Apeldoorn | DA21: 13366 | DB21: 520 | DC21: 34 | DD21: 8 | DE21: 11 | DF21: 114 | DG21: 2 | DH21: 25 | DI21: 13470 | DJ21: 434 | DK21: 13904 | DL21: -436267.89 | DM21: 76 | DN21: 10 | DO21: 36 | DP21: 0 | DQ21: 72 | DR21: 67 | DS21: 17 | DT21: 1 | DU21: 11 | DV21: 9 | DW21: 34 | DX21: 2 | DY21: 1 | DZ21: 2 | EA21: 7 | EB21: 3 | EC21: 45 | ED21: 54 | EE21: 1 | EF21: 8 | EH21: PO2505 | EI21: St. Samenwerkingsverband Passend Onderwijs Apeldoorn | EJ21: 13448 | EK21: 561 | EL21: 43 | EM21: 6 | EN21: 13 | EO21: 142 | EP21: 1 | EQ21: 30 | ER21: 13550 | ES21: 479 | ET21: 14029 | EU21: 14009 | EV21: 98 | EW21: 7 | EX21: 43 | EY21: 0 | EZ21: 87 | FA21: 73 | FB21: 17 | FC21: 1 | FD21: 12 | FE21: 11 | FF21: 45 | FG21: 3 | FH21: 2 | FI21: 3 | FJ21: 9 | FK21: 6 | FL21: 41 | FM21: 45 | FN21: 3 | FO21: 8 | FQ21: PO2505 | FR21: St. Samenwerkingsverband Passend Onderwijs Apeldoorn | FS21: 12244 | FT21: 365 | FU21: 33 | FV21: 3 | FW21: 14 | FX21: 136 | FY21: 9 | FZ21: 21 | GA21: 13054 | GB21: 331 | GC21: 13385 | GF21: 0 | GG21: 0 | GI21: PO2505 | GJ21: St. Samenwerkingsverband Passend Onderwijs Apeldoorn | GK21: 12238 | GL21: 358 | GM21: 38 | GN21: 4 | GO21: 14 | GP21: 149 | GQ21: 6 | GR21: 22 | GU21: 0
A22: PO2506 | B22: Samenwerkingsverband 25-06 PO | C22: 27030 | D22: 762 | E22: 80 | F22: 44 | G22: 19 | H22: 250 | I22: 77 | J22: 40 | K22: 26995 | L22: 735 | M22: 27730 | N22: 6 | O22: 150 | P22: 584640.75 | Q22: 1330.61 | S22: PO2506 | T22: Samenwerkingsverband 25-06 PO | U22: 27164 | V22: 755 | W22: 72 | X22: 28 | Y22: 16 | Z22: 257 | AA22: 72 | AB22: 37 | AC22: 26995 | AD22: 735 | AE22: 27730 | AF22: 6 | AG22: 150 | AH22: 583526.21 | AI22: 1301.84 | AK22: PO2506 | AL22: Samenwerkingsverband 25-06 PO | AM22: 27215 | AN22: 758 | AO22: 67 | AP22: 10 | AQ22: 29 | AR22: 282 | AS22: 35 | AT22: 42 | AU22: 27069 | AV22: 739 | AW22: 27808 | AX22: 6 | AY22: 144 | AZ22: PO2506 | BA22: Samenwerkingsverband 25-06 PO | BB22: 27521 | BC22: 848 | BD22: 57 | BE22: 12 | BF22: 27 | BG22: 322 | BH22: 34 | BI22: 51 | BJ22: 27400 | BK22: 829 | BL22: 28229 | BM22: 6 | BN22: 153 | BP22: PO2506 | BQ22: Samenwerkingsverband 25-06 PO | BR22: 27810 | BS22: 828 | BT22: 87 | BU22: 15 | BV22: 27 | BW22: 333 | BX22: 32 | BY22: 65 | BZ22: 27684 | CA22: 819 | CB22: 28503 | CC22: 0 | CD22: 296 | CE22: 47 | CF22: 92 | CG22: 11 | CH22: 113 | CI22: 87 | CJ22: 68 | CK22: 3 | CL22: 40 | CM22: 29 | CN22: 2 | CO22: 0 | CP22: 0 | CQ22: 1 | CR22: 14 | CS22: 17 | CT22: 154 | CU22: 106 | CV22: 10 | CW22: 19 | CY22: PO2506 | CZ22: Samenwerkingsverband 25-06 PO | DA22: 28003 | DB22: 876 | DC22: 73 | DD22: 16 | DE22: 23 | DF22: 352 | DG22: 33 | DH22: 69 | DI22: 27928 | DJ22: 857 | DK22: 28785 | DL22: -530072.15 | DM22: 313 | DN22: 49 | DO22: 92 | DP22: 18 | DQ22: 94 | DR22: 66 | DS22: 78 | DT22: 5 | DU22: 24 | DV22: 29 | DW22: 5 | DX22: 1 | DY22: 0 | DZ22: 1 | EA22: 11 | EB22: 20 | EC22: 149 | ED22: 98 | EE22: 12 | EF22: 19 | EH22: PO2506 | EI22: Samenwerkingsverband 25-06 PO | EJ22: 28373 | EK22: 858 | EL22: 68 | EM22: 12 | EN22: 20 | EO22: 349 | EP22: 31 | EQ22: 76 | ER22: 28266 | ES22: 853 | ET22: 29119 | EU22: 29231 | EV22: 300 | EW22: 43 | EX22: 96 | EY22: 19 | EZ22: 98 | FA22: 79 | FB22: 69 | FC22: 5 | FD22: 27 | FE22: 28 | FF22: 5 | FG22: 2 | FH22: 1 | FI22: 0 | FJ22: 11 | FK22: 17 | FL22: 139 | FM22: 78 | FN22: 13 | FO22: 19 | FQ22: PO2506 | FR22: Samenwerkingsverband 25-06 PO | FS22: 26792 | FT22: 767 | FU22: 95 | FV22: 58 | FW22: 17 | FX22: 249 | FY22: 63 | FZ22: 43 | GA22: 26821 | GB22: 764 | GC22: 27585 | GF22: 0 | GG22: 0 | GI22: PO2506 | GJ22: Samenwerkingsverband 25-06 PO | GK22: 26502 | GL22: 777 | GM22: 103 | GN22: 76 | GO22: 13 | GP22: 260 | GQ22: 71 | GR22: 49 | GU22: 0
A23: PO2507 | B23: SWV Stromenland PO 2507 | C23: 30483 | D23: 954 | E23: 141 | F23: 39 | G23: 13 | H23: 373 | I23: 46 | J23: 38 | K23: 30877 | L23: 914 | M23: 31791 | N23: 10 | O23: 201 | P23: 1267306.26 | Q23: 52682.82 | S23: PO2507 | T23: SWV Stromenland PO 2507 | U23: 31062 | V23: 917 | W23: 138 | X23: 43 | Y23: 10 | Z23: 406 | AA23: 29 | AB23: 48 | AC23: 30877 | AD23: 914 | AE23: 31791 | AF23: 10 | AG23: 201 | AH23: 1264890.32 | AI23: 51543.7 | AK23: PO2507 | AL23: SWV Stromenland PO 2507 | AM23: 31671 | AN23: 947 | AO23: 121 | AP23: 25 | AQ23: 47 | AR23: 359 | AS23: 41 | AT23: 97 | AU23: 31421 | AV23: 947 | AW23: 32368 | AX23: 15 | AY23: 212 | AZ23: PO2507 | BA23: SWV Stromenland PO 2507 | BB23: 32304 | BC23: 1014 | BD23: 139 | BE23: 13 | BF23: 61 | BG23: 374 | BH23: 34 | BI23: 88 | BJ23: 32065 | BK23: 1019 | BL23: 33084 | BM23: 16 | BN23: 236 | BP23: PO2507 | BQ23: SWV Stromenland PO 2507 | BR23: 32871 | BS23: 1010 | BT23: 129 | BU23: 14 | BV23: 64 | BW23: 377 | BX23: 32 | BY23: 83 | BZ23: 32657 | CA23: 1011 | CB23: 33668 | CC23: 0 | CD23: 383 | CE23: 46 | CF23: 147 | CG23: 7 | CH23: 116 | CI23: 92 | CJ23: 47 | CK23: 1 | CL23: 29 | CM23: 20 | CN23: 20 | CO23: 5 | CP23: 1 | CQ23: 4 | CR23: 16 | CS23: 13 | CT23: 226 | CU23: 210 | CV23: 18 | CW23: 22 | CY23: PO2507 | CZ23: SWV Stromenland PO 2507 | DA23: 33738 | DB23: 1056 | DC23: 129 | DD23: 22 | DE23: 63 | DF23: 389 | DG23: 25 | DH23: 90 | DI23: 33500 | DJ23: 1063 | DK23: 34563 | DL23: -1181865.75 | DM23: 382 | DN23: 47 | DO23: 153 | DP23: 4 | DQ23: 132 | DR23: 95 | DS23: 53 | DT23: 0 | DU23: 27 | DV23: 21 | DW23: 18 | DX23: 6 | DY23: 1 | DZ23: 2 | EA23: 16 | EB23: 13 | EC23: 228 | ED23: 202 | EE23: 17 | EF23: 22 | EH23: PO2507 | EI23: Nijmegen e.o. | EJ23: 34563 | EK23: 1086 | EL23: 135 | EM23: 21 | EN23: 47 | EO23: 395 | EP23: 27 | EQ23: 96 | ER23: 34297 | ES23: 1086 | ET23: 35383 | EU23: 35649 | EV23: 385 | EW23: 48 | EX23: 143 | EY23: 5 | EZ23: 140 | FA23: 112 | FB23: 65 | FC23: 1 | FD23: 33 | FE23: 21 | FF23: 29 | FG23: 6 | FH23: 0 | FI23: 2 | FJ23: 13 | FK23: 16 | FL23: 220 | FM23: 218 | FN23: 16 | FO23: 22 | FQ23: PO2507 | FR23: SWV Stromenland PO 2507 | FS23: 30142 | FT23: 1020 | FU23: 130 | FV23: 34 | FW23: 14 | FX23: 403 | FY23: 51 | FZ23: 30 | GA23: 30068 | GB23: 1009 | GC23: 31077 | GF23: 0 | GG23: 0 | GI23: PO2507 | GJ23: SWV Stromenland PO 2507 | GK23: 29777 | GL23: 1054 | GM23: 150 | GN23: 34 | GO23: 17 | GP23: 390 | GQ23: 52 | GR23: 31 | GU23: 0
A24: PO2508 | B24: Coöperatie Betuws Primair Passend Onderwijs U.A. | C24: 11535 | D24: 268 | E24: 59 | F24: 8 | G24: 2 | H24: 161 | I24: 28 | J24: 6 | K24: 11833 | L24: 257 | M24: 12090 | N24: 4 | O24: 45 | P24: 71157.01 | Q24: -28382.75 | S24: PO2508 | T24: Coöperatie Betuws Primair Passend Onderwijs U.A. | U24: 11782 | V24: 249 | W24: 51 | X24: 8 | Y24: 5 | Z24: 165 | AA24: 29 | AB24: 8 | AC24: 11833 | AD24: 257 | AE24: 12090 | AF24: 4 | AG24: 45 | AH24: 71021.36 | AI24: -27769.05 | AK24: PO2508 | AL24: Coöperatie Betuws Primair Passend Onderwijs U.A. | AM24: 12164 | AN24: 251 | AO24: 51 | AP24: 8 | AQ24: 4 | AR24: 150 | AS24: 16 | AT24: 17 | AU24: 12230 | AV24: 265 | AW24: 12495 | AX24: 4 | AY24: 53 | AZ24: PO2508 | BA24: Coöperatie Betuws Primair Passend Onderwijs U.A. | BB24: 12649 | BC24: 293 | BD24: 43 | BE24: 4 | BF24: 8 | BG24: 163 | BH24: 7 | BI24: 24 | BJ24: 12674 | BK24: 304 | BL24: 12978 | BM24: 6 | BN24: 57 | BP24: PO2508 | BQ24: Coöperatie Betuws Primair Passend Onderwijs U.A. | BR24: 13165 | BS24: 316 | BT24: 51 | BU24: 4 | BV24: 11 | BW24: 172 | BX24: 8 | BY24: 24 | BZ24: 13174 | CA24: 335 | CB24: 13509 | CC24: 0 | CD24: 151 | CE24: 12 | CF24: 35 | CG24: 5 | CH24: 67 | CI24: 24 | CJ24: 26 | CK24: 1 | CL24: 9 | CM24: 8 | CN24: 5 | CO24: 6 | CP24: 1 | CQ24: 0 | CR24: 1 | CS24: 5 | CT24: 64 | CU24: 72 | CV24: 6 | CW24: 14 | CY24: PO2508 | CZ24: Coöperatie Betuws Primair Passend Onderwijs U.A. | DA24: 13646 | DB24: 366 | DC24: 55 | DD24: 4 | DE24: 9 | DF24: 175 | DG24: 9 | DH24: 28 | DI24: 13629 | DJ24: 389 | DK24: 14018 | DL24: -48947.03 | DM24: 155 | DN24: 13 | DO24: 37 | DP24: 5 | DQ24: 70 | DR24: 31 | DS24: 22 | DT24: 2 | DU24: 9 | DV24: 8 | DW24: 1 | DX24: 3 | DY24: 0 | DZ24: 0 | EA24: 0 | EB24: 5 | EC24: 73 | ED24: 83 | EE24: 7 | EF24: 14 | EH24: PO2508 | EI24: Coöperatie Betuws Primair Passend Onderwijs U.A. | EJ24: 14167 | EK24: 358 | EL24: 52 | EM24: 5 | EN24: 7 | EO24: 178 | EP24: 9 | EQ24: 38 | ER24: 14162 | ES24: 395 | ET24: 14557 | EU24: 14525 | EV24: 150 | EW24: 14 | EX24: 45 | EY24: 5 | EZ24: 75 | FA24: 36 | FB24: 26 | FC24: 2 | FD24: 12 | FE24: 10 | FF24: 0 | FG24: 1 | FH24: 0 | FI24: 1 | FJ24: 3 | FK24: 8 | FL24: 69 | FM24: 89 | FN24: 7 | FO24: 14 | FQ24: PO2508 | FR24: Coöperatie Betuws Primair Passend Onderwijs U.A. | FS24: 11322 | FT24: 296 | FU24: 49 | FV24: 11 | FW24: 4 | FX24: 169 | FY24: 25 | FZ24: 6 | GA24: 14003 | GB24: 369 | GC24: 14372 | GF24: 0 | GG24: 0 | GI24: PO2508 | GJ24: Coöperatie Betuws Primair Passend Onderwijs U.A. | GK24: 11216 | GL24: 321 | GM24: 52 | GN24: 15 | GO24: 4 | GP24: 180 | GQ24: 24 | GR24: 6 | GU24: 0
A25: PO2509 | B25: SWV 25-09 PO | C25: 20451 | D25: 384 | E25: 88 | F25: 1 | G25: 10 | H25: 213 | I25: 9 | J25: 35 | K25: 20289 | L25: 431 | M25: 20720 | N25: 3 | O25: 53 | P25: 1986897.63 | Q25: 200675.07 | S25: PO2509 | T25: SWV 25-09 PO | U25: 20498 | V25: 421 | W25: 86 | X25: 1 | Y25: 9 | Z25: 239 | AA25: 5 | AB25: 41 | AC25: 20289 | AD25: 431 | AE25: 20720 | AF25: 3 | AG25: 53 | AH25: 1983109.89 | AI25: 196336.04 | AK25: PO2509 | AL25: SWV 25-09 PO | AM25: 20621 | AN25: 461 | AO25: 88 | AP25: 1 | AQ25: 10 | AR25: 250 | AS25: 7 | AT25: 37 | AU25: 20449 | AV25: 480 | AW25: 20929 | AX25: 5 | AY25: 57 | AZ25: PO2509 | BA25: SWV 25-09 PO | BB25: 20838 | BC25: 488 | BD25: 79 | BE25: 5 | BF25: 16 | BG25: 284 | BH25: 11 | BI25: 37 | BJ25: 20648 | BK25: 515 | BL25: 21163 | BM25: 4 | BN25: 57 | BP25: PO2509 | BQ25: SWV 25-09 PO | BR25: 21281 | BS25: 505 | BT25: 81 | BU25: 4 | BV25: 15 | BW25: 322 | BX25: 9 | BY25: 43 | BZ25: 21034 | CA25: 549 | CB25: 21583 | CC25: 0 | CD25: 303 | CE25: 13 | CF25: 58 | CG25: 4 | CH25: 96 | CI25: 158 | CJ25: 25 | CK25: 1 | CL25: 20 | CM25: 12 | CN25: 8 | CO25: 2 | CP25: 0 | CQ25: 1 | CR25: 4 | CS25: 9 | CT25: 62 | CU25: 65 | CV25: 4 | CW25: 12 | CY25: PO2509 | CZ25: SWV 25-09 PO | DA25: 21761 | DB25: 539 | DC25: 98 | DD25: 6 | DE25: 11 | DF25: 321 | DG25: 12 | DH25: 42 | DI25: 21553 | DJ25: 588 | DK25: 22141 | DL25: -2002248.71 | DM25: 325 | DN25: 18 | DO25: 53 | DP25: 3 | DQ25: 91 | DR25: 191 | DS25: 30 | DT25: 1 | DU25: 17 | DV25: 17 | DW25: 8 | DX25: 3 | DY25: 0 | DZ25: 0 | EA25: 4 | EB25: 13 | EC25: 57 | ED25: 57 | EE25: 5 | EF25: 12 | EH25: PO2509 | EI25: Harderwijk e.o. | EJ25: 22118 | EK25: 578 | EL25: 130 | EM25: 3 | EN25: 10 | EO25: 340 | EP25: 12 | EQ25: 38 | ER25: 21918 | ES25: 622 | ET25: 22540 | EU25: 22696 | EV25: 367 | EW25: 15 | EX25: 48 | EY25: 8 | EZ25: 95 | FA25: 183 | FB25: 31 | FC25: 1 | FD25: 17 | FE25: 22 | FF25: 11 | FG25: 2 | FH25: 0 | FI25: 1 | FJ25: 7 | FK25: 15 | FL25: 54 | FM25: 64 | FN25: 8 | FO25: 13 | FQ25: PO2509 | FR25: SWV 25-09 PO | FS25: 20313 | FT25: 395 | FU25: 89 | FV25: 4 | FW25: 8 | FX25: 226 | FY25: 10 | FZ25: 35 | GA25: 22218 | GB25: 448 | GC25: 22666 | GF25: 0 | GG25: 0 | GI25: PO2509 | GJ25: SWV 25-09 PO | GK25: 20334 | GL25: 423 | GM25: 89 | GN25: 7 | GO25: 9 | GP25: 243 | GQ25: 11 | GR25: 27 | GU25: 0
A26: PO2510 | B26: Vereniging van samenwerkingsverband Passen onderwijs Rijn & Gelderse Vallei PO | C26: 23424 | D26: 469 | E26: 101 | F26: 10 | G26: 19 | H26: 221 | I26: 21 | J26: 29 | K26: 23368 | L26: 455 | M26: 23823 | N26: 4 | O26: 82 | P26: 1088061.11 | Q26: 51858.94 | S26: PO2510 | T26: Vereniging van samenwerkingsverband Passen onderwijs Rijn & Gelderse Vallei PO | U26: 23404 | V26: 486 | W26: 83 | X26: 7 | Y26: 17 | Z26: 206 | AA26: 15 | AB26: 41 | AC26: 23368 | AD26: 455 | AE26: 23823 | AF26: 4 | AG26: 82 | AH26: 1085986.88 | AI26: 50737.64 | AK26: PO2510 | AL26: Vereniging van samenwerkingsverband Passen onderwijs Rijn & Gelderse Vallei PO | AM26: 23592 | AN26: 567 | AO26: 76 | AP26: 6 | AQ26: 23 | AR26: 227 | AS26: 15 | AT26: 48 | AU26: 23529 | AV26: 521 | AW26: 24050 | AX26: 5 | AY26: 90 | AZ26: PO2510 | BA26: Vereniging van samenwerkingsverband Passen onderwijs Rijn & Gelderse Vallei PO | BB26: 23674 | BC26: 638 | BD26: 82 | BE26: 7 | BF26: 25 | BG26: 260 | BH26: 13 | BI26: 56 | BJ26: 23618 | BK26: 585 | BL26: 24203 | BM26: 5 | BN26: 86 | BP26: PO2510 | BQ26: Vereniging van samenwerkingsverband Passen onderwijs Rijn & Gelderse Vallei PO | BR26: 24029 | BS26: 686 | BT26: 72 | BU26: 8 | BV26: 20 | BW26: 263 | BX26: 10 | BY26: 62 | BZ26: 23990 | CA26: 628 | CB26: 24618 | CC26: 0 | CD26: 227 | CE26: 18 | CF26: 82 | CG26: 13 | CH26: 95 | CI26: 89 | CJ26: 41 | CK26: 1 | CL26: 38 | CM26: 34 | CN26: 10 | CO26: 1 | CP26: 0 | CQ26: 2 | CR26: 11 | CS26: 24 | CT26: 95 | CU26: 81 | CV26: 6 | CW26: 28 | CY26: PO2510 | CZ26: Vereniging van samenwerkingsverband Passen onderwijs Rijn & Gelderse Vallei PO | DA26: 24489 | DB26: 696 | DC26: 87 | DD26: 4 | DE26: 22 | DF26: 282 | DG26: 15 | DH26: 65 | DI26: 24470 | DJ26: 636 | DK26: 25106 | DL26: -1087630.96 | DM26: 257 | DN26: 19 | DO26: 87 | DP26: 16 | DQ26: 96 | DR26: 90 | DS26: 32 | DT26: 2 | DU26: 38 | DV26: 31 | DW26: 10 | DX26: 2 | DY26: 0 | DZ26: 0 | EA26: 10 | EB26: 25 | EC26: 100 | ED26: 234 | EE26: 8 | EF26: 28 | EH26: PO2510 | EI26: Ede, Wageningen e.o. | EJ26: 24948 | EK26: 697 | EL26: 106 | EM26: 3 | EN26: 27 | EO26: 309 | EP26: 20 | EQ26: 66 | ER26: 24905 | ES26: 644 | ET26: 25549 | EU26: 25645 | EV26: 286 | EW26: 23 | EX26: 93 | EY26: 18 | EZ26: 111 | FA26: 93 | FB26: 29 | FC26: 4 | FD26: 34 | FE26: 33 | FF26: 10 | FG26: 1 | FH26: 0 | FI26: 0 | FJ26: 8 | FK26: 23 | FL26: 107 | FM26: 97 | FN26: 9 | FO26: 28 | FQ26: PO2510 | FR26: Vereniging van samenwerkingsverband Passen onderwijs Rijn & Gelderse Vallei PO | FS26: 23497 | FT26: 524 | FU26: 112 | FV26: 5 | FW26: 18 | FX26: 261 | FY26: 19 | FZ26: 36 | GA26: 28966 | GB26: 612 | GC26: 29578 | GF26: 0 | GG26: 0 | GI26: PO2510 | GJ26: Vereniging van samenwerkingsverband Passen onderwijs Rijn & Gelderse Vallei PO | GK26: 23623 | GL26: 543 | GM26: 117 | GN26: 10 | GO26: 15 | GP26: 304 | GQ26: 28 | GR26: 33 | GU26: 0
A27: PO2601 | B27: Samenwerkingsverband Utrecht PO | C27: 29973 | D27: 554 | E27: 56 | F27: 55 | G27: 22 | H27: 273 | I27: 31 | J27: 52 | K27: 29905 | L27: 549 | M27: 30454 | N27: 6 | O27: 211 | P27: -2714423.29 | Q27: -341909.23 | S27: PO2601 | T27: Samenwerkingsverband Utrecht PO | U27: 29800 | V27: 534 | W27: 82 | X27: 41 | Y27: 16 | Z27: 254 | AA27: 18 | AB27: 37 | AC27: 29905 | AD27: 549 | AE27: 30454 | AF27: 6 | AG27: 211 | AH27: -2709248.63 | AI27: -334516.42 | AK27: PO2601 | AL27: Samenwerkingsverband Utrecht PO | AM27: 29394 | AN27: 517 | AO27: 82 | AP27: 36 | AQ27: 13 | AR27: 255 | AS27: 15 | AT27: 27 | AU27: 29523 | AV27: 534 | AW27: 30057 | AX27: 7 | AY27: 209 | AZ27: PO2601 | BA27: Samenwerkingsverband Utrecht PO | BB27: 29068 | BC27: 513 | BD27: 93 | BE27: 8 | BF27: 13 | BG27: 249 | BH27: 17 | BI27: 33 | BJ27: 29187 | BK27: 543 | BL27: 29730 | BM27: 6 | BN27: 213 | BP27: PO2601 | BQ27: Samenwerkingsverband Utrecht PO | BR27: 28418 | BS27: 488 | BT27: 109 | BU27: 9 | BV27: 17 | BW27: 225 | BX27: 17 | BY27: 34 | BZ27: 28517 | CA27: 523 | CB27: 29040 | CC27: 0 | CD27: 182 | CE27: 26 | CF27: 51 | CG27: 32 | CH27: 120 | CI27: 82 | CJ27: 8 | CK27: 0 | CL27: 18 | CM27: 13 | CN27: 2 | CO27: 0 | CP27: 0 | CQ27: 1 | CR27: 0 | CS27: 5 | CT27: 215 | CU27: 116 | CV27: 5 | CW27: 15 | CY27: PO2601 | CZ27: Samenwerkingsverband Utrecht PO | DA27: 27767 | DB27: 443 | DC27: 120 | DD27: 11 | DE27: 17 | DF27: 202 | DG27: 16 | DH27: 38 | DI27: 27865 | DJ27: 485 | DK27: 28350 | DL27: 2798427.9 | DM27: 168 | DN27: 27 | DO27: 55 | DP27: 34 | DQ27: 120 | DR27: 60 | DS27: 9 | DT27: 1 | DU27: 8 | DV27: 15 | DW27: 4 | DX27: 0 | DY27: 0 | DZ27: 0 | EA27: 0 | EB27: 6 | EC27: 193 | ED27: 102 | EE27: 5 | EF27: 15 | EH27: PO2601 | EI27: Samenwerkingsverband Utrecht PO | EJ27: 26963 | EK27: 422 | EL27: 121 | EM27: 11 | EN27: 10 | EO27: 186 | EP27: 16 | EQ27: 36 | ER27: 27071 | ES27: 468 | ET27: 27539 | EU27: 27385 | EV27: 155 | EW27: 27 | EX27: 46 | EY27: 33 | EZ27: 119 | FA27: 55 | FB27: 13 | FC27: 0 | FD27: 7 | FE27: 18 | FF27: 2 | FG27: 0 | FH27: 0 | FI27: 0 | FJ27: 0 | FK27: 9 | FL27: 166 | FM27: 94 | FN27: 4 | FO27: 15 | FQ27: PO2601 | FR27: Samenwerkingsverband Utrecht PO | FS27: 30134 | FT27: 606 | FU27: 78 | FV27: 47 | FW27: 25 | FX27: 247 | FY27: 36 | FZ27: 47 | GA27: 30265 | GB27: 623 | GC27: 30888 | GF27: 0 | GG27: 0 | GI27: PO2601 | GJ27: Samenwerkingsverband Utrecht PO | GK27: 30080 | GL27: 652 | GM27: 79 | GN27: 48 | GO27: 26 | GP27: 249 | GQ27: 47 | GR27: 42 | GU27: 0
A28: PO2602 | B28: Samenwerkingsverband PO De Eem | C28: 26508 | D28: 783 | E28: 61 | F28: 1 | G28: 16 | H28: 299 | I28: 13 | J28: 50 | K28: 26965 | L28: 819 | M28: 27784 | N28: 16 | O28: 163 | P28: -203800.08 | Q28: -31687.85 | S28: PO2602 | T28: Samenwerkingsverband PO De Eem | U28: 26895 | V28: 768 | W28: 72 | X28: 2 | Y28: 17 | Z28: 307 | AA28: 13 | AB28: 61 | AC28: 26965 | AD28: 819 | AE28: 27784 | AF28: 16 | AG28: 163 | AH28: -203411.56 | AI28: -31002.69 | AK28: PO2602 | AL28: Samenwerkingsverband PO De Eem | AM28: 27107 | AN28: 763 | AO28: 82 | AP28: 4 | AQ28: 8 | AR28: 320 | AS28: 14 | AT28: 31 | AU28: 27197 | AV28: 817 | AW28: 28014 | AX28: 18 | AY28: 168 | AZ28: PO2602 | BA28: Samenwerkingsverband PO De Eem | BB28: 27313 | BC28: 782 | BD28: 72 | BE28: 5 | BF28: 8 | BG28: 322 | BH28: 13 | BI28: 44 | BJ28: 27425 | BK28: 839 | BL28: 28264 | BM28: 15 | BN28: 162 | BP28: PO2602 | BQ28: Samenwerkingsverband PO De Eem | BR28: 27690 | BS28: 780 | BT28: 83 | BU28: 6 | BV28: 11 | BW28: 313 | BX28: 10 | BY28: 44 | BZ28: 27795 | CA28: 819 | CB28: 28614 | CC28: 0 | CD28: 278 | CE28: 16 | CF28: 55 | CG28: 12 | CH28: 106 | CI28: 133 | CJ28: 61 | CK28: 2 | CL28: 18 | CM28: 13 | CN28: 14 | CO28: 1 | CP28: 0 | CQ28: 2 | CR28: 23 | CS28: 5 | CT28: 173 | CU28: 124 | CV28: 15 | CW28: 16 | CY28: PO2602 | CZ28: Samenwerkingsverband PO De Eem | DA28: 27849 | DB28: 816 | DC28: 109 | DD28: 12 | DE28: 6 | DF28: 305 | DG28: 7 | DH28: 34 | DI28: 27967 | DJ28: 840 | DK28: 28807 | DL28: 211905.13 | DM28: 298 | DN28: 19 | DO28: 40 | DP28: 6 | DQ28: 110 | DR28: 124 | DS28: 55 | DT28: 2 | DU28: 14 | DV28: 14 | DW28: 14 | DX28: 1 | DY28: 0 | DZ28: 2 | EA28: 23 | EB28: 5 | EC28: 177 | ED28: 121 | EE28: 12 | EF28: 16 | EH28: PO2602 | EI28: Samenwerkingsverband PO De Eem | EJ28: 27957 | EK28: 807 | EL28: 106 | EM28: 10 | EN28: 11 | EO28: 291 | EP28: 11 | EQ28: 32 | ER28: 28126 | ES28: 843 | ET28: 28969 | EU28: 28764 | EV28: 280 | EW28: 21 | EX28: 43 | EY28: 5 | EZ28: 112 | FA28: 136 | FB28: 60 | FC28: 2 | FD28: 17 | FE28: 14 | FF28: 14 | FG28: 1 | FH28: 0 | FI28: 2 | FJ28: 23 | FK28: 6 | FL28: 145 | FM28: 119 | FN28: 10 | FO28: 16 | FQ28: PO2602 | FR28: Samenwerkingsverband PO De Eem | FS28: 26342 | FT28: 763 | FU28: 61 | FV28: 0 | FW28: 18 | FX28: 277 | FY28: 11 | FZ28: 45 | GA28: 26969 | GB28: 788 | GC28: 27757 | GF28: 0 | GG28: 0 | GI28: PO2602 | GJ28: Samenwerkingsverband PO De Eem | GK28: 25979 | GL28: 758 | GM28: 64 | GN28: 4 | GO28: 21 | GP28: 273 | GQ28: 6 | GR28: 41 | GU28: 0
A29: PO2603 | B29: Samenwerkingsverband PO Zuidoost Utrecht | C29: 16753 | D29: 345 | E29: 43 | F29: 3 | G29: 11 | H29: 155 | I29: 15 | J29: 23 | K29: 16551 | L29: 317 | M29: 16868 | N29: 7 | O29: 45 | P29: -471589.86 | Q29: -68958.7 | S29: PO2603 | T29: Samenwerkingsverband PO Zuidoost Utrecht | U29: 16726 | V29: 345 | W29: 35 | X29: 1 | Y29: 6 | Z29: 160 | AA29: 14 | AB29: 25 | AC29: 16551 | AD29: 317 | AE29: 16868 | AF29: 7 | AG29: 45 | AH29: -470690.84 | AI29: -67467.66 | AK29: PO2603 | AL29: Samenwerkingsverband PO Zuidoost Utrecht | AM29: 16780 | AN29: 357 | AO29: 42 | AP29: 1 | AQ29: 4 | AR29: 156 | AS29: 15 | AT29: 29 | AU29: 16606 | AV29: 332 | AW29: 16938 | AX29: 7 | AY29: 47 | AZ29: PO2603 | BA29: Samenwerkingsverband PO Zuidoost Utrecht | BB29: 16988 | BC29: 369 | BD29: 40 | BE29: 2 | BF29: 6 | BG29: 162 | BH29: 16 | BI29: 27 | BJ29: 16816 | BK29: 346 | BL29: 17162 | BM29: 11 | BN29: 58 | BP29: PO2603 | BQ29: Samenwerkingsverband PO Zuidoost Utrecht | BR29: 17267 | BS29: 387 | BT29: 50 | BU29: 6 | BV29: 7 | BW29: 180 | BX29: 13 | BY29: 31 | BZ29: 17118 | CA29: 364 | CB29: 17482 | CC29: 0 | CD29: 180 | CE29: 19 | CF29: 38 | CG29: 9 | CH29: 41 | CI29: 70 | CJ29: 20 | CK29: 0 | CL29: 24 | CM29: 16 | CN29: 7 | CO29: 5 | CP29: 0 | CQ29: 1 | CR29: 1 | CS29: 11 | CT29: 58 | CU29: 78 | CV29: 8 | CW29: 16 | CY29: PO2603 | CZ29: Samenwerkingsverband PO Zuidoost Utrecht | DA29: 17781 | DB29: 380 | DC29: 45 | DD29: 8 | DE29: 12 | DF29: 174 | DG29: 7 | DH29: 29 | DI29: 17568 | DJ29: 348 | DK29: 17916 | DL29: 472503.48 | DM29: 166 | DN29: 15 | DO29: 41 | DP29: 4 | DQ29: 49 | DR29: 72 | DS29: 19 | DT29: 0 | DU29: 15 | DV29: 15 | DW29: 6 | DX29: 2 | DY29: 0 | DZ29: 0 | EA29: 3 | EB29: 8 | EC29: 61 | ED29: 80 | EE29: 12 | EF29: 16 | EH29: PO2603 | EI29: Samenwerkingsverband PO Zuidoost Utrecht | EJ29: 18155 | EK29: 401 | EL29: 56 | EM29: 6 | EN29: 9 | EO29: 208 | EP29: 10 | EQ29: 30 | ER29: 17951 | ES29: 360 | ET29: 18311 | EU29: 18556 | EV29: 196 | EW29: 16 | EX29: 39 | EY29: 9 | EZ29: 59 | FA29: 74 | FB29: 18 | FC29: 1 | FD29: 15 | FE29: 15 | FF29: 6 | FG29: 0 | FH29: 0 | FI29: 1 | FJ29: 3 | FK29: 7 | FL29: 65 | FM29: 76 | FN29: 17 | FO29: 16 | FQ29: PO2603 | FR29: Samenwerkingsverband PO Zuidoost Utrecht | FS29: 16733 | FT29: 376 | FU29: 46 | FV29: 7 | FW29: 11 | FX29: 162 | FY29: 18 | FZ29: 22 | GA29: 17057 | GB29: 368 | GC29: 17425 | GF29: 0 | GG29: 0 | GI29: PO2603 | GJ29: Samenwerkingsverband PO Zuidoost Utrecht | GK29: 16915 | GL29: 386 | GM29: 43 | GN29: 10 | GO29: 11 | GP29: 156 | GQ29: 15 | GR29: 21 | GU29: 0
A30: PO2604 | B30: Stichting Passenderwijs | C30: 16128 | D30: 287 | E30: 27 | F30: 8 | G30: 6 | H30: 97 | I30: 16 | J30: 21 | K30: 16271 | L30: 326 | M30: 16597 | N30: 5 | O30: 54 | P30: -1974731.06 | Q30: -200679.92 | S30: PO2604 | T30: Stichting Passenderwijs | U30: 16320 | V30: 290 | W30: 20 | X30: 5 | Y30: 5 | Z30: 87 | AA30: 11 | AB30: 18 | AC30: 16271 | AD30: 326 | AE30: 16597 | AF30: 5 | AG30: 54 | AH30: -1970966.51 | AI30: -196340.79 | AK30: PO2604 | AL30: Stichting Passenderwijs | AM30: 16608 | AN30: 267 | AO30: 27 | AP30: 3 | AQ30: 3 | AR30: 93 | AS30: 14 | AT30: 20 | AU30: 16593 | AV30: 303 | AW30: 16896 | AX30: 6 | AY30: 65 | AZ30: PO2604 | BA30: Stichting Passenderwijs | BB30: 16797 | BC30: 255 | BD30: 34 | BE30: 4 | BF30: 5 | BG30: 100 | BH30: 11 | BI30: 14 | BJ30: 16780 | BK30: 288 | BL30: 17068 | BM30: 5 | BN30: 61 | BP30: PO2604 | BQ30: Stichting Passenderwijs | BR30: 17104 | BS30: 268 | BT30: 29 | BU30: 5 | BV30: 5 | BW30: 109 | BX30: 9 | BY30: 14 | BZ30: 17087 | CA30: 288 | CB30: 17375 | CC30: 0 | CD30: 75 | CE30: 14 | CF30: 19 | CG30: 10 | CH30: 53 | CI30: 68 | CJ30: 15 | CK30: 1 | CL30: 20 | CM30: 14 | CN30: 12 | CO30: 0 | CP30: 0 | CQ30: 2 | CR30: 1 | CS30: 10 | CT30: 64 | CU30: 84 | CV30: 5 | CW30: 12 | CY30: PO2604 | CZ30: Stichting Passenderwijs | DA30: 17511 | DB30: 289 | DC30: 33 | DD30: 3 | DE30: 7 | DF30: 112 | DG30: 9 | DH30: 18 | DI30: 17506 | DJ30: 306 | DK30: 17812 | DL30: 1997207.1 | DM30: 73 | DN30: 12 | DO30: 25 | DP30: 7 | DQ30: 65 | DR30: 69 | DS30: 11 | DT30: 1 | DU30: 8 | DV30: 14 | DW30: 10 | DX30: 1 | DY30: 0 | DZ30: 2 | EA30: 4 | EB30: 6 | EC30: 72 | ED30: 98 | EE30: 4 | EF30: 12 | EH30: PO2604 | EI30: Stichting Passenderwijs | EJ30: 17734 | EK30: 304 | EL30: 36 | EM30: 5 | EN30: 8 | EO30: 109 | EP30: 5 | EQ30: 16 | ER30: 17756 | ES30: 317 | ET30: 18073 | EU30: 18038 | EV30: 71 | EW30: 10 | EX30: 24 | EY30: 10 | EZ30: 64 | FA30: 64 | FB30: 18 | FC30: 0 | FD30: 9 | FE30: 14 | FF30: 9 | FG30: 1 | FH30: 0 | FI30: 2 | FJ30: 4 | FK30: 8 | FL30: 78 | FM30: 107 | FN30: 4 | FO30: 12 | FQ30: PO2604 | FR30: Stichting Passenderwijs | FS30: 15949 | FT30: 287 | FU30: 30 | FV30: 9 | FW30: 8 | FX30: 85 | FY30: 16 | FZ30: 22 | GA30: 16463 | GB30: 340 | GC30: 16803 | GF30: 0 | GG30: 0 | GI30: PO2604 | GJ30: Stichting Passenderwijs | GK30: 15773 | GL30: 299 | GM30: 31 | GN30: 5 | GO30: 8 | GP30: 93 | GQ30: 15 | GR30: 21 | GU30: 0
A31: PO2605 | B31: Profi Pendi | C31: 15684 | D31: 653 | E31: 32 | F31: 2 | G31: 11 | H31: 117 | I31: 10 | J31: 20 | K31: 15965 | L31: 649 | M31: 16614 | N31: 6 | O31: 73 | P31: -1463066.62 | Q31: -142741.78 | S31: PO2605 | T31: Profi Pendi | U31: 16010 | V31: 672 | W31: 28 | X31: 1 | Y31: 9 | Z31: 108 | AA31: 10 | AB31: 21 | AC31: 15965 | AD31: 649 | AE31: 16614 | AF31: 6 | AG31: 73 | AH31: -1460277.49 | AI31: -139655.4 | AK31: PO2605 | AL31: Profi Pendi | AM31: 16486 | AN31: 666 | AO31: 36 | AP31: 0 | AQ31: 7 | AR31: 103 | AS31: 17 | AT31: 15 | AU31: 16515 | AV31: 644 | AW31: 17159 | AX31: 8 | AY31: 76 | AZ31: PO2605 | BA31: Profi Pendi | BB31: 16931 | BC31: 684 | BD31: 38 | BE31: 1 | BF31: 6 | BG31: 113 | BH31: 14 | BI31: 15 | BJ31: 16960 | BK31: 643 | BL31: 17603 | BM31: 7 | BN31: 86 | BP31: PO2605 | BQ31: Profi Pendi | BR31: 17396 | BS31: 679 | BT31: 29 | BU31: 2 | BV31: 7 | BW31: 119 | BX31: 16 | BY31: 20 | BZ31: 17322 | CA31: 637 | CB31: 17959 | CC31: 0 | CD31: 93 | CE31: 18 | CF31: 27 | CG31: 11 | CH31: 44 | CI31: 72 | CJ31: 20 | CK31: 0 | CL31: 18 | CM31: 7 | CN31: 25 | CO31: 2 | CP31: 0 | CQ31: 5 | CR31: 9 | CS31: 5 | CT31: 107 | CU31: 87 | CV31: 4 | CW31: 18 | CY31: PO2605 | CZ31: Profi Pendi | DA31: 17713 | DB31: 667 | DC31: 46 | DD31: 3 | DE31: 4 | DF31: 113 | DG31: 12 | DH31: 25 | DI31: 17642 | DJ31: 630 | DK31: 18272 | DL31: 1488315.09 | DM31: 96 | DN31: 15 | DO31: 29 | DP31: 14 | DQ31: 49 | DR31: 75 | DS31: 20 | DT31: 0 | DU31: 8 | DV31: 7 | DW31: 25 | DX31: 1 | DY31: 0 | DZ31: 0 | EA31: 7 | EB31: 4 | EC31: 106 | ED31: 69 | EE31: 5 | EF31: 18 | EH31: PO2605 | EI31: Profi Pendi | EJ31: 18044 | EK31: 666 | EL31: 51 | EM31: 3 | EN31: 2 | EO31: 135 | EP31: 9 | EQ31: 25 | ER31: 18011 | ES31: 628 | ET31: 18639 | EU31: 18710 | EV31: 114 | EW31: 12 | EX31: 27 | EY31: 14 | EZ31: 58 | FA31: 78 | FB31: 22 | FC31: 0 | FD31: 9 | FE31: 9 | FF31: 21 | FG31: 2 | FH31: 1 | FI31: 0 | FJ31: 6 | FK31: 4 | FL31: 100 | FM31: 70 | FN31: 9 | FO31: 18 | FQ31: PO2605 | FR31: Profi Pendi | FS31: 15401 | FT31: 656 | FU31: 20 | FV31: 5 | FW31: 9 | FX31: 115 | FY31: 6 | FZ31: 28 | GA31: 15693 | GB31: 633 | GC31: 16326 | GF31: 0 | GG31: 0 | GI31: PO2605 | GJ31: Profi Pendi | GK31: 15221 | GL31: 607 | GM31: 27 | GN31: 9 | GO31: 10 | GP31: 114 | GQ31: 7 | GR31: 28 | GU31: 0
A32: PO2701 | B32: Stichting Samenwerkingsverband Kop van Noord-Holland Passend PO | C32: 12795 | D32: 261 | E32: 67 | F32: 5 | G32: 2 | H32: 135 | I32: 7 | J32: 10 | K32: 13198 | L32: 260 | M32: 13458 | N32: 0 | O32: 55 | P32: 96778.8 | Q32: 64883 | S32: PO2701 | T32: Stichting Samenwerkingsverband Kop van Noord-Holland Passend PO | U32: 13159 | V32: 254 | W32: 62 | X32: 3 | Y32: 3 | Z32: 112 | AA32: 7 | AB32: 9 | AC32: 13198 | AD32: 260 | AE32: 13458 | AF32: 0 | AG32: 55 | AH32: 96594.3 | AI32: 63480.09 | AK32: PO2701 | AL32: Stichting Samenwerkingsverband Kop van Noord-Holland Passend PO | AM32: 13641 | AN32: 246 | AO32: 43 | AP32: 2 | AQ32: 5 | AR32: 121 | AS32: 4 | AT32: 15 | AU32: 13685 | AV32: 248 | AW32: 13933 | AX32: 0 | AY32: 44 | AZ32: PO2701 | BA32: Stichting Samenwerkingsverband Kop van Noord-Holland Passend PO | BB32: 13901 | BC32: 230 | BD32: 37 | BE32: 2 | BF32: 8 | BG32: 120 | BH32: 4 | BI32: 12 | BJ32: 13895 | BK32: 235 | BL32: 14130 | BM32: 0 | BN32: 57 | BP32: PO2701 | BQ32: Stichting Samenwerkingsverband Kop van Noord-Holland Passend PO | BR32: 14322 | BS32: 237 | BT32: 38 | BU32: 3 | BV32: 8 | BW32: 110 | BX32: 3 | BY32: 13 | BZ32: 14328 | CA32: 240 | CB32: 14568 | CC32: 0 | CD32: 86 | CE32: 6 | CF32: 21 | CG32: 0 | CH32: 62 | CI32: 138 | CJ32: 21 | CK32: 1 | CL32: 15 | CM32: 13 | CN32: 44 | CO32: 0 | CP32: 0 | CQ32: 0 | CR32: 3 | CS32: 10 | CT32: 52 | CU32: 52 | CV32: 0 | CW32: 8 | CY32: PO2701 | CZ32: Stichting Samenwerkingsverband Kop van Noord-Holland Passend PO | DA32: 14897 | DB32: 235 | DC32: 38 | DD32: 4 | DE32: 5 | DF32: 104 | DG32: 4 | DH32: 19 | DI32: 14916 | DJ32: 242 | DK32: 15158 | DL32: -229839.58 | DM32: 79 | DN32: 8 | DO32: 24 | DP32: 0 | DQ32: 63 | DR32: 115 | DS32: 26 | DT32: 1 | DU32: 14 | DV32: 14 | DW32: 41 | DX32: 2 | DY32: 0 | DZ32: 2 | EA32: 5 | EB32: 11 | EC32: 56 | ED32: 58 | EE32: 0 | EF32: 8 | EH32: PO2701 | EI32: Stichting Samenwerkingsverband Kop van Noord-Holland Passend PO | EJ32: 15207 | EK32: 251 | EL32: 40 | EM32: 3 | EN32: 7 | EO32: 93 | EP32: 5 | EQ32: 23 | ER32: 15222 | ES32: 255 | ET32: 15477 | EU32: 15458 | EV32: 74 | EW32: 8 | EX32: 30 | EY32: 0 | EZ32: 59 | FA32: 118 | FB32: 28 | FC32: 1 | FD32: 18 | FE32: 18 | FF32: 57 | FG32: 1 | FH32: 0 | FI32: 1 | FJ32: 7 | FK32: 14 | FL32: 58 | FM32: 62 | FN32: 0 | FO32: 8 | FQ32: PO2701 | FR32: Stichting Samenwerkingsverband Kop van Noord-Holland Passend PO | FS32: 12633 | FT32: 286 | FU32: 72 | FV32: 9 | FW32: 5 | FX32: 130 | FY32: 4 | FZ32: 7 | GA32: 12687 | GB32: 297 | GC32: 12984 | GF32: 0 | GG32: 0 | GI32: PO2701 | GJ32: Stichting Samenwerkingsverband Kop van Noord-Holland Passend PO | GK32: 12395 | GL32: 280 | GM32: 64 | GN32: 9 | GO32: 6 | GP32: 134 | GQ32: 5 | GR32: 10 | GU32: 0
A33: PO2702 | B33: Samenwerkingsverband De Westfriese Knoop | C33: 17787 | D33: 625 | E33: 41 | F33: 4 | G33: 3 | H33: 104 | I33: 7 | J33: 16 | K33: 18130 | L33: 628 | M33: 18758 | N33: 1 | O33: 63 | P33: -885996.15 | Q33: -8279.37 | S33: PO2702 | T33: Samenwerkingsverband De Westfriese Knoop | U33: 18132 | V33: 625 | W33: 53 | X33: 4 | Y33: 5 | Z33: 89 | AA33: 9 | AB33: 18 | AC33: 18130 | AD33: 628 | AE33: 18758 | AF33: 1 | AG33: 63 | AH33: -884307.12 | AI33: -8100.35 | AK33: PO2702 | AL33: Samenwerkingsverband De Westfriese Knoop | AM33: 18472 | AN33: 682 | AO33: 60 | AP33: 2 | AQ33: 6 | AR33: 94 | AS33: 5 | AT33: 21 | AU33: 18477 | AV33: 681 | AW33: 19158 | AX33: 2 | AY33: 68 | AZ33: PO2702 | BA33: Samenwerkingsverband De Westfriese Knoop | BB33: 18816 | BC33: 677 | BD33: 53 | BE33: 2 | BF33: 7 | BG33: 100 | BH33: 7 | BI33: 25 | BJ33: 18803 | BK33: 678 | BL33: 19481 | BM33: 4 | BN33: 75 | BP33: PO2702 | BQ33: Samenwerkingsverband De Westfriese Knoop | BR33: 19157 | BS33: 661 | BT33: 44 | BU33: 4 | BV33: 11 | BW33: 103 | BX33: 8 | BY33: 21 | BZ33: 19158 | CA33: 672 | CB33: 19830 | CC33: 0 | CD33: 66 | CE33: 12 | CF33: 32 | CG33: 1 | CH33: 80 | CI33: 158 | CJ33: 30 | CK33: 0 | CL33: 20 | CM33: 6 | CN33: 105 | CO33: 5 | CP33: 2 | CQ33: 1 | CR33: 9 | CS33: 4 | CT33: 61 | CU33: 54 | CV33: 4 | CW33: 13 | CY33: PO2702 | CZ33: Samenwerkingsverband De Westfriese Knoop | DA33: 19738 | DB33: 686 | DC33: 49 | DD33: 4 | DE33: 13 | DF33: 92 | DG33: 9 | DH33: 29 | DI33: 19711 | DJ33: 698 | DK33: 20409 | DL33: 819032.04 | DM33: 67 | DN33: 13 | DO33: 42 | DP33: 3 | DQ33: 71 | DR33: 141 | DS33: 24 | DT33: 1 | DU33: 21 | DV33: 8 | DW33: 112 | DX33: 7 | DY33: 1 | DZ33: 2 | EA33: 3 | EB33: 5 | EC33: 56 | ED33: 59 | EE33: 3 | EF33: 13 | EH33: PO2702 | EI33: Samenwerkingsverband De Westfriese Knoop | EJ33: 20203 | EK33: 726 | EL33: 43 | EM33: 7 | EN33: 6 | EO33: 86 | EP33: 6 | EQ33: 31 | ER33: 20145 | ES33: 736 | ET33: 20881 | EU33: 20929 | EV33: 58 | EW33: 13 | EX33: 37 | EY33: 3 | EZ33: 68 | FA33: 121 | FB33: 30 | FC33: 3 | FD33: 15 | FE33: 14 | FF33: 110 | FG33: 7 | FH33: 1 | FI33: 3 | FJ33: 5 | FK33: 11 | FL33: 57 | FM33: 59 | FN33: 5 | FO33: 13 | FQ33: PO2702 | FR33: Samenwerkingsverband De Westfriese Knoop | FS33: 17627 | FT33: 610 | FU33: 50 | FV33: 6 | FW33: 4 | FX33: 122 | FY33: 3 | FZ33: 10 | GA33: 17667 | GB33: 610 | GC33: 18277 | GF33: 0 | GG33: 0 | GI33: PO2702 | GJ33: Samenwerkingsverband De Westfriese Knoop | GK33: 17539 | GL33: 644 | GM33: 48 | GN33: 5 | GO33: 6 | GP33: 114 | GQ33: 3 | GR33: 10 | GU33: 0
A34: PO2703 | B34: Stichting Samenweringsverband Noord-Kennemerland PO | C34: 20338 | D34: 330 | E34: 93 | F34: 19 | G34: 9 | H34: 197 | I34: 20 | J34: 35 | K34: 20517 | L34: 307 | M34: 20824 | N34: 0 | O34: 73 | P34: 1739849.89 | Q34: 207039.47 | S34: PO2703 | T34: Stichting Samenweringsverband Noord-Kennemerland PO | U34: 20587 | V34: 319 | W34: 75 | X34: 16 | Y34: 11 | Z34: 175 | AA34: 19 | AB34: 34 | AC34: 20517 | AD34: 307 | AE34: 20824 | AF34: 0 | AG34: 73 | AH34: 1736533.11 | AI34: 202562.83 | AK34: PO2703 | AL34: Stichting Samenweringsverband Noord-Kennemerland PO | AM34: 20883 | AN34: 299 | AO34: 56 | AP34: 10 | AQ34: 8 | AR34: 173 | AS34: 24 | AT34: 39 | AU34: 20829 | AV34: 284 | AW34: 21113 | AX34: 0 | AY34: 81 | AZ34: PO2703 | BA34: Stichting Samenweringsverband Noord-Kennemerland PO | BB34: 21129 | BC34: 312 | BD34: 77 | BE34: 6 | BF34: 14 | BG34: 178 | BH34: 15 | BI34: 42 | BJ34: 21096 | BK34: 292 | BL34: 21388 | BM34: 1 | BN34: 88 | BP34: PO2703 | BQ34: Stichting Samenweringsverband Noord-Kennemerland PO | BR34: 21451 | BS34: 329 | BT34: 75 | BU34: 3 | BV34: 19 | BW34: 168 | BX34: 18 | BY34: 45 | BZ34: 21417 | CA34: 306 | CB34: 21723 | CC34: 0 | CD34: 148 | CE34: 21 | CF34: 64 | CG34: 13 | CH34: 82 | CI34: 237 | CJ34: 24 | CK34: 1 | CL34: 28 | CM34: 19 | CN34: 29 | CO34: 0 | CP34: 0 | CQ34: 0 | CR34: 4 | CS34: 16 | CT34: 91 | CU34: 54 | CV34: 1 | CW34: 12 | CY34: PO2703 | CZ34: Stichting Samenweringsverband Noord-Kennemerland PO | DA34: 21829 | DB34: 342 | DC34: 73 | DD34: 6 | DE34: 16 | DF34: 170 | DG34: 18 | DH34: 58 | DI34: 21798 | DJ34: 311 | DK34: 22109 | DL34: -1828743.29 | DM34: 155 | DN34: 24 | DO34: 74 | DP34: 12 | DQ34: 76 | DR34: 240 | DS34: 27 | DT34: 2 | DU34: 18 | DV34: 24 | DW34: 24 | DX34: 0 | DY34: 0 | DZ34: 0 | EA34: 1 | EB34: 18 | EC34: 88 | ED34: 61 | EE34: 2 | EF34: 12 | EH34: PO2703 | EI34: Stichting Samenweringsverband Noord-Kennemerland PO | EJ34: 22159 | EK34: 378 | EL34: 67 | EM34: 5 | EN34: 21 | EO34: 168 | EP34: 21 | EQ34: 58 | ER34: 22149 | ES34: 346 | ET34: 22495 | EU34: 22537 | EV34: 156 | EW34: 26 | EX34: 79 | EY34: 14 | EZ34: 65 | FA34: 244 | FB34: 30 | FC34: 5 | FD34: 19 | FE34: 24 | FF34: 31 | FG34: 1 | FH34: 1 | FI34: 0 | FJ34: 0 | FK34: 19 | FL34: 83 | FM34: 64 | FN34: 2 | FO34: 12 | FQ34: PO2703 | FR34: Stichting Samenweringsverband Noord-Kennemerland PO | FS34: 20178 | FT34: 383 | FU34: 111 | FV34: 18 | FW34: 4 | FX34: 194 | FY34: 26 | FZ34: 34 | GA34: 20109 | GB34: 361 | GC34: 20470 | GF34: 0 | GG34: 0 | GI34: PO2703 | GJ34: Stichting Samenweringsverband Noord-Kennemerland PO | GK34: 20090 | GL34: 420 | GM34: 113 | GN34: 24 | GO34: 14 | GP34: 203 | GQ34: 28 | GR34: 36 | GU34: 0
A35: PO2704 | B35: Samenwerkingsverband Passend Onderwijs Zuid-Kennemerland | C35: 21015 | D35: 393 | E35: 92 | F35: 4 | G35: 13 | H35: 118 | I35: 12 | J35: 16 | K35: 20431 | L35: 372 | M35: 20803 | N35: 3 | O35: 63 | P35: -1608430.31 | Q35: -162222.67 | S35: PO2704 | T35: Samenwerkingsverband Passend Onderwijs Zuid-Kennemerland | U35: 20926 | V35: 392 | W35: 67 | X35: 2 | Y35: 14 | Z35: 109 | AA35: 13 | AB35: 11 | AC35: 20431 | AD35: 372 | AE35: 20803 | AF35: 3 | AG35: 63 | AH35: -1605364.06 | AI35: -158715.07 | AK35: PO2704 | AL35: Samenwerkingsverband Passend Onderwijs Zuid-Kennemerland | AM35: 20626 | AN35: 413 | AO35: 64 | AP35: 4 | AQ35: 8 | AR35: 118 | AS35: 15 | AT35: 18 | AU35: 20127 | AV35: 389 | AW35: 20516 | AX35: 2 | AY35: 68 | AZ35: PO2704 | BA35: Samenwerkingsverband Passend Onderwijs Zuid-Kennemerland | BB35: 20586 | BC35: 422 | BD35: 68 | BE35: 6 | BF35: 5 | BG35: 119 | BH35: 14 | BI35: 21 | BJ35: 20048 | BK35: 409 | BL35: 20457 | BM35: 2 | BN35: 71 | BP35: PO2704 | BQ35: Samenwerkingsverband Passend Onderwijs Zuid-Kennemerland | BR35: 20326 | BS35: 459 | BT35: 78 | BU35: 8 | BV35: 4 | BW35: 117 | BX35: 13 | BY35: 18 | BZ35: 19761 | CA35: 449 | CB35: 20210 | CC35: 0 | CD35: 101 | CE35: 21 | CF35: 22 | CG35: 31 | CH35: 63 | CI35: 74 | CJ35: 20 | CK35: 2 | CL35: 20 | CM35: 8 | CN35: 37 | CO35: 0 | CP35: 0 | CQ35: 1 | CR35: 11 | CS35: 4 | CT35: 76 | CU35: 48 | CV35: 2 | CW35: 8 | CY35: PO2704 | CZ35: Samenwerkingsverband Passend Onderwijs Zuid-Kennemerland | DA35: 20143 | DB35: 493 | DC35: 82 | DD35: 13 | DE35: 6 | DF35: 118 | DG35: 8 | DH35: 16 | DI35: 19639 | DJ35: 490 | DK35: 20129 | DL35: 1541477.77 | DM35: 99 | DN35: 21 | DO35: 22 | DP35: 39 | DQ35: 62 | DR35: 74 | DS35: 20 | DT35: 2 | DU35: 15 | DV35: 8 | DW35: 37 | DX35: 0 | DY35: 0 | DZ35: 0 | EA35: 11 | EB35: 4 | EC35: 75 | ED35: 46 | EE35: 2 | EF35: 8 | EH35: PO2704 | EI35: Samenwerkingsverband Passend Onderwijs Zuid-Kennemerland | EJ35: 20039 | EK35: 554 | EL35: 82 | EM35: 9 | EN35: 4 | EO35: 119 | EP35: 15 | EQ35: 21 | ER35: 19490 | ES35: 544 | ET35: 20034 | EU35: 20593 | EV35: 93 | EW35: 24 | EX35: 25 | EY35: 42 | EZ35: 66 | FA35: 70 | FB35: 22 | FC35: 2 | FD35: 13 | FE35: 10 | FF35: 33 | FG35: 0 | FH35: 0 | FI35: 1 | FJ35: 11 | FK35: 3 | FL35: 68 | FM35: 53 | FN35: 3 | FO35: 8 | FQ35: PO2704 | FR35: Samenwerkingsverband Passend Onderwijs Zuid-Kennemerland | FS35: 21264 | FT35: 418 | FU35: 93 | FV35: 5 | FW35: 14 | FX35: 122 | FY35: 16 | FZ35: 16 | GA35: 20735 | GB35: 387 | GC35: 21122 | GF35: =ROUND(HN35*(1+GF$1),2) -> 0 | GG35: =ROUND(HO35*(1+GG$1),2) -> 0 | GI35: PO2704 | GJ35: Samenwerkingsverband Passend Onderwijs Zuid-Kennemerland | GK35: 21380 | GL35: 414 | GM35: 97 | GN35: 13 | GO35: 11 | GP35: 134 | GQ35: 15 | GR35: 17 | GU35: 0
A36: PO2705 | B36: Samenwerkingsverband PO 27-05 Zaanstreek | C36: 15135 | D36: 237 | E36: 28 | F36: 5 | G36: 1 | H36: 128 | I36: 3 | J36: 4 | K36: 15318 | L36: 231 | M36: 15549 | N36: 6 | O36: 81 | P36: -1213110.27 | Q36: -114438.76 | S36: PO2705 | T36: Samenwerkingsverband PO 27-05 Zaanstreek | U36: 15283 | V36: 221 | W36: 19 | X36: 5 | Y36: 5 | Z36: 141 | AA36: 7 | AB36: 4 | AC36: 15318 | AD36: 231 | AE36: 15549 | AF36: 6 | AG36: 81 | AH36: -1210797.65 | AI36: -111964.35 | AK36: PO2705 | AL36: Samenwerkingsverband PO 27-05 Zaanstreek | AM36: 15492 | AN36: 193 | AO36: 35 | AP36: 5 | AQ36: 6 | AR36: 130 | AS36: 6 | AT36: 10 | AU36: 15506 | AV36: 207 | AW36: 15713 | AX36: 5 | AY36: 81 | AZ36: PO2705 | BA36: Samenwerkingsverband PO 27-05 Zaanstreek | BB36: 15662 | BC36: 189 | BD36: 36 | BE36: 4 | BF36: 6 | BG36: 147 | BH36: 4 | BI36: 11 | BJ36: 15624 | BK36: 202 | BL36: 15826 | BM36: 6 | BN36: 89 | BP36: PO2705 | BQ36: Samenwerkingsverband PO 27-05 Zaanstreek | BR36: 15955 | BS36: 242 | BT36: 29 | BU36: 3 | BV36: 3 | BW36: 129 | BX36: 4 | BY36: 18 | BZ36: 15894 | CA36: 253 | CB36: 16147 | CC36: 0 | CD36: 70 | CE36: 7 | CF36: 21 | CG36: 11 | CH36: 77 | CI36: 75 | CJ36: 30 | CK36: 1 | CL36: 10 | CM36: 14 | CN36: 23 | CO36: 0 | CP36: 0 | CQ36: 0 | CR36: 1 | CS36: 11 | CT36: 88 | CU36: 65 | CV36: 4 | CW36: 12 | CY36: PO2705 | CZ36: Samenwerkingsverband PO 27-05 Zaanstreek | DA36: 16331 | DB36: 278 | DC36: 32 | DD36: 2 | DE36: 4 | DF36: 130 | DG36: 4 | DH36: 22 | DI36: 16289 | DJ36: 283 | DK36: 16572 | DL36: 1186147.02 | DM36: 66 | DN36: 6 | DO36: 26 | DP36: 12 | DQ36: 84 | DR36: 74 | DS36: 19 | DT36: 1 | DU36: 5 | DV36: 15 | DW36: 19 | DX36: 0 | DY36: 0 | DZ36: 0 | EA36: 2 | EB36: 12 | EC36: 77 | ED36: 60 | EE36: 3 | EF36: 12 | EH36: PO2705 | EI36: Samenwerkingsverband PO 27-05 Zaanstreek | EJ36: 16521 | EK36: 345 | EL36: 31 | EM36: 5 | EN36: 4 | EO36: 131 | EP36: 2 | EQ36: 23 | ER36: 16469 | ES36: 347 | ET36: 16816 | EU36: 16866 | EV36: 60 | EW36: 7 | EX36: 27 | EY36: 14 | EZ36: 88 | FA36: 72 | FB36: 27 | FC36: 0 | FD36: 6 | FE36: 15 | FF36: 21 | FG36: 0 | FH36: 0 | FI36: 0 | FJ36: 2 | FK36: 13 | FL36: 52 | FM36: 59 | FN36: 3 | FO36: 12 | FQ36: PO2705 | FR36: Samenwerkingsverband PO 27-05 Zaanstreek | FS36: 15005 | FT36: 264 | FU36: 46 | FV36: 2 | FW36: 1 | FX36: 119 | FY36: 5 | FZ36: 4 | GA36: 15098 | GB36: 282 | GC36: 15380 | GF36: 0 | GG36: 0 | GI36: PO2705 | GJ36: Samenwerkingsverband PO 27-05 Zaanstreek | GK36: 14823 | GL36: 281 | GM36: 49 | GN36: 3 | GO36: 1 | GP36: 133 | GQ36: 9 | GR36: 4 | GU36: 0
A37: PO2706 | B37: Stg. Samenwerkingsverband Waterland Primair Onderwijs | C37: 12540 | D37: 321 | E37: 27 | F37: 4 | G37: 0 | H37: 118 | I37: 2 | J37: 15 | K37: 12636 | L37: 309 | M37: 12945 | N37: 0 | O37: 57 | P37: -1179989.12 | Q37: -128574.2 | S37: PO2706 | T37: Stg. Samenwerkingsverband Waterland Primair Onderwijs | U37: 12774 | V37: 312 | W37: 23 | X37: 1 | Y37: 1 | Z37: 106 | AA37: 4 | AB37: 16 | AC37: 12636 | AD37: 309 | AE37: 12945 | AF37: 0 | AG37: 57 | AH37: -1177739.64 | AI37: -125794.15 | AK37: PO2706 | AL37: Stg. Samenwerkingsverband Waterland Primair Onderwijs | AM37: 12887 | AN37: 347 | AO37: 33 | AP37: 2 | AQ37: 3 | AR37: 108 | AS37: 3 | AT37: 16 | AU37: 12729 | AV37: 346 | AW37: 13075 | AX37: 0 | AY37: 65 | AZ37: PO2706 | BA37: Stg. Samenwerkingsverband Waterland Primair Onderwijs | BB37: 13251 | BC37: 385 | BD37: 38 | BE37: 1 | BF37: 3 | BG37: 106 | BH37: 4 | BI37: 16 | BJ37: 13097 | BK37: 386 | BL37: 13483 | BM37: 0 | BN37: 60 | BP37: PO2706 | BQ37: Stg. Samenwerkingsverband Waterland Primair Onderwijs | BR37: 13475 | BS37: 427 | BT37: 37 | BU37: 1 | BV37: 6 | BW37: 91 | BX37: 4 | BY37: 18 | BZ37: 13351 | CA37: 427 | CB37: 13778 | CC37: 0 | CD37: 70 | CE37: 5 | CF37: 24 | CG37: 6 | CH37: 52 | CI37: 43 | CJ37: 11 | CK37: 0 | CL37: 6 | CM37: 13 | CN37: 8 | CO37: 0 | CP37: 1 | CQ37: 2 | CR37: 0 | CS37: 10 | CT37: 55 | CU37: 34 | CV37: 2 | CW37: 11 | CY37: PO2706 | CZ37: Stg. Samenwerkingsverband Waterland Primair Onderwijs | DA37: 13771 | DB37: 441 | DC37: 31 | DD37: 2 | DE37: 8 | DF37: 93 | DG37: 4 | DH37: 20 | DI37: 13617 | DJ37: 437 | DK37: 14054 | DL37: 1189875.73 | DM37: 65 | DN37: 6 | DO37: 28 | DP37: 6 | DQ37: 53 | DR37: 37 | DS37: 9 | DT37: 0 | DU37: 5 | DV37: 15 | DW37: 9 | DX37: 1 | DY37: 1 | DZ37: 2 | EA37: 3 | EB37: 11 | EC37: 65 | ED37: 34 | EE37: 2 | EF37: 11 | EH37: PO2706 | EI37: Stg. Samenwerkingsverband Waterland Primair Onderwijs | EJ37: 14061 | EK37: 440 | EL37: 30 | EM37: 2 | EN37: 7 | EO37: 107 | EP37: 6 | EQ37: 21 | ER37: 13933 | ES37: 434 | ET37: 14367 | EU37: 14501 | EV37: 71 | EW37: 8 | EX37: 28 | EY37: 5 | EZ37: 61 | FA37: 47 | FB37: 13 | FC37: 1 | FD37: 7 | FE37: 13 | FF37: 13 | FG37: 0 | FH37: 1 | FI37: 0 | FJ37: 4 | FK37: 10 | FL37: 65 | FM37: 30 | FN37: 2 | FO37: 11 | FQ37: PO2706 | FR37: Stg. Samenwerkingsverband Waterland Primair Onderwijs | FS37: 12220 | FT37: 334 | FU37: 28 | FV37: 5 | FW37: 0 | FX37: 121 | FY37: 4 | FZ37: 14 | GA37: 12249 | GB37: 331 | GC37: 12580 | GF37: 0 | GG37: 0 | GI37: PO2706 | GJ37: Stg. Samenwerkingsverband Waterland Primair Onderwijs | GK37: 12148 | GL37: 385 | GM37: 42 | GN37: 3 | GO37: 2 | GP37: 133 | GQ37: 6 | GR37: 10 | GU37: 0
A38: PO2707 | B38: Samenwerkingsverband Passend Onderwijs Amsterdam/Diemen | C38: 64364 | D38: 1045 | E38: 209 | F38: 24 | G38: 51 | H38: 450 | I38: 39 | J38: 73 | K38: 64513 | L38: 1028 | M38: 65541 | N38: 12 | O38: 332 | P38: -1855988.23 | Q38: -195228.86 | S38: PO2707 | T38: Samenwerkingsverband Passend Onderwijs Amsterdam/Diemen | U38: 64634 | V38: 1054 | W38: 233 | X38: 24 | Y38: 32 | Z38: 439 | AA38: 38 | AB38: 55 | AC38: 64513 | AD38: 1028 | AE38: 65541 | AF38: 12 | AG38: 332 | AH38: -1852450.05 | AI38: -191007.59 | AK38: PO2707 | AL38: Samenwerkingsverband Passend Onderwijs Amsterdam/Diemen | AM38: 64516 | AN38: 1078 | AO38: 238 | AP38: 22 | AQ38: 24 | AR38: 501 | AS38: 26 | AT38: 51 | AU38: 64529 | AV38: 1060 | AW38: 65589 | AX38: 18 | AY38: 356 | AZ38: PO2707 | BA38: Samenwerkingsverband Passend Onderwijs Amsterdam/Diemen | BB38: 63961 | BC38: 1110 | BD38: 257 | BE38: 16 | BF38: 17 | BG38: 540 | BH38: 26 | BI38: 42 | BJ38: 64039 | BK38: 1088 | BL38: 65127 | BM38: 22 | BN38: 394 | BP38: PO2707 | BQ38: Samenwerkingsverband Passend Onderwijs Amsterdam/Diemen | BR38: 63153 | BS38: 1187 | BT38: 281 | BU38: 17 | BV38: 13 | BW38: 534 | BX38: 21 | BY38: 51 | BZ38: 63219 | CA38: 1162 | CB38: 64381 | CC38: 0 | CD38: 487 | CE38: 38 | CF38: 64 | CG38: 112 | CH38: 216 | CI38: 374 | CJ38: 50 | CK38: 6 | CL38: 53 | CM38: 57 | CN38: 71 | CO38: 3 | CP38: 3 | CQ38: 4 | CR38: 45 | CS38: 43 | CT38: 397 | CU38: 232 | CV38: 26 | CW38: 17 | CY38: PO2707 | CZ38: Samenwerkingsverband Passend Onderwijs Amsterdam/Diemen | DA38: 62251 | DB38: 1279 | DC38: 272 | DD38: 13 | DE38: 19 | DF38: 522 | DG38: 25 | DH38: 63 | DI38: 62288 | DJ38: 1267 | DK38: 63555 | DL38: 1903222.87 | DM38: 449 | DN38: 38 | DO38: 82 | DP38: 127 | DQ38: 218 | DR38: 322 | DS38: 56 | DT38: 1 | DU38: 46 | DV38: 54 | DW38: 60 | DX38: 5 | DY38: 2 | DZ38: 0 | EA38: 33 | EB38: 39 | EC38: 394 | ED38: 246 | EE38: 26 | EF38: 17 | EH38: PO2707 | EI38: Samenwerkngsverband Passend Onderwijs Amsterdam/Diemen | EJ38: 61808 | EK38: 1378 | EL38: 300 | EM38: 14 | EN38: 19 | EO38: 583 | EP38: 26 | EQ38: 74 | ER38: 61830 | ES38: 1363 | ET38: 63193 | EU38: 63186 | EV38: 483 | EW38: 40 | EX38: 93 | EY38: 152 | EZ38: 248 | FA38: 308 | FB38: 55 | FC38: 2 | FD38: 42 | FE38: 44 | FF38: 54 | FG38: 7 | FH38: 0 | FI38: 1 | FJ38: 46 | FK38: 31 | FL38: 359 | FM38: 245 | FN38: 31 | FO38: 16 | FQ38: PO2707 | FR38: Samenwerkingsverband Passend Onderwijs Amsterdam/Diemen | FS38: 64360 | FT38: 1121 | FU38: 178 | FV38: 33 | FW38: 49 | FX38: 439 | FY38: 54 | FZ38: 83 | GA38: 63699 | GB38: 1083 | GC38: 64782 | GF38: 0 | GG38: 0 | GI38: PO2707 | GJ38: Samenwerkingsverband Passend Onderwijs Amsterdam/Diemen | GK38: 64270 | GL38: 1226 | GM38: 190 | GN38: 62 | GO38: 45 | GP38: 406 | GQ38: 79 | GR38: 103 | GU38: 0
A39: PO2708 | B39: Amstelronde passend onderwijs | C39: 13778 | D39: 379 | E39: 28 | F39: 3 | G39: 3 | H39: 75 | I39: 6 | J39: 8 | K39: 14373 | L39: 307 | M39: 14680 | N39: 3 | O39: 38 | P39: -1264788.92 | Q39: -123372.23 | S39: PO2708 | T39: Amstelronde passend onderwijs | U39: 13854 | V39: 348 | W39: 20 | X39: 4 | Y39: 4 | Z39: 67 | AA39: 6 | AB39: 17 | AC39: 14373 | AD39: 307 | AE39: 14680 | AF39: 3 | AG39: 38 | AH39: -1262377.78 | AI39: -120704.66 | AK39: PO2708 | AL39: Amstelronde passend onderwijs | AM39: 13866 | AN39: 334 | AO39: 25 | AP39: 2 | AQ39: 5 | AR39: 59 | AS39: 6 | AT39: 13 | AU39: 14287 | AV39: 298 | AW39: 14585 | AX39: 2 | AY39: 37 | AZ39: PO2708 | BA39: Amstelronde passend onderwijs | BB39: 13762 | BC39: 350 | BD39: 23 | BE39: 4 | BF39: 4 | BG39: 79 | BH39: 7 | BI39: 9 | BJ39: 14185 | BK39: 326 | BL39: 14511 | BM39: 3 | BN39: 36 | BP39: PO2708 | BQ39: Amstelronde passend onderwijs | BR39: 13696 | BS39: 359 | BT39: 30 | BU39: 3 | BV39: 4 | BW39: 82 | BX39: 8 | BY39: 12 | BZ39: 14082 | CA39: 331 | CB39: 14413 | CC39: 0 | CD39: 59 | CE39: 11 | CF39: 16 | CG39: 15 | CH39: 38 | CI39: 48 | CJ39: 16 | CK39: 1 | CL39: 8 | CM39: 10 | CN39: 31 | CO39: 2 | CP39: 1 | CQ39: 0 | CR39: 5 | CS39: 8 | CT39: 36 | CU39: 34 | CV39: 3 | CW39: 11 | CY39: PO2708 | CZ39: Amstelronde passend onderwijs | DA39: 13728 | DB39: 352 | DC39: 28 | DD39: 5 | DE39: 2 | DF39: 90 | DG39: 7 | DH39: 14 | DI39: 14032 | DJ39: 324 | DK39: 14356 | DL39: 1254410 | DM39: 59 | DN39: 12 | DO39: 16 | DP39: 17 | DQ39: 42 | DR39: 48 | DS39: 14 | DT39: 1 | DU39: 5 | DV39: 10 | DW39: 24 | DX39: 1 | DY39: 3 | DZ39: 1 | EA39: 5 | EB39: 8 | EC39: 44 | ED39: 39 | EE39: 4 | EF39: 11 | EH39: PO2708 | EI39: Amstelronde passend onderwijs | EJ39: 13661 | EK39: 373 | EL39: 35 | EM39: 4 | EN39: 6 | EO39: 83 | EP39: 7 | EQ39: 12 | ER39: 13933 | ES39: 337 | ET39: 14270 | EU39: 14034 | EV39: 65 | EW39: 11 | EX39: 18 | EY39: 18 | EZ39: 35 | FA39: 45 | FB39: 10 | FC39: 1 | FD39: 4 | FE39: 14 | FF39: 26 | FG39: 2 | FH39: 3 | FI39: 4 | FJ39: 6 | FK39: 11 | FL39: 44 | FM39: 39 | FN39: 5 | FO39: 11 | FQ39: PO2708 | FR39: Amstelronde passend onderwijs | FS39: 13813 | FT39: 392 | FU39: 33 | FV39: 2 | FW39: 3 | FX39: 68 | FY39: 5 | FZ39: 6 | GA39: 14485 | GB39: 340 | GC39: 14825 | GF39: 0 | GG39: 0 | GI39: PO2708 | GJ39: Amstelronde passend onderwijs | GK39: 13778 | GL39: 386 | GM39: 39 | GN39: 4 | GO39: 2 | GP39: 82 | GQ39: 8 | GR39: 7 | GU39: 0
A40: PO2709 | B40: Unita | C40: 22938 | D40: 656 | E40: 43 | F40: 2 | G40: 9 | H40: 161 | I40: 19 | J40: 23 | K40: 22926 | L40: 593 | M40: 23519 | N40: 6 | O40: 49 | P40: -2584611.87 | Q40: -258305.4 | S40: PO2709 | T40: Unita | U40: 23004 | V40: 634 | W40: 32 | X40: 3 | Y40: 11 | Z40: 164 | AA40: 19 | AB40: 29 | AC40: 22926 | AD40: 593 | AE40: 23519 | AF40: 6 | AG40: 49 | AH40: -2579684.67 | AI40: -252720.28 | AK40: PO2709 | AL40: Unita | AM40: 23278 | AN40: 645 | AO40: 41 | AP40: 2 | AQ40: 11 | AR40: 142 | AS40: 5 | AT40: 17 | AU40: 23176 | AV40: 589 | AW40: 23765 | AX40: 7 | AY40: 56 | AZ40: PO2709 | BA40: Unita | BB40: 23517 | BC40: 683 | BD40: 44 | BE40: 5 | BF40: 9 | BG40: 137 | BH40: 4 | BI40: 22 | BJ40: 23436 | BK40: 621 | BL40: 24057 | BM40: 9 | BN40: 64 | BP40: PO2709 | BQ40: Unita | BR40: 23806 | BS40: 671 | BT40: 41 | BU40: 7 | BV40: 7 | BW40: 138 | BX40: 6 | BY40: 24 | BZ40: 23715 | CA40: 607 | CB40: 24322 | CC40: 0 | CD40: 92 | CE40: 13 | CF40: 31 | CG40: 5 | CH40: 82 | CI40: 86 | CJ40: 16 | CK40: 1 | CL40: 11 | CM40: 19 | CN40: 23 | CO40: 2 | CP40: 0 | CQ40: 3 | CR40: 3 | CS40: 12 | CT40: 70 | CU40: 76 | CV40: 12 | CW40: 17 | CY40: PO2709 | CZ40: Unita | DA40: 24099 | DB40: 689 | DC40: 37 | DD40: 9 | DE40: 9 | DF40: 141 | DG40: 5 | DH40: 26 | DI40: 23973 | DJ40: 635 | DK40: 24608 | DL40: 2683563.08 | DM40: 93 | DN40: 14 | DO40: 35 | DP40: 2 | DQ40: 83 | DR40: 98 | DS40: 12 | DT40: 2 | DU40: 12 | DV40: 19 | DW40: 18 | DX40: 2 | DY40: 0 | DZ40: 2 | EA40: 6 | EB40: 9 | EC40: 71 | ED40: 72 | EE40: 8 | EF40: 17 | EH40: PO2709 | EI40: Hilversum e.o. | EJ40: 24246 | EK40: 731 | EL40: 39 | EM40: 6 | EN40: 11 | EO40: 160 | EP40: 4 | EQ40: 29 | ER40: 24109 | ES40: 678 | ET40: 24787 | EU40: 24977 | EV40: 96 | EW40: 10 | EX40: 40 | EY40: 2 | EZ40: 101 | FA40: 102 | FB40: 13 | FC40: 1 | FD40: 10 | FE40: 19 | FF40: 20 | FG40: 3 | FH40: 0 | FI40: 2 | FJ40: 9 | FK40: 12 | FL40: 55 | FM40: 73 | FN40: 11 | FO40: 17 | FQ40: PO2709 | FR40: Unita | FS40: 23021 | FT40: 659 | FU40: 54 | FV40: 5 | FW40: 15 | FX40: 160 | FY40: 17 | FZ40: 18 | GA40: 22984 | GB40: 620 | GC40: 23604 | GF40: 0 | GG40: 0 | GI40: PO2709 | GJ40: Unita | GK40: 23084 | GL40: 676 | GM40: 60 | GN40: 6 | GO40: 17 | GP40: 182 | GQ40: 13 | GR40: 23 | GU40: 0
A41: PO2710 | B41: SWV Passend Onderwijs Haarlemmermeer | C41: 13845 | D41: 328 | E41: 29 | F41: 2 | G41: 7 | H41: 71 | I41: 6 | J41: 8 | K41: 14104 | L41: 344 | M41: 14448 | N41: 0 | O41: 48 | P41: -1165580.24 | Q41: -95626.51 | S41: PO2710 | T41: SWV Passend Onderwijs Haarlemmermeer | U41: 14254 | V41: 324 | W41: 38 | X41: 2 | Y41: 5 | Z41: 73 | AA41: 7 | AB41: 7 | AC41: 14104 | AD41: 344 | AE41: 14448 | AF41: 0 | AG41: 48 | AH41: -1163358.23 | AI41: -93558.86 | AK41: PO2710 | AL41: SWV Passend Onderwijs Haarlemmermeer | AM41: 14834 | AN41: 338 | AO41: 37 | AP41: 4 | AQ41: 5 | AR41: 65 | AS41: 10 | AT41: 8 | AU41: 14550 | AV41: 360 | AW41: 14910 | AX41: 2 | AY41: 48 | AZ41: PO2710 | BA41: SWV Passend Onderwijs Haarlemmermeer | BB41: 15158 | BC41: 348 | BD41: 37 | BE41: 3 | BF41: 4 | BG41: 68 | BH41: 11 | BI41: 12 | BJ41: 14891 | BK41: 366 | BL41: 15257 | BM41: 2 | BN41: 54 | BP41: PO2710 | BQ41: SWV Passend Onderwijs Haarlemmermeer | BR41: 15446 | BS41: 383 | BT41: 36 | BU41: 5 | BV41: 5 | BW41: 72 | BX41: 11 | BY41: 10 | BZ41: 15295 | CA41: 398 | CB41: 15693 | CC41: 0 | CD41: 60 | CE41: 16 | CF41: 15 | CG41: 9 | CH41: 39 | CI41: 85 | CJ41: 12 | CK41: 4 | CL41: 13 | CM41: 8 | CN41: 26 | CO41: 1 | CP41: 0 | CQ41: 3 | CR41: 9 | CS41: 6 | CT41: 50 | CU41: 36 | CV41: 2 | CW41: 4 | CY41: PO2710 | CZ41: SWV Passend Onderwijs Haarlemmermeer | DA41: 15607 | DB41: 428 | DC41: 43 | DD41: 3 | DE41: 6 | DF41: 63 | DG41: 14 | DH41: 12 | DI41: 15533 | DJ41: 429 | DK41: 15962 | DL41: 1091172.28 | DM41: 52 | DN41: 17 | DO41: 18 | DP41: 11 | DQ41: 43 | DR41: 90 | DS41: 11 | DT41: 1 | DU41: 8 | DV41: 7 | DW41: 40 | DX41: 0 | DY41: 0 | DZ41: 0 | EA41: 7 | EB41: 6 | EC41: 49 | ED41: 46 | EE41: 1 | EF41: 4 | EH41: PO2710 | EI41: SWV Passend Oonderwijs Haarlemmermeer | EJ41: 15694 | EK41: 441 | EL41: 42 | EM41: 6 | EN41: 6 | EO41: 75 | EP41: 10 | EQ41: 16 | ER41: 15701 | ES41: 454 | ET41: 16155 | EU41: 16135 | EV41: 52 | EW41: 16 | EX41: 22 | EY41: 11 | EZ41: 54 | FA41: 96 | FB41: 13 | FC41: 2 | FD41: 12 | FE41: 7 | FF41: 32 | FG41: 0 | FH41: 0 | FI41: 0 | FJ41: 4 | FK41: 4 | FL41: 44 | FM41: 52 | FN41: 1 | FO41: 4 | FQ41: PO2710 | FR41: SWV Passend Onderwijs Haarlemmermeer | FS41: 13542 | FT41: 369 | FU41: 33 | FV41: 5 | FW41: 5 | FX41: 76 | FY41: 6 | FZ41: 10 | GA41: 13485 | GB41: 403 | GC41: 13888 | GF41: 0 | GG41: 0 | GI41: PO2710 | GJ41: SWV Passend Onderwijs Haarlemmermeer | GK41: 13203 | GL41: 387 | GM41: 27 | GN41: 6 | GO41: 8 | GP41: 89 | GQ41: 8 | GR41: 10 | GU41: 0
A42: PO2711 | B42: Stichting SWV Passend Onderwijs IJmond | C42: 15415 | D42: 245 | E42: 111 | F42: 8 | G42: 7 | H42: 133 | I42: 22 | J42: 18 | K42: 15559 | L42: 266 | M42: 15825 | N42: 1 | O42: 75 | P42: 322464.51 | Q42: 36233.4 | S42: PO2711 | T42: Stichting SWV Passend Onderwijs IJmond | U42: 15468 | V42: 241 | W42: 95 | X42: 8 | Y42: 5 | Z42: 130 | AA42: 20 | AB42: 16 | AC42: 15559 | AD42: 266 | AE42: 15825 | AF42: 1 | AG42: 75 | AH42: 321849.78 | AI42: 35449.96 | AK42: PO2711 | AL42: Stichting SWV Passend Onderwijs IJmond | AM42: 15687 | AN42: 218 | AO42: 89 | AP42: 6 | AQ42: 5 | AR42: 116 | AS42: 13 | AT42: 25 | AU42: 15805 | AV42: 247 | AW42: 16052 | AX42: 1 | AY42: 83 | AZ42: PO2711 | BA42: Stichting SWV Passend Onderwijs IJmond | BB42: 15930 | BC42: 229 | BD42: 71 | BE42: 6 | BF42: 8 | BG42: 133 | BH42: 15 | BI42: 23 | BJ42: 16065 | BK42: 251 | BL42: 16316 | BM42: 1 | BN42: 87 | BP42: PO2711 | BQ42: Stichting SWV Passend Onderwijs IJmond | BR42: 16467 | BS42: 252 | BT42: 67 | BU42: 9 | BV42: 11 | BW42: 149 | BX42: 19 | BY42: 23 | BZ42: 16584 | CA42: 267 | CB42: 16851 | CC42: 0 | CD42: 130 | CE42: 28 | CF42: 34 | CG42: 17 | CH42: 69 | CI42: 123 | CJ42: 29 | CK42: 2 | CL42: 18 | CM42: 10 | CN42: 12 | CO42: 0 | CP42: 0 | CQ42: 2 | CR42: 1 | CS42: 8 | CT42: 91 | CU42: 49 | CV42: 2 | CW42: 9 | CY42: PO2711 | CZ42: Stichting SWV Passend Onderwijs IJmond | DA42: 16897 | DB42: 295 | DC42: 70 | DD42: 8 | DE42: 13 | DF42: 159 | DG42: 17 | DH42: 28 | DI42: 17009 | DJ42: 317 | DK42: 17326 | DL42: -326190.7 | DM42: 137 | DN42: 25 | DO42: 41 | DP42: 17 | DQ42: 75 | DR42: 104 | DS42: 34 | DT42: 0 | DU42: 8 | DV42: 13 | DW42: 18 | DX42: 2 | DY42: 0 | DZ42: 1 | EA42: 3 | EB42: 12 | EC42: 98 | ED42: 37 | EE42: 2 | EF42: 9 | EH42: PO2711 | EI42: Stichting SWV Passend Onderwijs IJmond | EJ42: 17308 | EK42: 346 | EL42: 66 | EM42: 7 | EN42: 13 | EO42: 144 | EP42: 23 | EQ42: 27 | ER42: 17463 | ES42: 376 | ET42: 17839 | EU42: 17654 | EV42: 115 | EW42: 30 | EX42: 40 | EY42: 18 | EZ42: 77 | FA42: 105 | FB42: 38 | FC42: 0 | FD42: 9 | FE42: 15 | FF42: 25 | FG42: 2 | FH42: 0 | FI42: 1 | FJ42: 5 | FK42: 15 | FL42: 82 | FM42: 34 | FN42: 3 | FO42: 9 | FQ42: PO2711 | FR42: Stichting SWV Passend Onderwijs IJmond | FS42: 15335 | FT42: 245 | FU42: 106 | FV42: 11 | FW42: 13 | FX42: 153 | FY42: 22 | FZ42: 16 | GA42: 15459 | GB42: 285 | GC42: 15744 | GF42: 0 | GG42: 0 | GI42: PO2711 | GJ42: Stichting SWV Passend Onderwijs IJmond | GK42: 15405 | GL42: 198 | GM42: 97 | GN42: 17 | GO42: 9 | GP42: 191 | GQ42: 20 | GR42: 20 | GU42: 0
A43: PO2801 | B43: Samenwerkingsverband Passend Primair Onderwijs regio Leiden | C43: 19617 | D43: 273 | E43: 81 | F43: 12 | G43: 5 | H43: 202 | I43: 23 | J43: 20 | K43: 19305 | L43: 249 | M43: 19554 | N43: 1 | O43: 70 | P43: -857670.81 | Q43: -111448.46 | S43: PO2801 | T43: Samenwerkingsverband Passend Primair Onderwijs regio Leiden | U43: 19657 | V43: 259 | W43: 70 | X43: 10 | Y43: 8 | Z43: 192 | AA43: 16 | AB43: 24 | AC43: 19305 | AD43: 249 | AE43: 19554 | AF43: 1 | AG43: 70 | AH43: -856035.78 | AI43: -109038.7 | AK43: PO2801 | AL43: Samenwerkingsverband Passend Primair Onderwijs regio Leiden | AM43: 19554 | AN43: 282 | AO43: 71 | AP43: 12 | AQ43: 7 | AR43: 190 | AS43: 18 | AT43: 28 | AU43: 19261 | AV43: 275 | AW43: 19536 | AX43: 1 | AY43: 64 | AZ43: PO2801 | BA43: Samenwerkingsverband Passend Primair Onderwijs regio Leiden | BB43: 19559 | BC43: 288 | BD43: 83 | BE43: 15 | BF43: 6 | BG43: 182 | BH43: 20 | BI43: 26 | BJ43: 19281 | BK43: 289 | BL43: 19570 | BM43: 0 | BN43: 68 | BP43: PO2801 | BQ43: Samenwerkingsverband Passend Primair Onderwijs regio Leiden | BR43: 19678 | BS43: 299 | BT43: 89 | BU43: 13 | BV43: 8 | BW43: 152 | BX43: 20 | BY43: 26 | BZ43: 19435 | CA43: 309 | CB43: 19744 | CC43: 0 | CD43: 174 | CE43: 33 | CF43: 34 | CG43: 9 | CH43: 58 | CI43: 62 | CJ43: 32 | CK43: 1 | CL43: 17 | CM43: 9 | CN43: 4 | CO43: 4 | CP43: 0 | CQ43: 0 | CR43: 11 | CS43: 5 | CT43: 65 | CU43: 38 | CV43: 0 | CW43: 8 | CY43: PO2801 | CZ43: Samenwerkingsverband Passend Primair Onderwijs regio Leiden | DA43: 19929 | DB43: 314 | DC43: 72 | DD43: 13 | DE43: 12 | DF43: 153 | DG43: 20 | DH43: 30 | DI43: 19634 | DJ43: 329 | DK43: 19963 | DL43: 847745.61 | DM43: 158 | DN43: 33 | DO43: 42 | DP43: 10 | DQ43: 57 | DR43: 65 | DS43: 34 | DT43: 0 | DU43: 17 | DV43: 10 | DW43: 4 | DX43: 3 | DY43: 0 | DZ43: 0 | EA43: 13 | EB43: 8 | EC43: 69 | ED43: 33 | EE43: 0 | EF43: 8 | EH43: PO2801 | EI43: Leiden e.o. | EJ43: 20109 | EK43: 336 | EL43: 71 | EM43: 10 | EN43: 12 | EO43: 167 | EP43: 22 | EQ43: 27 | ER43: 19886 | ES43: 353 | ET43: 20239 | EU43: 20445 | EV43: 174 | EW43: 32 | EX43: 39 | EY43: 7 | EZ43: 57 | FA43: 68 | FB43: 31 | FC43: 0 | FD43: 16 | FE43: 12 | FF43: 7 | FG43: 2 | FH43: 0 | FI43: 0 | FJ43: 9 | FK43: 8 | FL43: 71 | FM43: 41 | FN43: 0 | FO43: 8 | FQ43: PO2801 | FR43: Samenwerkingsverband Passend Primair Onderwijs regio Leiden | FS43: 19553 | FT43: 275 | FU43: 76 | FV43: 16 | FW43: 7 | FX43: 209 | FY43: 29 | FZ43: 15 | GA43: 19243 | GB43: 263 | GC43: 19506 | GF43: 0 | GG43: 0 | GI43: PO2801 | GJ43: Samenwerkingsverband Passend Primair Onderwijs regio Leiden | GK43: 19543 | GL43: 275 | GM43: 90 | GN43: 22 | GO43: 5 | GP43: 219 | GQ43: 32 | GR43: 17 | GU43: 0
A44: PO2802 | B44: Stichting Passend Primair Onderwijs Delft e.o. | C44: 20459 | D44: 229 | E44: 55 | F44: 14 | G44: 14 | H44: 144 | I44: 17 | J44: 29 | K44: 20233 | L44: 307 | M44: 20540 | N44: 2 | O44: 49 | P44: -1543450.63 | Q44: -173625.66 | S44: PO2802 | T44: Stichting Passend Primair Onderwijs Delft e.o. | U44: 20207 | V44: 252 | W44: 48 | X44: 12 | Y44: 12 | Z44: 143 | AA44: 18 | AB44: 31 | AC44: 20233 | AD44: 307 | AE44: 20540 | AF44: 2 | AG44: 49 | AH44: -1540508.26 | AI44: -169871.5 | AK44: PO2802 | AL44: Stichting Passend Primair Onderwijs Delft e.o. | AM44: 20217 | AN44: 270 | AO44: 58 | AP44: 11 | AQ44: 11 | AR44: 140 | AS44: 17 | AT44: 34 | AU44: 20311 | AV44: 324 | AW44: 20635 | AX44: 2 | AY44: 53 | AZ44: PO2802 | BA44: Stichting Passend Primair Onderwijs Delft e.o. | BB44: 20229 | BC44: 307 | BD44: 61 | BE44: 11 | BF44: 13 | BG44: 140 | BH44: 14 | BI44: 38 | BJ44: 20377 | BK44: 356 | BL44: 20733 | BM44: 1 | BN44: 64 | BP44: PO2802 | BQ44: Stichting Passend Primair Onderwijs Delft e.o. | BR44: 20207 | BS44: 334 | BT44: 60 | BU44: 14 | BV44: 14 | BW44: 155 | BX44: 10 | BY44: 28 | BZ44: 20424 | CA44: 340 | CB44: 20764 | CC44: 0 | CD44: 134 | CE44: 24 | CF44: 42 | CG44: 12 | CH44: 69 | CI44: 42 | CJ44: 29 | CK44: 1 | CL44: 15 | CM44: 13 | CN44: 4 | CO44: 3 | CP44: 1 | CQ44: 2 | CR44: 8 | CS44: 7 | CT44: 64 | CU44: 38 | CV44: 0 | CW44: 9 | CY44: PO2802 | CZ44: Stichting Passend Primair Onderwijs Delft e.o. | DA44: 20302 | DB44: 206 | DC44: 73 | DD44: 10 | DE44: 14 | DF44: 139 | DG44: 9 | DH44: 27 | DI44: 20546 | DJ44: 362 | DK44: 20908 | DL44: 1578437.17 | DM44: 134 | DN44: 19 | DO44: 41 | DP44: 11 | DQ44: 67 | DR44: 57 | DS44: 31 | DT44: 1 | DU44: 13 | DV44: 13 | DW44: 3 | DX44: 1 | DY44: 0 | DZ44: 0 | EA44: 5 | EB44: 8 | EC44: 71 | ED44: 36 | EE44: 1 | EF44: 9 | EH44: PO2802 | EI44: Stichting Passend Primair Onderwijs Delft e.o. | EJ44: 20711 | EK44: 354 | EL44: 64 | EM44: 9 | EN44: 13 | EO44: 147 | EP44: 8 | EQ44: 27 | ER44: 20562 | ES44: 379 | ET44: 20941 | EU44: 21065 | EV44: 132 | EW44: 17 | EX44: 40 | EY44: 10 | EZ44: 69 | FA44: 70 | FB44: 33 | FC44: 0 | FD44: 18 | FE44: 12 | FF44: 4 | FG44: 0 | FH44: 0 | FI44: 1 | FJ44: 2 | FK44: 8 | FL44: 64 | FM44: 28 | FN44: 1 | FO44: 10 | FQ44: PO2802 | FR44: Stichting Passend Primair Onderwijs Delft e.o. | FS44: 20305 | FT44: 213 | FU44: 58 | FV44: 12 | FW44: 18 | FX44: 145 | FY44: 18 | FZ44: 30 | GA44: 20575 | GB44: 276 | GC44: 20851 | GF44: 0 | GG44: 0 | GI44: PO2802 | GJ44: Stichting Passend Primair Onderwijs Delft e.o. | GK44: 20227 | GL44: 231 | GM44: 53 | GN44: 20 | GO44: 21 | GP44: 145 | GQ44: 22 | GR44: 31 | GU44: 0
A45: PO2803 | B45: Stichting Samenwerkingsverband Primair Onderwijs Westland | C45: 10885 | D45: 297 | E45: 15 | F45: 5 | G45: 11 | H45: 71 | I45: 7 | J45: 13 | K45: 10431 | L45: 286 | M45: 10717 | N45: 2 | O45: 27 | P45: -1357477.2 | Q45: -148339.74 | S45: PO2803 | T45: Stichting Samenwerkingsverband Primair Onderwijs Westland | U45: 10771 | V45: 286 | W45: 14 | X45: 3 | Y45: 9 | Z45: 55 | AA45: 10 | AB45: 12 | AC45: 10431 | AD45: 286 | AE45: 10717 | AF45: 2 | AG45: 27 | AH45: -1354889.36 | AI45: -145132.32 | AK45: PO2803 | AL45: Stichting Samenwerkingsverband Primair Onderwijs Westland | AM45: 10827 | AN45: 301 | AO45: 15 | AP45: 4 | AQ45: 5 | AR45: 47 | AS45: 5 | AT45: 16 | AU45: 10527 | AV45: 292 | AW45: 10819 | AX45: 1 | AY45: 24 | AZ45: PO2803 | BA45: Stichting Samenwerkingsverband Primair Onderwijs Westland | BB45: 10847 | BC45: 323 | BD45: 23 | BE45: 4 | BF45: 4 | BG45: 43 | BH45: 8 | BI45: 15 | BJ45: 10604 | BK45: 316 | BL45: 10920 | BM45: 1 | BN45: 27 | BP45: PO2803 | BQ45: Stichting Samenwerkingsverband Primair Onderwijs Westland | BR45: 10937 | BS45: 332 | BT45: 21 | BU45: 4 | BV45: 5 | BW45: 58 | BX45: 9 | BY45: 12 | BZ45: 10780 | CA45: 318 | CB45: 11098 | CC45: 0 | CD45: 46 | CE45: 13 | CF45: 17 | CG45: 2 | CH45: 31 | CI45: 5 | CJ45: 8 | CK45: 0 | CL45: 8 | CM45: 5 | CN45: 5 | CO45: 2 | CP45: 0 | CQ45: 2 | CR45: 2 | CS45: 1 | CT45: 28 | CU45: 22 | CV45: 1 | CW45: 11 | CY45: PO2803 | CZ45: Stichting Samenwerkingsverband Primair Onderwijs Westland | DA45: 11000 | DB45: 351 | DC45: 25 | DD45: 4 | DE45: 7 | DF45: 55 | DG45: 9 | DH45: 15 | DI45: 10832 | DJ45: 334 | DK45: 11166 | DL45: 1316816.27 | DM45: 43 | DN45: 13 | DO45: 22 | DP45: 2 | DQ45: 35 | DR45: 8 | DS45: 15 | DT45: 0 | DU45: 6 | DV45: 5 | DW45: 10 | DX45: 2 | DY45: 0 | DZ45: 0 | EA45: 4 | EB45: 2 | EC45: 35 | ED45: 19 | EE45: 1 | EF45: 11 | EH45: PO2803 | EI45: Stichting Samenwerkingsverband Primair Onderwijs Westland | EJ45: 10995 | EK45: 409 | EL45: 19 | EM45: 4 | EN45: 5 | EO45: 74 | EP45: 9 | EQ45: 15 | ER45: 10908 | ES45: 394 | ET45: 11302 | EU45: 11404 | EV45: 55 | EW45: 13 | EX45: 20 | EY45: 3 | EZ45: 35 | FA45: 8 | FB45: 11 | FC45: 0 | FD45: 7 | FE45: 5 | FF45: 14 | FG45: 3 | FH45: 0 | FI45: 0 | FJ45: 6 | FK45: 1 | FL45: 33 | FM45: 21 | FN45: 1 | FO45: 11 | FQ45: PO2803 | FR45: Stichting Samenwerkingsverband Primair Onderwijs Westland | FS45: 10964 | FT45: 309 | FU45: 20 | FV45: 10 | FW45: 13 | FX45: 68 | FY45: 6 | FZ45: 14 | GA45: 10633 | GB45: 321 | GC45: 10954 | GF45: 0 | GG45: 0 | GI45: PO2803 | GJ45: Stichting Samenwerkingsverband Primair Onderwijs Westland | GK45: 11065 | GL45: 323 | GM45: 15 | GN45: 10 | GO45: 12 | GP45: 85 | GQ45: 7 | GR45: 16 | GU45: 0
A46: PO2804 | B46: Samenwerkingsverband Passend Primair Onderwijs Hoeksche Waard | C46: 5982 | D46: 165 | E46: 9 | F46: 3 | G46: 2 | H46: 26 | I46: 4 | J46: 2 | K46: 6067 | L46: 166 | M46: 6233 | N46: 1 | O46: 11 | P46: -992421.31 | Q46: -95313.18 | S46: PO2804 | T46: Samenwerkingsverband Passend Primair Onderwijs Hoeksche Waard | U46: 6056 | V46: 171 | W46: 6 | X46: 4 | Y46: 3 | Z46: 33 | AA46: 1 | AB46: 3 | AC46: 6067 | AD46: 166 | AE46: 6233 | AF46: 1 | AG46: 11 | AH46: -990529.4 | AI46: -93252.3 | AK46: PO2804 | AL46: Samenwerkingsverband Passend Primair Onderwijs Hoeksche Waard | AM46: 6163 | AN46: 184 | AO46: 7 | AP46: 5 | AQ46: 4 | AR46: 38 | AS46: 1 | AT46: 5 | AU46: 6173 | AV46: 180 | AW46: 6353 | AX46: 1 | AY46: 11 | AZ46: PO2804 | BA46: Samenwerkingsverband Passend Primair Onderwijs Hoeksche Waard | BB46: 6345 | BC46: 207 | BD46: 11 | BE46: 3 | BF46: 2 | BG46: 34 | BH46: 0 | BI46: 8 | BJ46: 6345 | BK46: 206 | BL46: 6551 | BM46: 0 | BN46: 15 | BP46: PO2804 | BQ46: Samenwerkingsverband Passend Primair Onderwijs Hoeksche Waard | BR46: 6496 | BS46: 205 | BT46: 9 | BU46: 3 | BV46: 1 | BW46: 32 | BX46: 1 | BY46: 10 | BZ46: 6486 | CA46: 202 | CB46: 6688 | CC46: 0 | CD46: 20 | CE46: 4 | CF46: 11 | CG46: 5 | CH46: 16 | CI46: 12 | CJ46: 4 | CK46: 0 | CL46: 4 | CM46: 3 | CN46: 18 | CO46: 1 | CP46: 0 | CQ46: 1 | CR46: 2 | CS46: 1 | CT46: 16 | CU46: 17 | CV46: 1 | CW46: 3 | CY46: PO2804 | CZ46: Samenwerkingsverband Passend Primair Onderwijs Hoeksche Waard | DA46: 6720 | DB46: 206 | DC46: 10 | DD46: 1 | DE46: 1 | DF46: 45 | DG46: 1 | DH46: 10 | DI46: 6725 | DJ46: 203 | DK46: 6928 | DL46: 987547.97 | DM46: 21 | DN46: 2 | DO46: 11 | DP46: 6 | DQ46: 28 | DR46: 13 | DS46: 4 | DT46: 0 | DU46: 3 | DV46: 2 | DW46: 16 | DX46: 1 | DY46: 0 | DZ46: 1 | EA46: 2 | EB46: 1 | EC46: 12 | ED46: 22 | EE46: 1 | EF46: 3 | EH46: PO2804 | EI46: Samenwerkingsverband Passend Primair Onderwijs Hoeksche Waard | EJ46: 6904 | EK46: 212 | EL46: 11 | EM46: 1 | EN46: 1 | EO46: 48 | EP46: 1 | EQ46: 6 | ER46: 6927 | ES46: 212 | ET46: 7139 | EU46: 7116 | EV46: 23 | EW46: 2 | EX46: 7 | EY46: 8 | EZ46: 28 | FA46: 12 | FB46: 3 | FC46: 0 | FD46: 4 | FE46: 2 | FF46: 16 | FG46: 2 | FH46: 0 | FI46: 1 | FJ46: 3 | FK46: 1 | FL46: 12 | FM46: 28 | FN46: 1 | FO46: 3 | FQ46: PO2804 | FR46: Samenwerkingsverband Passend Primair Onderwijs Hoeksche Waard | FS46: 6026 | FT46: 155 | FU46: 9 | FV46: 2 | FW46: 1 | FX46: 28 | FY46: 5 | FZ46: 3 | GA46: 7107 | GB46: 177 | GC46: 7284 | GF46: 0 | GG46: 0 | GI46: PO2804 | GJ46: Samenwerkingsverband Passend Primair Onderwijs Hoeksche Waard | GK46: 6033 | GL46: 151 | GM46: 8 | GN46: 2 | GO46: 2 | GP46: 27 | GQ46: 6 | GR46: 4 | GU46: 0
A47: PO2805 | B47: RiBA | C47: 10209 | D47: 121 | E47: 43 | F47: 6 | G47: 1 | H47: 109 | I47: 4 | J47: 5 | K47: 9930 | L47: 134 | M47: 10064 | N47: 2 | O47: 44 | P47: -876378.71 | Q47: -91102.32 | S47: PO2805 | T47: RiBA | U47: 10204 | V47: 124 | W47: 41 | X47: 4 | Y47: 0 | Z47: 103 | AA47: 5 | AB47: 8 | AC47: 9930 | AD47: 134 | AE47: 10064 | AF47: 2 | AG47: 44 | AH47: -874708.02 | AI47: -89132.49 | AK47: PO2805 | AL47: RiBA | AM47: 10162 | AN47: 144 | AO47: 36 | AP47: 3 | AQ47: 4 | AR47: 101 | AS47: 5 | AT47: 9 | AU47: 9996 | AV47: 155 | AW47: 10151 | AX47: 2 | AY47: 43 | AZ47: PO2805 | BA47: RiBA | BB47: 10311 | BC47: 114 | BD47: 43 | BE47: 3 | BF47: 4 | BG47: 96 | BH47: 4 | BI47: 12 | BJ47: 10180 | BK47: 131 | BL47: 10311 | BM47: 2 | BN47: 45 | BP47: PO2805 | BQ47: RiBA | BR47: 10520 | BS47: 121 | BT47: 37 | BU47: 3 | BV47: 6 | BW47: 84 | BX47: 5 | BY47: 14 | BZ47: 10404 | CA47: 137 | CB47: 10541 | CC47: 0 | CD47: 84 | CE47: 8 | CF47: 20 | CG47: 12 | CH47: 25 | CI47: 58 | CJ47: 5 | CK47: 0 | CL47: 2 | CM47: 4 | CN47: 6 | CO47: 0 | CP47: 0 | CQ47: 0 | CR47: 5 | CS47: 2 | CT47: 46 | CU47: 20 | CV47: 3 | CW47: 5 | CY47: PO2805 | CZ47: RiBA | DA47: 10614 | DB47: 137 | DC47: 35 | DD47: 2 | DE47: 7 | DF47: 89 | DG47: 4 | DH47: 13 | DI47: 10629 | DJ47: 161 | DK47: 10790 | DL47: 877039.33 | DM47: 87 | DN47: 6 | DO47: 20 | DP47: 8 | DQ47: 29 | DR47: 59 | DS47: 6 | DT47: 0 | DU47: 2 | DV47: 4 | DW47: 7 | DX47: 0 | DY47: 0 | DZ47: 0 | EA47: 5 | EB47: 0 | EC47: 38 | ED47: 26 | EE47: 2 | EF47: 5 | EH47: PO2805 | EI47: Barendracht, Ridderkerk, Albrandswaard | EJ47: 10646 | EK47: 153 | EL47: 32 | EM47: 4 | EN47: 5 | EO47: 83 | EP47: 3 | EQ47: 10 | ER47: 10645 | ES47: 167 | ET47: 10812 | EU47: 10799 | EV47: 85 | EW47: 7 | EX47: 15 | EY47: 5 | EZ47: 25 | FA47: 51 | FB47: 9 | FC47: 0 | FD47: 4 | FE47: 5 | FF47: 5 | FG47: 0 | FH47: 0 | FI47: 0 | FJ47: 1 | FK47: 1 | FL47: 34 | FM47: 27 | FN47: 2 | FO47: 4 | FQ47: PO2805 | FR47: RiBA | FS47: 10221 | FT47: 118 | FU47: 45 | FV47: 5 | FW47: 3 | FX47: 101 | FY47: 4 | FZ47: 3 | GA47: 10799 | GB47: 161 | GC47: 10960 | GF47: 0 | GG47: 0 | GI47: PO2805 | GJ47: RiBA | GK47: 10204 | GL47: 111 | GM47: 38 | GN47: 5 | GO47: 2 | GP47: 108 | GQ47: 5 | GR47: 4 | GU47: 0
A48: PO2806 | B48: Samenwerkingsverband Passend Primair Onderwijs Rotterdam | C48: 49923 | D48: 946 | E48: 348 | F48: 23 | G48: 40 | H48: 608 | I48: 51 | J48: 97 | K48: 49924 | L48: 963 | M48: 50887 | N48: 11 | O48: 222 | P48: -459719.64 | Q48: -214673.03 | S48: PO2806 | T48: Samenwerkingsverband Passend Primair Onderwijs Rotterdam | U48: 49817 | V48: 953 | W48: 312 | X48: 20 | Y48: 44 | Z48: 578 | AA48: 54 | AB48: 87 | AC48: 49924 | AD48: 963 | AE48: 50887 | AF48: 11 | AG48: 222 | AH48: -458843.25 | AI48: -210031.34 | AK48: PO2806 | AL48: Samenwerkingsverband Passend Primair Onderwijs Rotterdam | AM48: 49313 | AN48: 1070 | AO48: 297 | AP48: 15 | AQ48: 41 | AR48: 617 | AS48: 15 | AT48: 79 | AU48: 49409 | AV48: 1074 | AW48: 50483 | AX48: 11 | AY48: 235 | AZ48: PO2806 | BA48: Samenwerkingsverband Passend Primair Onderwijs Rotterdam | BB48: 48872 | BC48: 1178 | BD48: 279 | BE48: 9 | BF48: 39 | BG48: 597 | BH48: 8 | BI48: 85 | BJ48: 48823 | BK48: 1173 | BL48: 49996 | BM48: 11 | BN48: 229 | BP48: PO2806 | BQ48: Samenwerkingsverband Passend Primair Onderwijs Rotterdam | BR48: 48559 | BS48: 1213 | BT48: 286 | BU48: 7 | BV48: 31 | BW48: 632 | BX48: 9 | BY48: 88 | BZ48: 48453 | CA48: 1211 | CB48: 49664 | CC48: 0 | CD48: 581 | CE48: 16 | CF48: 119 | CG48: 66 | CH48: 271 | CI48: 82 | CJ48: 23 | CK48: 4 | CL48: 16 | CM48: 28 | CN48: 6 | CO48: 0 | CP48: 0 | CQ48: 0 | CR48: 6 | CS48: 17 | CT48: 229 | CU48: 93 | CV48: 14 | CW48: 15 | CY48: PO2806 | CZ48: Samenwerkingsverband Passend Primair Onderwijs Rotterdam | DA48: 48522 | DB48: 1298 | DC48: 291 | DD48: 11 | DE48: 27 | DF48: 645 | DG48: 9 | DH48: 103 | DI48: 48364 | DJ48: 1265 | DK48: 49629 | DL48: 622921.98 | DM48: 582 | DN48: 20 | DO48: 130 | DP48: 68 | DQ48: 286 | DR48: 94 | DS48: 21 | DT48: 1 | DU48: 16 | DV48: 28 | DW48: 8 | DX48: 1 | DY48: 0 | DZ48: 0 | EA48: 10 | EB48: 19 | EC48: 233 | ED48: 83 | EE48: 14 | EF48: 15 | EH48: PO2806 | EI48: Samenwerkingsverband Passend Primair Onderwijs Rotterdam | EJ48: 48077 | EK48: 1418 | EL48: 310 | EM48: 12 | EN48: 38 | EO48: 638 | EP48: 8 | EQ48: 99 | ER48: 48452 | ES48: 1402 | ET48: 49854 | EU48: 49495 | EV48: 577 | EW48: 20 | EX48: 137 | EY48: 69 | EZ48: 302 | FA48: 104 | FB48: 28 | FC48: 3 | FD48: 11 | FE48: 30 | FF48: 8 | FG48: 0 | FH48: 0 | FI48: 0 | FJ48: 16 | FK48: 23 | FL48: 209 | FM48: 79 | FN48: 14 | FO48: 16 | FQ48: PO2806 | FR48: Samenwerkingsverband Passend Primair Onderwijs Rotterdam | FS48: 50378 | FT48: 961 | FU48: 349 | FV48: 32 | FW48: 46 | FX48: 658 | FY48: 51 | FZ48: 97 | GA48: 50704 | GB48: 995 | GC48: 51699 | GF48: 0 | GG48: 0 | GI48: PO2806 | GJ48: Samenwerkingsverband Passend Primair Onderwijs Rotterdam | GK48: 50307 | GL48: 1042 | GM48: 378 | GN48: 34 | GO48: 39 | GP48: 712 | GQ48: 53 | GR48: 100 | GU48: 0
A49: PO2807 | B49: Stg. SWV Schiedam, Vlaardingen, Maassluis onderwijs dat past | C49: 14976 | D49: 322 | E49: 37 | F49: 4 | G49: 9 | H49: 203 | I49: 4 | J49: 20 | K49: 14841 | L49: 331 | M49: 15172 | N49: 4 | O49: 70 | P49: -1214193.2 | Q49: -157334.83 | S49: PO2807 | T49: Stg. SWV Schiedam, Vlaardingen, Maassluis onderwijs dat past | U49: 14959 | V49: 329 | W49: 35 | X49: 3 | Y49: 9 | Z49: 205 | AA49: 4 | AB49: 24 | AC49: 14841 | AD49: 331 | AE49: 15172 | AF49: 4 | AG49: 70 | AH49: -1211878.51 | AI49: -153932.91 | AK49: PO2807 | AL49: Stg. SWV Schiedam, Vlaardingen, Maassluis onderwijs dat past | AM49: 14943 | AN49: 308 | AO49: 37 | AP49: 4 | AQ49: 10 | AR49: 206 | AS49: 1 | AT49: 25 | AU49: 14774 | AV49: 312 | AW49: 15086 | AX49: 4 | AY49: 62 | AZ49: PO2807 | BA49: Stg. SWV Schiedam, Vlaardingen, Maassluis onderwijs dat past | BB49: 14765 | BC49: 295 | BD49: 48 | BE49: 2 | BF49: 9 | BG49: 195 | BH49: 2 | BI49: 25 | BJ49: 14599 | BK49: 293 | BL49: 14892 | BM49: 4 | BN49: 61 | BP49: PO2807 | BQ49: Stg. SWV Schiedam, Vlaardingen, Maassluis onderwijs dat past | BR49: 14787 | BS49: 316 | BT49: 59 | BU49: 3 | BV49: 12 | BW49: 193 | BX49: 3 | BY49: 18 | BZ49: 14645 | CA49: 318 | CB49: 14963 | CC49: 0 | CD49: 130 | CE49: 6 | CF49: 30 | CG49: 16 | CH49: 106 | CI49: 30 | CJ49: 5 | CK49: 0 | CL49: 14 | CM49: 4 | CN49: 4 | CO49: 0 | CP49: 0 | CQ49: 3 | CR49: 2 | CS49: 2 | CT49: 64 | CU49: 32 | CV49: 2 | CW49: 4 | CY49: PO2807 | CZ49: Stg. SWV Schiedam, Vlaardingen, Maassluis onderwijs dat past | DA49: 14929 | DB49: 295 | DC49: 67 | DD49: 4 | DE49: 9 | DF49: 193 | DG49: 5 | DH49: 18 | DI49: 14786 | DJ49: 301 | DK49: 15087 | DL49: 1243921.03 | DM49: 147 | DN49: 9 | DO49: 27 | DP49: 17 | DQ49: 96 | DR49: 29 | DS49: 6 | DT49: 1 | DU49: 11 | DV49: 4 | DW49: 3 | DX49: 0 | DY49: 0 | DZ49: 3 | EA49: 2 | EB49: 2 | EC49: 75 | ED49: 27 | EE49: 4 | EF49: 4 | EH49: PO2807 | EI49: Schiedam, Vlaardingen, Maassluis, Delfland | EJ49: 15125 | EK49: 309 | EL49: 68 | EM49: 5 | EN49: 9 | EO49: 169 | EP49: 5 | EQ49: 12 | ER49: 14974 | ES49: 308 | ET49: 15282 | EU49: 15434 | EV49: 136 | EW49: 10 | EX49: 21 | EY49: 14 | EZ49: 87 | FA49: 31 | FB49: 5 | FC49: 1 | FD49: 8 | FE49: 4 | FF49: 1 | FG49: 0 | FH49: 0 | FI49: 1 | FJ49: 1 | FK49: 3 | FL49: 67 | FM49: 34 | FN49: 4 | FO49: 4 | FQ49: PO2807 | FR49: Stg. SWV Schiedam, Vlaardingen, Maassluis onderwijs dat past | FS49: 14907 | FT49: 333 | FU49: 26 | FV49: 5 | FW49: 6 | FX49: 199 | FY49: 4 | FZ49: 22 | GA49: 14873 | GB49: 334 | GC49: 15207 | GF49: 0 | GG49: 0 | GI49: PO2807 | GJ49: Stg. SWV Schiedam, Vlaardingen, Maassluis onderwijs dat past | GK49: 14955 | GL49: 323 | GM49: 33 | GN49: 2 | GO49: 16 | GP49: 191 | GQ49: 5 | GR49: 26 | GU49: 0
A50: PO2808 | B50: Stg. Samenwerkingsverband Pas. Ond. Voorne-Putten/Rozenburg Prim. Ond | C50: 13084 | D50: 394 | E50: 73 | F50: 3 | G50: 3 | H50: 217 | I50: 8 | J50: 5 | K50: 13210 | L50: 322 | M50: 13532 | N50: 3 | O50: 29 | P50: 272908.93 | Q50: 610.61 | S50: PO2808 | T50: Stg. Samenwerkingsverband Pas. Ond. Voorne-Putten/Rozenburg Prim. Ond | U50: 13145 | V50: 327 | W50: 77 | X50: 1 | Y50: 4 | Z50: 210 | AA50: 13 | AB50: 8 | AC50: 13210 | AD50: 322 | AE50: 13532 | AF50: 3 | AG50: 29 | AH50: 272388.67 | AI50: 597.41 | AK50: PO2808 | AL50: Stg. Samenwerkingsverband Pas. Ond. Voorne-Putten/Rozenburg Prim. Ond | AM50: 13247 | AN50: 323 | AO50: 82 | AP50: 2 | AQ50: 5 | AR50: 234 | AS50: 6 | AT50: 8 | AU50: 13308 | AV50: 313 | AW50: 13621 | AX50: 2 | AY50: 28 | AZ50: PO2808 | BA50: Stg. Samenwerkingsverband Pas. Ond. Voorne-Putten/Rozenburg Prim. Ond | BB50: 13336 | BC50: 360 | BD50: 87 | BE50: 3 | BF50: 5 | BG50: 259 | BH50: 3 | BI50: 10 | BJ50: 13406 | BK50: 348 | BL50: 13754 | BM50: 2 | BN50: 37 | BP50: PO2808 | BQ50: Stg. Samenwerkingsverband Pas. Ond. Voorne-Putten/Rozenburg Prim. Ond | BR50: 13547 | BS50: 367 | BT50: 94 | BU50: 5 | BV50: 3 | BW50: 253 | BX50: 1 | BY50: 12 | BZ50: 13593 | CA50: 357 | CB50: 13950 | CC50: 0 | CD50: 291 | CE50: 6 | CF50: 15 | CG50: 13 | CH50: 43 | CI50: 37 | CJ50: 4 | CK50: 0 | CL50: 8 | CM50: 4 | CN50: 7 | CO50: 1 | CP50: 3 | CQ50: 1 | CR50: 4 | CS50: 2 | CT50: 36 | CU50: 45 | CV50: 0 | CW50: 5 | CY50: PO2808 | CZ50: Stg. Samenwerkingsverband Pas. Ond. Voorne-Putten/Rozenburg Prim. Ond | DA50: 13682 | DB50: 399 | DC50: 89 | DD50: 4 | DE50: 3 | DF50: 258 | DG50: 2 | DH50: 16 | DI50: 13726 | DJ50: 395 | DK50: 14121 | DL50: -209300.73 | DM50: 283 | DN50: 6 | DO50: 19 | DP50: 15 | DQ50: 49 | DR50: 42 | DS50: 6 | DT50: 0 | DU50: 5 | DV50: 5 | DW50: 14 | DX50: 0 | DY50: 3 | DZ50: 0 | EA50: 5 | EB50: 3 | EC50: 42 | ED50: 40 | EE50: 3 | EF50: 5 | EH50: PO2808 | EI50: Stg. Samenwerkingsverband Pas. Ond. Voorne-Putten/Rozenburg Prim. Ond | EJ50: 13907 | EK50: 399 | EL50: 74 | EM50: 2 | EN50: 3 | EO50: 268 | EP50: 3 | EQ50: 17 | ER50: 13921 | ES50: 392 | ET50: 14313 | EU50: 14306 | EV50: 277 | EW50: 5 | EX50: 20 | EY50: 13 | EZ50: 52 | FA50: 53 | FB50: 7 | FC50: 0 | FD50: 5 | FE50: 6 | FF50: 6 | FG50: 0 | FH50: 2 | FI50: 0 | FJ50: 4 | FK50: 4 | FL50: 38 | FM50: 34 | FN50: 3 | FO50: 5 | FQ50: PO2808 | FR50: Stg. Samenwerkingsverband Pas. Ond. Voorne-Putten/Rozenburg Prim. Ond | FS50: 13011 | FT50: 419 | FU50: 80 | FV50: 3 | FW50: 3 | FX50: 236 | FY50: 5 | FZ50: 4 | GA50: 13060 | GB50: 412 | GC50: 13472 | GF50: 0 | GG50: 0 | GI50: PO2808 | GJ50: Stg. Samenwerkingsverband Pas. Ond. Voorne-Putten/Rozenburg Prim. Ond | GK50: 13044 | GL50: 402 | GM50: 86 | GN50: 4 | GO50: 2 | GP50: 264 | GQ50: 7 | GR50: 5 | GU50: 0
A51: PO2809 | B51: Samenwerkingsverband Passend Onderwijs Drechtsteden | C51: 11941 | D51: 302 | E51: 27 | F51: 9 | G51: 11 | H51: 91 | I51: 19 | J51: 13 | K51: 11930 | L51: 321 | M51: 12251 | N51: 2 | O51: 57 | P51: -694833.6 | Q51: -80191.7 | S51: PO2809 | T51: Samenwerkingsverband Passend Onderwijs Drechtsteden | U51: 11896 | V51: 299 | W51: 23 | X51: 12 | Y51: 6 | Z51: 88 | AA51: 17 | AB51: 15 | AC51: 11930 | AD51: 321 | AE51: 12251 | AF51: 2 | AG51: 57 | AH51: -693509 | AI51: -78457.78 | AK51: PO2809 | AL51: Samenwerkingsverband Passend Onderwijs Drechtsteden | AM51: 11818 | AN51: 298 | AO51: 15 | AP51: 9 | AQ51: 6 | AR51: 99 | AS51: 10 | AT51: 13 | AU51: 11902 | AV51: 314 | AW51: 12216 | AX51: 2 | AY51: 60 | AZ51: PO2809 | BA51: Samenwerkingsverband Passend Onderwijs Drechtsteden | BB51: 11920 | BC51: 297 | BD51: 25 | BE51: 4 | BF51: 8 | BG51: 105 | BH51: 6 | BI51: 12 | BJ51: 11978 | BK51: 321 | BL51: 12299 | BM51: 2 | BN51: 57 | BP51: PO2809 | BQ51: Samenwerkingsverband Passend Onderwijs Drechtsteden | BR51: 11960 | BS51: 291 | BT51: 27 | BU51: 5 | BV51: 7 | BW51: 100 | BX51: 3 | BY51: 14 | BZ51: 11998 | CA51: 325 | CB51: 12323 | CC51: 0 | CD51: 74 | CE51: 8 | CF51: 21 | CG51: 10 | CH51: 43 | CI51: 30 | CJ51: 14 | CK51: 0 | CL51: 9 | CM51: 9 | CN51: 4 | CO51: 1 | CP51: 0 | CQ51: 0 | CR51: 2 | CS51: 6 | CT51: 54 | CU51: 22 | CV51: 2 | CW51: 5 | CY51: PO2809 | CZ51: Samenwerkingsverband Passend Onderwijs Drechtsteden | DA51: 12074 | DB51: 289 | DC51: 34 | DD51: 5 | DE51: 9 | DF51: 89 | DG51: 3 | DH51: 19 | DI51: 12070 | DJ51: 332 | DK51: 12402 | DL51: 725446.42 | DM51: 64 | DN51: 8 | DO51: 28 | DP51: 12 | DQ51: 47 | DR51: 34 | DS51: 17 | DT51: 0 | DU51: 10 | DV51: 13 | DW51: 6 | DX51: 1 | DY51: 0 | DZ51: 0 | EA51: 2 | EB51: 10 | EC51: 42 | ED51: 25 | EE51: 5 | EF51: 5 | EH51: PO2809 | EI51: Papendrecht, Sliedrecht e.o. | EJ51: 12192 | EK51: 311 | EL51: 34 | EM51: 3 | EN51: 8 | EO51: 106 | EP51: 7 | EQ51: 16 | ER51: 12199 | ES51: 347 | ET51: 12546 | EU51: 12503 | EV51: 65 | EW51: 10 | EX51: 24 | EY51: 14 | EZ51: 61 | FA51: 38 | FB51: 18 | FC51: 1 | FD51: 7 | FE51: 15 | FF51: 9 | FG51: 1 | FH51: 0 | FI51: 0 | FJ51: 2 | FK51: 9 | FL51: 42 | FM51: 20 | FN51: 8 | FO51: 5 | FQ51: PO2809 | FR51: Samenwerkingsverband Passend Onderwijs Drechtsteden | FS51: 12052 | FT51: 297 | FU51: 42 | FV51: 10 | FW51: 5 | FX51: 102 | FY51: 15 | FZ51: 13 | GA51: 14358 | GB51: 404 | GC51: 14762 | GF51: 0 | GG51: 0 | GI51: PO2809 | GJ51: Samenwerkingsverband Passend Onderwijs Drechtsteden | GK51: 11981 | GL51: 304 | GM51: 44 | GN51: 8 | GO51: 2 | GP51: 111 | GQ51: 12 | GR51: 15 | GU51: 0
A52: PO2810 | B52: Stichting Samenwerkingsverband Passend Primair Onderwijs Dordrecht | C52: 9466 | D52: 286 | E52: 35 | F52: 4 | G52: 3 | H52: 98 | I52: 16 | J52: 9 | K52: 9357 | L52: 269 | M52: 9626 | N52: 0 | O52: 52 | P52: -341077.4 | Q52: -29104.79 | S52: PO2810 | T52: Stichting Samenwerkingsverband Passend Primair Onderwijs Dordrecht | U52: 9553 | V52: 286 | W52: 33 | X52: 6 | Y52: 3 | Z52: 105 | AA52: 12 | AB52: 8 | AC52: 9357 | AD52: 269 | AE52: 9626 | AF52: 0 | AG52: 52 | AH52: -340427.18 | AI52: -28475.48 | AK52: PO2810 | AL52: Stichting Samenwerkingsverband Passend Primair Onderwijs Dordrecht | AM52: 9708 | AN52: 282 | AO52: 28 | AP52: 5 | AQ52: 5 | AR52: 110 | AS52: 6 | AT52: 9 | AU52: 9478 | AV52: 272 | AW52: 9750 | AX52: 1 | AY52: 58 | AZ52: PO2810 | BA52: Stichting Samenwerkingsverband Passend Primair Onderwijs Dordrecht | BB52: 9709 | BC52: 269 | BD52: 24 | BE52: 2 | BF52: 4 | BG52: 123 | BH52: 6 | BI52: 14 | BJ52: 9488 | BK52: 244 | BL52: 9732 | BM52: 2 | BN52: 57 | BP52: PO2810 | BQ52: Stichting Samenwerkingsverband Passend Primair Onderwijs Dordrecht | BR52: 9861 | BS52: 262 | BT52: 30 | BU52: 4 | BV52: 5 | BW52: 118 | BX52: 5 | BY52: 14 | BZ52: 9693 | CA52: 233 | CB52: 9926 | CC52: 0 | CD52: 72 | CE52: 9 | CF52: 19 | CG52: 18 | CH52: 58 | CI52: 44 | CJ52: 7 | CK52: 0 | CL52: 9 | CM52: 6 | CN52: 14 | CO52: 0 | CP52: 0 | CQ52: 0 | CR52: 5 | CS52: 4 | CT52: 58 | CU52: 39 | CV52: 2 | CW52: 6 | CY52: PO2810 | CZ52: Stichting Samenwerkingsverband Passend Primair Onderwijs Dordrecht | DA52: 9975 | DB52: 318 | DC52: 25 | DD52: 5 | DE52: 4 | DF52: 129 | DG52: 3 | DH52: 15 | DI52: 9836 | DJ52: 284 | DK52: 10120 | DL52: 390735.22 | DM52: 78 | DN52: 8 | DO52: 19 | DP52: 17 | DQ52: 59 | DR52: 44 | DS52: 6 | DT52: 0 | DU52: 7 | DV52: 10 | DW52: 27 | DX52: 0 | DY52: 0 | DZ52: 0 | EA52: 4 | EB52: 7 | EC52: 59 | ED52: 33 | EE52: 1 | EF52: 6 | EH52: PO2810 | EI52: Dordrecht | EJ52: 10164 | EK52: 332 | EL52: 24 | EM52: 1 | EN52: 2 | EO52: 129 | EP52: 5 | EQ52: 12 | ER52: 10047 | ES52: 307 | ET52: 10354 | EU52: 10496 | EV52: 79 | EW52: 6 | EX52: 14 | EY52: 15 | EZ52: 59 | FA52: 38 | FB52: 6 | FC52: 1 | FD52: 7 | FE52: 10 | FF52: 25 | FG52: 1 | FH52: 0 | FI52: 0 | FJ52: 6 | FK52: 8 | FL52: 52 | FM52: 40 | FN52: 1 | FO52: 6 | FQ52: PO2810 | FR52: Stichting Samenwerkingsverband Passend Primair Onderwijs Dordrecht | FS52: 9400 | FT52: 290 | FU52: 52 | FV52: 6 | FW52: 3 | FX52: 110 | FY52: 12 | FZ52: 6 | GA52: 9675 | GB52: 304 | GC52: 9979 | GF52: 0 | GG52: 0 | GI52: PO2810 | GJ52: Stichting Samenwerkingsverband Passend Primair Onderwijs Dordrecht | GK52: 9406 | GL52: 318 | GM52: 49 | GN52: 11 | GO52: 2 | GP52: 115 | GQ52: 10 | GR52: 6 | GU52: 0
A53: PO2811 | B53: Stichting SWV Passend Primair Onderwijs Goeree-Overflakkee | C53: 4130 | D53: 135 | E53: 9 | F53: 1 | G53: 0 | H53: 17 | I53: 0 | J53: 3 | K53: 4211 | L53: 131 | M53: 4342 | N53: 1 | O53: 8 | P53: -457842.12 | Q53: -38104.89 | S53: PO2811 | T53: Stichting SWV Passend Primair Onderwijs Goeree-Overflakkee | U53: 4223 | V53: 133 | W53: 9 | X53: 1 | Y53: 0 | Z53: 22 | AA53: 1 | AB53: 5 | AC53: 4211 | AD53: 131 | AE53: 4342 | AF53: 1 | AG53: 8 | AH53: -456969.31 | AI53: -37280.98 | AK53: PO2811 | AL53: Stichting SWV Passend Primair Onderwijs Goeree-Overflakkee | AM53: 4293 | AN53: 136 | AO53: 10 | AP53: 0 | AQ53: 0 | AR53: 27 | AS53: 1 | AT53: 5 | AU53: 4286 | AV53: 133 | AW53: 4419 | AX53: 2 | AY53: 10 | AZ53: PO2811 | BA53: Stichting SWV Passend Primair Onderwijs Goeree-Overflakkee | BB53: 4344 | BC53: 133 | BD53: 4 | BE53: 0 | BF53: 0 | BG53: 34 | BH53: 1 | BI53: 3 | BJ53: 4338 | BK53: 133 | BL53: 4471 | BM53: 1 | BN53: 9 | BP53: PO2811 | BQ53: Stichting SWV Passend Primair Onderwijs Goeree-Overflakkee | BR53: 4486 | BS53: 140 | BT53: 8 | BU53: 0 | BV53: 1 | BW53: 30 | BX53: 0 | BY53: 4 | BZ53: 4490 | CA53: 139 | CB53: 4629 | CC53: 0 | CD53: 22 | CE53: 0 | CF53: 5 | CG53: 2 | CH53: 14 | CI53: 19 | CJ53: 6 | CK53: 0 | CL53: 3 | CM53: 3 | CN53: 12 | CO53: 0 | CP53: 0 | CQ53: 0 | CR53: 4 | CS53: 2 | CT53: 9 | CU53: 26 | CV53: 1 | CW53: 8 | CY53: PO2811 | CZ53: Stichting SWV Passend Primair Onderwijs Goeree-Overflakkee | DA53: 4567 | DB53: 156 | DC53: 15 | DD53: 0 | DE53: 2 | DF53: 29 | DG53: 1 | DH53: 3 | DI53: 4572 | DJ53: 156 | DK53: 4728 | DL53: 424401.31 | DM53: 24 | DN53: 1 | DO53: 5 | DP53: 2 | DQ53: 18 | DR53: 26 | DS53: 5 | DT53: 0 | DU53: 0 | DV53: 2 | DW53: 11 | DX53: 0 | DY53: 1 | DZ53: 1 | EA53: 6 | EB53: 1 | EC53: 9 | ED53: 21 | EE53: 1 | EF53: 8 | EH53: PO2811 | EI53: Stg. SWV Passend Pr.Ond. Goeree-Overflakkee | EJ53: 4641 | EK53: 157 | EL53: 15 | EM53: 0 | EN53: 3 | EO53: 31 | EP53: 1 | EQ53: 0 | ER53: 4641 | ES53: 154 | ET53: 4795 | EU53: 4798 | EV53: 24 | EW53: 1 | EX53: 3 | EY53: 0 | EZ53: 22 | FA53: 18 | FB53: 6 | FC53: 0 | FD53: 1 | FE53: 4 | FF53: 9 | FG53: 0 | FH53: 1 | FI53: 1 | FJ53: 6 | FK53: 1 | FL53: 10 | FM53: 21 | FN53: 1 | FO53: 8 | FQ53: PO2811 | FR53: Stichting SWV Passend Primair Onderwijs Goeree-Overflakkee | FS53: 4141 | FT53: 135 | FU53: 7 | FV53: 0 | FW53: 0 | FX53: 19 | FY53: 1 | FZ53: 0 | GA53: 4147 | GB53: 130 | GC53: 4277 | GF53: 0 | GG53: 0 | GI53: PO2811 | GJ53: Stichting SWV Passend Primair Onderwijs Goeree-Overflakkee | GK53: 4118 | GL53: 137 | GM53: 16 | GP53: 14 | GQ53: 1 | GR53: 1 | GU53: 0
A54: PO2812 | B54: Stichting Samenwerkingsverband PO Duin- en Bollenstreek | C54: 15658 | D54: 334 | E54: 80 | F54: 8 | G54: 6 | H54: 184 | I54: 20 | J54: 21 | K54: 16164 | L54: 347 | M54: 16511 | N54: 0 | O54: 73 | P54: -214097.35 | Q54: -70360.22 | S54: PO2812 | T54: Stichting Samenwerkingsverband PO Duin- en Bollenstreek | U54: 15901 | V54: 341 | W54: 80 | X54: 6 | Y54: 7 | Z54: 179 | AA54: 21 | AB54: 26 | AC54: 16164 | AD54: 347 | AE54: 16511 | AF54: 0 | AG54: 73 | AH54: -213689.2 | AI54: -68838.88 | AK54: PO2812 | AL54: Stichting Samenwerkingsverband PO Duin- en Bollenstreek | AM54: 16280 | AN54: 311 | AO54: 67 | AP54: 8 | AQ54: 5 | AR54: 189 | AS54: 23 | AT54: 20 | AU54: 16475 | AV54: 326 | AW54: 16801 | AX54: 0 | AY54: 81 | AZ54: PO2812 | BA54: Stichting Samenwerkingsverband PO Duin- en Bollenstreek | BB54: 16262 | BC54: 313 | BD54: 68 | BE54: 7 | BF54: 8 | BG54: 198 | BH54: 19 | BI54: 20 | BJ54: 16471 | BK54: 320 | BL54: 16791 | BM54: 0 | BN54: 96 | BP54: PO2812 | BQ54: Stichting Samenwerkingsverband PO Duin- en Bollenstreek | BR54: 16539 | BS54: 337 | BT54: 81 | BU54: 5 | BV54: 7 | BW54: 192 | BX54: 16 | BY54: 27 | BZ54: 16674 | CA54: 336 | CB54: 17010 | CC54: 0 | CD54: 186 | CE54: 21 | CF54: 34 | CG54: 18 | CH54: 69 | CI54: 44 | CJ54: 27 | CK54: 0 | CL54: 16 | CM54: 6 | CN54: 6 | CO54: 1 | CP54: 0 | CQ54: 2 | CR54: 3 | CS54: 5 | CT54: 100 | CU54: 42 | CV54: 0 | CW54: 12 | CY54: PO2812 | CZ54: Stichting Samenwerkingsverband PO Duin- en Bollenstreek | DA54: 16827 | DB54: 366 | DC54: 79 | DD54: 7 | DE54: 7 | DF54: 170 | DG54: 19 | DH54: 41 | DI54: 16957 | DJ54: 359 | DK54: 17316 | DL54: 259100.95 | DM54: 166 | DN54: 26 | DO54: 48 | DP54: 18 | DQ54: 65 | DR54: 45 | DS54: 26 | DT54: 0 | DU54: 15 | DV54: 7 | DW54: 3 | DX54: 1 | DY54: 1 | DZ54: 1 | EA54: 4 | EB54: 7 | EC54: 98 | ED54: 44 | EE54: 0 | EF54: 12 | EH54: PO2812 | EI54: Katwijk, Noordwijk e.o. | EJ54: 17003 | EK54: 386 | EL54: 73 | EM54: 10 | EN54: 9 | EO54: 166 | EP54: 18 | EQ54: 45 | ER54: 17068 | ES54: 371 | ET54: 17439 | EU54: 17389 | EV54: 159 | EW54: 28 | EX54: 54 | EY54: 18 | EZ54: 62 | FA54: 42 | FB54: 26 | FC54: 0 | FD54: 9 | FE54: 9 | FF54: 6 | FG54: 2 | FH54: 1 | FI54: 0 | FJ54: 2 | FK54: 6 | FL54: 82 | FM54: 45 | FN54: 1 | FO54: 12 | FQ54: PO2812 | FR54: Stichting Samenwerkingsverband PO Duin- en Bollenstreek | FS54: 15634 | FT54: 355 | FU54: 90 | FV54: 14 | FW54: 5 | FX54: 183 | FY54: 18 | FZ54: 17 | GA54: 16362 | GB54: 349 | GC54: 16711 | GF54: 0 | GG54: 0 | GI54: PO2812 | GJ54: Stichting Samenwerkingsverband PO Duin- en Bollenstreek | GK54: 15479 | GL54: 325 | GM54: 95 | GN54: 17 | GP54: 201 | GQ54: 21 | GR54: 15 | GU54: 0
A55: PO2813 | B55: Stichting SWV Passend Onderwijs Rijnstreek | C55: 11277 | D55: 104 | E55: 36 | F55: 5 | G55: 4 | H55: 88 | I55: 14 | J55: 8 | K55: 11309 | L55: 115 | M55: 11424 | N55: 0 | O55: 79 | P55: -109949.17 | Q55: -15206.64 | S55: PO2813 | T55: Stichting SWV Passend Onderwijs Rijnstreek | U55: 11242 | V55: 98 | W55: 37 | X55: 6 | Y55: 3 | Z55: 89 | AA55: 14 | AB55: 7 | AC55: 11309 | AD55: 115 | AE55: 11424 | AF55: 0 | AG55: 79 | AH55: -109739.57 | AI55: -14877.84 | AK55: PO2813 | AL55: Stichting SWV Passend Onderwijs Rijnstreek | AM55: 11320 | AN55: 136 | AO55: 26 | AP55: 1 | AQ55: 3 | AR55: 111 | AS55: 18 | AT55: 5 | AU55: 11392 | AV55: 146 | AW55: 11538 | AX55: 0 | AY55: 83 | AZ55: PO2813 | BA55: Stichting SWV Passend Onderwijs Rijnstreek | BB55: 11402 | BC55: 126 | BD55: 36 | BE55: 6 | BF55: 4 | BG55: 118 | BH55: 13 | BI55: 3 | BJ55: 11462 | BK55: 138 | BL55: 11600 | BM55: 0 | BN55: 83 | BP55: PO2813 | BQ55: Stichting SWV Passend Onderwijs Rijnstreek | BR55: 11559 | BS55: 146 | BT55: 39 | BU55: 10 | BV55: 2 | BW55: 105 | BX55: 9 | BY55: 4 | BZ55: 11623 | CA55: 155 | CB55: 11778 | CC55: 0 | CD55: 102 | CE55: 19 | CF55: 6 | CG55: 6 | CH55: 36 | CI55: 56 | CJ55: 15 | CK55: 0 | CL55: 15 | CM55: 10 | CN55: 3 | CO55: 0 | CP55: 0 | CQ55: 0 | CR55: 7 | CS55: 10 | CT55: 77 | CU55: 37 | CV55: 0 | CW55: 5 | CY55: PO2813 | CZ55: Stichting SWV Passend Onderwijs Rijnstreek | DA55: 11743 | DB55: 166 | DC55: 33 | DD55: 7 | DE55: 2 | DF55: 122 | DG55: 10 | DH55: 11 | DI55: 11782 | DJ55: 174 | DK55: 11956 | DL55: 340292.97 | DM55: 103 | DN55: 17 | DO55: 13 | DP55: 5 | DQ55: 47 | DR55: 51 | DS55: 16 | DT55: 0 | DU55: 10 | DV55: 12 | DW55: 5 | DX55: 0 | DY55: 0 | DZ55: 0 | EA55: 2 | EB55: 10 | EC55: 71 | ED55: 31 | EE55: 0 | EF55: 5 | EH55: PO2813 | EI55: Alphen a/d Rijn e.o. | EJ55: 11951 | EK55: 202 | EL55: 51 | EM55: 5 | EN55: 2 | EO55: 108 | EP55: 11 | EQ55: 18 | ER55: 11970 | ES55: 211 | ET55: 12181 | EU55: 12153 | EV55: 106 | EW55: 16 | EX55: 20 | EY55: 4 | EZ55: 49 | FA55: 58 | FB55: 20 | FC55: 0 | FD55: 10 | FE55: 14 | FF55: 12 | FG55: 0 | FH55: 0 | FI55: 0 | FJ55: 2 | FK55: 9 | FL55: 58 | FM55: 28 | FN55: 0 | FO55: 5 | FQ55: PO2813 | FR55: Stichting SWV Passend Onderwijs Rijnstreek | FS55: 11280 | FT55: 131 | FU55: 37 | FV55: 4 | FW55: 5 | FX55: 74 | FY55: 17 | FZ55: 6 | GA55: 11711 | GB55: 149 | GC55: 11860 | GF55: 0 | GG55: 0 | GI55: PO2813 | GJ55: Stichting SWV Passend Onderwijs Rijnstreek | GK55: 11153 | GL55: 139 | GM55: 42 | GN55: 4 | GO55: 6 | GP55: 80 | GQ55: 16 | GR55: 4 | GU55: 0
A56: PO2814 | B56: St Samenwerkingsverband PO Midden Holland | C56: 16934 | D56: 373 | E56: 90 | F56: 12 | G56: 10 | H56: 121 | I56: 13 | J56: 26 | K56: 17042 | L56: 384 | M56: 17426 | N56: 3 | O56: 99 | P56: -1045626.78 | Q56: -129968.95 | S56: PO2814 | T56: St Samenwerkingsverband PO Midden Holland | U56: 17099 | V56: 376 | W56: 78 | X56: 10 | Y56: 10 | Z56: 102 | AA56: 14 | AB56: 25 | AC56: 17042 | AD56: 384 | AE56: 17426 | AF56: 3 | AG56: 99 | AH56: -1043633.44 | AI56: -127158.74 | AK56: PO2814 | AL56: St Samenwerkingsverband PO Midden Holland | AM56: 17308 | AN56: 321 | AO56: 78 | AP56: 8 | AQ56: 10 | AR56: 112 | AS56: 8 | AT56: 22 | AU56: 17246 | AV56: 337 | AW56: 17583 | AX56: 4 | AY56: 108 | AZ56: PO2814 | BA56: St Samenwerkingsverband PO Midden Holland | BB56: 17464 | BC56: 345 | BD56: 73 | BE56: 11 | BF56: 8 | BG56: 101 | BH56: 9 | BI56: 25 | BJ56: 17429 | BK56: 370 | BL56: 17799 | BM56: 3 | BN56: 123 | BP56: PO2814 | BQ56: St Samenwerkingsverband PO Midden Holland | BR56: 17706 | BS56: 365 | BT56: 73 | BU56: 7 | BV56: 11 | BW56: 116 | BX56: 11 | BY56: 25 | BZ56: 17708 | CA56: 403 | CB56: 18111 | CC56: 0 | CD56: 117 | CE56: 18 | CF56: 36 | CG56: 12 | CH56: 60 | CI56: 68 | CJ56: 21 | CK56: 0 | CL56: 15 | CM56: 15 | CN56: 3 | CO56: 1 | CP56: 1 | CQ56: 0 | CR56: 8 | CS56: 13 | CT56: 112 | CU56: 75 | CV56: 6 | CW56: 7 | CY56: PO2814 | CZ56: St Samenwerkingsverband PO Midden Holland | DA56: 18150 | DB56: 396 | DC56: 79 | DD56: 7 | DE56: 11 | DF56: 131 | DG56: 8 | DH56: 27 | DI56: 18194 | DJ56: 442 | DK56: 18636 | DL56: 1073240.87 | DM56: 128 | DN56: 15 | DO56: 38 | DP56: 18 | DQ56: 64 | DR56: 64 | DS56: 18 | DT56: 0 | DU56: 12 | DV56: 19 | DW56: 4 | DX56: 3 | DY56: 1 | DZ56: 0 | EA56: 10 | EB56: 13 | EC56: 112 | ED56: 75 | EE56: 4 | EF56: 7 | EH56: PO2814 | EI56: St Samenwerkingsverband PO Midden Holland | EJ56: 18621 | EK56: 385 | EL56: 73 | EM56: 6 | EN56: 10 | EO56: 123 | EP56: 6 | EQ56: 33 | ER56: 18682 | ES56: 439 | ET56: 19121 | EU56: 19006 | EV56: 120 | EW56: 12 | EX56: 43 | EY56: 13 | EZ56: 63 | FA56: 70 | FB56: 17 | FC56: 0 | FD56: 8 | FE56: 27 | FF56: 8 | FG56: 1 | FH56: 1 | FI56: 0 | FJ56: 8 | FK56: 18 | FL56: 104 | FM56: 69 | FN56: 4 | FO56: 8 | FQ56: PO2814 | FR56: St Samenwerkingsverband PO Midden Holland | FS56: 16981 | FT56: 377 | FU56: 90 | FV56: 9 | FW56: 9 | FX56: 145 | FY56: 19 | FZ56: 23 | GA56: 19757 | GB56: 474 | GC56: 20231 | GF56: 0 | GG56: 0 | GI56: PO2814 | GJ56: St Samenwerkingsverband PO Midden Holland | GK56: 17108 | GL56: 357 | GM56: 77 | GN56: 8 | GO56: 12 | GP56: 123 | GQ56: 14 | GR56: 15 | GU56: 0
A57: PO2815 | B57: Stg. Passend Primair Onderwijs Haaglanden (SPPOH) | C57: 56066 | D57: 1495 | E57: 212 | F57: 24 | G57: 47 | H57: 403 | I57: 67 | J57: 82 | K57: 55927 | L57: 1318 | M57: 57245 | N57: 7 | O57: 274 | P57: -4883862.42 | Q57: -619359.88 | S57: PO2815 | T57: Stg. Passend Primair Onderwijs Haaglanden (SPPOH) | U57: 55804 | V57: 1372 | W57: 167 | X57: 18 | Y57: 39 | Z57: 422 | AA57: 41 | AB57: 66 | AC57: 55927 | AD57: 1318 | AE57: 57245 | AF57: 7 | AG57: 274 | AH57: -4874552.03 | AI57: -605967.99 | AK57: PO2815 | AL57: Stg. Passend Primair Onderwijs Haaglanden (SPPOH) | AM57: 55422 | AN57: 1281 | AO57: 177 | AP57: 14 | AQ57: 31 | AR57: 408 | AS57: 42 | AT57: 69 | AU57: 55477 | AV57: 1229 | AW57: 56706 | AX57: 6 | AY57: 262 | AZ57: PO2815 | BA57: Stg. Passend Primair Onderwijs Haaglanden (SPPOH) | BB57: 54707 | BC57: 1312 | BD57: 158 | BE57: 16 | BF57: 31 | BG57: 421 | BH57: 42 | BI57: 69 | BJ57: 54638 | BK57: 1264 | BL57: 55902 | BM57: 12 | BN57: 279 | BP57: PO2815 | BQ57: Stg. Passend Primair Onderwijs Haaglanden (SPPOH) | BR57: 54360 | BS57: 1328 | BT57: 173 | BU57: 20 | BV57: 35 | BW57: 422 | BX57: 39 | BY57: 62 | BZ57: 54228 | CA57: 1280 | CB57: 55508 | CC57: 0 | CD57: 325 | CE57: 59 | CF57: 97 | CG57: 22 | CH57: 248 | CI57: 53 | CJ57: 38 | CK57: 0 | CL57: 29 | CM57: 37 | CN57: 19 | CO57: 3 | CP57: 0 | CQ57: 6 | CR57: 34 | CS57: 29 | CT57: 285 | CU57: 92 | CV57: 13 | CW57: 27 | CY57: PO2815 | CZ57: Stg. Passend Primair Onderwijs Haaglanden (SPPOH) | DA57: 53771 | DB57: 1323 | DC57: 166 | DD57: 27 | DE57: 30 | DF57: 434 | DG57: 36 | DH57: 57 | DI57: 53664 | DJ57: 1275 | DK57: 54939 | DL57: 4968094.94 | DM57: 324 | DN57: 63 | DO57: 87 | DP57: 21 | DQ57: 255 | DR57: 46 | DS57: 31 | DT57: 0 | DU57: 23 | DV57: 45 | DW57: 13 | DX57: 2 | DY57: 0 | DZ57: 0 | EA57: 27 | EB57: 36 | EC57: 286 | ED57: 104 | EE57: 13 | EF57: 27 | EH57: PO2815 | EI57: Stg. Passend Primair Onderwijs Haaglanden (SPPOH) | EJ57: 53395 | EK57: 1201 | EL57: 172 | EM57: 31 | EN57: 25 | EO57: 450 | EP57: 35 | EQ57: 69 | ER57: 53198 | ES57: 1290 | ET57: 54488 | EU57: 54596 | EV57: 345 | EW57: 66 | EX57: 94 | EY57: 24 | EZ57: 253 | FA57: 53 | FB57: 31 | FC57: 0 | FD57: 33 | FE57: 48 | FF57: 21 | FG57: 2 | FH57: 0 | FI57: 0 | FJ57: 29 | FK57: 37 | FL57: 267 | FM57: 96 | FN57: 10 | FO57: 27 | FQ57: PO2815 | FR57: Stg. Passend Primair Onderwijs Haaglanden (SPPOH) | FS57: 56504 | FT57: 1648 | FU57: 190 | FV57: 49 | FW57: 51 | FX57: 429 | FY57: 81 | FZ57: 82 | GA57: 56992 | GB57: 1587 | GC57: 58579 | GF57: 0 | GG57: 0 | GI57: PO2815 | GJ57: Stg. Passend Primair Onderwijs Haaglanden (SPPOH) | GK57: 56630 | GL57: 1674 | GM57: 179 | GN57: 73 | GO57: 52 | GP57: 448 | GQ57: 83 | GR57: 104 | GU57: 0
A58: PO2816 | B58: Samenwerkingsverband Driegang | C58: 15462 | D58: 229 | E58: 21 | F58: 5 | G58: 1 | H58: 65 | I58: 13 | J58: 10 | K58: 15461 | L58: 241 | M58: 15702 | N58: 3 | O58: 31 | P58: -1230693.31 | Q58: -132899.46 | S58: PO2816 | T58: Samenwerkingsverband Driegang | U58: 15587 | V58: 225 | W58: 23 | X58: 5 | Y58: 2 | Z58: 61 | AA58: 18 | AB58: 13 | AC58: 15461 | AD58: 241 | AE58: 15702 | AF58: 3 | AG58: 31 | AH58: -1228347.17 | AI58: -130025.89 | AK58: PO2816 | AL58: Samenwerkingsverband Driegang | AM58: 15782 | AN58: 235 | AO58: 24 | AP58: 4 | AQ58: 5 | AR58: 67 | AS58: 14 | AT58: 17 | AU58: 15636 | AV58: 242 | AW58: 15878 | AX58: 1 | AY58: 35 | AZ58: PO2816 | BA58: Samenwerkingsverband Driegang | BB58: 16059 | BC58: 228 | BD58: 24 | BE58: 6 | BF58: 5 | BG58: 89 | BH58: 12 | BI58: 20 | BJ58: 15901 | BK58: 253 | BL58: 16154 | BM58: 2 | BN58: 44 | BP58: PO2816 | BQ58: Samenwerkingsverband Driegang | BR58: 16308 | BS58: 259 | BT58: 26 | BU58: 6 | BV58: 10 | BW58: 100 | BX58: 9 | BY58: 29 | BZ58: 16261 | CA58: 273 | CB58: 16534 | CC58: 0 | CD58: 71 | CE58: 15 | CF58: 39 | CG58: 4 | CH58: 51 | CI58: 47 | CJ58: 18 | CK58: 0 | CL58: 17 | CM58: 26 | CN58: 19 | CO58: 1 | CP58: 0 | CQ58: 1 | CR58: 7 | CS58: 17 | CT58: 60 | CU58: 63 | CV58: 2 | CW58: 11 | CY58: PO2816 | CZ58: Samenwerkingsverband Driegang | DA58: 16631 | DB58: 270 | DC58: 34 | DD58: 4 | DE58: 10 | DF58: 101 | DG58: 11 | DH58: 22 | DI58: 16576 | DJ58: 294 | DK58: 16870 | DL58: 1253079.58 | DM58: 80 | DN58: 15 | DO58: 32 | DP58: 5 | DQ58: 50 | DR58: 55 | DS58: 22 | DT58: 1 | DU58: 8 | DV58: 24 | DW58: 12 | DX58: 1 | DY58: 0 | DZ58: 0 | EA58: 7 | EB58: 16 | EC58: 50 | ED58: 59 | EE58: 4 | EF58: 11 | EH58: PO2816 | EI58: Samenwerkingsverband Driegan | EJ58: 17002 | EK58: 279 | EL58: 30 | EM58: 6 | EN58: 9 | EO58: 113 | EP58: 10 | EQ58: 24 | ER58: 16932 | ES58: 299 | ET58: 17231 | EU58: 17281 | EV58: 83 | EW58: 16 | EX58: 33 | EY58: 6 | EZ58: 54 | FA58: 56 | FB58: 25 | FC58: 1 | FD58: 7 | FE58: 26 | FF58: 12 | FG58: 1 | FH58: 0 | FI58: 0 | FJ58: 9 | FK58: 18 | FL58: 43 | FM58: 56 | FN58: 3 | FO58: 11 | FQ58: PO2816 | FR58: Samenwerkingsverband Driegang | FS58: 15402 | FT58: 240 | FU58: 19 | FV58: 5 | FW58: 2 | FX58: 63 | FY58: 11 | FZ58: 10 | GA58: 17192 | GB58: 327 | GC58: 17519 | GF58: 0 | GG58: 0 | GI58: PO2816 | GJ58: Samenwerkingsverband Driegang | GK58: 15277 | GL58: 240 | GM58: 30 | GN58: 5 | GO58: 3 | GP58: 60 | GQ58: 12 | GR58: 7 | GU58: 0
A59: PO2817 | B59: Stichting Samenwerkingsverband Passend Onderwijs 28-17 Zoetermeer | C59: 11015 | D59: 285 | E59: 25 | F59: 8 | G59: 10 | H59: 116 | I59: 7 | J59: 14 | K59: 10958 | L59: 250 | M59: 11208 | N59: 5 | O59: 50 | P59: -823922.33 | Q59: -94855.86 | S59: PO2817 | T59: Stichting Samenwerkingsverband Passend Onderwijs 28-17 Zoetermeer | U59: 11081 | V59: 268 | W59: 31 | X59: 4 | Y59: 7 | Z59: 116 | AA59: 8 | AB59: 10 | AC59: 10958 | AD59: 250 | AE59: 11208 | AF59: 5 | AG59: 50 | AH59: -822351.64 | AI59: -92804.87 | AK59: PO2817 | AL59: Stichting Samenwerkingsverband Passend Onderwijs 28-17 Zoetermeer | AM59: 11017 | AN59: 275 | AO59: 31 | AP59: 6 | AQ59: 7 | AR59: 92 | AS59: 10 | AT59: 15 | AU59: 10934 | AV59: 254 | AW59: 11188 | AX59: 5 | AY59: 56 | AZ59: PO2817 | BA59: Stichting Samenwerkingsverband Passend Onderwijs 28-17 Zoetermeer | BB59: 10912 | BC59: 316 | BD59: 34 | BE59: 4 | BF59: 4 | BG59: 117 | BH59: 9 | BI59: 15 | BJ59: 10832 | BK59: 307 | BL59: 11139 | BM59: 5 | BN59: 53 | BP59: PO2817 | BQ59: Stichting Samenwerkingsverband Passend Onderwijs 28-17 Zoetermeer | BR59: 10906 | BS59: 290 | BT59: 31 | BU59: 3 | BV59: 4 | BW59: 115 | BX59: 5 | BY59: 18 | BZ59: 10815 | CA59: 326 | CB59: 11141 | CC59: 0 | CD59: 92 | CE59: 8 | CF59: 22 | CG59: 8 | CH59: 46 | CI59: 22 | CJ59: 11 | CK59: 2 | CL59: 7 | CM59: 3 | CN59: 4 | CO59: 1 | CP59: 0 | CQ59: 2 | CR59: 0 | CS59: 3 | CT59: 50 | CU59: 17 | CV59: 4 | CW59: 6 | CY59: PO2817 | CZ59: Stichting Samenwerkingsverband Passend Onderwijs 28-17 Zoetermeer | DA59: 10910 | DB59: 443 | DC59: 28 | DD59: 2 | DE59: 4 | DF59: 95 | DG59: 4 | DH59: 20 | DI59: 10785 | DJ59: 332 | DK59: 11117 | DL59: 806967.99 | DM59: 77 | DN59: 6 | DO59: 24 | DP59: 6 | DQ59: 40 | DR59: 25 | DS59: 11 | DT59: 2 | DU59: 5 | DV59: 7 | DW59: 7 | DX59: 1 | DY59: 0 | DZ59: 0 | EA59: 2 | EB59: 6 | EC59: 53 | ED59: 19 | EE59: 6 | EF59: 6 | EH59: PO2817 | EI59: Zoetermeer | EJ59: 10958 | EK59: 453 | EL59: 31 | EM59: 1 | EN59: 5 | EO59: 90 | EP59: 3 | EQ59: 20 | ER59: 10841 | ES59: 331 | ET59: 11172 | EU59: 11411 | EV59: 74 | EW59: 4 | EX59: 25 | EY59: 6 | EZ59: 41 | FA59: 29 | FB59: 9 | FC59: 3 | FD59: 9 | FE59: 8 | FF59: 9 | FG59: 2 | FH59: 1 | FI59: 0 | FJ59: 5 | FK59: 6 | FL59: 54 | FM59: 16 | FN59: 6 | FO59: 6 | FQ59: PO2817 | FR59: Stichting Samenwerkingsverband Passend Onderwijs 28-17 Zoetermeer | FS59: 10968 | FT59: 284 | FU59: 31 | FV59: 5 | FW59: 9 | FX59: 119 | FY59: 9 | FZ59: 20 | GA59: 11048 | GB59: 269 | GC59: 11317 | GF59: 0 | GG59: 0 | GI59: PO2817 | GJ59: Stichting Samenwerkingsverband Passend Onderwijs 28-17 Zoetermeer | GK59: 10936 | GL59: 269 | GM59: 35 | GN59: 5 | GO59: 10 | GP59: 122 | GQ59: 11 | GR59: 25 | GU59: 0
A60: PO2818 | B60: Stg. SWV passend primair onderwijs Aan Den IJssel | C60: 8902 | D60: 330 | E60: 53 | F60: 2 | G60: 1 | H60: 123 | I60: 6 | J60: 9 | K60: 9056 | L60: 289 | M60: 9345 | N60: 0 | O60: 22 | P60: 328795.9 | Q60: 14954.23 | S60: PO2818 | T60: Stg. SWV passend primair onderwijs Aan Den IJssel | U60: 8966 | V60: 344 | W60: 62 | X60: 4 | Y60: 4 | Z60: 118 | AA60: 4 | AB60: 10 | AC60: 9056 | AD60: 289 | AE60: 9345 | AF60: 0 | AG60: 22 | AH60: 328169.1 | AI60: 14630.89 | AK60: PO2818 | AL60: Stg. SWV passend primair onderwijs Aan Den IJssel | AM60: 9001 | AN60: 350 | AO60: 61 | AP60: 5 | AQ60: 4 | AR60: 141 | AS60: 3 | AT60: 15 | AU60: 9060 | AV60: 287 | AW60: 9347 | AX60: 0 | AY60: 25 | AZ60: PO2818 | BA60: Stg. SWV passend primair onderwijs Aan Den IJssel | BB60: 9123 | BC60: 368 | BD60: 65 | BE60: 7 | BF60: 1 | BG60: 143 | BH60: 2 | BI60: 21 | BJ60: 9141 | BK60: 303 | BL60: 9444 | BM60: 2 | BN60: 25 | BP60: PO2818 | BQ60: Stg. SWV passend primair onderwijs Aan Den IJssel | BR60: 9245 | BS60: 348 | BT60: 72 | BU60: 2 | BV60: 3 | BW60: 131 | BX60: 4 | BY60: 16 | BZ60: 9220 | CA60: 282 | CB60: 9502 | CC60: 0 | CD60: 165 | CE60: 6 | CF60: 19 | CG60: 5 | CH60: 33 | CI60: 23 | CJ60: 7 | CK60: 0 | CL60: 8 | CM60: 5 | CN60: 10 | CO60: 1 | CP60: 0 | CQ60: 1 | CR60: 2 | CS60: 4 | CT60: 19 | CU60: 22 | CV60: 2 | CW60: 7 | CY60: PO2818 | CZ60: Stg. SWV passend primair onderwijs Aan Den IJssel | DA60: 9253 | DB60: 363 | DC60: 67 | DD60: 5 | DE60: 3 | DF60: 136 | DG60: 3 | DH60: 16 | DI60: 9212 | DJ60: 300 | DK60: 9512 | DL60: -323156.63 | DM60: 161 | DN60: 8 | DO60: 19 | DP60: 7 | DQ60: 35 | DR60: 29 | DS60: 5 | DT60: 1 | DU60: 5 | DV60: 8 | DW60: 16 | DX60: 0 | DY60: 0 | DZ60: 1 | EA60: 2 | EB60: 7 | EC60: 21 | ED60: 19 | EE60: 2 | EF60: 7 | EH60: PO2818 | EI60: Stg. SWV passend primair onderwijs Aan Den IJssel | EJ60: 9375 | EK60: 360 | EL60: 62 | EM60: 4 | EN60: 5 | EO60: 133 | EP60: 2 | EQ60: 16 | ER60: 9362 | ES60: 299 | ET60: 9661 | EU60: 9735 | EV60: 152 | EW60: 6 | EX60: 21 | EY60: 7 | EZ60: 36 | FA60: 41 | FB60: 5 | FC60: 1 | FD60: 4 | FE60: 13 | FF60: 12 | FG60: 0 | FH60: 0 | FI60: 0 | FJ60: 1 | FK60: 9 | FL60: 26 | FM60: 15 | FN60: 2 | FO60: 7 | FQ60: PO2818 | FR60: Stg. SWV passend primair onderwijs Aan Den IJssel | FS60: 8927 | FT60: 343 | FU60: 49 | FV60: 3 | FW60: 3 | FX60: 113 | FY60: 8 | FZ60: 5 | GA60: 10143 | GB60: 351 | GC60: 10494 | GF60: 0 | GG60: 0 | GI60: PO2818 | GJ60: Stg. SWV passend primair onderwijs Aan Den IJssel | GK60: 8933 | GL60: 347 | GM60: 50 | GN60: 3 | GO60: 4 | GP60: 119 | GQ60: 7 | GR60: 2 | GU60: 0
A61: PO2901 | B61: Samenwerkingsverband Passend Primair Onderwijs Walcheren | C61: 7879 | D61: 166 | E61: 18 | F61: 12 | G61: 0 | H61: 110 | I61: 14 | J61: 6 | K61: 7935 | L61: 175 | M61: 8110 | N61: 1 | O61: 49 | P61: 5507.22 | Q61: -664.89 | S61: PO2901 | T61: Samenwerkingsverband Passend Primair Onderwijs Walcheren | U61: 7981 | V61: 172 | W61: 25 | X61: 6 | Y61: 1 | Z61: 93 | AA61: 9 | AB61: 4 | AC61: 7935 | AD61: 175 | AE61: 8110 | AF61: 1 | AG61: 49 | AH61: 5496.72 | AI61: -650.51 | AK61: PO2901 | AL61: Samenwerkingsverband Passend Primair Onderwijs Walcheren | AM61: 7992 | AN61: 188 | AO61: 18 | AP61: 3 | AQ61: 4 | AR61: 97 | AS61: 6 | AT61: 4 | AU61: 7975 | AV61: 193 | AW61: 8168 | AX61: 1 | AY61: 45 | AZ61: PO2901 | BA61: Samenwerkingsverband Passend Primair Onderwijs Walcheren | BB61: 8155 | BC61: 198 | BD61: 15 | BE61: 3 | BF61: 5 | BG61: 88 | BH61: 8 | BI61: 7 | BJ61: 8133 | BK61: 200 | BL61: 8333 | BM61: 1 | BN61: 46 | BP61: PO2901 | BQ61: Samenwerkingsverband Passend Primair Onderwijs Walcheren | BR61: 8312 | BS61: 215 | BT61: 7 | BU61: 1 | BV61: 2 | BW61: 93 | BX61: 7 | BY61: 9 | BZ61: 8289 | CA61: 213 | CB61: 8502 | CC61: 0 | CD61: 63 | CE61: 8 | CF61: 11 | CG61: 4 | CH61: 33 | CI61: 59 | CJ61: 14 | CK61: 1 | CL61: 4 | CM61: 7 | CN61: 3 | CO61: 2 | CP61: 0 | CQ61: 2 | CR61: 4 | CS61: 4 | CT61: 48 | CU61: 29 | CV61: 1 | CW61: 4 | CY61: PO2901 | CZ61: Samenwerkingsverband Passend Primair Onderwijs Walcheren | DA61: 8480 | DB61: 230 | DC61: 12 | DD61: 4 | DE61: 1 | DF61: 92 | DG61: 4 | DH61: 16 | DI61: 8482 | DJ61: 227 | DK61: 8709 | DL61: 15563.9 | DM61: 61 | DN61: 8 | DO61: 17 | DP61: 4 | DQ61: 39 | DR61: 60 | DS61: 11 | DT61: 1 | DU61: 5 | DV61: 8 | DW61: 3 | DX61: 0 | DY61: 0 | DZ61: 0 | EA61: 1 | EB61: 6 | EC61: 52 | ED61: 31 | EE61: 1 | EF61: 4 | EH61: PO2901 | EI61: Samenwerkingsverband Passend Primair Onderwijs Walcheren | EJ61: 8666 | EK61: 245 | EL61: 13 | EM61: 4 | EN61: 4 | EO61: 102 | EP61: 6 | EQ61: 15 | ER61: 8630 | ES61: 244 | ET61: 8874 | EU61: 8911 | EV61: 77 | EW61: 10 | EX61: 19 | EY61: 2 | EZ61: 36 | FA61: 61 | FB61: 9 | FC61: 1 | FD61: 5 | FE61: 7 | FF61: 1 | FG61: 1 | FH61: 0 | FI61: 0 | FJ61: 2 | FK61: 7 | FL61: 45 | FM61: 35 | FN61: 1 | FO61: 4 | FQ61: PO2902 | FR61: Samenwerkingsverband Passend Primair Onderwijs Oosterschelderegio | FS61: 17672 | FT61: 462 | FU61: 39 | FV61: 21 | FW61: 8 | FX61: 212 | FY61: 38 | FZ61: 14 | GA61: 22817 | GB61: 586 | GC61: 23403 | GF61: 0 | GG61: 0 | GI61: PO2902 | GJ61: Samenwerkingsverband Passend Primair Onderwijs Oosterschelderegio | GK61: 17623 | GL61: 463 | GM61: 52 | GN61: 16 | GO61: 6 | GP61: 208 | GQ61: 53 | GR61: 14 | GU61: 0
A62: PO2902 | B62: Samenwerkingsverband Passend Primair Onderwijs Oosterschelderegio | C62: 9829 | D62: 299 | E62: 26 | F62: 8 | G62: 7 | H62: 101 | I62: 22 | J62: 11 | K62: 9979 | L62: 303 | M62: 10282 | N62: 1 | O62: 79 | P62: 816233.86 | Q62: 78891.71 | S62: PO2902 | T62: Samenwerkingsverband Passend Primair Onderwijs Oosterschelderegio | U62: 9943 | V62: 298 | W62: 29 | X62: 6 | Y62: 6 | Z62: 133 | AA62: 17 | AB62: 9 | AC62: 9979 | AD62: 303 | AE62: 10282 | AF62: 1 | AG62: 79 | AH62: 814677.83 | AI62: 77185.9 | AK62: PO2902 | AL62: Samenwerkingsverband Passend Primair Onderwijs Oosterschelderegio | AM62: 10222 | AN62: 295 | AO62: 38 | AP62: 5 | AQ62: 5 | AR62: 134 | AS62: 14 | AT62: 12 | AU62: 10241 | AV62: 299 | AW62: 10540 | AX62: 1 | AY62: 87 | AZ62: PO2902 | BA62: Samenwerkingsverband Passend Primair Onderwijs Oosterschelderegio | BB62: 10399 | BC62: 324 | BD62: 26 | BE62: 10 | BF62: 8 | BG62: 126 | BH62: 11 | BI62: 10 | BJ62: 10412 | BK62: 329 | BL62: 10741 | BM62: 0 | BN62: 80 | BP62: PO2902 | BQ62: Samenwerkingsverband Passend Primair Onderwijs Oosterschelderegio | BR62: 10726 | BS62: 321 | BT62: 16 | BU62: 6 | BV62: 6 | BW62: 139 | BX62: 13 | BY62: 9 | BZ62: 10728 | CA62: 334 | CB62: 11062 | CC62: 0 | CD62: 103 | CE62: 19 | CF62: 15 | CG62: 6 | CH62: 46 | CI62: 51 | CJ62: 21 | CK62: 0 | CL62: 8 | CM62: 11 | CN62: 12 | CO62: 1 | CP62: 0 | CQ62: 1 | CR62: 2 | CS62: 9 | CT62: 75 | CU62: 78 | CV62: 0 | CW62: 7 | CY62: PO2902 | CZ62: Samenwerkingsverband Passend Primair Onderwijs Oosterschelderegio | DA62: 10983 | DB62: 341 | DC62: 29 | DD62: 9 | DE62: 3 | DF62: 153 | DG62: 11 | DH62: 16 | DI62: 10994 | DJ62: 353 | DK62: 11347 | DL62: -806744.43 | DM62: 114 | DN62: 20 | DO62: 19 | DP62: 8 | DQ62: 60 | DR62: 60 | DS62: 20 | DT62: 0 | DU62: 7 | DV62: 10 | DW62: 12 | DX62: 1 | DY62: 0 | DZ62: 0 | EA62: 3 | EB62: 8 | EC62: 80 | ED62: 82 | EE62: 2 | EF62: 7 | EH62: PO2902 | EI62: Goes, Schouwen-Duivenland e.o. | EJ62: 11225 | EK62: 344 | EL62: 34 | EM62: 8 | EN62: 3 | EO62: 156 | EP62: 12 | EQ62: 24 | ER62: 11274 | ES62: 358 | ET62: 11632 | EU62: 11569 | EV62: 123 | EW62: 20 | EX62: 27 | EY62: 9 | EZ62: 58 | FA62: 79 | FB62: 20 | FC62: 3 | FD62: 8 | FE62: 13 | FF62: 9 | FG62: 0 | FH62: 0 | FI62: 0 | FJ62: 5 | FK62: 11 | FL62: 77 | FM62: 88 | FN62: 4 | FO62: 7 | FQ62: PO2903 | FR62: Stichting Samenwerkingsverband Passend Primair Onderwijs Zeeuws-Vlaanderen | FS62: 6379 | FT62: 168 | FU62: 17 | FV62: 4 | FW62: 2 | FX62: 57 | FY62: 7 | FZ62: 3 | GA62: 6549 | GB62: 169 | GC62: 6718 | GF62: 0 | GG62: 0 | GI62: PO2903 | GJ62: Stichting Samenwerkingsverband Passend Primair Onderwijs Zeeuws-Vlaanderen | GK62: 6321 | GL62: 191 | GM62: 10 | GN62: 6 | GO62: 3 | GP62: 47 | GQ62: 10 | GR62: 2 | GU62: 0
A63: PO2903 | B63: Stichting Samenwerkingsverband Passend Primair Onderwijs Zeeuws-Vlaanderen | C63: 6487 | D63: 165 | E63: 12 | F63: 3 | G63: 0 | H63: 58 | I63: 9 | J63: 5 | K63: 6582 | L63: 181 | M63: 6763 | N63: 0 | O63: 29 | P63: -112673.68 | Q63: 14118.42 | S63: PO2903 | T63: Stichting Samenwerkingsverband Passend Primair Onderwijs Zeeuws-Vlaanderen | U63: 6607 | V63: 182 | W63: 12 | X63: 2 | Y63: 0 | Z63: 64 | AA63: 10 | AB63: 7 | AC63: 6582 | AD63: 181 | AE63: 6763 | AF63: 0 | AG63: 29 | AH63: -112458.88 | AI63: 13813.15 | AK63: PO2903 | AL63: Stichting Samenwerkingsverband Passend Primair Onderwijs Zeeuws-Vlaanderen | AM63: 6767 | AN63: 202 | AO63: 12 | AP63: 1 | AQ63: 0 | AR63: 64 | AS63: 6 | AT63: 9 | AU63: 6737 | AV63: 200 | AW63: 6937 | AX63: 0 | AY63: 24 | AZ63: PO2903 | BA63: Stichting Samenwerkingsverband Passend Primair Onderwijs Zeeuws-Vlaanderen | BB63: 6934 | BC63: 233 | BD63: 12 | BE63: 1 | BF63: 0 | BG63: 61 | BH63: 3 | BI63: 8 | BJ63: 6907 | BK63: 233 | BL63: 7140 | BM63: 0 | BN63: 19 | BP63: PO2903 | BQ63: Stichting Samenwerkingsverband Passend Primair Onderwijs Zeeuws-Vlaanderen | BR63: 7275 | BS63: 242 | BT63: 11 | BU63: 2 | BV63: 1 | BW63: 50 | BX63: 4 | BY63: 7 | BZ63: 7236 | CA63: 242 | CB63: 7478 | CC63: 0 | CD63: 23 | CE63: 6 | CF63: 8 | CG63: 1 | CH63: 37 | CI63: 51 | CJ63: 20 | CK63: 5 | CL63: 6 | CM63: 4 | CN63: 20 | CO63: 5 | CP63: 0 | CQ63: 1 | CR63: 7 | CS63: 3 | CT63: 23 | CU63: 64 | CV63: 0 | CW63: 7 | CY63: PO2903 | CZ63: Stichting Samenwerkingsverband Passend Primair Onderwijs Zeeuws-Vlaanderen | DA63: 7582 | DB63: 250 | DC63: 16 | DD63: 3 | DE63: 3 | DF63: 47 | DG63: 5 | DH63: 6 | DI63: 7540 | DJ63: 250 | DK63: 7790 | DL63: 77682.86 | DM63: 22 | DN63: 8 | DO63: 9 | DP63: 1 | DQ63: 40 | DR63: 56 | DS63: 18 | DT63: 4 | DU63: 4 | DV63: 4 | DW63: 19 | DX63: 5 | DY63: 0 | DZ63: 0 | EA63: 5 | EB63: 3 | EC63: 21 | ED63: 72 | EE63: 0 | EF63: 7 | EH63: PO2903 | EI63: Stichting Samenwerkingsverband Passend Primair Onderwijs Zeeuws-Vlaanderen | EJ63: 7866 | EK63: 238 | EL63: 12 | EM63: 3 | EN63: 6 | EO63: 49 | EP63: 3 | EQ63: 6 | ER63: 7847 | ES63: 237 | ET63: 8084 | EU63: 8104 | EV63: 18 | EW63: 6 | EX63: 12 | EY63: 0 | EZ63: 43 | FA63: 66 | FB63: 14 | FC63: 5 | FD63: 4 | FE63: 7 | FF63: 19 | FG63: 3 | FH63: 0 | FI63: 0 | FJ63: 5 | FK63: 7 | FL63: 22 | FM63: 73 | FN63: 0 | FO63: 7 | FQ63: PO3001 | FR63: Stichting Passend Onderwijs Brabantse Wal | FS63: 8200 | FT63: 174 | FU63: 41 | FV63: 6 | FW63: 6 | FX63: 117 | FY63: 4 | FZ63: 17 | GA63: 8207 | GB63: 166 | GC63: 8373 | GF63: 0 | GG63: 0 | GI63: PO3001 | GJ63: Stichting Passend Onderwijs Brabantse Wal | GK63: 8261 | GL63: 180 | GM63: 35 | GN63: 5 | GO63: 7 | GP63: 113 | GQ63: 8 | GR63: 14 | GU63: 0
A64: PO3001 | B64: Stichting Passend Onderwijs Brabantse Wal | C64: 8218 | D64: 185 | E64: 36 | F64: 2 | G64: 6 | H64: 112 | I64: 6 | J64: 18 | K64: 8297 | L64: 155 | M64: 8452 | N64: 1 | O64: 65 | P64: 212507.99 | Q64: 592.81 | S64: PO3001 | T64: Stichting Passend Onderwijs Brabantse Wal | U64: 8335 | V64: 156 | W64: 35 | X64: 4 | Y64: 5 | Z64: 107 | AA64: 4 | AB64: 18 | AC64: 8297 | AD64: 155 | AE64: 8452 | AF64: 1 | AG64: 65 | AH64: 212102.87 | AI64: 579.99 | AK64: PO3001 | AL64: Stichting Passend Onderwijs Brabantse Wal | AM64: 8453 | AN64: 159 | AO64: 28 | AP64: 6 | AQ64: 7 | AR64: 106 | AS64: 5 | AT64: 19 | AU64: 8419 | AV64: 164 | AW64: 8583 | AX64: 3 | AY64: 62 | AZ64: PO3001 | BA64: Stichting Passend Onderwijs Brabantse Wal | BB64: 8625 | BC64: 169 | BD64: 26 | BE64: 7 | BF64: 11 | BG64: 115 | BH64: 4 | BI64: 20 | BJ64: 8608 | BK64: 173 | BL64: 8781 | BM64: 3 | BN64: 52 | BP64: PO3001 | BQ64: Stichting Passend Onderwijs Brabantse Wal | BR64: 8795 | BS64: 172 | BT64: 34 | BU64: 8 | BV64: 8 | BW64: 119 | BX64: 3 | BY64: 18 | BZ64: 8759 | CA64: 176 | CB64: 8935 | CC64: 0 | CD64: 104 | CE64: 11 | CF64: 26 | CG64: 11 | CH64: 38 | CI64: 30 | CJ64: 17 | CK64: 1 | CL64: 10 | CM64: 6 | CN64: 1 | CO64: 0 | CP64: 1 | CQ64: 0 | CR64: 1 | CS64: 5 | CT64: 37 | CU64: 101 | CV64: 2 | CW64: 7 | CY64: PO3001 | CZ64: Stichting Passend Onderwijs Brabantse Wal | DA64: 9043 | DB64: 205 | DC64: 29 | DD64: 5 | DE64: 7 | DF64: 122 | DG64: 6 | DH64: 21 | DI64: 9035 | DJ64: 212 | DK64: 9247 | DL64: -203744.11 | DM64: 97 | DN64: 11 | DO64: 28 | DP64: 7 | DQ64: 47 | DR64: 26 | DS64: 14 | DT64: 1 | DU64: 10 | DV64: 10 | DW64: 4 | DX64: 0 | DY64: 0 | DZ64: 0 | EA64: 0 | EB64: 9 | EC64: 34 | ED64: 95 | EE64: 3 | EF64: 7 | EH64: PO3001 | EI64: Bergen op Zoom e.o. | EJ64: 9241 | EK64: 229 | EL64: 38 | EM64: 2 | EN64: 6 | EO64: 127 | EP64: 9 | EQ64: 20 | ER64: 9260 | ES64: 238 | ET64: 9498 | EU64: 9470 | EV64: 104 | EW64: 11 | EX64: 26 | EY64: 7 | EZ64: 54 | FA64: 23 | FB64: 19 | FC64: 2 | FD64: 9 | FE64: 8 | FF64: 4 | FG64: 0 | FH64: 0 | FI64: 0 | FJ64: 1 | FK64: 5 | FL64: 38 | FM64: 97 | FN64: 4 | FO64: 7 | FQ64: PO3002 | FR64: Samenwerkingsverband Passend Onderwijs Roosendaal-Moerdijk e.o. | FS64: 13041 | FT64: 253 | FU64: 67 | FV64: 16 | FW64: 9 | FX64: 174 | FY64: 11 | FZ64: 18 | GA64: 13041 | GB64: 260 | GC64: 13301 | GF64: 0 | GG64: 0 | GI64: PO3002 | GJ64: Samenwerkingsverband Passend Onderwijs Roosendaal-Moerdijk e.o. | GK64: 12887 | GL64: 258 | GM64: 72 | GN64: 10 | GO64: 11 | GP64: 173 | GQ64: 18 | GR64: 16 | GU64: 0
A65: PO3002 | B65: Samenwerkingsverband Passend Onderwijs Roosendaal-Moerdijk e.o. | C65: 12991 | D65: 258 | E65: 56 | F65: 12 | G65: 11 | H65: 164 | I65: 11 | J65: 15 | K65: 13181 | L65: 283 | M65: 13464 | N65: 5 | O65: 69 | P65: 759588.18 | Q65: 57989.94 | S65: PO3002 | T65: Samenwerkingsverband Passend Onderwijs Roosendaal-Moerdijk e.o. | U65: 13169 | V65: 272 | W65: 36 | X65: 13 | Y65: 8 | Z65: 161 | AA65: 7 | AB65: 13 | AC65: 13181 | AD65: 283 | AE65: 13464 | AF65: 5 | AG65: 69 | AH65: 758140.13 | AI65: 56736.07 | AK65: PO3002 | AL65: Samenwerkingsverband Passend Onderwijs Roosendaal-Moerdijk e.o. | AM65: 13379 | AN65: 303 | AO65: 47 | AP65: 7 | AQ65: 1 | AR65: 151 | AS65: 7 | AT65: 26 | AU65: 13349 | AV65: 305 | AW65: 13654 | AX65: 7 | AY65: 76 | AZ65: PO3002 | BA65: Samenwerkingsverband Passend Onderwijs Roosendaal-Moerdijk e.o. | BB65: 13547 | BC65: 357 | BD65: 50 | BE65: 5 | BF65: 4 | BG65: 169 | BH65: 8 | BI65: 30 | BJ65: 13516 | BK65: 362 | BL65: 13878 | BM65: 6 | BN65: 79 | BP65: PO3002 | BQ65: Samenwerkingsverband Passend Onderwijs Roosendaal-Moerdijk e.o. | BR65: 13922 | BS65: 383 | BT65: 50 | BU65: 6 | BV65: 4 | BW65: 171 | BX65: 6 | BY65: 31 | BZ65: 13920 | CA65: 381 | CB65: 14301 | CC65: 0 | CD65: 156 | CE65: 12 | CF65: 35 | CG65: 16 | CH65: 49 | CI65: 58 | CJ65: 34 | CK65: 2 | CL65: 13 | CM65: 18 | CN65: 5 | CO65: 1 | CP65: 1 | CQ65: 0 | CR65: 2 | CS65: 12 | CT65: 88 | CU65: 39 | CV65: 5 | CW65: 9 | CY65: PO3002 | CZ65: Samenwerkingsverband Passend Onderwijs Roosendaal-Moerdijk e.o. | DA65: 14188 | DB65: 396 | DC65: 49 | DD65: 6 | DE65: 8 | DF65: 190 | DG65: 6 | DH65: 29 | DI65: 14194 | DJ65: 387 | DK65: 14581 | DL65: -720210.57 | DM65: 171 | DN65: 12 | DO65: 37 | DP65: 17 | DQ65: 51 | DR65: 58 | DS65: 32 | DT65: 2 | DU65: 14 | DV65: 18 | DW65: 6 | DX65: 0 | DY65: 1 | DZ65: 0 | EA65: 2 | EB65: 12 | EC65: 94 | ED65: 43 | EE65: 5 | EF65: 9 | EH65: PO3002 | EI65: Moerdijk, Roosendaal e.o. | EJ65: 14500 | EK65: 434 | EL65: 52 | EM65: 4 | EN65: 8 | EO65: 209 | EP65: 8 | EQ65: 38 | ER65: 14485 | ES65: 413 | ET65: 14898 | EU65: 14934 | EV65: 174 | EW65: 12 | EX65: 46 | EY65: 15 | EZ65: 72 | FA65: 53 | FB65: 43 | FC65: 1 | FD65: 18 | FE65: 16 | FF65: 5 | FG65: 1 | FH65: 0 | FI65: 0 | FJ65: 1 | FK65: 12 | FL65: 81 | FM65: 43 | FN65: 6 | FO65: 9 | FQ65: PO3003 | FR65: SWV PO 30-03 Optimale Onderwijs Kans | FS65: 32817 | FT65: 640 | FU65: 180 | FV65: 20 | FW65: 4 | FX65: 531 | FY65: 38 | FZ65: 9 | GA65: 32632 | GB65: 647 | GC65: 33279 | GF65: 0 | GG65: 0 | GI65: PO3003 | GJ65: SWV PO 30-03 Optimale Onderwijs Kans | GK65: 32615 | GL65: 723 | GM65: 188 | GN65: 8 | GP65: 601 | GQ65: 20 | GR65: 8 | GU65: 0
A66: PO3003 | B66: SWV PO 30-03 Optimale Onderwijs Kans | C66: 33158 | D66: 608 | E66: 153 | F66: 36 | G66: 9 | H66: 446 | I66: 58 | J66: 22 | K66: 33192 | L66: 634 | M66: 33826 | N66: 9 | O66: 175 | P66: 2118085.81 | Q66: 171395.89 | S66: PO3003 | T66: SWV PO 30-03 Optimale Onderwijs Kans | U66: 33389 | V66: 623 | W66: 155 | X66: 36 | Y66: 14 | Z66: 441 | AA66: 52 | AB66: 32 | AC66: 33192 | AD66: 634 | AE66: 33826 | AF66: 9 | AG66: 175 | AH66: 2114047.98 | AI66: 167689.94 | AK66: PO3003 | AL66: SWV PO 30-03 Optimale Onderwijs Kans | AM66: 33869 | AN66: 676 | AO66: 165 | AP66: 28 | AQ66: 20 | AR66: 430 | AS66: 41 | AT66: 42 | AU66: 33692 | AV66: 686 | AW66: 34378 | AX66: 10 | AY66: 180 | AZ66: PO3003 | BA66: SWV PO 30-03 Optimale Onderwijs Kans | BB66: 34059 | BC66: 740 | BD66: 175 | BE66: 27 | BF66: 10 | BG66: 435 | BH66: 37 | BI66: 59 | BJ66: 33869 | BK66: 752 | BL66: 34621 | BM66: 11 | BN66: 190 | BP66: PO3003 | BQ66: SWV PO 30-03 Optimale Onderwijs Kans | BR66: 34516 | BS66: 771 | BT66: 162 | BU66: 22 | BV66: 19 | BW66: 445 | BX66: 34 | BY66: 59 | BZ66: 34314 | CA66: 790 | CB66: 35104 | CC66: 0 | CD66: 393 | CE66: 56 | CF66: 78 | CG66: 65 | CH66: 149 | CI66: 131 | CJ66: 139 | CK66: 0 | CL66: 47 | CM66: 12 | CN66: 10 | CO66: 4 | CP66: 0 | CQ66: 3 | CR66: 3 | CS66: 9 | CT66: 215 | CU66: 60 | CV66: 8 | CW66: 11 | CY66: PO3003 | CZ66: SWV PO 30-03 Optimale Onderwijs Kans | DA66: 34939 | DB66: 791 | DC66: 180 | DD66: 24 | DE66: 16 | DF66: 429 | DG66: 25 | DH66: 88 | DI66: 34780 | DJ66: 813 | DK66: 35593 | DL66: -2144936.58 | DM66: 403 | DN66: 49 | DO66: 104 | DP66: 61 | DQ66: 145 | DR66: 137 | DS66: 145 | DT66: 1 | DU66: 34 | DV66: 18 | DW66: 7 | DX66: 6 | DY66: 0 | DZ66: 0 | EA66: 3 | EB66: 12 | EC66: 218 | ED66: 65 | EE66: 8 | EF66: 11 | EH66: PO3003 | EI66: SWV PO 30-03 Optimale Onderwijs Kans | EJ66: 35208 | EK66: 838 | EL66: 175 | EM66: 20 | EN66: 16 | EO66: 453 | EP66: 30 | EQ66: 93 | ER66: 35060 | ES66: 858 | ET66: 35918 | EU66: 36046 | EV66: 395 | EW66: 50 | EX66: 109 | EY66: 78 | EZ66: 155 | FA66: 129 | FB66: 144 | FC66: 1 | FD66: 31 | FE66: 16 | FF66: 8 | FG66: 9 | FH66: 0 | FI66: 0 | FJ66: 4 | FK66: 9 | FL66: 205 | FM66: 56 | FN66: 12 | FO66: 11 | FQ66: PO3004 | FR66: Passend Onderwijs PO 30-04 | FS66: 22210 | FT66: 735 | FU66: 83 | FV66: 10 | FW66: 9 | FX66: 227 | FY66: 25 | FZ66: 19 | GA66: 22195 | GB66: 706 | GC66: 22901 | GF66: 0 | GG66: 0 | GI66: PO3004 | GJ66: Passend Onderwijs PO 30-04 | GK66: 22073 | GL66: 799 | GM66: 95 | GN66: 13 | GO66: 14 | GP66: 253 | GQ66: 22 | GR66: 18 | GU66: 0
A67: PO3004 | B67: Passend Onderwijs PO 30-04 | C67: 22437 | D67: 676 | E67: 83 | F67: 14 | G67: 12 | H67: 208 | I67: 28 | J67: 33 | K67: 22625 | L67: 644 | M67: 23269 | N67: 10 | O67: 110 | P67: 3769618.11 | Q67: 443497.61 | S67: PO3004 | T67: Passend Onderwijs PO 30-04 | U67: 22639 | V67: 675 | W67: 78 | X67: 13 | Y67: 14 | Z67: 191 | AA67: 29 | AB67: 32 | AC67: 22625 | AD67: 644 | AE67: 23269 | AF67: 10 | AG67: 110 | AH67: 3762431.87 | AI67: 433908.24 | AK67: PO3004 | AL67: Passend Onderwijs PO 30-04 | AM67: 22814 | AN67: 732 | AO67: 74 | AP67: 23 | AQ67: 16 | AR67: 214 | AS67: 38 | AT67: 40 | AU67: 22789 | AV67: 706 | AW67: 23495 | AX67: 7 | AY67: 96 | AZ67: PO3004 | BA67: Passend Onderwijs PO 30-04 | BB67: 22853 | BC67: 802 | BD67: 65 | BE67: 26 | BF67: 18 | BG67: 235 | BH67: 38 | BI67: 45 | BJ67: 22839 | BK67: 779 | BL67: 23618 | BM67: 8 | BN67: 95 | BP67: PO3004 | BQ67: Passend Onderwijs PO 30-04 | BR67: 22964 | BS67: 846 | BT67: 71 | BU67: 19 | BV67: 16 | BW67: 281 | BX67: 41 | BY67: 40 | BZ67: 22947 | CA67: 828 | CB67: 23775 | CC67: 0 | CD67: 266 | CE67: 60 | CF67: 56 | CG67: 11 | CH67: 75 | CI67: 120 | CJ67: 133 | CK67: 1 | CL67: 22 | CM67: 31 | CN67: 76 | CO67: 14 | CP67: 0 | CQ67: 1 | CR67: 13 | CS67: 27 | CT67: 110 | CU67: 43 | CV67: 7 | CW67: 11 | CY67: PO3004 | CZ67: Passend Onderwijs PO 30-04 | DA67: 23232 | DB67: 890 | DC67: 82 | DD67: 19 | DE67: 28 | DF67: 289 | DG67: 41 | DH67: 28 | DI67: 23176 | DJ67: 875 | DK67: 24051 | DL67: -3857275.31 | DM67: 279 | DN67: 60 | DO67: 56 | DP67: 12 | DQ67: 80 | DR67: 138 | DS67: 127 | DT67: 2 | DU67: 15 | DV67: 34 | DW67: 85 | DX67: 12 | DY67: 1 | DZ67: 1 | EA67: 15 | EB67: 31 | EC67: 118 | ED67: 43 | EE67: 7 | EF67: 11 | EH67: PO3004 | EI67: Passend Onderwijs PO 30-04 | EJ67: 23490 | EK67: 926 | EL67: 68 | EM67: 25 | EN67: 23 | EO67: 288 | EP67: 34 | EQ67: 56 | ER67: 23394 | ES67: 919 | ET67: 24313 | EU67: 24416 | EV67: 266 | EW67: 59 | EX67: 79 | EY67: 12 | EZ67: 78 | FA67: 158 | FB67: 128 | FC67: 2 | FD67: 15 | FE67: 41 | FF67: 89 | FG67: 13 | FH67: 2 | FI67: 3 | FJ67: 12 | FK67: 34 | FL67: 96 | FM67: 32 | FN67: 9 | FO67: 11 | FQ67: PO3005 | FR67: Samenwerkingsverband Primair Onderwijs De Meierij | FS67: 27218 | FT67: 264 | FU67: 125 | FV67: 13 | FW67: 16 | FX67: 379 | FY67: 21 | FZ67: 27 | GA67: 27643 | GB67: 282 | GC67: 27925 | GF67: =ROUND(HN67*(1+GF$1),2) -> 0 | GG67: =ROUND(HO67*(1+GG$1),2) -> 0 | GI67: PO3005 | GJ67: Samenwerkingsverband Primair Onderwijs De Meierij | GK67: 27006 | GL67: 217 | GM67: 137 | GN67: 14 | GO67: 15 | GP67: 358 | GQ67: 27 | GR67: 26 | GU67: 0
A68: PO3005 | B68: Samenwerkingsverband Primair Onderwijs De Meierij | C68: 27426 | D68: 307 | E68: 122 | F68: 12 | G68: 13 | H68: 348 | I68: 20 | J68: 37 | K68: 27583 | L68: 392 | M68: 27975 | N68: 3 | O68: 85 | P68: =ROUND(AH68*(1+P$1),2) -> 106490.16 | Q68: -25792.45 | S68: PO3005 | T68: Samenwerkingsverband Primair Onderwijs De Meierij | U68: 27663 | V68: 394 | W68: 106 | X68: 10 | Y68: 15 | Z68: 339 | AA68: 20 | AB68: 49 | AC68: 27583 | AD68: 392 | AE68: 27975 | AF68: 3 | AG68: 85 | AH68: 106287.15 | AI68: -25234.76 | AK68: PO3005 | AL68: Samenwerkingsverband Primair Onderwijs De Meierij | AM68: 27982 | AN68: 445 | AO68: 84 | AP68: 7 | AQ68: 14 | AR68: 292 | AS68: 22 | AT68: 62 | AU68: 27929 | AV68: 442 | AW68: 28371 | AX68: 3 | AY68: 111 | AZ68: PO3005 | BA68: Samenwerkingsverband Primair Onderwijs De Meierij | BB68: 28245 | BC68: 506 | BD68: 94 | BE68: 10 | BF68: 18 | BG68: 290 | BH68: 15 | BI68: 60 | BJ68: 28237 | BK68: 500 | BL68: 28737 | BM68: 4 | BN68: 134 | BP68: PO3005 | BQ68: Samenwerkingsverband Primair Onderwijs De Meierij | BR68: 28566 | BS68: 532 | BT68: 96 | BU68: 9 | BV68: 18 | BW68: 270 | BX68: 14 | BY68: 69 | BZ68: 27958 | CA68: 523 | CB68: 28481 | CC68: 0 | CD68: 214 | CE68: 23 | CF68: 86 | CG68: 8 | CH68: 130 | CI68: 145 | CJ68: 37 | CK68: 2 | CL68: 30 | CM68: 31 | CN68: 12 | CO68: 1 | CP68: 1 | CQ68: 3 | CR68: 5 | CS68: 28 | CT68: 143 | CU68: 86 | CV68: 4 | CW68: 17 | CY68: PO3005 | CZ68: Samenwerkingsverband Primair Onderwijs De Meierij | DA68: 28380 | DB68: 557 | DC68: 100 | DD68: 10 | DE68: 22 | DF68: 256 | DG68: 19 | DH68: 65 | DI68: 28350 | DJ68: 548 | DK68: 28898 | DL68: -154013.13 | DM68: 199 | DN68: 28 | DO68: 85 | DP68: 9 | DQ68: 137 | DR68: 157 | DS68: 26 | DT68: 2 | DU68: 21 | DV68: 30 | DW68: 12 | DX68: 1 | DY68: 2 | DZ68: 0 | EA68: 1 | EB68: 19 | EC68: 156 | ED68: 78 | EE68: 4 | EF68: 17 | EH68: PO3005 | EI68: Samenwerkingsverband Primair Onderwijs De Meierij | EJ68: 29291 | EK68: 617 | EL68: 104 | EM68: 6 | EN68: 20 | EO68: 270 | EP68: 24 | EQ68: 68 | ER68: 28628 | ES68: 606 | ET68: 29234 | EU68: 29908 | EV68: 209 | EW68: 30 | EX68: 88 | EY68: 9 | EZ68: 156 | FA68: 168 | FB68: 27 | FC68: 3 | FD68: 19 | FE68: 31 | FF68: 12 | FG68: 0 | FH68: 2 | FI68: 2 | FJ68: 2 | FK68: 21 | FL68: 141 | FM68: 78 | FN68: 6 | FO68: 17 | FQ68: PO3006 | FR68: Samenwerkingsverband PO 3006 | FS68: 18541 | FT68: 397 | FU68: 120 | FV68: 12 | FW68: 10 | FX68: 336 | FY68: 7 | FZ68: 27 | GA68: 18609 | GB68: 387 | GC68: =GB68+GA68 -> 18996 | GF68: 0 | GG68: 0 | GI68: PO3006 | GJ68: Samenwerkingsverband PO 3006 | GK68: 18399 | GL68: 405 | GM68: 138 | GN68: 12 | GO68: 11 | GP68: 341 | GQ68: 9 | GR68: 23 | GU68: =GT68+GS68 -> 0
A69: PO3006 | B69: Samenwerkingsverband PO 3006 | C69: 18702 | D69: 402 | E69: 126 | F69: 13 | G69: 11 | H69: 314 | I69: 8 | J69: 25 | K69: 19154 | L69: 434 | M69: 19588 | N69: 4 | O69: 125 | P69: 1088331.9 | Q69: 109665.56 | S69: PO3006 | T69: Samenwerkingsverband PO 3006 | U69: 19088 | V69: 443 | W69: 104 | X69: 10 | Y69: 20 | Z69: 315 | AA69: 15 | AB69: 35 | AC69: 19154 | AD69: 434 | AE69: 19588 | AF69: 4 | AG69: 125 | AH69: 1086257.15 | AI69: 107294.35 | AK69: PO3006 | AL69: Samenwerkingsverband PO 3006 | AM69: 19398 | AN69: 512 | AO69: 92 | AP69: 7 | AQ69: 16 | AR69: 296 | AS69: 13 | AT69: 46 | AU69: 19470 | AV69: 501 | AW69: 19971 | AX69: 4 | AY69: 124 | AZ69: PO3006 | BA69: Samenwerkingsverband PO 3006 | BB69: 19919 | BC69: 570 | BD69: 99 | BE69: 4 | BF69: 13 | BG69: 291 | BH69: 13 | BI69: 43 | BJ69: 19957 | BK69: 561 | BL69: 20518 | BM69: 2 | BN69: 131 | BP69: PO3006 | BQ69: Samenwerkingsverband PO 3006 | BR69: 20507 | BS69: 606 | BT69: 96 | BU69: 6 | BV69: 17 | BW69: 276 | BX69: 16 | BY69: 40 | BZ69: 21152 | CA69: 600 | CB69: 21752 | CC69: 0 | CD69: 277 | CE69: 22 | CF69: 58 | CG69: 6 | CH69: 103 | CI69: 151 | CJ69: 26 | CK69: 3 | CL69: 19 | CM69: 12 | CN69: 17 | CO69: 1 | CP69: 1 | CQ69: 1 | CR69: 9 | CS69: 4 | CT69: 150 | CU69: 95 | CV69: 7 | CW69: 20 | CY69: PO3006 | CZ69: Samenwerkingsverband PO 3006 | DA69: 21735 | DB69: 680 | DC69: 94 | DD69: 4 | DE69: 10 | DF69: 272 | DG69: 14 | DH69: 40 | DI69: 21813 | DJ69: 673 | DK69: 22486 | DL69: -1060258.88 | DM69: 254 | DN69: 19 | DO69: 52 | DP69: 7 | DQ69: 116 | DR69: 166 | DS69: 33 | DT69: 3 | DU69: 24 | DV69: 11 | DW69: 13 | DX69: 1 | DY69: 2 | DZ69: 2 | EA69: 4 | EB69: 8 | EC69: 151 | ED69: 98 | EE69: 6 | EF69: 20 | EH69: PO3006 | EI69: Oss e.o. | EJ69: 21623 | EK69: 718 | EL69: 104 | EM69: 6 | EN69: 13 | EO69: 293 | EP69: 9 | EQ69: 33 | ER69: 22370 | ES69: 696 | ET69: 23066 | EU69: 22341 | EV69: 277 | EW69: 15 | EX69: 46 | EY69: 11 | EZ69: 109 | FA69: 150 | FB69: 29 | FC69: 5 | FD69: 23 | FE69: 18 | FF69: 18 | FG69: 2 | FH69: 0 | FI69: 1 | FJ69: 2 | FK69: 15 | FL69: 128 | FM69: 90 | FN69: 9 | FO69: 20 | FQ69: PO3007 | FR69: Samenwerkingsverband Passend Onderwijs Eindhoven e.o. | FS69: 21262 | FT69: 475 | FU69: 75 | FV69: 22 | FW69: 16 | FX69: 233 | FY69: 39 | FZ69: 34 | GA69: 20680 | GB69: 487 | GC69: 21167 | GF69: 0 | GG69: 0 | GI69: PO3007 | GJ69: Samenwerkingsverband Passend Onderwijs Eindhoven e.o. | GK69: 21314 | GL69: 462 | GM69: 76 | GN69: 16 | GO69: 20 | GP69: 215 | GQ69: 50 | GR69: 36 | GU69: 0
A70: PO3007 | B70: Samenwerkingsverband Passend Onderwijs Eindhoven e.o. | C70: 21227 | D70: 542 | E70: 74 | F70: 11 | G70: 14 | H70: 228 | I70: 28 | J70: 33 | K70: 20901 | L70: 571 | M70: 21472 | N70: 3 | O70: 120 | P70: 1460354.66 | Q70: 183404.34 | S70: PO3007 | T70: Samenwerkingsverband Passend Onderwijs Eindhoven e.o. | U70: 21374 | V70: 573 | W70: 75 | X70: 9 | Y70: 10 | Z70: 217 | AA70: 24 | AB70: 39 | AC70: 20901 | AD70: 571 | AE70: 21472 | AF70: 3 | AG70: 120 | AH70: 1457570.7 | AI70: 179438.74 | AK70: PO3007 | AL70: Samenwerkingsverband Passend Onderwijs Eindhoven e.o. | AM70: 21653 | AN70: 567 | AO70: 66 | AP70: 10 | AQ70: 11 | AR70: 218 | AS70: 19 | AT70: 46 | AU70: 21176 | AV70: 567 | AW70: 21743 | AX70: 2 | AY70: 133 | AZ70: PO3007 | BA70: Samenwerkingsverband Passend Onderwijs Eindhoven e.o. | BB70: 21659 | BC70: 556 | BD70: 65 | BE70: 6 | BF70: 7 | BG70: 216 | BH70: 22 | BI70: 50 | BJ70: 21237 | BK70: 548 | BL70: 21785 | BM70: 2 | BN70: 144 | BP70: PO3007 | BQ70: Samenwerkingsverband Passend Onderwijs Eindhoven e.o. | BR70: 21644 | BS70: 564 | BT70: 74 | BU70: 10 | BV70: 9 | BW70: 206 | BX70: 18 | BY70: 45 | BZ70: 21253 | CA70: 542 | CB70: 21795 | CC70: 0 | CD70: 188 | CE70: 28 | CF70: 54 | CG70: 31 | CH70: 61 | CI70: 215 | CJ70: 17 | CK70: 2 | CL70: 16 | CM70: 27 | CN70: 49 | CO70: 2 | CP70: 0 | CQ70: 1 | CR70: 10 | CS70: 22 | CT70: 143 | CU70: 50 | CV70: 4 | CW70: 12 | CY70: PO3007 | CZ70: Samenwerkingsverband Passend Onderwijs Eindhoven e.o. | DA70: 21668 | DB70: 591 | DC70: 90 | DD70: 12 | DE70: 11 | DF70: 206 | DG70: 21 | DH70: 44 | DI70: 21329 | DJ70: 570 | DK70: 21899 | DL70: -1483575.28 | DM70: 202 | DN70: 33 | DO70: 55 | DP70: 22 | DQ70: 72 | DR70: 212 | DS70: 17 | DT70: 0 | DU70: 0 | DV70: 25 | DW70: 57 | DX70: 0 | DY70: 0 | DZ70: 0 | EA70: 13 | EB70: 22 | EC70: 144 | ED70: 48 | EE70: 5 | EF70: 12 | EH70: PO3007 | EI70: Samenwerkingsverband Passend Onderwijs Eindhoven e.o. | EJ70: 21777 | EK70: 593 | EL70: 82 | EM70: 10 | EN70: 11 | EO70: 228 | EP70: 20 | EQ70: 41 | ER70: 21406 | ES70: 574 | ET70: 21980 | EU70: 22370 | EV70: 213 | EW70: 30 | EX70: 52 | EY70: 19 | EZ70: 78 | FA70: 198 | FB70: 22 | FC70: 1 | FD70: 0 | FE70: 29 | FF70: 62 | FG70: 2 | FH70: 0 | FI70: 0 | FJ70: 19 | FK70: 24 | FL70: 119 | FM70: 55 | FN70: 4 | FO70: 12 | FQ70: PO3008 | FR70: Samenwerkingsverband Passend onderwijs PO Helmond-Peelland | FS70: 23989 | FT70: 677 | FU70: 100 | FV70: 16 | FW70: 15 | FX70: 296 | FY70: 35 | FZ70: 38 | GA70: 24010 | GB70: 678 | GC70: 24688 | GF70: 0 | GG70: 0 | GI70: PO3008 | GJ70: Samenwerkingsverband Passend onderwijs PO Helmond-Peelland | GK70: 23840 | GL70: 684 | GM70: 112 | GN70: 15 | GO70: 11 | GP70: 336 | GQ70: 20 | GR70: 30 | GU70: 0
A71: PO3008 | B71: Samenwerkingsverband Passend onderwijs PO Helmond-Peelland | C71: 24152 | D71: 643 | E71: 83 | F71: 17 | G71: 10 | H71: 286 | I71: 21 | J71: 34 | K71: 24483 | L71: 674 | M71: 25157 | N71: 3 | O71: 104 | P71: 1173991.2 | Q71: 211002.45 | S71: PO3008 | T71: Samenwerkingsverband Passend onderwijs PO Helmond-Peelland | U71: 24469 | V71: 664 | W71: 93 | X71: 8 | Y71: 13 | Z71: 280 | AA71: 17 | AB71: 33 | AC71: 24483 | AD71: 674 | AE71: 25157 | AF71: 3 | AG71: 104 | AH71: 1171753.15 | AI71: 206440.12 | AK71: PO3008 | AL71: Samenwerkingsverband Passend onderwijs PO Helmond-Peelland | AM71: 25003 | AN71: 694 | AO71: 79 | AP71: 13 | AQ71: 10 | AR71: 279 | AS71: 10 | AT71: 29 | AU71: 25057 | AV71: 700 | AW71: 25757 | AX71: 5 | AY71: 96 | AZ71: PO3008 | BA71: Samenwerkingsverband Passend onderwijs PO Helmond-Peelland | BB71: 25365 | BC71: 738 | BD71: 83 | BE71: 11 | BF71: 9 | BG71: 312 | BH71: 12 | BI71: 29 | BJ71: 25420 | BK71: 757 | BL71: 26177 | BM71: 4 | BN71: 99 | BP71: PO3008 | BQ71: Samenwerkingsverband Passend onderwijs PO Helmond-Peelland | BR71: 25954 | BS71: 788 | BT71: 97 | BU71: 10 | BV71: 8 | BW71: 284 | BX71: 13 | BY71: 31 | BZ71: 25964 | CA71: 816 | CB71: 26780 | CC71: 0 | CD71: 248 | CE71: 23 | CF71: 39 | CG71: 28 | CH71: 105 | CI71: 282 | CJ71: 47 | CK71: 1 | CL71: 28 | CM71: 38 | CN71: 75 | CO71: 3 | CP71: 0 | CQ71: 4 | CR71: 21 | CS71: 29 | CT71: 101 | CU71: 80 | CV71: 5 | CW71: 16 | CY71: PO3008 | CZ71: Samenwerkingsverband Passend onderwijs PO Helmond-Peelland | DA71: 26605 | DB71: 812 | DC71: 100 | DD71: 7 | DE71: 6 | DF71: 228 | DG71: 19 | DH71: 34 | DI71: 26594 | DJ71: 837 | DK71: 27431 | DL71: -1338317.06 | DM71: 201 | DN71: 26 | DO71: 40 | DP71: 26 | DQ71: 101 | DR71: 254 | DS71: 44 | DT71: 2 | DU71: 2 | DV71: 29 | DW71: 88 | DX71: 6 | DY71: 0 | DZ71: 0 | EA71: 21 | EB71: 20 | EC71: 118 | ED71: 62 | EE71: 5 | EF71: 16 | EH71: PO3008 | EI71: Helmond e.o. | EJ71: 27074 | EK71: 849 | EL71: 105 | EM71: 9 | EN71: 8 | EO71: 240 | EP71: 23 | EQ71: 30 | ER71: 27100 | ES71: 886 | ET71: 27986 | EU71: 27923 | EV71: 207 | EW71: 32 | EX71: 38 | EY71: 26 | EZ71: 112 | FA71: 263 | FB71: 36 | FC71: 1 | FD71: 1 | FE71: 33 | FF71: 97 | FG71: 7 | FH71: 0 | FI71: 0 | FJ71: 24 | FK71: 26 | FL71: 130 | FM71: 56 | FN71: 4 | FO71: 16 | FQ71: PO3009 | FR71: Stichting samenwerkingsverband Passend Onderwijs De Kempen | FS71: 15760 | FT71: 318 | FU71: 62 | FV71: 10 | FW71: 2 | FX71: 152 | FY71: 12 | FZ71: 18 | GA71: 16005 | GB71: 331 | GC71: 16336 | GF71: 0 | GG71: 0 | GI71: PO3009 | GJ71: Stichting samenwerkingsverband Passend Onderwijs De Kempen | GK71: 15917 | GL71: 309 | GM71: 59 | GN71: 10 | GO71: 2 | GP71: 158 | GQ71: 25 | GR71: 17 | GU71: 0
A72: PO3009 | B72: Stichting samenwerkingsverband Passend Onderwijs De Kempen | C72: 15750 | D72: 323 | E72: 55 | F72: 10 | G72: 5 | H72: 152 | I72: 10 | J72: 14 | K72: 16303 | L72: 302 | M72: 16605 | N72: 2 | O72: 50 | P72: 752888.49 | Q72: 156947.7 | S72: PO3009 | T72: Stichting samenwerkingsverband Passend Onderwijs De Kempen | U72: 16112 | V72: 288 | W72: 39 | X72: 10 | Y72: 4 | Z72: 149 | AA72: 10 | AB72: 18 | AC72: 16303 | AD72: 302 | AE72: 16605 | AF72: 2 | AG72: 50 | AH72: 751453.21 | AI72: 153554.15 | AK72: PO3009 | AL72: Stichting samenwerkingsverband Passend Onderwijs De Kempen | AM72: 16337 | AN72: 305 | AO72: 54 | AP72: 5 | AQ72: 3 | AR72: 163 | AS72: 7 | AT72: 11 | AU72: 16478 | AV72: 306 | AW72: 16784 | AX72: 2 | AY72: 52 | AZ72: PO3009 | BA72: Stichting samenwerkingsverband Passend Onderwijs De Kempen | BB72: 16709 | BC72: 321 | BD72: 54 | BE72: 3 | BF72: 3 | BG72: 159 | BH72: 10 | BI72: 17 | BJ72: 16831 | BK72: 314 | BL72: 17145 | BM72: 3 | BN72: 54 | BP72: PO3009 | BQ72: Stichting samenwerkingsverband Passend Onderwijs De Kempen | BR72: 16967 | BS72: 316 | BT72: 50 | BU72: 3 | BV72: 8 | BW72: 136 | BX72: 16 | BY72: 18 | BZ72: 17103 | CA72: 303 | CB72: 17406 | CC72: 0 | CD72: 104 | CE72: 19 | CF72: 26 | CG72: 29 | CH72: 53 | CI72: 189 | CJ72: 50 | CK72: 0 | CL72: 20 | CM72: 17 | CN72: 67 | CO72: 6 | CP72: 0 | CQ72: 2 | CR72: 11 | CS72: 17 | CT72: 65 | CU72: 50 | CV72: 2 | CW72: 7 | CY72: PO3009 | CZ72: Stichting samenwerkingsverband Passend Onderwijs De Kempen | DA72: 17336 | DB72: 346 | DC72: 53 | DD72: 5 | DE72: 7 | DF72: 124 | DG72: 13 | DH72: 16 | DI72: 17465 | DJ72: 334 | DK72: 17799 | DL72: -821010.98 | DM72: 101 | DN72: 18 | DO72: 23 | DP72: 26 | DQ72: 50 | DR72: 174 | DS72: 43 | DT72: 0 | DU72: 5 | DV72: 22 | DW72: 59 | DX72: 7 | DY72: 0 | DZ72: 0 | EA72: 8 | EB72: 19 | EC72: 64 | ED72: 44 | EE72: 2 | EF72: 7 | EH72: PO3009 | EI72: Stichting samenwerkingsverband Passend Onderwijs De Kempen | EJ72: 17810 | EK72: 362 | EL72: 54 | EM72: 10 | EN72: 5 | EO72: 126 | EP72: 10 | EQ72: 18 | ER72: 17937 | ES72: 349 | ET72: 18286 | EU72: 18172 | EV72: 97 | EW72: 20 | EX72: 23 | EY72: 24 | EZ72: 59 | FA72: 191 | FB72: 42 | FC72: 0 | FD72: 2 | FE72: 24 | FF72: 64 | FG72: 6 | FH72: 0 | FI72: 0 | FJ72: 6 | FK72: 20 | FL72: 67 | FM72: 41 | FN72: 2 | FO72: 7 | FQ72: PO3010 | FR72: Samenwerkingsverband PO 30-10 | FS72: 9987 | FT72: 261 | FU72: 34 | FV72: 4 | FW72: 1 | FX72: 99 | FY72: 9 | FZ72: 8 | GA72: 10453 | GB72: 259 | GC72: 10712 | GF72: 0 | GG72: 0 | GI72: PO3010 | GJ72: Samenwerkingsverband PO 30-10 | GK72: 9932 | GL72: 259 | GM72: 42 | GN72: 7 | GO72: 3 | GP72: 107 | GQ72: 5 | GR72: 6 | GU72: 0
A73: PO3010 | B73: Samenwerkingsverband PO 30-10 | C73: 10054 | D73: 255 | E73: 27 | F73: 2 | G73: 3 | H73: 88 | I73: 11 | J73: 5 | K73: 10165 | L73: 240 | M73: 10405 | N73: 3 | O73: 36 | P73: 828250.2 | Q73: 115231.56 | S73: PO3010 | T73: Samenwerkingsverband PO 30-10 | U73: 10119 | V73: 244 | W73: 27 | X73: 3 | Y73: 2 | Z73: 82 | AA73: 8 | AB73: 8 | AC73: 10165 | AD73: 240 | AE73: 10405 | AF73: 3 | AG73: 36 | AH73: 826671.26 | AI73: 112740.01 | AK73: PO3010 | AL73: Samenwerkingsverband PO 30-10 | AM73: 10185 | AN73: 254 | AO73: 16 | AP73: 4 | AQ73: 3 | AR73: 78 | AS73: 4 | AT73: 17 | AU73: 10268 | AV73: 253 | AW73: 10521 | AX73: 4 | AY73: 40 | AZ73: PO3010 | BA73: Samenwerkingsverband PO 30-10 | BB73: 10374 | BC73: 264 | BD73: 23 | BE73: 4 | BF73: 4 | BG73: 77 | BH73: 5 | BI73: 15 | BJ73: 10439 | BK73: 261 | BL73: 10700 | BM73: 2 | BN73: 45 | BP73: PO3010 | BQ73: Samenwerkingsverband PO 30-10 | BR73: 10528 | BS73: 291 | BT73: 16 | BU73: 9 | BV73: 4 | BW73: 84 | BX73: 7 | BY73: 14 | BZ73: 10609 | CA73: 288 | CB73: 10897 | CC73: 0 | CD73: 68 | CE73: 16 | CF73: 18 | CG73: 2 | CH73: 30 | CI73: 71 | CJ73: 31 | CK73: 1 | CL73: 11 | CM73: 18 | CN73: 21 | CO73: 5 | CP73: 0 | CQ73: 1 | CR73: 9 | CS73: 15 | CT73: 45 | CU73: 29 | CV73: 3 | CW73: 9 | CY73: PO3010 | CZ73: Samenwerkingsverband PO 30-10 | DA73: 10720 | DB73: 300 | DC73: 27 | DD73: 8 | DE73: 2 | DF73: 83 | DG73: 11 | DH73: 15 | DI73: 10829 | DJ73: 285 | DK73: 11114 | DL73: -861448.91 | DM73: 80 | DN73: 19 | DO73: 17 | DP73: 2 | DQ73: 28 | DR73: 85 | DS73: 38 | DT73: 2 | DU73: 10 | DV73: 20 | DW73: 21 | DX73: 7 | DY73: 2 | DZ73: 0 | EA73: 5 | EB73: 17 | EC73: 46 | ED73: 29 | EE73: 2 | EF73: 9 | EH73: PO3010 | EI73: Samenwerkingsverban PO 30-10 | EJ73: 10934 | EK73: 297 | EL73: 26 | EM73: 7 | EN73: 5 | EO73: 87 | EP73: 12 | EQ73: 20 | ER73: 11051 | ES73: 281 | ET73: 11332 | EU73: 11231 | EV73: 80 | EW73: 19 | EX73: 25 | EY73: 2 | EZ73: 31 | FA73: 83 | FB73: 37 | FC73: 2 | FD73: 13 | FE73: 17 | FF73: 27 | FG73: 7 | FH73: 5 | FI73: 0 | FJ73: 10 | FK73: 16 | FL73: 44 | FM73: 29 | FN73: 2 | FO73: 9 | FQ73: PO3101 | FR73: Stichting SWV Primair passend Onderwijs Noord-Limburg | FS73: 20817 | FT73: 601 | FU73: 88 | FV73: 13 | FW73: 16 | FX73: 232 | FY73: 21 | FZ73: 27 | GA73: 20754 | GB73: 602 | GC73: 21356 | GF73: 0 | GG73: 0 | GI73: PO3101 | GJ73: Stichting SWV Primair passend Onderwijs Noord-Limburg | GK73: 20287 | GL73: 611 | GM73: 102 | GN73: 10 | GO73: 14 | GP73: 242 | GQ73: 17 | GR73: 20 | GU73: 0
A74: PO3101 | B74: Stichting SWV Primair passend Onderwijs Noord-Limburg | C74: 21208 | D74: 592 | E74: 98 | F74: 15 | G74: 16 | H74: 241 | I74: 25 | J74: 26 | K74: 21584 | L74: 632 | M74: 22216 | N74: 4 | O74: 120 | P74: 1477984.06 | Q74: 161601.02 | S74: PO3101 | T74: Stichting SWV Primair passend Onderwijs Noord-Limburg | U74: 21611 | V74: 636 | W74: 102 | X74: 13 | Y74: 13 | Z74: 256 | AA74: 28 | AB74: 34 | AC74: 21584 | AD74: 632 | AE74: 22216 | AF74: 4 | AG74: 120 | AH74: 1475166.49 | AI74: 158106.86 | AK74: PO3101 | AL74: Stichting SWV Primair passend Onderwijs Noord-Limburg | AM74: 22068 | AN74: 617 | AO74: 97 | AP74: 11 | AQ74: 18 | AR74: 300 | AS74: 25 | AT74: 44 | AU74: 22062 | AV74: 608 | AW74: 22670 | AX74: 4 | AY74: 119 | AZ74: PO3101 | BA74: Stichting SWV Primair passend Onderwijs Noord-Limburg | BB74: 22570 | BC74: 612 | BD74: 109 | BE74: 14 | BF74: 21 | BG74: 324 | BH74: 26 | BI74: 40 | BJ74: 22565 | BK74: 603 | BL74: 23168 | BM74: 5 | BN74: 135 | BP74: PO3101 | BQ74: Stichting SWV Primair passend Onderwijs Noord-Limburg | BR74: 23408 | BS74: 624 | BT74: 102 | BU74: 13 | BV74: 19 | BW74: 285 | BX74: 29 | BY74: 36 | BZ74: 23387 | CA74: 624 | CB74: 24011 | CC74: 0 | CD74: 294 | CE74: 42 | CF74: 55 | CG74: 6 | CH74: 87 | CI74: 124 | CJ74: 64 | CK74: 2 | CL74: 25 | CM74: 13 | CN74: 20 | CO74: 5 | CP74: 1 | CQ74: 2 | CR74: 7 | CS74: 9 | CT74: 139 | CU74: 48 | CV74: 8 | CW74: 16 | CY74: PO3101 | CZ74: Stichting SWV Primair passend Onderwijs Noord-Limburg | DA74: 24034 | DB74: 629 | DC74: 102 | DD74: 14 | DE74: 9 | DF74: 304 | DG74: 26 | DH74: 51 | DI74: 24045 | DJ74: 626 | DK74: 24671 | DL74: -1439391.23 | DM74: 318 | DN74: 40 | DO74: 60 | DP74: 5 | DQ74: 83 | DR74: 127 | DS74: 74 | DT74: 5 | DU74: 18 | DV74: 17 | DW74: 26 | DX74: 5 | DY74: 0 | DZ74: 0 | EA74: 9 | EB74: 15 | EC74: 149 | ED74: 57 | EE74: 8 | EF74: 16 | EH74: PO3101 | EI74: Stichting SWV Primair passend Onderwijs Noord-Limburg | EJ74: 24701 | EK74: 702 | EL74: 101 | EM74: 18 | EN74: 11 | EO74: 286 | EP74: 27 | EQ74: 43 | ER74: 24668 | ES74: 702 | ET74: 25370 | EU74: 25403 | EV74: 293 | EW74: 45 | EX74: 54 | EY74: 8 | EZ74: 86 | FA74: 146 | FB74: 75 | FC74: 6 | FD74: 16 | FE74: 18 | FF74: 35 | FG74: 7 | FH74: 0 | FI74: 0 | FJ74: 16 | FK74: 15 | FL74: 126 | FM74: 49 | FN74: 7 | FO74: 16 | FQ74: PO3102 | FR74: SWV PO 31-02 Midden Limburg | FS74: 11400 | FT74: 346 | FU74: 84 | FV74: 6 | FW74: 6 | FX74: 223 | FY74: 8 | FZ74: 9 | GA74: 11279 | GB74: 321 | GC74: 11600 | GF74: 0 | GG74: 0 | GI74: PO3102 | GJ74: SWV PO 31-02 Midden Limburg | GK74: 11368 | GL74: 368 | GM74: 86 | GN74: 5 | GO74: 5 | GP74: 249 | GQ74: 11 | GR74: 10 | GU74: 0
A75: PO3102 | B75: SWV PO 31-02 Midden Limburg | C75: 11588 | D75: 322 | E75: 78 | F75: 4 | G75: 7 | H75: 211 | I75: 11 | J75: 7 | K75: 11584 | L75: 312 | M75: 11896 | N75: 1 | O75: 55 | P75: 1225894.29 | Q75: 102863.46 | S75: PO3102 | T75: SWV PO 31-02 Midden Limburg | U75: 11696 | V75: 323 | W75: 82 | X75: 3 | Y75: 3 | Z75: 223 | AA75: 12 | AB75: 9 | AC75: 11584 | AD75: 312 | AE75: 11896 | AF75: 1 | AG75: 55 | AH75: 1223557.3 | AI75: 100639.33 | AK75: PO3102 | AL75: SWV PO 31-02 Midden Limburg | AM75: 11886 | AN75: 366 | AO75: 96 | AP75: 5 | AQ75: 3 | AR75: 206 | AS75: 9 | AT75: 15 | AU75: 11810 | AV75: 352 | AW75: 12162 | AX75: 1 | AY75: 46 | AZ75: PO3102 | BA75: SWV PO 31-02 Midden Limburg | BB75: 12084 | BC75: 412 | BD75: 72 | BE75: 4 | BF75: 5 | BG75: 249 | BH75: 10 | BI75: 12 | BJ75: 11990 | BK75: 393 | BL75: 12383 | BM75: 1 | BN75: 55 | BP75: PO3102 | BQ75: SWV PO 31-02 Midden Limburg | BR75: 12424 | BS75: 452 | BT75: 93 | BU75: 6 | BV75: 3 | BW75: 266 | BX75: 8 | BY75: 10 | BZ75: 12339 | CA75: 437 | CB75: 12776 | CC75: 0 | CD75: 282 | CE75: 14 | CF75: 13 | CG75: 7 | CH75: 70 | CI75: 49 | CJ75: 8 | CK75: 0 | CL75: 11 | CM75: 8 | CN75: 2 | CO75: 3 | CP75: 2 | CQ75: 6 | CR75: 6 | CS75: 4 | CT75: 59 | CU75: 31 | CV75: 2 | CW75: 5 | CY75: PO3102 | CZ75: SWV PO 31-02 Midden Limburg | DA75: 12805 | DB75: 486 | DC75: 86 | DD75: 8 | DE75: 2 | DF75: 266 | DG75: 11 | DH75: 17 | DI75: 12704 | DJ75: 464 | DK75: 13168 | DL75: -1166207.76 | DM75: 268 | DN75: 19 | DO75: 19 | DP75: 9 | DQ75: 75 | DR75: 48 | DS75: 11 | DT75: 0 | DU75: 10 | DV75: 8 | DW75: 6 | DX75: 5 | DY75: 0 | DZ75: 2 | EA75: 7 | EB75: 4 | EC75: 53 | ED75: 32 | EE75: 4 | EF75: 5 | EH75: PO3102 | EI75: SWV PO 31-02 Midden Limburg | EJ75: 13137 | EK75: 509 | EL75: 87 | EM75: 4 | EN75: 3 | EO75: 279 | EP75: 13 | EQ75: 15 | ER75: 13053 | ES75: 494 | ET75: 13547 | EU75: 13646 | EV75: 284 | EW75: 17 | EX75: 18 | EY75: 8 | EZ75: 74 | FA75: 63 | FB75: 16 | FC75: 0 | FD75: 11 | FE75: 11 | FF75: 6 | FG75: 3 | FH75: 0 | FI75: 2 | FJ75: 4 | FK75: 6 | FL75: 49 | FM75: 26 | FN75: 5 | FO75: 5 | FQ75: PO3103 | FR75: Stichting Samenwerkingsverband PO Weert-Nederweert | FS75: 4821 | FT75: 120 | FU75: 23 | FV75: 3 | FW75: 2 | FX75: 65 | FY75: 2 | FZ75: 7 | GA75: 4815 | GB75: 109 | GC75: 4924 | GF75: 0 | GG75: 0 | GI75: PO3103 | GJ75: Stichting Samenwerkingsverband PO Weert-Nederweert | GK75: 4762 | GL75: 118 | GM75: 24 | GO75: 1 | GP75: 69 | GQ75: 3 | GR75: 7 | GU75: 0
A76: PO3103 | B76: Stichting Samenwerkingsverband PO Weert-Nederweert | C76: 4811 | D76: 111 | E76: 18 | F76: 8 | G76: 2 | H76: 55 | I76: 5 | J76: 8 | K76: 4825 | L76: 93 | M76: 4918 | N76: 1 | O76: 11 | P76: 456517.07 | Q76: 51566.24 | S76: PO3103 | T76: Stichting Samenwerkingsverband PO Weert-Nederweert | U76: 4851 | V76: 110 | W76: 15 | X76: 5 | Y76: 4 | Z76: 69 | AA76: 6 | AB76: 8 | AC76: 4825 | AD76: 93 | AE76: 4918 | AF76: 1 | AG76: 11 | AH76: 455646.78 | AI76: 50451.27 | AK76: PO3103 | AL76: Stichting Samenwerkingsverband PO Weert-Nederweert | AM76: 4826 | AN76: 117 | AO76: 14 | AP76: 3 | AQ76: 6 | AR76: 74 | AS76: 4 | AT76: 8 | AU76: 4794 | AV76: 108 | AW76: 4902 | AX76: 1 | AY76: 16 | AZ76: PO3103 | BA76: Stichting Samenwerkingsverband PO Weert-Nederweert | BB76: 4932 | BC76: 120 | BD76: 28 | BE76: 1 | BF76: 3 | BG76: 82 | BH76: 4 | BI76: 6 | BJ76: 4884 | BK76: 108 | BL76: 4992 | BM76: 1 | BN76: 14 | BP76: PO3103 | BQ76: Stichting Samenwerkingsverband PO Weert-Nederweert | BR76: 4994 | BS76: 142 | BT76: 28 | BU76: 3 | BV76: 2 | BW76: 86 | BX76: 2 | BY76: 6 | BZ76: 4945 | CA76: 133 | CB76: 5078 | CC76: 0 | CD76: 94 | CE76: 5 | CF76: 8 | CG76: 5 | CH76: 15 | CI76: 32 | CJ76: 10 | CK76: 0 | CL76: 4 | CM76: 1 | CN76: 4 | CO76: 1 | CP76: 0 | CQ76: 0 | CR76: 0 | CS76: 1 | CT76: 18 | CU76: 19 | CV76: 1 | CW76: 3 | CY76: PO3103 | CZ76: Stichting Samenwerkingsverband PO Weert-Nederweert | DA76: 5145 | DB76: 150 | DC76: 29 | DD76: 3 | DE76: 1 | DF76: 87 | DG76: 2 | DH76: 6 | DI76: 5094 | DJ76: 143 | DK76: 5237 | DL76: -472399.08 | DM76: 89 | DN76: 5 | DO76: 7 | DP76: 6 | DQ76: 21 | DR76: 33 | DS76: 7 | DT76: 0 | DU76: 2 | DV76: 1 | DW76: 6 | DX76: 1 | DY76: 0 | DZ76: 0 | EA76: 2 | EB76: 1 | EC76: 21 | ED76: 16 | EE76: 0 | EF76: 3 | EH76: PO3103 | EI76: Weert, Nederweert | EJ76: 5346 | EK76: 165 | EL76: 34 | EM76: 2 | EN76: 1 | EO76: 91 | EP76: 2 | EQ76: 6 | ER76: 5302 | ES76: 157 | ET76: 5459 | EU76: 5511 | EV76: 94 | EW76: 4 | EX76: 7 | EY76: 3 | EZ76: 28 | FA76: 37 | FB76: 9 | FC76: 0 | FD76: 2 | FE76: 4 | FF76: 11 | FG76: 1 | FH76: 0 | FI76: 0 | FJ76: 6 | FK76: 3 | FL76: 19 | FM76: 16 | FN76: 0 | FO76: 3 | FQ76: PO3104 | FR76: Stichting Samenwerkingsverband Passend Onderwijs PO Westelijke Mijnstreek | FS76: 9391 | FT76: 301 | FU76: 69 | FV76: 2 | FW76: 3 | FX76: 148 | FY76: 1 | FZ76: 9 | GA76: 9159 | GB76: 301 | GC76: 9460 | GF76: 0 | GG76: 0 | GI76: PO3104 | GJ76: Stichting Samenwerkingsverband Passend Onderwijs PO Westelijke Mijnstreek | GK76: 9255 | GL76: 305 | GM76: 80 | GO76: 2 | GP76: 153 | GR76: 8 | GU76: 0
A77: PO3104 | B77: Stichting Samenwerkingsverband Passend Onderwijs PO Westelijke Mijnstreek | C77: 9670 | D77: 289 | E77: 68 | F77: 5 | G77: 1 | H77: 153 | I77: 5 | J77: 12 | K77: 9468 | L77: 289 | M77: 9757 | N77: 1 | O77: 58 | P77: 929059.84 | Q77: 65967.35 | S77: PO3104 | T77: Stichting Samenwerkingsverband Passend Onderwijs PO Westelijke Mijnstreek | U77: 9783 | V77: 292 | W77: 60 | X77: 5 | Y77: 1 | Z77: 175 | AA77: 4 | AB77: 14 | AC77: 9468 | AD77: 289 | AE77: 9757 | AF77: 1 | AG77: 58 | AH77: 927288.72 | AI77: 64540.99 | AK77: PO3104 | AL77: Stichting Samenwerkingsverband Passend Onderwijs PO Westelijke Mijnstreek | AM77: 10005 | AN77: 294 | AO77: 60 | AP77: 3 | AQ77: 4 | AR77: 181 | AS77: 5 | AT77: 17 | AU77: 9679 | AV77: 295 | AW77: 9974 | AX77: 1 | AY77: 64 | AZ77: PO3104 | BA77: Stichting Samenwerkingsverband Passend Onderwijs PO Westelijke Mijnstreek | BB77: 10159 | BC77: 327 | BD77: 54 | BE77: 2 | BF77: 4 | BG77: 201 | BH77: 8 | BI77: 24 | BJ77: 9867 | BK77: 331 | BL77: 10198 | BM77: 0 | BN77: 73 | BP77: PO3104 | BQ77: Stichting Samenwerkingsverband Passend Onderwijs PO Westelijke Mijnstreek | BR77: 10503 | BS77: 351 | BT77: 69 | BU77: 4 | BV77: 4 | BW77: 190 | BX77: 6 | BY77: 22 | BZ77: 10212 | CA77: 356 | CB77: 10568 | CC77: 0 | CD77: 187 | CE77: 10 | CF77: 26 | CG77: 5 | CH77: 67 | CI77: 33 | CJ77: 11 | CK77: 0 | CL77: 10 | CM77: 5 | CN77: 10 | CO77: 1 | CP77: 0 | CQ77: 1 | CR77: 5 | CS77: 5 | CT77: 79 | CU77: 29 | CV77: 0 | CW77: 6 | CY77: PO3104 | CZ77: Stichting Samenwerkingsverband Passend Onderwijs PO Westelijke Mijnstreek | DA77: 10817 | DB77: 372 | DC77: 82 | DD77: 1 | DE77: 4 | DF77: 179 | DG77: 8 | DH77: 28 | DI77: 10543 | DJ77: 380 | DK77: 10923 | DL77: -899506.74 | DM77: 192 | DN77: 9 | DO77: 32 | DP77: 4 | DQ77: 65 | DR77: 45 | DS77: 11 | DT77: 0 | DU77: 2 | DV77: 7 | DW77: 16 | DX77: 0 | DY77: 0 | DZ77: 0 | EA77: 8 | EB77: 6 | EC77: 80 | ED77: 25 | EE77: 0 | EF77: 6 | EH77: PO3104 | EI77: Sittard-Geleen e.o. | EJ77: 11272 | EK77: 413 | EL77: 91 | EM77: 2 | EN77: 3 | EO77: 176 | EP77: 10 | EQ77: 29 | ER77: 10948 | ES77: 420 | ET77: 11368 | EU77: 11685 | EV77: 201 | EW77: 12 | EX77: 32 | EY77: 4 | EZ77: 62 | FA77: 58 | FB77: 10 | FC77: 0 | FD77: 1 | FE77: 8 | FF77: 12 | FG77: 0 | FH77: 0 | FI77: 0 | FJ77: 8 | FK77: 6 | FL77: 69 | FM77: 21 | FN77: 0 | FO77: 8 | FQ77: PO3105 | FR77: Sg. Passend Onderwijs Maastricht en Heuvelland PO | FS77: 11374 | FT77: 328 | FU77: 86 | FV77: 2 | FW77: 2 | FX77: 178 | FY77: 19 | FZ77: 6 | GA77: 10993 | GB77: 292 | GC77: 11285 | GF77: 0 | GG77: 0 | GI77: PO3105 | GJ77: Sg. Passend Onderwijs Maastricht en Heuvelland PO | GK77: 11354 | GL77: 339 | GM77: 91 | GO77: 6 | GP77: 187 | GQ77: 12 | GR77: 5 | GU77: 0
A78: PO3105 | B78: Sg. Passend Onderwijs Maastricht en Heuvelland PO | C78: 11458 | D78: 342 | E78: 73 | F78: 13 | G78: 2 | H78: 168 | I78: 21 | J78: 10 | K78: 11353 | L78: 315 | M78: 11668 | N78: 0 | O78: 58 | P78: 1647756.35 | Q78: 131625.74 | S78: PO3105 | T78: Sg. Passend Onderwijs Maastricht en Heuvelland PO | U78: 11789 | V78: 338 | W78: 67 | X78: 14 | Y78: 1 | Z78: 175 | AA78: 25 | AB78: 15 | AC78: 11353 | AD78: 315 | AE78: 11668 | AF78: 0 | AG78: 58 | AH78: 1644615.14 | AI78: 128779.71 | AK78: PO3105 | AL78: Sg. Passend Onderwijs Maastricht en Heuvelland PO | AM78: 12053 | AN78: 383 | AO78: 68 | AP78: 11 | AQ78: 4 | AR78: 217 | AS78: 22 | AT78: 23 | AU78: 11669 | AV78: 368 | AW78: 12037 | AX78: 0 | AY78: 58 | AZ78: PO3105 | BA78: Sg. Passend Onderwijs Maastricht en Heuvelland PO | BB78: 12115 | BC78: 438 | BD78: 75 | BE78: 12 | BF78: 7 | BG78: 232 | BH78: 20 | BI78: 23 | BJ78: 11725 | BK78: 416 | BL78: 12141 | BM78: 0 | BN78: 65 | BP78: PO3105 | BQ78: Sg. Passend Onderwijs Maastricht en Heuvelland PO | BR78: 12355 | BS78: 514 | BT78: 70 | BU78: 8 | BV78: 7 | BW78: 236 | BX78: 22 | BY78: 23 | BZ78: 11997 | CA78: 488 | CB78: 12485 | CC78: 0 | CD78: 204 | CE78: 30 | CF78: 30 | CG78: 9 | CH78: 93 | CI78: 57 | CJ78: 10 | CK78: 0 | CL78: 10 | CM78: 7 | CN78: 7 | CO78: 2 | CP78: 0 | CQ78: 0 | CR78: 5 | CS78: 4 | CT78: 78 | CU78: 21 | CV78: 0 | CW78: 6 | CY78: PO3105 | CZ78: Sg. Passend Onderwijs Maastricht en Heuvelland PO | DA78: 12794 | DB78: 537 | DC78: 74 | DD78: 8 | DE78: 7 | DF78: 232 | DG78: 17 | DH78: 29 | DI78: 12446 | DJ78: 520 | DK78: 12966 | DL78: -1587009.76 | DM78: 203 | DN78: 25 | DO78: 36 | DP78: 10 | DQ78: 93 | DR78: 67 | DS78: 14 | DT78: 1 | DU78: 8 | DV78: 10 | DW78: 11 | DX78: 0 | DY78: 0 | DZ78: 0 | EA78: 8 | EB78: 7 | EC78: 86 | ED78: 16 | EE78: 0 | EF78: 6 | EH78: PO3105 | EI78: Sg. Passend Onderwijs Maastricht en Heuvelland PO | EJ78: 13296 | EK78: 539 | EL78: 86 | EM78: 15 | EN78: 8 | EO78: 240 | EP78: 14 | EQ78: 32 | ER78: 12994 | ES78: 526 | ET78: 13520 | EU78: 13835 | EV78: 221 | EW78: 29 | EX78: 40 | EY78: 9 | EZ78: 96 | FA78: 73 | FB78: 16 | FC78: 1 | FD78: 6 | FE78: 12 | FF78: 11 | FG78: 0 | FH78: 0 | FI78: 0 | FJ78: 9 | FK78: 9 | FL78: 75 | FM78: 15 | FN78: 1 | FO78: 6 | FQ78: PO3106 | FR78: Samenwerkingsverband Passend Onderwijs Heerlen e.o. | FS78: 15754 | FT78: 622 | FU78: 136 | FV78: 2 | FW78: 1 | FX78: 339 | FY78: 17 | FZ78: 8 | GA78: 15683 | GB78: 659 | GC78: 16342 | GF78: 0 | GG78: 0 | GI78: PO3106 | GJ78: Samenwerkingsverband Passend Onderwijs Heerlen e.o. | GK78: 15681 | GL78: 628 | GM78: 115 | GN78: 2 | GO78: 5 | GP78: 353 | GQ78: 7 | GR78: 8 | GU78: 0
A79: PO3106 | B79: Samenwerkingsverband Passend Onderwijs Heerlen e.o. | C79: 15685 | D79: 564 | E79: 122 | F79: 12 | G79: 2 | H79: 317 | I79: 28 | J79: 14 | K79: 15837 | L79: 551 | M79: 16388 | N79: 1 | O79: 134 | P79: 1259425.82 | Q79: 76584.52 | S79: PO3106 | T79: Samenwerkingsverband Passend Onderwijs Heerlen e.o. | U79: 15851 | V79: 530 | W79: 126 | X79: 8 | Y79: 4 | Z79: 318 | AA79: 29 | AB79: 12 | AC79: 15837 | AD79: 551 | AE79: 16388 | AF79: 1 | AG79: 134 | AH79: 1257024.9 | AI79: 74928.6 | AK79: PO3106 | AL79: Samenwerkingsverband Passend Onderwijs Heerlen e.o. | AM79: 16099 | AN79: 521 | AO79: 125 | AP79: 8 | AQ79: 9 | AR79: 331 | AS79: 28 | AT79: 19 | AU79: 16094 | AV79: 530 | AW79: 16624 | AX79: 1 | AY79: 139 | AZ79: PO3106 | BA79: Samenwerkingsverband Passend Onderwijs Heerlen e.o. | BB79: 16270 | BC79: 529 | BD79: 118 | BE79: 12 | BF79: 6 | BG79: 336 | BH79: 27 | BI79: 21 | BJ79: 16256 | BK79: 544 | BL79: 16800 | BM79: 1 | BN79: 154 | BP79: PO3106 | BQ79: Samenwerkingsverband Passend Onderwijs Heerlen e.o. | BR79: 16573 | BS79: 538 | BT79: 109 | BU79: 9 | BV79: 9 | BW79: 369 | BX79: 19 | BY79: 17 | BZ79: 16558 | CA79: 550 | CB79: 17108 | CC79: 0 | CD79: 325 | CE79: 28 | CF79: 26 | CG79: 17 | CH79: 136 | CI79: 40 | CJ79: 19 | CK79: 0 | CL79: 9 | CM79: 6 | CN79: 0 | CO79: 0 | CP79: 0 | CQ79: 2 | CR79: 0 | CS79: 4 | CT79: 164 | CU79: 39 | CV79: 1 | CW79: 9 | CY79: PO3106 | CZ79: Samenwerkingsverband Passend Onderwijs Heerlen e.o. | DA79: 16988 | DB79: 597 | DC79: 110 | DD79: 13 | DE79: 9 | DF79: 369 | DG79: 14 | DH79: 28 | DI79: 16939 | DJ79: 606 | DK79: 17545 | DL79: -1156371.39 | DM79: 303 | DN79: 27 | DO79: 37 | DP79: 17 | DQ79: 159 | DR79: 57 | DS79: 26 | DT79: 0 | DU79: 6 | DV79: 7 | DW79: 2 | DX79: 0 | DY79: 0 | DZ79: 0 | EA79: 0 | EB79: 5 | EC79: 168 | ED79: 36 | EE79: 1 | EF79: 9 | EH79: PO3106 | EI79: Samenwerkingsverband Passend Onderwijs Heerlen e.o. | EJ79: 17386 | EK79: 626 | EL79: 113 | EM79: 12 | EN79: 9 | EO79: 363 | EP79: 13 | EQ79: 24 | ER79: 17292 | ES79: 632 | ET79: 17924 | EU79: 18012 | EV79: 288 | EW79: 25 | EX79: 33 | EY79: 15 | EZ79: 173 | FA79: 58 | FB79: 28 | FC79: 0 | FD79: 6 | FE79: 7 | FF79: 4 | FG79: 1 | FH79: 0 | FI79: 0 | FJ79: 0 | FK79: 5 | FL79: 126 | FM79: 28 | FN79: 1 | FO79: 7 | FS79: =SUM(FS3:FS78) -> 1405554 | FT79: 34958 | FU79: 5422 | FV79: 812 | FW79: 703 | FX79: 14139 | FY79: 1387 | FZ79: 1639 | GK79: 1396458 | GL79: 35731 | GM79: 5704 | GN79: 909 | GO79: 724 | GP79: 14807 | GQ79: 1459 | GR79: 1619
C80: =SUM(C3:C79) -> 1414276 | D80: =SUM(D3:D79) -> 33968 | E80: =SUM(E3:E79) -> 5157 | F80: 772 | G80: 705 | H80: 13676 | I80: 1371 | J80: 1691 | K80: 1423175 | L80: 33777 | M80: 1456952 | U80: 1427453 | V80: 33869 | W80: 4894 | X80: 681 | Y80: 668 | Z80: 13782 | AA80: 1253 | AB80: 1749 | AC80: 1423175 | AD80: 33777 | AE80: 1456952 | AM80: =SUM(AM3:AM79) -> 1443071 | AN80: =SUM(AN3:AN79) -> 34737 | AO80: =SUM(AO3:AO79) -> 4892 | AP80: 569 | AQ80: 709 | AR80: 14138 | AS80: 994 | AT80: 1930 | AU80: 1438990 | AV80: 34610 | AW80: 1473600 | BB80: 1457343 | BC80: 36847 | BD80: 5034 | BE80: 524 | BF80: 755 | BG80: 14927 | BH80: 951 | BI80: 2097 | BJ80: 1453186 | BK80: 36730 | BL80: 1489916 | BP80: Eindtotaal | BR80: 1476548 | BS80: 38135 | BT80: 5253 | BU80: 499 | BV80: 807 | BW80: 15108 | BX80: 881 | BY80: 2203 | BZ80: 1472374 | CA80: 38008 | CB80: 1510382 | CC80: 0 | CD80: 13096 | CE80: 1380 | CF80: 3010 | CG80: 1030 | CH80: 6235 | CI80: 7180 | CJ80: 2109 | CK80: 104 | CL80: 1351 | CM80: 1178 | CN80: 1778 | CO80: 166 | CP80: 40 | CQ80: 138 | CR80: 561 | CS80: 845 | CT80: 6696 | CU80: 4790 | CV80: 327 | CW80: 930 | CY80: Eindtotaal | DA80: 1497832 | DB80: 39929 | DC80: 5486 | DD80: 527 | DE80: 811 | DF80: 15012 | DG80: 862 | DH80: 2399 | DI80: 1493849 | DJ80: 39791 | DK80: 1533640 | DM80: 12998 | DN80: 1389 | DO80: 3210 | DP80: 1062 | DQ80: 6438 | DR80: 7528 | DS80: 2142 | DT80: 111 | DU80: 1035 | DV80: 1289 | DW80: 1873 | DX80: 170 | DY80: 48 | DZ80: 64 | EA80: 529 | EB80: 914 | EC80: 6828 | ED80: 4868 | EE80: 352 | EF80: 937 | EH80: Eindtotaal | EJ80: 1517414 | EK80: 41778 | EL80: 5742 | EM80: 510 | EN80: 793 | EO80: 15364 | EP80: 882 | EQ80: 2510 | ER80: 1513598 | ES80: 41640 | ET80: 1555238 | EV80: 13173 | EW80: 1392 | EX80: 3303 | EY80: 1099 | EZ80: 6834 | FA80: 7934 | FB80: 2220 | FC80: 133 | FD80: 1077 | FE80: 1421 | FF80: 2010 | FG80: 176 | FH80: 46 | FI80: 70 | FJ80: 600 | FK80: 1009 | FS80: =+FS79+FT79 -> 1440512 | GK80: 1432189
C81: =+C80+D80 -> 1448244 | U81: 1461322 | AM81: =+AM80+AN80 -> 1477808 | BB81: 1494190 | BR81: 1514683 | DA81: 1537761 | EJ81: 1559192 | FT81: sbao | FU81: so cat 1 | FV81: so cat 2 | FW81: so cat 3 | FX81: tot so | GL81: sbao | GM81: so cat 1 | GN81: so cat 2 | GO81: so cat 3 | GP81: tot so
D82: sbao | E82: so cat 1 | F82: so cat 2 | G82: so cat 3 | H82: tot so | V82: sbao | W82: so cat 1 | X82: so cat 2 | Y82: so cat 3 | Z82: tot so | AN82: sbao | AO82: so cat 1 | AP82: so cat 2 | AQ82: so cat 3 | AR82: tot so | BC82: SBAO | BD82: SO cat 1 | BE82: SO cat 2 | BF82: SO cat 3 | BG82: tot SO | BS82: SBAO | BT82: SO cat 1 | BU82: SO cat 2 | BV82: SO cat 3 | BW82: tot SO | BX82: rugzakken | DB82: SBAO | DC82: SO cat 1 | DD82: SO cat 2 | DE82: SO cat 3 | DF82: tot SO | DG82: rugzakken | EK82: SBAO | EL82: SO cat 1 | EM82: SO cat 2 | EN82: SO cat 3 | EO82: tot SO | EP82: rugzakken | FT82: =FT79/FS80 -> 0.02426776035 | FU82: =(FU79+FX79)/$C$80 -> 0.0138311051 | FV82: =(FV79+FY79)/$C$80 -> 0.001554859165 | FW82: 0.00165597097 | FX82: =SUM(FU82:FW82) -> 0.01704193524 | GL82: 0.02494852286 | GM82: 0.01423867747 | GN82: 0.00164385882 | GO82: 0.001626503891 | GP82: 0.01750904018
D83: =D80/C81 -> 0.02345461124 | E83: =(E80+H80)/$C$81 -> 0.01300402418 | F83: =(F80+I80)/$C$81 -> 0.00147972303 | G83: 0.00165441735 | H83: =SUM(E83:G83) -> 0.01613816456 | V83: 0.02317695895 | W83: 0.01278020861 | X83: 0.001323459169 | Y83: 0.001653981806 | Z83: 0.01575764958 | AN83: =AN80/AM81 -> 0.02350575988 | AO83: =(AO80+AR80)/$BC$81 ->  | AP83: =(AP80+AS80)/$BC$81 ->  | AQ83: =(AQ80+AT80)/$BC$81 ->  | AR83: =SUM(AO83:AQ83) ->  | BC83: 0.02466018378 | BD83: 0.01335907749 | BE83: 0.0009871569211 | BF83: 0.001908726467 | BG83: 0.01625496088 | BS83: 0.0251768852 | BT83: 0.01344241666 | BU83: 0.0009110817247 | BV83: 0.001987214486 | BW83: 0.01634071288 | BX83: 0.009642281586 | BY83: 14605 | DB83: 0.02596567347 | DC83: 0.01332976971 | DD83: 0.0009032613 | DE83: 0.002087450521 | DF83: 0.01632048153 | DG83: 0.009617229205 | EK83: 0.02679464748 | EL83: 0.01353649839 | EM83: 0.0008927701014 | EN83: 0.002118404917 | EO83: 0.01654767341 | EP83: 0.0100609803
FU84: =FU79+FX79 -> 19561 | FV84: =FV79+FY79 -> 2199 | FW84: 2342 | GM84: 20511 | GN84: 2368 | GO84: 2343
E85: =E80+H80 -> 18833 | F85: =F80+I80 -> 2143 | G85: 2396

Sheet Variabelen (hidden)
A1: PROG_LAST_BIJDRAGE | B1: PROG_LAST_PERS | C1: PROG_LAST_AFSCHR | D1: PROG_LAST_HUISV | E1: PROG_LAST_OVERIGE | F1: PROG_BAT_ | G1: AANTAL_PROGS | H1: BEGROTINGSJAREN | I1: WEERGAVETABBLAD | J1: LABELS | K1: kalenderjaren | L1: schooljaren | M1: gekozen | O1: kalenderjaren LL aantal
A2: Basisondersteuning | B2: Extern personeel | C2: ICT | D2: Energie | E2: Accountantskosten | F2: Overige overheidsbijdragen en - subsidies | G2: 1 | H2: schooljaar | I2: Kies weergave programma | J2: Middelen basisondersteuning algemeen | K2: 2016 | L2: 2015/16 | M2: =IF(Begrotingsmodel!$G$10="kalenderjaar",Variabelen!K2,Variabelen!L2) -> 2016 | O2: 2011
A3: Extra ondersteuning | B3: Salarislasten/loonkosten detacheringen | C3: Meubilair | D3: Huur | E3: Activiteitenkosten | F3: Overige baten | G3: 2 | H3: kalenderjaar | I3: Programma ## 'naam programma' | J3: Middelen basisondersteuning toegekend aan scholen | K3: 2017 | L3: 2016/17 | M3: =IF(Begrotingsmodel!$G$10="kalenderjaar",Variabelen!K3,Variabelen!L3) -> 2017 | O3: 2012
A4: Ondersteuning LWOO | B4: Salarislasten/loonkosten personeel SWV | C4: Overig | D4: Huur werkplekken | E4: Administratie en beheer | G4: 3 | I4: Pr. ## 'naam programma' | J4: Inzet expert(s) voor ontwikkeling basisondersteuning | K4: 2018 | L4: 2017/18 | M4: =IF(Begrotingsmodel!$G$10="kalenderjaar",Variabelen!K4,Variabelen!L4) -> 2018 | O4: 2013
B5: Overige personele lasten | D5: ICT | E5: Bestuurskosten | G5: 4 | I5: (niets) | J5: Inzet voorziening(en) voor basisondersteuning | K5: 2019 | L5: 2018/19 | M5: =IF(Begrotingsmodel!$G$10="kalenderjaar",Variabelen!K5,Variabelen!L5) -> 2019 | O5: 2014
D6: Schoonmaak | E6: Communicatie/website/PR | G6: 5 | J6: Middelen extra ondersteuning algemeen | K6: 2020 | L6: 2019/20 | M6: =IF(Begrotingsmodel!$G$10="kalenderjaar",Variabelen!K6,Variabelen!L6) -> 2020 | O6: 2015
D7: Overige huisvestingslasten | E7: Extern advies | G7: 6 | J7: Middelen extra ondersteuning toegekend aan scholen | K7: 2021 | L7: 2020/21 | M7: =IF(Begrotingsmodel!$G$10="kalenderjaar",Variabelen!K7,Variabelen!L7) -> 2021 | O7: 2016
E8: Individuele arrangementen | G8: 7 | J8: Individuele arrangementen | K8: 2022 | L8: 2021/22 | M8: =IF(Begrotingsmodel!$G$10="kalenderjaar",Variabelen!K8,Variabelen!L8) -> 2022 | O8: 2017
E9: Inhuur administratiekantoor | G9: 8 | J9: Groeps arrangementen | K9: 2023 | L9: 2022/23 | M9: =IF(Begrotingsmodel!$G$10="kalenderjaar",Variabelen!K9,Variabelen!L9) -> 2023 | O9: 2018
E10: Inventaris. apparatuur en leermiddelen | G10: 9 | J10: Onderwijs-zorg arrangementen | K10: 2024 | L10: 2023/24 | M10: =IF(Begrotingsmodel!$G$10="kalenderjaar",Variabelen!K10,Variabelen!L10) -> 2024 | O10: 2019
E11: Kantoorkosten | G11: 10 | J11: Leraar arrangementen | K11: 2025 | L11: 2024/25 | M11: =IF(Begrotingsmodel!$G$10="kalenderjaar",Variabelen!K11,Variabelen!L11) -> 2025 | O11: 2020
E12: Monitoring | G12: 11 | J12: Bovenschoolse expert(s) | K12: 2026 | L12: 2025/26 | M12: =IF(Begrotingsmodel!$G$10="kalenderjaar",Variabelen!K12,Variabelen!L12) -> 2026 | O12: 2021
E13: OPR | G13: 12 | J13: Bovenschoolse voorziening(en) | K13: 2027 | L13: 2026/27 | M13: =IF(Begrotingsmodel!$G$10="kalenderjaar",Variabelen!K13,Variabelen!L13) -> 2027 | O13: 2022
E14: Professionalisering, netwerken etc. | G14: 13 | J14: LWOO/PRO ivm opting out | K14: 2028 | L14: 2027/28 | M14: =IF(Begrotingsmodel!$G$10="kalenderjaar",Variabelen!K14,Variabelen!L14) -> 2028 | O14: 2023
E15: Projecten, pilots, innovatieimpulsen | G15: 14 | J15: Aanvullende bekostiging sbo / so / vso | K15: 2029 | L15: 2028/29 | M15: =IF(Begrotingsmodel!$G$10="kalenderjaar",Variabelen!K15,Variabelen!L15) -> 2029 | O15: 2024
E16: Toetsing (overgang po-vo, lwoo-pro) | G16: 15 | J16: Overgang sectoren | K16: 2030 | L16: 2029/30 | M16: =IF(Begrotingsmodel!$G$10="kalenderjaar",Variabelen!K16,Variabelen!L16) -> 2030 | O16: 2025
E17: Overige kosten, activiteitenkosten | G17: 16 | J17: Samenwerking ketenpartners | O17: 2026
G18: 17 | J18: Bestuur, organisatie en administratie | O18: 2027
G19: 18 | J19: Ondersteuningstoewijzing | O19: 2028
G20: 19 | J20: Kwaliteitscyclus | O20: 2029
G21: 20 | J21: Verplichte herbesteding | O21: 2030
J22: Groeibekostiging
J23: Risicodekking / weerstandsvermogen
J24: Projecten
J25: Anders, namelijk..

Sheet MJB kalenderjaar
AV1: 1 | AW1: 11 | AX1: =INDEX(kalenderjaar,AV1) -> 2020 | AY1: =INDEX(kalenderjaar,AW1) -> 2030 | AZ1: 8
A2: 0
C3: MEERJARENBEGROTING KALENDERJAAR | F3: =IF(AND(F5>=$AX$1,F5<=$AY$1),"","x") -> x | G3: =F3 -> x | H3: =IF(AND(H5>=$AX$1,H5<=$AY$1),"","x") -> x | I3: =H3 -> x | J3: =IF(AND(J5>=$AX$1,J5<=$AY$1),"","x") ->  | K3: =J3 ->  | L3: =IF(AND(RIGHT(L5,4)*1>=$AX$1,RIGHT(L5,4)*1<=$AY$1),"","x") ->  | M3: =L3 ->  | N3: =IF(AND(N5>=$AX$1,N5<=$AY$1),"","x") ->  | O3: =N3 ->  | P3: =IF(AND(P5>=$AX$1,P5<=$AY$1),"","x") ->  | Q3: =P3 ->  | R3: =IF(AND(R5>=$AX$1,R5<=$AY$1),"","x") ->  | S3: =R3 ->  | T3: =IF(AND(T5>=$AX$1,T5<=$AY$1),"","x") ->  | U3: =T3 ->  | V3: =IF(AND(V5>=$AX$1,V5<=$AY$1),"","x") ->  | W3: =V3 ->  | X3: =IF(AND(X5>=$AX$1,X5<=$AY$1),"","x") ->  | Y3: =X3 ->  | Z3: =IF(AND(Z5>=$AX$1,Z5<=$AY$1),"","x") ->  | AA3: =Z3 ->  | AB3: =IF(AND(AB5>=$AX$1,AB5<=$AY$1),"","x") ->  | AC3: =AB3 ->  | AD3: =IF(AND(AD5>=$AX$1,AD5<=$AY$1),"","x") ->  | AE3: =AD3 ->  | AF3: =IF(AND(AF5>=$AX$1,AF5<=$AY$1),"","x") ->  | AG3: =AF3 -> 
C4: =Start!$A$33 -> Versie 8.0
C5: Baten | F5: 2018 | H5: =F5+1 -> 2019 | J5: =H5+1 -> 2020 | L5: goedgekeurde begroting 2020 | N5: =J5+1 -> 2021 | P5: =N5+1 -> 2022 | R5: =P5+1 -> 2023 | T5: =R5+1 -> 2024 | V5: =T5+1 -> 2025 | X5: =V5+1 -> 2026 | Z5: =X5+1 -> 2027 | AB5: =Z5+1 -> 2028 | AD5: =AB5+1 -> 2029 | AF5: =AD5+1 -> 2030
C6: lichte ondersteuning | F6: =Baten!I6 -> 6880661.466 | G6: =Baten!J6 -> 7049295.164 | H6: =Baten!K6 -> 7140507.027 | I6: =Baten!L6 -> 7268150.113 | J6: =Baten!M6 -> 7301832.376 | K6: =Baten!L6 -> 7268150.113 | M6: =Baten!N6 -> 7174765.733 | N6: =Baten!O6 -> 4113423.417 | O6: =Baten!P6 -> 0 | P6: =Baten!Q6 -> 0 | Q6: =Baten!R6 -> 0 | R6: =Baten!S6 -> 0 | S6: =Baten!T6 -> 0 | T6: =Baten!U6 -> 0 | U6: =Baten!V6 -> 0 | V6: =Baten!W6 -> 0 | W6: =Baten!X6 -> 0 | X6: =Baten!Y6 -> 0 | Y6: =Baten!Z6 -> 0 | Z6: =Baten!AA6 -> 0 | AA6: =Baten!AB6 -> 0 | AB6: =Baten!AC6 -> 0 | AC6: =Baten!AD6 -> 0 | AD6: =Baten!AE6 -> 0 | AE6: =Baten!AF6 -> 0 | AF6: =Baten!AG6 -> 0
C7: zware ondersteuning | F7: =Baten!I18 -> 14929014.21 | H7: =Baten!K18 -> 15674581.43 | J7: =Baten!M18 -> 16029057.29 | N7: =Baten!O18 -> 8677702.367 | P7: =Baten!Q18 -> 0 | R7: =Baten!S18 -> 0 | T7: =Baten!U18 -> 0 | V7: =Baten!W18 -> 0 | X7: =Baten!Y18 -> 0 | Z7: =Baten!AA18 -> 0 | AB7: =Baten!AC18 -> 0 | AD7: =Baten!AE18 -> 0 | AF7: =Baten!AG18 -> 0
C8: verevening zware ondersteuning (pers) | F8: =Baten!H30*7/12+Baten!J30*5/12 -> -2352517.959 | H8: =Baten!J30*7/12+Baten!L30*5/12 -> -1688486.114 | J8: =Baten!L30*7/12+Baten!N30*5/12 -> -638262.8504 | N8: =Baten!N30*7/12+Baten!P30*5/12 -> 0
C9: verevening zware ondersteuning (mat) | F9: =Baten!I31 -> -144012.5998 | G9: =IF(Rekenblad!$D33>0,-Rekenblad!$D42*Bekostigingsgegevens!L29,-Rekenblad!$D42*Bekostigingsgegevens!L31) -> 0 | H9: =Baten!K31 -> -73086.39441 | I9: =IF(Rekenblad!$D33>0,-Rekenblad!$D42*Bekostigingsgegevens!N29,-Rekenblad!$D42*Bekostigingsgegevens!N31) -> 0 | J9: =Baten!M31 -> 0 | K9: =IF(Rekenblad!$D33>0,-Rekenblad!$D42*Bekostigingsgegevens!N29,-Rekenblad!$D42*Bekostigingsgegevens!N31) -> 0 | M9: =IF(Rekenblad!$D33>0,-Rekenblad!$D42*Bekostigingsgegevens!P29,-Rekenblad!$D42*Bekostigingsgegevens!P31) -> 0 | O9: =IF(Rekenblad!$D33>0,-Rekenblad!$D42*Bekostigingsgegevens!R29,-Rekenblad!$D42*Bekostigingsgegevens!R31) -> 0 | Q9: =IF(Rekenblad!$D33>0,-Rekenblad!$D42*Bekostigingsgegevens!T29,-Rekenblad!$D42*Bekostigingsgegevens!T31) -> 0 | S9: =IF(Rekenblad!$D33>0,-Rekenblad!$D42*Bekostigingsgegevens!V29,-Rekenblad!$D42*Bekostigingsgegevens!V31) -> 0 | U9: =IF(Rekenblad!$D33>0,-Rekenblad!$D42*Bekostigingsgegevens!X29,-Rekenblad!$D42*Bekostigingsgegevens!X31) -> 0 | W9: =IF(Rekenblad!$D33>0,-Rekenblad!$D42*Bekostigingsgegevens!Z29,-Rekenblad!$D42*Bekostigingsgegevens!Z31) -> 0 | Y9: =IF(Rekenblad!$D33>0,-Rekenblad!$D42*Bekostigingsgegevens!AB29,-Rekenblad!$D42*Bekostigingsgegevens!AB31) -> 0 | AA9: =IF(Rekenblad!$D33>0,-Rekenblad!$D42*Bekostigingsgegevens!AD29,-Rekenblad!$D42*Bekostigingsgegevens!AD31) -> 0 | AC9: =IF(Rekenblad!$D33>0,-Rekenblad!$D42*Bekostigingsgegevens!AF29,-Rekenblad!$D42*Bekostigingsgegevens!AF31) -> 0 | AE9: =IF(Rekenblad!$D33>0,-Rekenblad!$D42*Bekostigingsgegevens!AH29,-Rekenblad!$D42*Bekostigingsgegevens!AH31) -> 0
C10: verevening zware ondersteuning | F10: =F8+F9 -> -2496530.559 | H10: -1761572.509 | J10: -638262.8504 | N10: 0
C11: grensverkeer sbo in | F11: =Baten!I33 -> 0 | G11: =Baten!J33 -> 0 | H11: =Baten!K33 -> 0 | I11: =Baten!L33 -> 0 | J11: =Baten!M33 -> 0 | K11: =Baten!L33 -> 0 | M11: =Baten!N33 -> 0 | N11: =Baten!O33 -> 0 | O11: =Baten!P33 -> 0 | P11: =Baten!Q33 -> 0 | Q11: =Baten!R33 -> 0 | R11: =Baten!S33 -> 0 | S11: =Baten!T33 -> 0 | T11: =Baten!U33 -> 0 | U11: =Baten!V33 -> 0 | V11: =Baten!W33 -> 0 | W11: =Baten!X33 -> 0 | X11: =Baten!Y33 -> 0 | Y11: =Baten!Z33 -> 0 | Z11: =Baten!AA33 -> 0 | AA11: =Baten!AB33 -> 0 | AB11: =Baten!AC33 -> 0 | AC11: =Baten!AD33 -> 0 | AD11: =Baten!AE33 -> 0 | AE11: =Baten!AF33 -> 0 | AF11: =Baten!AG33 -> 0
C12: overdrachtsverplichting van sbo | F12: =Baten!I45 -> 3851745.12 | G12: =Baten!J45 -> 3948365.56 | H12: =Baten!K45 -> 3998968.139 | I12: =Baten!L45 -> 4069811.75 | J12: =Baten!M45 -> 4089669.238 | K12: =Baten!L45 -> 4069811.75 | M12: =Baten!N45 -> 4117469.72 | N12: =Baten!O45 -> 2401857.337 | O12: =Baten!P45 -> 0 | P12: =Baten!Q45 -> 0 | Q12: =Baten!R45 -> 0 | R12: =Baten!S45 -> 0 | S12: =Baten!T45 -> 0 | T12: =Baten!U45 -> 0 | U12: =Baten!V45 -> 0 | V12: =Baten!W45 -> 0 | W12: =Baten!X45 -> 0 | X12: =Baten!Y45 -> 0 | Y12: =Baten!Z45 -> 0 | Z12: =Baten!AA45 -> 0 | AA12: =Baten!AB45 -> 0 | AB12: =Baten!AC45 -> 0 | AC12: =Baten!AD45 -> 0 | AD12: =Baten!AE45 -> 0 | AE12: =Baten!AF45 -> 0 | AF12: =Baten!AG45 -> 0
C13: regeling schoolmaatschappelijk werk | F13: =Baten!I49 -> 0 | G13: =Baten!J49 -> 0 | H13: =Baten!K49 -> 0 | I13: =Baten!L49 -> 0 | J13: =Baten!M49 -> 0 | K13: =Baten!L49 -> 0 | M13: =Baten!N49 -> 0 | N13: =Baten!O49 -> 0 | O13: =Baten!P49 -> 0 | P13: =Baten!Q49 -> 0 | Q13: =Baten!R49 -> 0 | R13: =Baten!S49 -> 0 | S13: =Baten!T49 -> 0 | T13: =Baten!U49 -> 0 | U13: =Baten!V49 -> 0 | V13: =Baten!W49 -> 0 | W13: =Baten!X49 -> 0 | X13: =Baten!Y49 -> 0 | Y13: =Baten!Z49 -> 0 | Z13: =Baten!AA49 -> 0 | AA13: =Baten!AB49 -> 0 | AB13: =Baten!AC49 -> 0 | AC13: =Baten!AD49 -> 0 | AD13: =Baten!AE49 -> 0 | AE13: =Baten!AF49 -> 0 | AF13: =Baten!AG49 -> 0
C14: overige baten | F14: =Baten!I66 -> 0 | H14: =Baten!K66 -> 0 | J14: =Baten!M66 -> 0 | N14: =Baten!O66 -> 0 | P14: =Baten!Q66 -> 0 | R14: =Baten!S66 -> 0 | T14: =Baten!U66 -> 0 | V14: =Baten!W66 -> 0 | X14: =Baten!Y66 -> 0 | Z14: =Baten!AA66 -> 0 | AB14: =Baten!AC66 -> 0 | AD14: =Baten!AE66 -> 0 | AF14: =Baten!AG66 -> 0
C15: geoormerkte subsidies en bijdragen voor specifieke programma's in het ondersteuningsplan | F15: =Baten!I68+Baten!I69 -> 0 | G15: =Baten!J68 -> 0 | H15: =Baten!K68+Baten!K69 -> 0 | I15: =Baten!L68 -> 0 | J15: =Baten!M68+Baten!M69 -> 0 | K15: =Baten!L68 -> 0 | M15: =Baten!N68 -> 0 | N15: =Baten!O68+Baten!O69 -> 0 | O15: =Baten!P68 -> 0 | P15: =Baten!Q68+Baten!Q69 -> 0 | Q15: =Baten!R68 -> 0 | R15: =Baten!S68+Baten!S69 -> 0 | S15: =Baten!T68 -> 0 | T15: =Baten!U68+Baten!U69 -> 0 | U15: =Baten!V68 -> 0 | V15: =Baten!W68+Baten!W69 -> 0 | W15: =Baten!X68 -> 0 | X15: =Baten!Y68+Baten!Y69 -> 0 | Y15: =Baten!Z68 -> 0 | Z15: =Baten!AA68+Baten!AA69 -> 0 | AA15: =Baten!AB68 -> 0 | AB15: =Baten!AC68+Baten!AC69 -> 0 | AC15: =Baten!AD68 -> 0 | AD15: =Baten!AE68+Baten!AE69 -> 0 | AE15: =Baten!AF68 -> 0 | AF15: =Baten!AG68+Baten!AG69 -> 0
C17: Totale baten | F17: =SUM(F6:F7)+SUM(F10:F15) -> 23164890.24 | H17: =SUM(H6:H7)+SUM(H10:H15) -> 25052484.09 | J17: =SUM(J6:J7)+SUM(J10:J15) -> 26782296.05 | L17: =SUM(L6:L7)+SUM(L10:L15) -> 0 | N17: =SUM(N6:N7)+SUM(N10:N15) -> 15192983.12 | P17: =SUM(P6:P7)+SUM(P10:P15) -> 0 | R17: =SUM(R6:R7)+SUM(R10:R15) -> 0 | T17: =SUM(T6:T7)+SUM(T10:T15) -> 0 | V17: =SUM(V6:V7)+SUM(V10:V15) -> 0 | X17: =SUM(X6:X7)+SUM(X10:X15) -> 0 | Z17: =SUM(Z6:Z7)+SUM(Z10:Z15) -> 0 | AB17: =SUM(AB6:AB7)+SUM(AB10:AB15) -> 0 | AD17: =SUM(AD6:AD7)+SUM(AD10:AD15) -> 0 | AF17: =SUM(AF6:AF7)+SUM(AF10:AF15) -> 0
F19: =F5 -> 2018 | H19: =H5 -> 2019 | J19: =J5 -> 2020 | L19: =L5 -> goedgekeurde begroting 2020 | N19: =N5 -> 2021 | P19: =P5 -> 2022 | R19: =R5 -> 2023 | T19: =T5 -> 2024 | V19: =V5 -> 2025 | X19: =X5 -> 2026 | Z19: =Z5 -> 2027 | AB19: =AB5 -> 2028 | AD19: =AD5 -> 2029 | AF19: =AF5 -> 2030
C20: afdracht so, teldatum, (via DUO) | F20: =Lasten!I39-Lasten!I20 -> 5157578.877 | H20: =Lasten!K39-Lasten!K20 -> 5637233.13 | J20: =Lasten!M39-Lasten!M20 -> 6269309.668 | N20: =Lasten!O39-Lasten!O20 -> 6686021.12 | P20: =Lasten!Q39-Lasten!Q20 -> 0 | R20: =Lasten!S39-Lasten!S20 -> 0 | T20: =Lasten!U39-Lasten!U20 -> 0 | V20: =Lasten!W39-Lasten!W20 -> 0 | X20: =Lasten!Y39-Lasten!Y20 -> 0 | Z20: =Lasten!AA39-Lasten!AA20 -> 0 | AB20: =Lasten!AC39-Lasten!AC20 -> 0 | AD20: =Lasten!AE39-Lasten!AE20 -> 0 | AF20: =Lasten!AG39-Lasten!AG20 -> 0
C21: afdracht so, peildatum, (tussentijdse groei so), ondersteuningsbekostiging | F21: =Lasten!I20 -> 0 | G21: =Lasten!J20 -> 0 | H21: =Lasten!K20 -> 0 | I21: =Lasten!L20 -> 0 | J21: =Lasten!M20 -> 0 | K21: =Lasten!L20 -> 0 | M21: =Lasten!N20 -> 0 | N21: =Lasten!O20 -> 0 | O21: =Lasten!P20 -> 0 | P21: =Lasten!Q20 -> 0 | Q21: =Lasten!R20 -> 0 | R21: =Lasten!S20 -> 0 | S21: =Lasten!T20 -> 0 | T21: =Lasten!U20 -> 0 | U21: =Lasten!V20 -> 0 | V21: =Lasten!W20 -> 0 | W21: =Lasten!X20 -> 0 | X21: =Lasten!Y20 -> 0 | Y21: =Lasten!Z20 -> 0 | Z21: =Lasten!AA20 -> 0 | AA21: =Lasten!AB20 -> 0 | AB21: =Lasten!AC20 -> 0 | AC21: =Lasten!AD20 -> 0 | AD21: =Lasten!AE20 -> 0 | AE21: =Lasten!AF20 -> 0 | AF21: =Lasten!AG20 -> 0
C22: afdracht so, peildatum, (tussentijdse groei so), basisbekostiging | F22: =Lasten!I43 -> 0 | G22: =Lasten!J43 -> 0 | H22: =Lasten!K43 -> 0 | I22: =Lasten!L43 -> 0 | J22: =Lasten!M43 -> 0 | K22: =Lasten!L43 -> 0 | M22: =Lasten!N43 -> 0 | N22: =Lasten!O43 -> 0 | O22: =Lasten!P43 -> 0 | P22: =Lasten!Q43 -> 0 | Q22: =Lasten!R43 -> 0 | R22: =Lasten!S43 -> 0 | S22: =Lasten!T43 -> 0 | T22: =Lasten!U43 -> 0 | U22: =Lasten!V43 -> 0 | V22: =Lasten!W43 -> 0 | W22: =Lasten!X43 -> 0 | X22: =Lasten!Y43 -> 0 | Y22: =Lasten!Z43 -> 0 | Z22: =Lasten!AA43 -> 0 | AA22: =Lasten!AB43 -> 0 | AB22: =Lasten!AC43 -> 0 | AC22: =Lasten!AD43 -> 0 | AD22: =Lasten!AE43 -> 0 | AE22: =Lasten!AF43 -> 0 | AF22: =Lasten!AG43 -> 0
C23: grensverkeer sbo uit | F23: =Lasten!I54 -> 0 | G23: =Lasten!J54 -> 0 | H23: =Lasten!K54 -> 0 | I23: =Lasten!L54 -> 0 | J23: =Lasten!M54 -> 0 | K23: =Lasten!L54 -> 0 | M23: =Lasten!N54 -> 0 | N23: =Lasten!O54 -> 0 | O23: =Lasten!P54 -> 0 | P23: =Lasten!Q54 -> 0 | Q23: =Lasten!R54 -> 0 | R23: =Lasten!S54 -> 0 | S23: =Lasten!T54 -> 0 | T23: =Lasten!U54 -> 0 | U23: =Lasten!V54 -> 0 | V23: =Lasten!W54 -> 0 | W23: =Lasten!X54 -> 0 | X23: =Lasten!Y54 -> 0 | Y23: =Lasten!Z54 -> 0 | Z23: =Lasten!AA54 -> 0 | AA23: =Lasten!AB54 -> 0 | AB23: =Lasten!AC54 -> 0 | AC23: =Lasten!AD54 -> 0 | AD23: =Lasten!AE54 -> 0 | AE23: =Lasten!AF54 -> 0 | AF23: =Lasten!AG54 -> 0
C24: overdrachtsverplichting aan sbo | F24: =Lasten!I55 -> 0 | G24: =Lasten!J55 -> 0 | H24: =Lasten!K55 -> 0 | I24: =Lasten!L55 -> 0 | J24: =Lasten!M55 -> 0 | K24: =Lasten!L55 -> 0 | M24: =Lasten!N55 -> 0 | N24: =Lasten!O55 -> 0 | O24: =Lasten!P55 -> 0 | P24: =Lasten!Q55 -> 0 | Q24: =Lasten!R55 -> 0 | R24: =Lasten!S55 -> 0 | S24: =Lasten!T55 -> 0 | T24: =Lasten!U55 -> 0 | U24: =Lasten!V55 -> 0 | V24: =Lasten!W55 -> 0 | W24: =Lasten!X55 -> 0 | X24: =Lasten!Y55 -> 0 | Y24: =Lasten!Z55 -> 0 | Z24: =Lasten!AA55 -> 0 | AA24: =Lasten!AB55 -> 0 | AB24: =Lasten!AC55 -> 0 | AC24: =Lasten!AD55 -> 0 | AD24: =Lasten!AE55 -> 0 | AE24: =Lasten!AF55 -> 0 | AF24: =Lasten!AG55 -> 0
C25: totaal afdrachten | F25: =SUM(F20:F24) -> 5157578.877 | H25: =SUM(H20:H24) -> 5637233.13 | J25: =SUM(J20:J24) -> 6269309.668 | L25: =SUM(L20:L24) -> 0 | N25: =SUM(N20:N24) -> 6686021.12 | P25: =SUM(P20:P24) -> 0 | R25: =SUM(R20:R24) -> 0 | T25: =SUM(T20:T24) -> 0 | V25: =SUM(V20:V24) -> 0 | X25: =SUM(X20:X24) -> 0 | Z25: =SUM(Z20:Z24) -> 0 | AB25: =SUM(AB20:AB24) -> 0 | AD25: =SUM(AD20:AD24) -> 0 | AF25: =SUM(AF20:AF24) -> 0
C26: wettelijke verplichte herbesteding AB (pers) bij so
A28: 3 | C28: =INDIRECT("'Programma''s'!L"&A28&"") -> 0 | D28: =IF(LEN(C28)>1,"Zichtbaar", "Onzichtbaar") -> Onzichtbaar | F28: =Lasten!I63 -> 0 | G28: =Lasten!J63 -> 0 | H28: =Lasten!K63 -> 0 | I28: =Lasten!L63 -> 0 | J28: =Lasten!M63 -> 0 | K28: =Lasten!L63 -> 0 | L28: =Lasten!M63 -> 0 | M28: =Lasten!N63 -> 0 | N28: =Lasten!O63 -> 0 | O28: =Lasten!P63 -> 0 | P28: =Lasten!Q63 -> 0 | Q28: =Lasten!R63 -> 0 | R28: =Lasten!S63 -> 0 | S28: =Lasten!T63 -> 0 | T28: =Lasten!U63 -> 0 | U28: =Lasten!V63 -> 0 | V28: =Lasten!W63 -> 0 | W28: =Lasten!X63 -> 0 | X28: =Lasten!Y63 -> 0 | Y28: =Lasten!Z63 -> 0 | Z28: =Lasten!AA63 -> 0 | AA28: =Lasten!AB63 -> 0 | AB28: =Lasten!AC63 -> 0 | AC28: =Lasten!AD63 -> 0 | AD28: =Lasten!AE63 -> 0 | AE28: =Lasten!AF63 -> 0 | AF28: =Lasten!AG63 -> 0
A29: 4 | C29: =INDIRECT("'Programma''s'!L"&A29&"") -> 0 | D29: =IF(LEN(C29)>1,"Zichtbaar", "Onzichtbaar") -> Onzichtbaar | F29: =Lasten!I64 -> 0 | G29: =Lasten!J64 -> 0 | H29: =Lasten!K64 -> 0 | I29: =Lasten!L64 -> 0 | J29: =Lasten!M64 -> 0 | K29: =Lasten!L64 -> 0 | L29: =Lasten!M64 -> 0 | M29: =Lasten!N64 -> 0 | N29: =Lasten!O64 -> 0 | O29: =Lasten!P64 -> 0 | P29: =Lasten!Q64 -> 0 | Q29: =Lasten!R64 -> 0 | R29: =Lasten!S64 -> 0 | S29: =Lasten!T64 -> 0 | T29: =Lasten!U64 -> 0 | U29: =Lasten!V64 -> 0 | V29: =Lasten!W64 -> 0 | W29: =Lasten!X64 -> 0 | X29: =Lasten!Y64 -> 0 | Y29: =Lasten!Z64 -> 0 | Z29: =Lasten!AA64 -> 0 | AA29: =Lasten!AB64 -> 0 | AB29: =Lasten!AC64 -> 0 | AC29: =Lasten!AD64 -> 0 | AD29: =Lasten!AE64 -> 0 | AE29: =Lasten!AF64 -> 0 | AF29: =Lasten!AG64 -> 0
A30: 5 | C30: 0 | D30: Onzichtbaar | F30: =Lasten!I65 -> 0 | G30: =Lasten!J65 -> 0 | H30: =Lasten!K65 -> 0 | I30: =Lasten!L65 -> 0 | J30: =Lasten!M65 -> 0 | K30: =Lasten!L65 -> 0 | L30: =Lasten!M65 -> 0 | M30: =Lasten!N65 -> 0 | N30: =Lasten!O65 -> 0 | O30: =Lasten!P65 -> 0 | P30: =Lasten!Q65 -> 0 | Q30: =Lasten!R65 -> 0 | R30: =Lasten!S65 -> 0 | S30: =Lasten!T65 -> 0 | T30: =Lasten!U65 -> 0 | U30: =Lasten!V65 -> 0 | V30: =Lasten!W65 -> 0 | W30: =Lasten!X65 -> 0 | X30: =Lasten!Y65 -> 0 | Y30: =Lasten!Z65 -> 0 | Z30: =Lasten!AA65 -> 0 | AA30: =Lasten!AB65 -> 0 | AB30: =Lasten!AC65 -> 0 | AC30: =Lasten!AD65 -> 0 | AD30: =Lasten!AE65 -> 0 | AE30: =Lasten!AF65 -> 0 | AF30: =Lasten!AG65 -> 0
A31: 6 | C31: 0 | D31: Onzichtbaar | F31: =Lasten!I66 -> 0 | G31: =Lasten!J66 -> 0 | H31: =Lasten!K66 -> 0 | I31: =Lasten!L66 -> 0 | J31: =Lasten!M66 -> 0 | K31: =Lasten!L66 -> 0 | L31: =Lasten!M66 -> 0 | M31: =Lasten!N66 -> 0 | N31: =Lasten!O66 -> 0 | O31: =Lasten!P66 -> 0 | P31: =Lasten!Q66 -> 0 | Q31: =Lasten!R66 -> 0 | R31: =Lasten!S66 -> 0 | S31: =Lasten!T66 -> 0 | T31: =Lasten!U66 -> 0 | U31: =Lasten!V66 -> 0 | V31: =Lasten!W66 -> 0 | W31: =Lasten!X66 -> 0 | X31: =Lasten!Y66 -> 0 | Y31: =Lasten!Z66 -> 0 | Z31: =Lasten!AA66 -> 0 | AA31: =Lasten!AB66 -> 0 | AB31: =Lasten!AC66 -> 0 | AC31: =Lasten!AD66 -> 0 | AD31: =Lasten!AE66 -> 0 | AE31: =Lasten!AF66 -> 0 | AF31: =Lasten!AG66 -> 0
A32: 7 | C32: 0 | D32: Onzichtbaar | F32: =Lasten!I67 -> 0 | G32: =Lasten!J67 -> 0 | H32: =Lasten!K67 -> 0 | I32: =Lasten!L67 -> 0 | J32: =Lasten!M67 -> 0 | K32: =Lasten!L67 -> 0 | L32: =Lasten!M67 -> 0 | M32: =Lasten!N67 -> 0 | N32: =Lasten!O67 -> 0 | O32: =Lasten!P67 -> 0 | P32: =Lasten!Q67 -> 0 | Q32: =Lasten!R67 -> 0 | R32: =Lasten!S67 -> 0 | S32: =Lasten!T67 -> 0 | T32: =Lasten!U67 -> 0 | U32: =Lasten!V67 -> 0 | V32: =Lasten!W67 -> 0 | W32: =Lasten!X67 -> 0 | X32: =Lasten!Y67 -> 0 | Y32: =Lasten!Z67 -> 0 | Z32: =Lasten!AA67 -> 0 | AA32: =Lasten!AB67 -> 0 | AB32: =Lasten!AC67 -> 0 | AC32: =Lasten!AD67 -> 0 | AD32: =Lasten!AE67 -> 0 | AE32: =Lasten!AF67 -> 0 | AF32: =Lasten!AG67 -> 0
A33: 8 | C33: 0 | D33: Onzichtbaar | F33: =Lasten!I68 -> 0 | G33: =Lasten!J68 -> 0 | H33: =Lasten!K68 -> 0 | I33: =Lasten!L68 -> 0 | J33: =Lasten!M68 -> 0 | K33: =Lasten!L68 -> 0 | L33: =Lasten!M68 -> 0 | M33: =Lasten!N68 -> 0 | N33: =Lasten!O68 -> 0 | O33: =Lasten!P68 -> 0 | P33: =Lasten!Q68 -> 0 | Q33: =Lasten!R68 -> 0 | R33: =Lasten!S68 -> 0 | S33: =Lasten!T68 -> 0 | T33: =Lasten!U68 -> 0 | U33: =Lasten!V68 -> 0 | V33: =Lasten!W68 -> 0 | W33: =Lasten!X68 -> 0 | X33: =Lasten!Y68 -> 0 | Y33: =Lasten!Z68 -> 0 | Z33: =Lasten!AA68 -> 0 | AA33: =Lasten!AB68 -> 0 | AB33: =Lasten!AC68 -> 0 | AC33: =Lasten!AD68 -> 0 | AD33: =Lasten!AE68 -> 0 | AE33: =Lasten!AF68 -> 0 | AF33: =Lasten!AG68 -> 0
A34: 9 | C34: 0 | D34: Onzichtbaar | F34: =Lasten!I69 -> 0 | G34: =Lasten!J69 -> 0 | H34: =Lasten!K69 -> 0 | I34: =Lasten!L69 -> 0 | J34: =Lasten!M69 -> 0 | K34: =Lasten!L69 -> 0 | L34: =Lasten!M69 -> 0 | M34: =Lasten!N69 -> 0 | N34: =Lasten!O69 -> 0 | O34: =Lasten!P69 -> 0 | P34: =Lasten!Q69 -> 0 | Q34: =Lasten!R69 -> 0 | R34: =Lasten!S69 -> 0 | S34: =Lasten!T69 -> 0 | T34: =Lasten!U69 -> 0 | U34: =Lasten!V69 -> 0 | V34: =Lasten!W69 -> 0 | W34: =Lasten!X69 -> 0 | X34: =Lasten!Y69 -> 0 | Y34: =Lasten!Z69 -> 0 | Z34: =Lasten!AA69 -> 0 | AA34: =Lasten!AB69 -> 0 | AB34: =Lasten!AC69 -> 0 | AC34: =Lasten!AD69 -> 0 | AD34: =Lasten!AE69 -> 0 | AE34: =Lasten!AF69 -> 0 | AF34: =Lasten!AG69 -> 0
A35: 10 | C35: 0 | D35: Onzichtbaar | F35: =Lasten!I70 -> 0 | G35: =Lasten!J70 -> 0 | H35: =Lasten!K70 -> 0 | I35: =Lasten!L70 -> 0 | J35: =Lasten!M70 -> 0 | K35: =Lasten!L70 -> 0 | L35: =Lasten!M70 -> 0 | M35: =Lasten!N70 -> 0 | N35: =Lasten!O70 -> 0 | O35: =Lasten!P70 -> 0 | P35: =Lasten!Q70 -> 0 | Q35: =Lasten!R70 -> 0 | R35: =Lasten!S70 -> 0 | S35: =Lasten!T70 -> 0 | T35: =Lasten!U70 -> 0 | U35: =Lasten!V70 -> 0 | V35: =Lasten!W70 -> 0 | W35: =Lasten!X70 -> 0 | X35: =Lasten!Y70 -> 0 | Y35: =Lasten!Z70 -> 0 | Z35: =Lasten!AA70 -> 0 | AA35: =Lasten!AB70 -> 0 | AB35: =Lasten!AC70 -> 0 | AC35: =Lasten!AD70 -> 0 | AD35: =Lasten!AE70 -> 0 | AE35: =Lasten!AF70 -> 0 | AF35: =Lasten!AG70 -> 0
A36: 11 | C36: 0 | D36: Onzichtbaar | F36: =Lasten!I71 -> 0 | G36: =Lasten!J71 -> 0 | H36: =Lasten!K71 -> 0 | I36: =Lasten!L71 -> 0 | J36: =Lasten!M71 -> 0 | K36: =Lasten!L71 -> 0 | L36: =Lasten!M71 -> 0 | M36: =Lasten!N71 -> 0 | N36: =Lasten!O71 -> 0 | O36: =Lasten!P71 -> 0 | P36: =Lasten!Q71 -> 0 | Q36: =Lasten!R71 -> 0 | R36: =Lasten!S71 -> 0 | S36: =Lasten!T71 -> 0 | T36: =Lasten!U71 -> 0 | U36: =Lasten!V71 -> 0 | V36: =Lasten!W71 -> 0 | W36: =Lasten!X71 -> 0 | X36: =Lasten!Y71 -> 0 | Y36: =Lasten!Z71 -> 0 | Z36: =Lasten!AA71 -> 0 | AA36: =Lasten!AB71 -> 0 | AB36: =Lasten!AC71 -> 0 | AC36: =Lasten!AD71 -> 0 | AD36: =Lasten!AE71 -> 0 | AE36: =Lasten!AF71 -> 0 | AF36: =Lasten!AG71 -> 0
A37: 12 | C37: 0 | D37: Onzichtbaar | F37: =Lasten!I72 -> 0 | G37: =Lasten!J72 -> 0 | H37: =Lasten!K72 -> 0 | I37: =Lasten!L72 -> 0 | J37: =Lasten!M72 -> 0 | K37: =Lasten!L72 -> 0 | L37: =Lasten!M72 -> 0 | M37: =Lasten!N72 -> 0 | N37: =Lasten!O72 -> 0 | O37: =Lasten!P72 -> 0 | P37: =Lasten!Q72 -> 0 | Q37: =Lasten!R72 -> 0 | R37: =Lasten!S72 -> 0 | S37: =Lasten!T72 -> 0 | T37: =Lasten!U72 -> 0 | U37: =Lasten!V72 -> 0 | V37: =Lasten!W72 -> 0 | W37: =Lasten!X72 -> 0 | X37: =Lasten!Y72 -> 0 | Y37: =Lasten!Z72 -> 0 | Z37: =Lasten!AA72 -> 0 | AA37: =Lasten!AB72 -> 0 | AB37: =Lasten!AC72 -> 0 | AC37: =Lasten!AD72 -> 0 | AD37: =Lasten!AE72 -> 0 | AE37: =Lasten!AF72 -> 0 | AF37: =Lasten!AG72 -> 0
A38: 13 | C38: 0 | D38: Onzichtbaar | F38: =Lasten!I73 -> 0 | G38: =Lasten!J73 -> 0 | H38: =Lasten!K73 -> 0 | I38: =Lasten!L73 -> 0 | J38: =Lasten!M73 -> 0 | K38: =Lasten!L73 -> 0 | L38: =Lasten!M73 -> 0 | M38: =Lasten!N73 -> 0 | N38: =Lasten!O73 -> 0 | O38: =Lasten!P73 -> 0 | P38: =Lasten!Q73 -> 0 | Q38: =Lasten!R73 -> 0 | R38: =Lasten!S73 -> 0 | S38: =Lasten!T73 -> 0 | T38: =Lasten!U73 -> 0 | U38: =Lasten!V73 -> 0 | V38: =Lasten!W73 -> 0 | W38: =Lasten!X73 -> 0 | X38: =Lasten!Y73 -> 0 | Y38: =Lasten!Z73 -> 0 | Z38: =Lasten!AA73 -> 0 | AA38: =Lasten!AB73 -> 0 | AB38: =Lasten!AC73 -> 0 | AC38: =Lasten!AD73 -> 0 | AD38: =Lasten!AE73 -> 0 | AE38: =Lasten!AF73 -> 0 | AF38: =Lasten!AG73 -> 0
A39: 14 | C39: 0 | D39: Onzichtbaar | F39: =Lasten!I74 -> 0 | G39: =Lasten!J74 -> 0 | H39: =Lasten!K74 -> 0 | I39: =Lasten!L74 -> 0 | J39: =Lasten!M74 -> 0 | K39: =Lasten!L74 -> 0 | L39: =Lasten!M74 -> 0 | M39: =Lasten!N74 -> 0 | N39: =Lasten!O74 -> 0 | O39: =Lasten!P74 -> 0 | P39: =Lasten!Q74 -> 0 | Q39: =Lasten!R74 -> 0 | R39: =Lasten!S74 -> 0 | S39: =Lasten!T74 -> 0 | T39: =Lasten!U74 -> 0 | U39: =Lasten!V74 -> 0 | V39: =Lasten!W74 -> 0 | W39: =Lasten!X74 -> 0 | X39: =Lasten!Y74 -> 0 | Y39: =Lasten!Z74 -> 0 | Z39: =Lasten!AA74 -> 0 | AA39: =Lasten!AB74 -> 0 | AB39: =Lasten!AC74 -> 0 | AC39: =Lasten!AD74 -> 0 | AD39: =Lasten!AE74 -> 0 | AE39: =Lasten!AF74 -> 0 | AF39: =Lasten!AG74 -> 0
A40: 15 | C40: 0 | D40: Onzichtbaar | F40: =Lasten!I75 -> 0 | G40: =Lasten!J75 -> 0 | H40: =Lasten!K75 -> 0 | I40: =Lasten!L75 -> 0 | J40: =Lasten!M75 -> 0 | K40: =Lasten!L75 -> 0 | L40: =Lasten!M75 -> 0 | M40: =Lasten!N75 -> 0 | N40: =Lasten!O75 -> 0 | O40: =Lasten!P75 -> 0 | P40: =Lasten!Q75 -> 0 | Q40: =Lasten!R75 -> 0 | R40: =Lasten!S75 -> 0 | S40: =Lasten!T75 -> 0 | T40: =Lasten!U75 -> 0 | U40: =Lasten!V75 -> 0 | V40: =Lasten!W75 -> 0 | W40: =Lasten!X75 -> 0 | X40: =Lasten!Y75 -> 0 | Y40: =Lasten!Z75 -> 0 | Z40: =Lasten!AA75 -> 0 | AA40: =Lasten!AB75 -> 0 | AB40: =Lasten!AC75 -> 0 | AC40: =Lasten!AD75 -> 0 | AD40: =Lasten!AE75 -> 0 | AE40: =Lasten!AF75 -> 0 | AF40: =Lasten!AG75 -> 0
A41: 16 | C41: 0 | D41: Onzichtbaar | F41: =Lasten!I76 -> 0 | G41: =Lasten!J76 -> 0 | H41: =Lasten!K76 -> 0 | I41: =Lasten!L76 -> 0 | J41: =Lasten!M76 -> 0 | K41: =Lasten!L76 -> 0 | L41: =Lasten!M76 -> 0 | M41: =Lasten!N76 -> 0 | N41: =Lasten!O76 -> 0 | O41: =Lasten!P76 -> 0 | P41: =Lasten!Q76 -> 0 | Q41: =Lasten!R76 -> 0 | R41: =Lasten!S76 -> 0 | S41: =Lasten!T76 -> 0 | T41: =Lasten!U76 -> 0 | U41: =Lasten!V76 -> 0 | V41: =Lasten!W76 -> 0 | W41: =Lasten!X76 -> 0 | X41: =Lasten!Y76 -> 0 | Y41: =Lasten!Z76 -> 0 | Z41: =Lasten!AA76 -> 0 | AA41: =Lasten!AB76 -> 0 | AB41: =Lasten!AC76 -> 0 | AC41: =Lasten!AD76 -> 0 | AD41: =Lasten!AE76 -> 0 | AE41: =Lasten!AF76 -> 0 | AF41: =Lasten!AG76 -> 0
A42: 17 | C42: 0 | D42: Onzichtbaar | F42: =Lasten!I77 -> 0 | G42: =Lasten!J77 -> 0 | H42: =Lasten!K77 -> 0 | I42: =Lasten!L77 -> 0 | J42: =Lasten!M77 -> 0 | K42: =Lasten!L77 -> 0 | L42: =Lasten!M77 -> 0 | M42: =Lasten!N77 -> 0 | N42: =Lasten!O77 -> 0 | O42: =Lasten!P77 -> 0 | P42: =Lasten!Q77 -> 0 | Q42: =Lasten!R77 -> 0 | R42: =Lasten!S77 -> 0 | S42: =Lasten!T77 -> 0 | T42: =Lasten!U77 -> 0 | U42: =Lasten!V77 -> 0 | V42: =Lasten!W77 -> 0 | W42: =Lasten!X77 -> 0 | X42: =Lasten!Y77 -> 0 | Y42: =Lasten!Z77 -> 0 | Z42: =Lasten!AA77 -> 0 | AA42: =Lasten!AB77 -> 0 | AB42: =Lasten!AC77 -> 0 | AC42: =Lasten!AD77 -> 0 | AD42: =Lasten!AE77 -> 0 | AE42: =Lasten!AF77 -> 0 | AF42: =Lasten!AG77 -> 0
A43: 18 | C43: 0 | D43: Onzichtbaar | F43: =Lasten!I78 -> 0 | G43: =Lasten!J78 -> 0 | H43: =Lasten!K78 -> 0 | I43: =Lasten!L78 -> 0 | J43: =Lasten!M78 -> 0 | K43: =Lasten!L78 -> 0 | L43: =Lasten!M78 -> 0 | M43: =Lasten!N78 -> 0 | N43: =Lasten!O78 -> 0 | O43: =Lasten!P78 -> 0 | P43: =Lasten!Q78 -> 0 | Q43: =Lasten!R78 -> 0 | R43: =Lasten!S78 -> 0 | S43: =Lasten!T78 -> 0 | T43: =Lasten!U78 -> 0 | U43: =Lasten!V78 -> 0 | V43: =Lasten!W78 -> 0 | W43: =Lasten!X78 -> 0 | X43: =Lasten!Y78 -> 0 | Y43: =Lasten!Z78 -> 0 | Z43: =Lasten!AA78 -> 0 | AA43: =Lasten!AB78 -> 0 | AB43: =Lasten!AC78 -> 0 | AC43: =Lasten!AD78 -> 0 | AD43: =Lasten!AE78 -> 0 | AE43: =Lasten!AF78 -> 0 | AF43: =Lasten!AG78 -> 0
A44: 19 | C44: 0 | D44: Onzichtbaar | F44: =Lasten!I79 -> 0 | G44: =Lasten!J79 -> 0 | H44: =Lasten!K79 -> 0 | I44: =Lasten!L79 -> 0 | J44: =Lasten!M79 -> 0 | K44: =Lasten!L79 -> 0 | L44: =Lasten!M79 -> 0 | M44: =Lasten!N79 -> 0 | N44: =Lasten!O79 -> 0 | O44: =Lasten!P79 -> 0 | P44: =Lasten!Q79 -> 0 | Q44: =Lasten!R79 -> 0 | R44: =Lasten!S79 -> 0 | S44: =Lasten!T79 -> 0 | T44: =Lasten!U79 -> 0 | U44: =Lasten!V79 -> 0 | V44: =Lasten!W79 -> 0 | W44: =Lasten!X79 -> 0 | X44: =Lasten!Y79 -> 0 | Y44: =Lasten!Z79 -> 0 | Z44: =Lasten!AA79 -> 0 | AA44: =Lasten!AB79 -> 0 | AB44: =Lasten!AC79 -> 0 | AC44: =Lasten!AD79 -> 0 | AD44: =Lasten!AE79 -> 0 | AE44: =Lasten!AF79 -> 0 | AF44: =Lasten!AG79 -> 0
A45: 20 | C45: 0 | D45: Onzichtbaar | F45: =Lasten!I80 -> 0 | G45: =Lasten!J80 -> 0 | H45: =Lasten!K80 -> 0 | I45: =Lasten!L80 -> 0 | J45: =Lasten!M80 -> 0 | K45: =Lasten!L80 -> 0 | L45: =Lasten!M80 -> 0 | M45: =Lasten!N80 -> 0 | N45: =Lasten!O80 -> 0 | O45: =Lasten!P80 -> 0 | P45: =Lasten!Q80 -> 0 | Q45: =Lasten!R80 -> 0 | R45: =Lasten!S80 -> 0 | S45: =Lasten!T80 -> 0 | T45: =Lasten!U80 -> 0 | U45: =Lasten!V80 -> 0 | V45: =Lasten!W80 -> 0 | W45: =Lasten!X80 -> 0 | X45: =Lasten!Y80 -> 0 | Y45: =Lasten!Z80 -> 0 | Z45: =Lasten!AA80 -> 0 | AA45: =Lasten!AB80 -> 0 | AB45: =Lasten!AC80 -> 0 | AC45: =Lasten!AD80 -> 0 | AD45: =Lasten!AE80 -> 0 | AE45: =Lasten!AF80 -> 0 | AF45: =Lasten!AG80 -> 0
A46: 21 | C46: 0 | D46: Onzichtbaar | F46: =Lasten!I81 -> 0 | G46: =Lasten!J81 -> 0 | H46: =Lasten!K81 -> 0 | I46: =Lasten!L81 -> 0 | J46: =Lasten!M81 -> 0 | K46: =Lasten!L81 -> 0 | L46: =Lasten!M81 -> 0 | M46: =Lasten!N81 -> 0 | N46: =Lasten!O81 -> 0 | O46: =Lasten!P81 -> 0 | P46: =Lasten!Q81 -> 0 | Q46: =Lasten!R81 -> 0 | R46: =Lasten!S81 -> 0 | S46: =Lasten!T81 -> 0 | T46: =Lasten!U81 -> 0 | U46: =Lasten!V81 -> 0 | V46: =Lasten!W81 -> 0 | W46: =Lasten!X81 -> 0 | X46: =Lasten!Y81 -> 0 | Y46: =Lasten!Z81 -> 0 | Z46: =Lasten!AA81 -> 0 | AA46: =Lasten!AB81 -> 0 | AB46: =Lasten!AC81 -> 0 | AC46: =Lasten!AD81 -> 0 | AD46: =Lasten!AE81 -> 0 | AE46: =Lasten!AF81 -> 0 | AF46: =Lasten!AG81 -> 0
A47: 22 | C47: 0 | D47: Onzichtbaar | F47: =Lasten!I82 -> 0 | G47: =Lasten!J82 -> 0 | H47: =Lasten!K82 -> 0 | I47: =Lasten!L82 -> 0 | J47: =Lasten!M82 -> 0 | K47: =Lasten!L82 -> 0 | L47: =Lasten!M82 -> 0 | M47: =Lasten!N82 -> 0 | N47: =Lasten!O82 -> 0 | O47: =Lasten!P82 -> 0 | P47: =Lasten!Q82 -> 0 | Q47: =Lasten!R82 -> 0 | R47: =Lasten!S82 -> 0 | S47: =Lasten!T82 -> 0 | T47: =Lasten!U82 -> 0 | U47: =Lasten!V82 -> 0 | V47: =Lasten!W82 -> 0 | W47: =Lasten!X82 -> 0 | X47: =Lasten!Y82 -> 0 | Y47: =Lasten!Z82 -> 0 | Z47: =Lasten!AA82 -> 0 | AA47: =Lasten!AB82 -> 0 | AB47: =Lasten!AC82 -> 0 | AC47: =Lasten!AD82 -> 0 | AD47: =Lasten!AE82 -> 0 | AE47: =Lasten!AF82 -> 0 | AF47: =Lasten!AG82 -> 0
C48: totaal programma's | F48: =SUM(F26:F47) -> 0 | G48: =SUM(G26:G47) -> 0 | H48: 0 | I48: =SUM(I26:I47) -> 0 | J48: 0 | K48: =SUM(K26:K47) -> 0 | L48: 0 | M48: 0 | N48: 0 | O48: =SUM(O26:O47) -> 0 | P48: 0 | Q48: =SUM(Q26:Q47) -> 0 | R48: 0 | S48: =SUM(S26:S47) -> 0 | T48: =SUM(T26:T47) -> 0 | U48: =SUM(U26:U47) -> 0 | V48: =SUM(V26:V47) -> 0 | W48: =SUM(W26:W47) -> 0 | X48: =SUM(X26:X47) -> 0 | Y48: =SUM(Y26:Y47) -> 0 | Z48: =SUM(Z26:Z47) -> 0 | AA48: 0 | AB48: =SUM(AB26:AB47) -> 0 | AC48: =SUM(AC26:AC47) -> 0 | AD48: =SUM(AD26:AD47) -> 0 | AE48: =SUM(AE26:AE47) -> 0 | AF48: =SUM(AF26:AF47) -> 0
C50: Totale lasten | F50: =SUM(F20:F24)+F$48 -> 5157578.877 | G50: =SUM(G20:G24)+G$48 -> 0 | H50: 5637233.13 | I50: =SUM(I20:I24)+I$48 -> 0 | J50: 6269309.668 | K50: =SUM(K20:K24)+K$48 -> 0 | L50: =SUM(L20:L24)+L$48 -> 0 | M50: 0 | N50: 6686021.12 | O50: =SUM(O20:O24)+O$48 -> 0 | P50: 0 | Q50: =SUM(Q20:Q24)+Q$48 -> 0 | R50: 0 | S50: =SUM(S20:S24)+S$48 -> 0 | T50: =SUM(T20:T24)+T$48 -> 0 | U50: =SUM(U20:U24)+U$48 -> 0 | V50: =SUM(V20:V24)+V$48 -> 0 | W50: =SUM(W20:W24)+W$48 -> 0 | X50: =SUM(X20:X24)+X$48 -> 0 | Y50: =SUM(Y20:Y24)+Y$48 -> 0 | Z50: =SUM(Z20:Z24)+Z$48 -> 0 | AA50: 0 | AB50: =SUM(AB20:AB24)+AB$48 -> 0 | AC50: =SUM(AC20:AC24)+AC$48 -> 0 | AD50: =SUM(AD20:AD24)+AD$48 -> 0 | AE50: =SUM(AE20:AE24)+AE$48 -> 0 | AF50: =SUM(AF20:AF24)+AF$48 -> 0
C52: Resultaat | F52: =F17-F50 -> 18007311.36 | H52: =H17-H50 -> 19415250.96 | J52: =J17-J50 -> 20512986.38 | L52: =L17-L50 -> 0 | N52: =N17-N50 -> 8506962 | P52: =P17-P50 -> 0 | R52: =R17-R50 -> 0 | T52: =T17-T50 -> 0 | V52: =V17-V50 -> 0 | X52: =X17-X50 -> 0 | Z52: =Z17-Z50 -> 0 | AB52: =AB17-AB50 -> 0 | AD52: =AD17-AD50 -> 0 | AF52: =AF17-AF50 -> 0
C56: Afdracht zware ondersteuning
C57: de maximale afdracht so bedraagt (budget zware ondersteuning): | F57: =F7+F10 -> 12432483.65 | H57: 13913008.92 | J57: 15390794.44 | N57: 8677702.367 | P57: 0 | R57: 0 | T57: 0 | V57: 0 | X57: 0 | Z57: 0 | AB57: 0 | AD57: 0 | AF57: 0
C58: de werkelijke afdracht (via DUO en swv) is: | F58: =IFERROR((F20+F21)/F57,0) -> 0.4148470266 | H58: =IFERROR((H20+H21)/H57,0) -> 0.4051771376 | J58: =IFERROR((J20+J21)/J57,0) -> 0.4073415244 | N58: =IFERROR((N20+N21)/N57,0) -> 0.770482881 | P58: =IFERROR((P20+P21)/P57,0) -> 0 | R58: =IFERROR((R20+R21)/R57,0) -> 0 | T58: =IFERROR((T20+T21)/T57,0) -> 0 | V58: =IFERROR((V20+V21)/V57,0) -> 0 | X58: =IFERROR((X20+X21)/X57,0) -> 0 | Z58: =IFERROR((Z20+Z21)/Z57,0) -> 0 | AB58: =IFERROR((AB20+AB21)/AB57,0) -> 0 | AD58: =IFERROR((AD20+AD21)/AD57,0) -> 0 | AF58: =IFERROR((AF20+AF21)/AF57,0) -> 0
C59: indien de baten zware ondersteuning lager zijn dan de afdracht so wordt de lumpsum van de deelnemende scholen gekort: | F59: =Lasten!I36 -> 0 | H59: =Lasten!K36 -> 0 | J59: =Lasten!M36 -> 0 | N59: =Lasten!O36 -> 0 | P59: =Lasten!Q36 -> 6686021.12 | R59: =Lasten!S36 -> 6686021.12 | T59: =Lasten!U36 -> 6686021.12 | V59: =Lasten!W36 -> 6686021.12 | X59: =Lasten!Y36 -> 6686021.12 | Z59: =Lasten!AA36 -> 6686021.12 | AB59: =Lasten!AC36 -> 6686021.12 | AD59: =Lasten!AE36 -> 6686021.12 | AF59: =Lasten!AG36 -> 4104218.778
C60: per leerling (po en so): | F60: =F59/(LLaantal!Q11+LLaantal!Q36) -> 0 | H60: =H59/(LLaantal!S8+LLaantal!S36) -> 0 | J60: =J59/(LLaantal!U8+LLaantal!U36) -> 0 | L60: =L59/(LLaantal!U8+LLaantal!U36) -> 0 | N60: =N59/(LLaantal!W8+LLaantal!W36) -> 0 | P60: =P59/(LLaantal!Y8+LLaantal!Y36) -> 13842.69383 | R60: =R59/(LLaantal!AA8+LLaantal!AA36) -> 13842.69383 | T60: =T59/(LLaantal!AC8+LLaantal!AC36) -> 13842.69383 | V60: =V59/(LLaantal!AE8+LLaantal!AE36) -> 13842.69383 | X60: =X59/(LLaantal!AG8+LLaantal!AG36) -> 13842.69383 | Z60: =Z59/(LLaantal!AI8+LLaantal!AI36) -> 13842.69383 | AB60: =AB59/(LLaantal!AK8+LLaantal!AK36) -> 13842.69383 | AD60: =AD59/(LLaantal!AM8+LLaantal!AM36) -> 13842.69383 | AF60: =AF59/(LLaantal!AO8+LLaantal!AO36) -> 8497.347367

Sheet MJB schooljaar
AU1: 1 | AV1: =INDEX(gekozenjaar,AU1) -> 2020 | AW1: =INDEX(gekozenjaar,AX1) -> 2029 | AX1: 10
A2: 0
C3: MEERJARENBEGROTING SCHOOLJAAR | F3: =IF(AND(LEFT(F5,4)>=LEFT($AV$1,4),LEFT(F5,4)<=LEFT($AW$1,4)),"","x") -> x | G3: =F3 -> x | H3: =IF(AND(LEFT(H5,4)>=LEFT($AV$1,4),LEFT(H5,4)<=LEFT($AW$1,4)),"","x") -> x | I3: =H3 -> x | J3: =IF(AND(LEFT(J5,4)>=LEFT($AV$1,4),LEFT(J5,4)<=LEFT($AW$1,4)),"","x") -> x | K3: =J3 -> x | L3: =IF(AND(LEFT(L5,4)>=LEFT($AV$1,4),LEFT(L5,4)<=LEFT($AW$1,4)),"","x") ->  | M3: =L3 ->  | N3: =IF(AND(LEFT(N5,4)>=LEFT($AV$1,4),LEFT(N5,4)<=LEFT($AW$1,4)),"","x") ->  | O3: =N3 ->  | P3: =IF(AND(LEFT(P5,4)>=LEFT($AV$1,4),LEFT(P5,4)<=LEFT($AW$1,4)),"","x") ->  | Q3: =P3 ->  | R3: =IF(AND(LEFT(R5,4)>=LEFT($AV$1,4),LEFT(R5,4)<=LEFT($AW$1,4)),"","x") ->  | S3: =R3 ->  | T3: =IF(AND(LEFT(T5,4)>=LEFT($AV$1,4),LEFT(T5,4)<=LEFT($AW$1,4)),"","x") ->  | U3: =T3 ->  | V3: =IF(AND(LEFT(V5,4)>=LEFT($AV$1,4),LEFT(V5,4)<=LEFT($AW$1,4)),"","x") ->  | W3: =V3 ->  | X3: =IF(AND(LEFT(X5,4)>=LEFT($AV$1,4),LEFT(X5,4)<=LEFT($AW$1,4)),"","x") ->  | Y3: =X3 ->  | Z3: =IF(AND(LEFT(Z5,4)>=LEFT($AV$1,4),LEFT(Z5,4)<=LEFT($AW$1,4)),"","x") ->  | AA3: =Z3 ->  | AB3: =IF(AND(LEFT(AB5,4)>=LEFT($AV$1,4),LEFT(AB5,4)<=LEFT($AW$1,4)),"","x") ->  | AC3: =AB3 ->  | AD3: =IF(AND(LEFT(AD5,4)>=LEFT($AV$1,4),LEFT(AD5,4)<=LEFT($AW$1,4)),"","x") ->  | AE3: =AD3 ->  | AF3: =IF(AND(LEFT(AF5,4)>=LEFT($AV$1,4),LEFT(AF5,4)<=LEFT($AW$1,4)),"","x") -> x | AG3: =AF3 -> x
C4: =Start!$A$33 -> Versie 8.0
C5: ='MJB kalenderjaar'!C5 -> Baten | F5: 2017/18 | H5: 2018/19 | J5: 2019/20 | L5: 2020/21 | N5: 2021/22 | P5: 2022/23 | R5: 2023/24 | T5: 2024/25 | V5: 2025/26 | X5: 2026/27 | Z5: 2027/28 | AB5: 2028/29 | AD5: 2029/30 | AF5: 2030/31
C6: ='MJB kalenderjaar'!C6 -> lichte ondersteuning | F6: =Baten!H6 -> 6759245.57 | H6: =Baten!J6 -> 7049295.164 | J6: =Baten!L6 -> 7268150.113 | L6: =Baten!N6 -> 7174765.733 | N6: =Baten!P6 -> 0 | P6: =Baten!R6 -> 0 | R6: =Baten!T6 -> 0 | T6: =Baten!V6 -> 0 | V6: =Baten!X6 -> 0 | X6: =Baten!Z6 -> 0 | Z6: =Baten!AB6 -> 0 | AB6: =Baten!AD6 -> 0 | AD6: =Baten!AF6 -> 0 | AF6: =Baten!AH6 -> 0 | AG6: =Baten!AI6 -> 0
C7: zware ondersteuning | F7: =Baten!H18 -> 14522349 | H7: =Baten!J18 -> 15475748.6 | J7: =Baten!L18 -> 15952553.55 | L7: =Baten!N18 -> 15397749.03 | N7: =Baten!P18 -> 0 | P7: =Baten!R18 -> 0 | R7: =Baten!T18 -> 0 | T7: =Baten!V18 -> 0 | V7: =Baten!X18 -> 0 | X7: =Baten!Z18 -> 0 | Z7: =Baten!AB18 -> 0 | AB7: =Baten!AD18 -> 0 | AD7: =Baten!AF18 -> 0 | AF7: =Baten!AH18 -> 0
C8: ='MJB kalenderjaar'!C8 -> verevening zware ondersteuning (pers) | F8: =Baten!H30 -> -2523601.304 | H8: =Baten!J30 -> -2113001.277 | J8: =Baten!L30 -> -1094164.886 | L8: =Baten!N30 -> 0
C9: ='MJB kalenderjaar'!C9 -> verevening zware ondersteuning (mat) | F9: =5/12*Baten!G31+7/12*Baten!I31 -> -157392.1091 | H9: =5/12*Baten!I31+7/12*Baten!K31 -> -102638.98 | J9: =5/12*Baten!K31+7/12*Baten!M31 -> -30452.66434 | L9: =5/12*Baten!M31+7/12*Baten!O31 -> 0
C10: ='MJB kalenderjaar'!C10 -> verevening zware ondersteuning | F10: =SUM(F8:F9) -> -2680993.413 | H10: -2215640.257 | J10: -1124617.551 | L10: 0
C11: grensverkeer SBAO in | F11: =Baten!H33 -> 0 | G11: =Baten!I33 -> 0 | H11: =Baten!J33 -> 0 | I11: =Baten!K33 -> 0 | J11: =Baten!L33 -> 0 | K11: =Baten!M33 -> 0 | L11: =Baten!N33 -> 0 | M11: =Baten!O33 -> 0 | N11: =Baten!P33 -> 0 | O11: =Baten!Q33 -> 0 | P11: =Baten!R33 -> 0 | Q11: =Baten!S33 -> 0 | R11: =Baten!T33 -> 0 | S11: =Baten!U33 -> 0 | T11: =Baten!V33 -> 0 | U11: =Baten!W33 -> 0 | V11: =Baten!X33 -> 0 | W11: =Baten!Y33 -> 0 | X11: =Baten!Z33 -> 0 | Y11: =Baten!AA33 -> 0 | Z11: =Baten!AB33 -> 0 | AA11: =Baten!AC33 -> 0 | AB11: =Baten!AD33 -> 0 | AC11: =Baten!AE33 -> 0 | AD11: =Baten!AF33 -> 0 | AE11: =Baten!AG33 -> 0 | AF11: =Baten!AH33 -> 0
C12: overdrachtverplichting van SBAO | F12: =Baten!H45 -> 3782730.52 | G12: =Baten!I45 -> 3851745.12 | H12: =Baten!J45 -> 3948365.56 | I12: =Baten!K45 -> 3998968.139 | J12: =Baten!L45 -> 4069811.75 | K12: =Baten!M45 -> 4089669.238 | L12: =Baten!N45 -> 4117469.72 | M12: =Baten!O45 -> 2401857.337 | N12: =Baten!P45 -> 0 | O12: =Baten!Q45 -> 0 | P12: =Baten!R45 -> 0 | Q12: =Baten!S45 -> 0 | R12: =Baten!T45 -> 0 | S12: =Baten!U45 -> 0 | T12: =Baten!V45 -> 0 | U12: =Baten!W45 -> 0 | V12: =Baten!X45 -> 0 | W12: =Baten!Y45 -> 0 | X12: =Baten!Z45 -> 0 | Y12: =Baten!AA45 -> 0 | Z12: =Baten!AB45 -> 0 | AA12: =Baten!AC45 -> 0 | AB12: =Baten!AD45 -> 0 | AC12: =Baten!AE45 -> 0 | AD12: =Baten!AF45 -> 0 | AE12: =Baten!AG45 -> 0 | AF12: =Baten!AH45 -> 0
C13: regeling schoolmaatschappelijk werk | F13: =Baten!H49 -> 0 | G13: =Baten!I49 -> 0 | H13: =Baten!J49 -> 0 | I13: =Baten!K49 -> 0 | J13: =Baten!L49 -> 0 | K13: =Baten!M49 -> 0 | L13: =Baten!N49 -> 0 | M13: =Baten!O49 -> 0 | N13: =Baten!P49 -> 0 | O13: =Baten!Q49 -> 0 | P13: =Baten!R49 -> 0 | Q13: =Baten!S49 -> 0 | R13: =Baten!T49 -> 0 | S13: =Baten!U49 -> 0 | T13: =Baten!V49 -> 0 | U13: =Baten!W49 -> 0 | V13: =Baten!X49 -> 0 | W13: =Baten!Y49 -> 0 | X13: =Baten!Z49 -> 0 | Y13: =Baten!AA49 -> 0 | Z13: =Baten!AB49 -> 0 | AA13: =Baten!AC49 -> 0 | AB13: =Baten!AD49 -> 0 | AC13: =Baten!AE49 -> 0 | AD13: =Baten!AF49 -> 0 | AE13: =Baten!AG49 -> 0 | AF13: =Baten!AH49 -> 0
C14: ='MJB kalenderjaar'!C14 -> overige baten | F14: =Baten!H66 -> 0 | H14: =Baten!J66 -> 0 | J14: =Baten!L66 -> 0 | L14: =Baten!N66 -> 0 | N14: =Baten!P66 -> 0 | P14: =Baten!R66 -> 0 | R14: =Baten!T66 -> 0 | T14: =Baten!V66 -> 0 | V14: =Baten!X66 -> 0 | X14: =Baten!Z66 -> 0 | Z14: =Baten!AB66 -> 0 | AB14: =Baten!AD66 -> 0 | AD14: =Baten!AF66 -> 0 | AF14: =Baten!AH66 -> 0
C15: ='MJB kalenderjaar'!C15 -> geoormerkte subsidies en bijdragen voor specifieke programma's in het ondersteuningsplan | F15: =Baten!H68+Baten!H69 -> 0 | H15: =Baten!J68+Baten!J69 -> 0 | J15: =Baten!L68+Baten!L69 -> 0 | L15: =Baten!N68+Baten!N69 -> 0 | N15: =Baten!P68+Baten!P69 -> 0 | P15: =Baten!R68+Baten!R69 -> 0 | R15: =Baten!T68+Baten!T69 -> 0 | T15: =Baten!V68+Baten!V69 -> 0 | V15: =Baten!X68+Baten!X69 -> 0 | X15: =Baten!Z68+Baten!Z69 -> 0 | Z15: =Baten!AB68+Baten!AB69 -> 0 | AB15: =Baten!AD68+Baten!AD69 -> 0 | AD15: =Baten!AF68+Baten!AF69 -> 0 | AF15: =Baten!AH68+Baten!AH69 -> 0
C17: ='MJB kalenderjaar'!C17 -> Totale baten | F17: =SUM(F6:F7)+SUM(F10:F15) -> 22383331.68 | H17: =SUM(H6:H7)+SUM(H10:H15) -> 24257769.07 | J17: =SUM(J6:J7)+SUM(J10:J15) -> 26165897.87 | L17: =SUM(L6:L7)+SUM(L10:L15) -> 26689984.49 | N17: =SUM(N6:N7)+SUM(N10:N15) -> 0 | P17: =SUM(P6:P7)+SUM(P10:P15) -> 0 | R17: =SUM(R6:R7)+SUM(R10:R15) -> 0 | T17: =SUM(T6:T7)+SUM(T10:T15) -> 0 | V17: =SUM(V6:V7)+SUM(V10:V15) -> 0 | X17: =SUM(X6:X7)+SUM(X10:X15) -> 0 | Z17: =SUM(Z6:Z7)+SUM(Z10:Z15) -> 0 | AB17: =SUM(AB6:AB7)+SUM(AB10:AB15) -> 0 | AD17: =SUM(AD6:AD7)+SUM(AD10:AD15) -> 0 | AF17: =SUM(AF6:AF7)+SUM(AF10:AF15) -> 0 | AG17: =Baten!AI50 -> 0
C19: Lasten | F19: =F5 -> 2017/18 | H19: =H5 -> 2018/19 | J19: =J5 -> 2019/20 | L19: =L5 -> 2020/21 | N19: =N5 -> 2021/22 | P19: =P5 -> 2022/23 | R19: =R5 -> 2023/24 | T19: =T5 -> 2024/25 | V19: 2025/26 | X19: =X5 -> 2026/27 | Z19: =Z5 -> 2027/28 | AB19: =AB5 -> 2028/29 | AD19: =AD5 -> 2029/30 | AF19: 2030/31
C20: ='MJB kalenderjaar'!C20 -> afdracht so, teldatum, (via DUO) | F20: =Lasten!H39-Lasten!H20 -> 4966513.914 | H20: =Lasten!J39-Lasten!J20 -> 5427522.251 | J20: =Lasten!L39-Lasten!L20 -> 5947683.013 | L20: =Lasten!N39-Lasten!N20 -> 6686021.12 | N20: =Lasten!P39-Lasten!P20 -> 0 | P20: =Lasten!R39-Lasten!R20 -> 0 | R20: =Lasten!T39-Lasten!T20 -> 0 | T20: =Lasten!V39-Lasten!V20 -> 0 | V20: =Lasten!X39-Lasten!X20 -> 0 | X20: =Lasten!Z39-Lasten!Z20 -> 0 | Z20: =Lasten!AB39-Lasten!AB20 -> 0 | AB20: =Lasten!AD39-Lasten!AD20 -> 0 | AD20: =Lasten!AF39-Lasten!AF20 -> 0 | AF20: =Lasten!AH39-Lasten!AH20 -> 0
C21: ='MJB kalenderjaar'!C21 -> afdracht so, peildatum, (tussentijdse groei so), ondersteuningsbekostiging | F21: =Lasten!H20 -> 0 | G21: =Lasten!I20 -> 0 | H21: =Lasten!J20 -> 0 | I21: =Lasten!K20 -> 0 | J21: =Lasten!L20 -> 0 | K21: =Lasten!M20 -> 0 | L21: =Lasten!N20 -> 0 | M21: =Lasten!O20 -> 0 | N21: =Lasten!P20 -> 0 | O21: =Lasten!Q20 -> 0 | P21: =Lasten!R20 -> 0 | Q21: =Lasten!S20 -> 0 | R21: =Lasten!T20 -> 0 | S21: =Lasten!U20 -> 0 | T21: =Lasten!V20 -> 0 | U21: =Lasten!W20 -> 0 | V21: =Lasten!X20 -> 0 | W21: =Lasten!Y20 -> 0 | X21: =Lasten!Z20 -> 0 | Y21: =Lasten!AA20 -> 0 | Z21: =Lasten!AB20 -> 0 | AA21: =Lasten!AC20 -> 0 | AB21: =Lasten!AD20 -> 0 | AC21: =Lasten!AE20 -> 0 | AD21: =Lasten!AF20 -> 0 | AE21: =Lasten!AG20 -> 0 | AF21: =Lasten!AH20 -> 0 | AG21: =Lasten!AJ20 -> 0
C22: ='MJB kalenderjaar'!C22 -> afdracht so, peildatum, (tussentijdse groei so), basisbekostiging | F22: =Lasten!H43 -> 0 | H22: =Lasten!J43 -> 0 | J22: =Lasten!L43 -> 0 | L22: =Lasten!N43 -> 0 | N22: =Lasten!P43 -> 0 | P22: =Lasten!R43 -> 0 | R22: =Lasten!T43 -> 0 | T22: =Lasten!V43 -> 0 | V22: =Lasten!X43 -> 0 | X22: =Lasten!Z43 -> 0 | Z22: =Lasten!AB43 -> 0 | AB22: =Lasten!AD43 -> 0 | AD22: =Lasten!AF43 -> 0 | AF22: =Lasten!AH43 -> 0 | AG22: =Lasten!AJ48 -> 0
C23: grensverkeer SBAO uit | F23: =Lasten!H54 -> 0 | G23: =Lasten!I54 -> 0 | H23: =Lasten!J54 -> 0 | I23: =Lasten!K54 -> 0 | J23: =Lasten!L54 -> 0 | K23: =Lasten!M54 -> 0 | L23: =Lasten!N54 -> 0 | M23: =Lasten!O54 -> 0 | N23: =Lasten!P54 -> 0 | O23: =Lasten!Q54 -> 0 | P23: =Lasten!R54 -> 0 | Q23: =Lasten!S54 -> 0 | R23: =Lasten!T54 -> 0 | S23: =Lasten!U54 -> 0 | T23: =Lasten!V54 -> 0 | U23: =Lasten!W54 -> 0 | V23: =Lasten!X54 -> 0 | W23: =Lasten!Y54 -> 0 | X23: =Lasten!Z54 -> 0 | Y23: =Lasten!AA54 -> 0 | Z23: =Lasten!AB54 -> 0 | AA23: =Lasten!AC54 -> 0 | AB23: =Lasten!AD54 -> 0 | AC23: =Lasten!AE54 -> 0 | AD23: =Lasten!AF54 -> 0 | AE23: =Lasten!AG54 -> 0 | AF23: =Lasten!AH54 -> 0
C24: overdrachtsverplichting aan SBAO | F24: =Lasten!H55 -> 0 | G24: =Lasten!I55 -> 0 | H24: =Lasten!J55 -> 0 | I24: =Lasten!K55 -> 0 | J24: =Lasten!L55 -> 0 | K24: =Lasten!M55 -> 0 | L24: =Lasten!N55 -> 0 | M24: =Lasten!O55 -> 0 | N24: =Lasten!P55 -> 0 | O24: =Lasten!Q55 -> 0 | P24: =Lasten!R55 -> 0 | Q24: =Lasten!S55 -> 0 | R24: =Lasten!T55 -> 0 | S24: =Lasten!U55 -> 0 | T24: =Lasten!V55 -> 0 | U24: =Lasten!W55 -> 0 | V24: =Lasten!X55 -> 0 | W24: =Lasten!Y55 -> 0 | X24: =Lasten!Z55 -> 0 | Y24: =Lasten!AA55 -> 0 | Z24: =Lasten!AB55 -> 0 | AA24: =Lasten!AC55 -> 0 | AB24: =Lasten!AD55 -> 0 | AC24: =Lasten!AE55 -> 0 | AD24: =Lasten!AF55 -> 0 | AE24: =Lasten!AG55 -> 0 | AF24: =Lasten!AH55 -> 0
C25: totaal afdrachten | F25: =SUM(F20:F24) -> 4966513.914 | H25: =SUM(H20:H24) -> 5427522.251 | J25: =SUM(J20:J24) -> 5947683.013 | L25: =SUM(L20:L24) -> 6686021.12 | N25: =SUM(N20:N24) -> 0 | P25: =SUM(P20:P24) -> 0 | R25: =SUM(R20:R24) -> 0 | T25: =SUM(T20:T24) -> 0 | V25: =SUM(V20:V24) -> 0 | X25: =SUM(X20:X24) -> 0 | Z25: =SUM(Z20:Z24) -> 0 | AB25: =SUM(AB20:AB24) -> 0 | AD25: =SUM(AD20:AD24) -> 0 | AF25: =SUM(AF20:AF24) -> 0
C26: ='MJB kalenderjaar'!C26 -> wettelijke verplichte herbesteding AB (pers) bij so
C28: 0 | D28: =IF(LEN(C28)>1,"Zichtbaar", "Onzichtbaar") -> Onzichtbaar | E28: 0 | F28: =Lasten!H63 -> 0 | G28: =Lasten!I63 -> 0 | H28: =Lasten!J63 -> 0 | I28: =Lasten!K63 -> 0 | J28: =Lasten!L63 -> 0 | K28: =Lasten!M63 -> 0 | L28: =Lasten!N63 -> 0 | M28: =Lasten!O63 -> 0 | N28: =Lasten!P63 -> 0 | O28: =Lasten!Q63 -> 0 | P28: =Lasten!R63 -> 0 | Q28: =Lasten!S63 -> 0 | R28: =Lasten!T63 -> 0 | S28: =Lasten!U63 -> 0 | T28: =Lasten!V63 -> 0 | U28: =Lasten!W63 -> 0 | V28: =Lasten!X63 -> 0 | W28: =Lasten!Y63 -> 0 | X28: =Lasten!Z63 -> 0 | Y28: =Lasten!AA63 -> 0 | Z28: =Lasten!AB63 -> 0 | AA28: =Lasten!AC63 -> 0 | AB28: =Lasten!AD63 -> 0 | AC28: =Lasten!AE63 -> 0 | AD28: =Lasten!AF63 -> 0 | AE28: =Lasten!AG63 -> 0 | AF28: =Lasten!AH63 -> 0
C29: 0 | D29: =IF(LEN(C29)>1,"Zichtbaar", "Onzichtbaar") -> Onzichtbaar | E29: 0 | F29: =Lasten!H64 -> 0 | G29: =Lasten!I64 -> 0 | H29: =Lasten!J64 -> 0 | I29: =Lasten!K64 -> 0 | J29: =Lasten!L64 -> 0 | K29: =Lasten!M64 -> 0 | L29: =Lasten!N64 -> 0 | M29: =Lasten!O64 -> 0 | N29: =Lasten!P64 -> 0 | O29: =Lasten!Q64 -> 0 | P29: =Lasten!R64 -> 0 | Q29: =Lasten!S64 -> 0 | R29: =Lasten!T64 -> 0 | S29: =Lasten!U64 -> 0 | T29: =Lasten!V64 -> 0 | U29: =Lasten!W64 -> 0 | V29: =Lasten!X64 -> 0 | W29: =Lasten!Y64 -> 0 | X29: =Lasten!Z64 -> 0 | Y29: =Lasten!AA64 -> 0 | Z29: =Lasten!AB64 -> 0 | AA29: =Lasten!AC64 -> 0 | AB29: =Lasten!AD64 -> 0 | AC29: =Lasten!AE64 -> 0 | AD29: =Lasten!AF64 -> 0 | AE29: =Lasten!AG64 -> 0 | AF29: =Lasten!AH64 -> 0 | AG29: =Lasten!AJ64 -> 0
C30: 0 | D30: Onzichtbaar | E30: 0 | F30: =Lasten!H65 -> 0 | G30: =Lasten!I65 -> 0 | H30: =Lasten!J65 -> 0 | I30: =Lasten!K65 -> 0 | J30: =Lasten!L65 -> 0 | K30: =Lasten!M65 -> 0 | L30: =Lasten!N65 -> 0 | M30: =Lasten!O65 -> 0 | N30: =Lasten!P65 -> 0 | O30: =Lasten!Q65 -> 0 | P30: =Lasten!R65 -> 0 | Q30: =Lasten!S65 -> 0 | R30: =Lasten!T65 -> 0 | S30: =Lasten!U65 -> 0 | T30: =Lasten!V65 -> 0 | U30: =Lasten!W65 -> 0 | V30: =Lasten!X65 -> 0 | W30: =Lasten!Y65 -> 0 | X30: =Lasten!Z65 -> 0 | Y30: =Lasten!AA65 -> 0 | Z30: =Lasten!AB65 -> 0 | AA30: =Lasten!AC65 -> 0 | AB30: =Lasten!AD65 -> 0 | AC30: =Lasten!AE65 -> 0 | AD30: =Lasten!AF65 -> 0 | AE30: =Lasten!AG65 -> 0 | AF30: =Lasten!AH65 -> 0 | AG30: =Lasten!AJ65 -> 0
C31: 0 | D31: Onzichtbaar | E31: 0 | F31: =Lasten!H66 -> 0 | G31: =Lasten!I66 -> 0 | H31: =Lasten!J66 -> 0 | I31: =Lasten!K66 -> 0 | J31: =Lasten!L66 -> 0 | K31: =Lasten!M66 -> 0 | L31: =Lasten!N66 -> 0 | M31: =Lasten!O66 -> 0 | N31: =Lasten!P66 -> 0 | O31: =Lasten!Q66 -> 0 | P31: =Lasten!R66 -> 0 | Q31: =Lasten!S66 -> 0 | R31: =Lasten!T66 -> 0 | S31: =Lasten!U66 -> 0 | T31: =Lasten!V66 -> 0 | U31: =Lasten!W66 -> 0 | V31: =Lasten!X66 -> 0 | W31: =Lasten!Y66 -> 0 | X31: =Lasten!Z66 -> 0 | Y31: =Lasten!AA66 -> 0 | Z31: =Lasten!AB66 -> 0 | AA31: =Lasten!AC66 -> 0 | AB31: =Lasten!AD66 -> 0 | AC31: =Lasten!AE66 -> 0 | AD31: =Lasten!AF66 -> 0 | AE31: =Lasten!AG66 -> 0 | AF31: =Lasten!AH66 -> 0 | AG31: =Lasten!AJ66 -> 0
C32: 0 | D32: Onzichtbaar | E32: 0 | F32: =Lasten!H67 -> 0 | G32: =Lasten!I67 -> 0 | H32: =Lasten!J67 -> 0 | I32: =Lasten!K67 -> 0 | J32: =Lasten!L67 -> 0 | K32: =Lasten!M67 -> 0 | L32: =Lasten!N67 -> 0 | M32: =Lasten!O67 -> 0 | N32: =Lasten!P67 -> 0 | O32: =Lasten!Q67 -> 0 | P32: =Lasten!R67 -> 0 | Q32: =Lasten!S67 -> 0 | R32: =Lasten!T67 -> 0 | S32: =Lasten!U67 -> 0 | T32: =Lasten!V67 -> 0 | U32: =Lasten!W67 -> 0 | V32: =Lasten!X67 -> 0 | W32: =Lasten!Y67 -> 0 | X32: =Lasten!Z67 -> 0 | Y32: =Lasten!AA67 -> 0 | Z32: =Lasten!AB67 -> 0 | AA32: =Lasten!AC67 -> 0 | AB32: =Lasten!AD67 -> 0 | AC32: =Lasten!AE67 -> 0 | AD32: =Lasten!AF67 -> 0 | AE32: =Lasten!AG67 -> 0 | AF32: =Lasten!AH67 -> 0 | AG32: =Lasten!AJ67 -> 0
C33: 0 | D33: Onzichtbaar | E33: 0 | F33: =Lasten!H68 -> 0 | G33: =Lasten!I68 -> 0 | H33: =Lasten!J68 -> 0 | I33: =Lasten!K68 -> 0 | J33: =Lasten!L68 -> 0 | K33: =Lasten!M68 -> 0 | L33: =Lasten!N68 -> 0 | M33: =Lasten!O68 -> 0 | N33: =Lasten!P68 -> 0 | O33: =Lasten!Q68 -> 0 | P33: =Lasten!R68 -> 0 | Q33: =Lasten!S68 -> 0 | R33: =Lasten!T68 -> 0 | S33: =Lasten!U68 -> 0 | T33: =Lasten!V68 -> 0 | U33: =Lasten!W68 -> 0 | V33: =Lasten!X68 -> 0 | W33: =Lasten!Y68 -> 0 | X33: =Lasten!Z68 -> 0 | Y33: =Lasten!AA68 -> 0 | Z33: =Lasten!AB68 -> 0 | AA33: =Lasten!AC68 -> 0 | AB33: =Lasten!AD68 -> 0 | AC33: =Lasten!AE68 -> 0 | AD33: =Lasten!AF68 -> 0 | AE33: =Lasten!AG68 -> 0 | AF33: =Lasten!AH68 -> 0 | AG33: =Lasten!AJ68 -> 0
C34: 0 | D34: Onzichtbaar | E34: 0 | F34: =Lasten!H69 -> 0 | G34: =Lasten!I69 -> 0 | H34: =Lasten!J69 -> 0 | I34: =Lasten!K69 -> 0 | J34: =Lasten!L69 -> 0 | K34: =Lasten!M69 -> 0 | L34: =Lasten!N69 -> 0 | M34: =Lasten!O69 -> 0 | N34: =Lasten!P69 -> 0 | O34: =Lasten!Q69 -> 0 | P34: =Lasten!R69 -> 0 | Q34: =Lasten!S69 -> 0 | R34: =Lasten!T69 -> 0 | S34: =Lasten!U69 -> 0 | T34: =Lasten!V69 -> 0 | U34: =Lasten!W69 -> 0 | V34: =Lasten!X69 -> 0 | W34: =Lasten!Y69 -> 0 | X34: =Lasten!Z69 -> 0 | Y34: =Lasten!AA69 -> 0 | Z34: =Lasten!AB69 -> 0 | AA34: =Lasten!AC69 -> 0 | AB34: =Lasten!AD69 -> 0 | AC34: =Lasten!AE69 -> 0 | AD34: =Lasten!AF69 -> 0 | AE34: =Lasten!AG69 -> 0 | AF34: =Lasten!AH69 -> 0 | AG34: =Lasten!AJ69 -> 0
C35: 0 | D35: Onzichtbaar | E35: 0 | F35: =Lasten!H70 -> 0 | G35: =Lasten!I70 -> 0 | H35: =Lasten!J70 -> 0 | I35: =Lasten!K70 -> 0 | J35: =Lasten!L70 -> 0 | K35: =Lasten!M70 -> 0 | L35: =Lasten!N70 -> 0 | M35: =Lasten!O70 -> 0 | N35: =Lasten!P70 -> 0 | O35: =Lasten!Q70 -> 0 | P35: =Lasten!R70 -> 0 | Q35: =Lasten!S70 -> 0 | R35: =Lasten!T70 -> 0 | S35: =Lasten!U70 -> 0 | T35: =Lasten!V70 -> 0 | U35: =Lasten!W70 -> 0 | V35: =Lasten!X70 -> 0 | W35: =Lasten!Y70 -> 0 | X35: =Lasten!Z70 -> 0 | Y35: =Lasten!AA70 -> 0 | Z35: =Lasten!AB70 -> 0 | AA35: =Lasten!AC70 -> 0 | AB35: =Lasten!AD70 -> 0 | AC35: =Lasten!AE70 -> 0 | AD35: =Lasten!AF70 -> 0 | AE35: =Lasten!AG70 -> 0 | AF35: =Lasten!AH70 -> 0 | AG35: =Lasten!AJ70 -> 0
C36: 0 | D36: Onzichtbaar | E36: 0 | F36: =Lasten!H71 -> 0 | G36: =Lasten!I71 -> 0 | H36: =Lasten!J71 -> 0 | I36: =Lasten!K71 -> 0 | J36: =Lasten!L71 -> 0 | K36: =Lasten!M71 -> 0 | L36: =Lasten!N71 -> 0 | M36: =Lasten!O71 -> 0 | N36: =Lasten!P71 -> 0 | O36: =Lasten!Q71 -> 0 | P36: =Lasten!R71 -> 0 | Q36: =Lasten!S71 -> 0 | R36: =Lasten!T71 -> 0 | S36: =Lasten!U71 -> 0 | T36: =Lasten!V71 -> 0 | U36: =Lasten!W71 -> 0 | V36: =Lasten!X71 -> 0 | W36: =Lasten!Y71 -> 0 | X36: =Lasten!Z71 -> 0 | Y36: =Lasten!AA71 -> 0 | Z36: =Lasten!AB71 -> 0 | AA36: =Lasten!AC71 -> 0 | AB36: =Lasten!AD71 -> 0 | AC36: =Lasten!AE71 -> 0 | AD36: =Lasten!AF71 -> 0 | AE36: =Lasten!AG71 -> 0 | AF36: =Lasten!AH71 -> 0 | AG36: =Lasten!AJ71 -> 0
C37: 0 | D37: Onzichtbaar | E37: 0 | F37: =Lasten!H72 -> 0 | G37: =Lasten!I72 -> 0 | H37: =Lasten!J72 -> 0 | I37: =Lasten!K72 -> 0 | J37: =Lasten!L72 -> 0 | K37: =Lasten!M72 -> 0 | L37: =Lasten!N72 -> 0 | M37: =Lasten!O72 -> 0 | N37: =Lasten!P72 -> 0 | O37: =Lasten!Q72 -> 0 | P37: =Lasten!R72 -> 0 | Q37: =Lasten!S72 -> 0 | R37: =Lasten!T72 -> 0 | S37: =Lasten!U72 -> 0 | T37: =Lasten!V72 -> 0 | U37: =Lasten!W72 -> 0 | V37: =Lasten!X72 -> 0 | W37: =Lasten!Y72 -> 0 | X37: =Lasten!Z72 -> 0 | Y37: =Lasten!AA72 -> 0 | Z37: =Lasten!AB72 -> 0 | AA37: =Lasten!AC72 -> 0 | AB37: =Lasten!AD72 -> 0 | AC37: =Lasten!AE72 -> 0 | AD37: =Lasten!AF72 -> 0 | AE37: =Lasten!AG72 -> 0 | AF37: =Lasten!AH72 -> 0 | AG37: =Lasten!AJ72 -> 0
C38: 0 | D38: Onzichtbaar | E38: 0 | F38: =Lasten!H73 -> 0 | G38: =Lasten!I73 -> 0 | H38: =Lasten!J73 -> 0 | I38: =Lasten!K73 -> 0 | J38: =Lasten!L73 -> 0 | K38: =Lasten!M73 -> 0 | L38: =Lasten!N73 -> 0 | M38: =Lasten!O73 -> 0 | N38: =Lasten!P73 -> 0 | O38: =Lasten!Q73 -> 0 | P38: =Lasten!R73 -> 0 | Q38: =Lasten!S73 -> 0 | R38: =Lasten!T73 -> 0 | S38: =Lasten!U73 -> 0 | T38: =Lasten!V73 -> 0 | U38: =Lasten!W73 -> 0 | V38: =Lasten!X73 -> 0 | W38: =Lasten!Y73 -> 0 | X38: =Lasten!Z73 -> 0 | Y38: =Lasten!AA73 -> 0 | Z38: =Lasten!AB73 -> 0 | AA38: =Lasten!AC73 -> 0 | AB38: =Lasten!AD73 -> 0 | AC38: =Lasten!AE73 -> 0 | AD38: =Lasten!AF73 -> 0 | AE38: =Lasten!AG73 -> 0 | AF38: =Lasten!AH73 -> 0 | AG38: =Lasten!AJ73 -> 0
C39: 0 | D39: Onzichtbaar | E39: 0 | F39: =Lasten!H74 -> 0 | G39: =Lasten!I74 -> 0 | H39: =Lasten!J74 -> 0 | I39: =Lasten!K74 -> 0 | J39: =Lasten!L74 -> 0 | K39: =Lasten!M74 -> 0 | L39: =Lasten!N74 -> 0 | M39: =Lasten!O74 -> 0 | N39: =Lasten!P74 -> 0 | O39: =Lasten!Q74 -> 0 | P39: =Lasten!R74 -> 0 | Q39: =Lasten!S74 -> 0 | R39: =Lasten!T74 -> 0 | S39: =Lasten!U74 -> 0 | T39: =Lasten!V74 -> 0 | U39: =Lasten!W74 -> 0 | V39: =Lasten!X74 -> 0 | W39: =Lasten!Y74 -> 0 | X39: =Lasten!Z74 -> 0 | Y39: =Lasten!AA74 -> 0 | Z39: =Lasten!AB74 -> 0 | AA39: =Lasten!AC74 -> 0 | AB39: =Lasten!AD74 -> 0 | AC39: =Lasten!AE74 -> 0 | AD39: =Lasten!AF74 -> 0 | AE39: =Lasten!AG74 -> 0 | AF39: =Lasten!AH74 -> 0 | AG39: =Lasten!AJ74 -> 0
C40: 0 | D40: Onzichtbaar | E40: 0 | F40: =Lasten!H75 -> 0 | G40: =Lasten!I75 -> 0 | H40: =Lasten!J75 -> 0 | I40: =Lasten!K75 -> 0 | J40: =Lasten!L75 -> 0 | K40: =Lasten!M75 -> 0 | L40: =Lasten!N75 -> 0 | M40: =Lasten!O75 -> 0 | N40: =Lasten!P75 -> 0 | O40: =Lasten!Q75 -> 0 | P40: =Lasten!R75 -> 0 | Q40: =Lasten!S75 -> 0 | R40: =Lasten!T75 -> 0 | S40: =Lasten!U75 -> 0 | T40: =Lasten!V75 -> 0 | U40: =Lasten!W75 -> 0 | V40: =Lasten!X75 -> 0 | W40: =Lasten!Y75 -> 0 | X40: =Lasten!Z75 -> 0 | Y40: =Lasten!AA75 -> 0 | Z40: =Lasten!AB75 -> 0 | AA40: =Lasten!AC75 -> 0 | AB40: =Lasten!AD75 -> 0 | AC40: =Lasten!AE75 -> 0 | AD40: =Lasten!AF75 -> 0 | AE40: =Lasten!AG75 -> 0 | AF40: =Lasten!AH75 -> 0 | AG40: =Lasten!AJ75 -> 0
C41: 0 | D41: Onzichtbaar | E41: 0 | F41: =Lasten!H76 -> 0 | G41: =Lasten!I76 -> 0 | H41: =Lasten!J76 -> 0 | I41: =Lasten!K76 -> 0 | J41: =Lasten!L76 -> 0 | K41: =Lasten!M76 -> 0 | L41: =Lasten!N76 -> 0 | M41: =Lasten!O76 -> 0 | N41: =Lasten!P76 -> 0 | O41: =Lasten!Q76 -> 0 | P41: =Lasten!R76 -> 0 | Q41: =Lasten!S76 -> 0 | R41: =Lasten!T76 -> 0 | S41: =Lasten!U76 -> 0 | T41: =Lasten!V76 -> 0 | U41: =Lasten!W76 -> 0 | V41: =Lasten!X76 -> 0 | W41: =Lasten!Y76 -> 0 | X41: =Lasten!Z76 -> 0 | Y41: =Lasten!AA76 -> 0 | Z41: =Lasten!AB76 -> 0 | AA41: =Lasten!AC76 -> 0 | AB41: =Lasten!AD76 -> 0 | AC41: =Lasten!AE76 -> 0 | AD41: =Lasten!AF76 -> 0 | AE41: =Lasten!AG76 -> 0 | AF41: =Lasten!AH76 -> 0 | AG41: =Lasten!AJ76 -> 0
C42: 0 | D42: Onzichtbaar | E42: 0 | F42: =Lasten!H77 -> 0 | G42: =Lasten!I77 -> 0 | H42: =Lasten!J77 -> 0 | I42: =Lasten!K77 -> 0 | J42: =Lasten!L77 -> 0 | K42: =Lasten!M77 -> 0 | L42: =Lasten!N77 -> 0 | M42: =Lasten!O77 -> 0 | N42: =Lasten!P77 -> 0 | O42: =Lasten!Q77 -> 0 | P42: =Lasten!R77 -> 0 | Q42: =Lasten!S77 -> 0 | R42: =Lasten!T77 -> 0 | S42: =Lasten!U77 -> 0 | T42: =Lasten!V77 -> 0 | U42: =Lasten!W77 -> 0 | V42: =Lasten!X77 -> 0 | W42: =Lasten!Y77 -> 0 | X42: =Lasten!Z77 -> 0 | Y42: =Lasten!AA77 -> 0 | Z42: =Lasten!AB77 -> 0 | AA42: =Lasten!AC77 -> 0 | AB42: =Lasten!AD77 -> 0 | AC42: =Lasten!AE77 -> 0 | AD42: =Lasten!AF77 -> 0 | AE42: =Lasten!AG77 -> 0 | AF42: =Lasten!AH77 -> 0 | AG42: =Lasten!AJ77 -> 0
C43: 0 | D43: Onzichtbaar | E43: 0 | F43: =Lasten!H78 -> 0 | G43: =Lasten!I78 -> 0 | H43: =Lasten!J78 -> 0 | I43: =Lasten!K78 -> 0 | J43: =Lasten!L78 -> 0 | K43: =Lasten!M78 -> 0 | L43: =Lasten!N78 -> 0 | M43: =Lasten!O78 -> 0 | N43: =Lasten!P78 -> 0 | O43: =Lasten!Q78 -> 0 | P43: =Lasten!R78 -> 0 | Q43: =Lasten!S78 -> 0 | R43: =Lasten!T78 -> 0 | S43: =Lasten!U78 -> 0 | T43: =Lasten!V78 -> 0 | U43: =Lasten!W78 -> 0 | V43: =Lasten!X78 -> 0 | W43: =Lasten!Y78 -> 0 | X43: =Lasten!Z78 -> 0 | Y43: =Lasten!AA78 -> 0 | Z43: =Lasten!AB78 -> 0 | AA43: =Lasten!AC78 -> 0 | AB43: =Lasten!AD78 -> 0 | AC43: =Lasten!AE78 -> 0 | AD43: =Lasten!AF78 -> 0 | AE43: =Lasten!AG78 -> 0 | AF43: =Lasten!AH78 -> 0 | AG43: =Lasten!AJ78 -> 0
C44: 0 | D44: Onzichtbaar | E44: 0 | F44: =Lasten!H79 -> 0 | G44: =Lasten!I79 -> 0 | H44: =Lasten!J79 -> 0 | I44: =Lasten!K79 -> 0 | J44: =Lasten!L79 -> 0 | K44: =Lasten!M79 -> 0 | L44: =Lasten!N79 -> 0 | M44: =Lasten!O79 -> 0 | N44: =Lasten!P79 -> 0 | O44: =Lasten!Q79 -> 0 | P44: =Lasten!R79 -> 0 | Q44: =Lasten!S79 -> 0 | R44: =Lasten!T79 -> 0 | S44: =Lasten!U79 -> 0 | T44: =Lasten!V79 -> 0 | U44: =Lasten!W79 -> 0 | V44: =Lasten!X79 -> 0 | W44: =Lasten!Y79 -> 0 | X44: =Lasten!Z79 -> 0 | Y44: =Lasten!AA79 -> 0 | Z44: =Lasten!AB79 -> 0 | AA44: =Lasten!AC79 -> 0 | AB44: =Lasten!AD79 -> 0 | AC44: =Lasten!AE79 -> 0 | AD44: =Lasten!AF79 -> 0 | AE44: =Lasten!AG79 -> 0 | AF44: =Lasten!AH79 -> 0 | AG44: =Lasten!AJ79 -> 0
C45: 0 | D45: Onzichtbaar | E45: 0 | F45: =Lasten!H80 -> 0 | G45: =Lasten!I80 -> 0 | H45: =Lasten!J80 -> 0 | I45: =Lasten!K80 -> 0 | J45: =Lasten!L80 -> 0 | K45: =Lasten!M80 -> 0 | L45: =Lasten!N80 -> 0 | M45: =Lasten!O80 -> 0 | N45: =Lasten!P80 -> 0 | O45: =Lasten!Q80 -> 0 | P45: =Lasten!R80 -> 0 | Q45: =Lasten!S80 -> 0 | R45: =Lasten!T80 -> 0 | S45: =Lasten!U80 -> 0 | T45: =Lasten!V80 -> 0 | U45: =Lasten!W80 -> 0 | V45: =Lasten!X80 -> 0 | W45: =Lasten!Y80 -> 0 | X45: =Lasten!Z80 -> 0 | Y45: =Lasten!AA80 -> 0 | Z45: =Lasten!AB80 -> 0 | AA45: =Lasten!AC80 -> 0 | AB45: =Lasten!AD80 -> 0 | AC45: =Lasten!AE80 -> 0 | AD45: =Lasten!AF80 -> 0 | AE45: =Lasten!AG80 -> 0 | AF45: =Lasten!AH80 -> 0 | AG45: =Lasten!AJ80 -> 0
C46: 0 | D46: Onzichtbaar | E46: 0 | F46: =Lasten!H81 -> 0 | G46: =Lasten!I81 -> 0 | H46: =Lasten!J81 -> 0 | I46: =Lasten!K81 -> 0 | J46: =Lasten!L81 -> 0 | K46: =Lasten!M81 -> 0 | L46: =Lasten!N81 -> 0 | M46: =Lasten!O81 -> 0 | N46: =Lasten!P81 -> 0 | O46: =Lasten!Q81 -> 0 | P46: =Lasten!R81 -> 0 | Q46: =Lasten!S81 -> 0 | R46: =Lasten!T81 -> 0 | S46: =Lasten!U81 -> 0 | T46: =Lasten!V81 -> 0 | U46: =Lasten!W81 -> 0 | V46: =Lasten!X81 -> 0 | W46: =Lasten!Y81 -> 0 | X46: =Lasten!Z81 -> 0 | Y46: =Lasten!AA81 -> 0 | Z46: =Lasten!AB81 -> 0 | AA46: =Lasten!AC81 -> 0 | AB46: =Lasten!AD81 -> 0 | AC46: =Lasten!AE81 -> 0 | AD46: =Lasten!AF81 -> 0 | AE46: =Lasten!AG81 -> 0 | AF46: =Lasten!AH81 -> 0 | AG46: =Lasten!AJ81 -> 0
C47: 0 | D47: Onzichtbaar | E47: 0 | F47: =Lasten!H82 -> 0 | G47: =Lasten!I82 -> 0 | H47: =Lasten!J82 -> 0 | I47: =Lasten!K82 -> 0 | J47: =Lasten!L82 -> 0 | K47: =Lasten!M82 -> 0 | L47: =Lasten!N82 -> 0 | M47: =Lasten!O82 -> 0 | N47: =Lasten!P82 -> 0 | O47: =Lasten!Q82 -> 0 | P47: =Lasten!R82 -> 0 | Q47: =Lasten!S82 -> 0 | R47: =Lasten!T82 -> 0 | S47: =Lasten!U82 -> 0 | T47: =Lasten!V82 -> 0 | U47: =Lasten!W82 -> 0 | V47: =Lasten!X82 -> 0 | W47: =Lasten!Y82 -> 0 | X47: =Lasten!Z82 -> 0 | Y47: =Lasten!AA82 -> 0 | Z47: =Lasten!AB82 -> 0 | AA47: =Lasten!AC82 -> 0 | AB47: =Lasten!AD82 -> 0 | AC47: =Lasten!AE82 -> 0 | AD47: =Lasten!AF82 -> 0 | AE47: =Lasten!AG82 -> 0 | AF47: =Lasten!AH82 -> 0 | AG47: =Lasten!AJ82 -> 0
C48: totaal programma's | F48: =SUM(F28:F47) -> 0 | G48: ='MJB kalenderjaar'!F48 -> 0 | H48: =SUM(H28:H47) -> 0 | I48: ='MJB kalenderjaar'!H48 -> 0 | J48: =SUM(J28:J47) -> 0 | K48: ='MJB kalenderjaar'!J48 -> 0 | L48: =SUM(L28:L47) -> 0 | M48: ='MJB kalenderjaar'!N48 -> 0 | N48: =SUM(N28:N47) -> 0 | O48: ='MJB kalenderjaar'!P48 -> 0 | P48: =SUM(P28:P47) -> 0 | Q48: ='MJB kalenderjaar'!R48 -> 0 | R48: =SUM(R28:R47) -> 0 | S48: ='MJB kalenderjaar'!T48 -> 0 | T48: =SUM(T28:T47) -> 0 | U48: ='MJB kalenderjaar'!V48 -> 0 | V48: =SUM(V28:V47) -> 0 | W48: ='MJB kalenderjaar'!X48 -> 0 | X48: =SUM(X28:X47) -> 0 | Y48: ='MJB kalenderjaar'!Z48 -> 0 | Z48: =SUM(Z28:Z47) -> 0 | AA48: ='MJB kalenderjaar'!AB48 -> 0 | AB48: =SUM(AB28:AB47) -> 0 | AC48: ='MJB kalenderjaar'!AD48 -> 0 | AD48: =SUM(AD28:AD47) -> 0 | AE48: ='MJB kalenderjaar'!AF48 -> 0 | AF48: =SUM(AF28:AF47) -> 0 | AG48: =Lasten!AJ83 -> 0
C50: ='MJB kalenderjaar'!C50 -> Totale lasten | F50: =SUM(F20+F21+F22+F23+F24+F26+F48) -> 4966513.914 | G50: =SUM(G20+G21+G22+G23+G24+G26+G48) -> 0 | H50: 5427522.251 | I50: =SUM(I20+I21+I22+I23+I24+I26+I48) -> 0 | J50: 5947683.013 | K50: =SUM(K20+K21+K22+K23+K24+K26+K48) -> 0 | L50: 6686021.12 | M50: =SUM(M20+M21+M22+M23+M24+M26+M48) -> 0 | N50: =SUM(N20+N21+N22+N23+N24+N26+N48) -> 0 | O50: =SUM(O20+O21+O22+O23+O24+O26+O48) -> 0 | P50: =SUM(P20+P21+P22+P23+P24+P26+P48) -> 0 | Q50: =SUM(Q20+Q21+Q22+Q23+Q24+Q26+Q48) -> 0 | R50: =SUM(R20:R48) -> 0 | S50: =SUM(S20+S21+S22+S23+S24+S26+S48) -> 0 | T50: =SUM(T20:T48) -> 0 | U50: =SUM(U20+U21+U22+U23+U24+U26+U48) -> 0 | V50: =SUM(V20:V48) -> 0 | W50: =SUM(W20+W21+W22+W23+W24+W26+W48) -> 0 | X50: =SUM(X20+X21+X22+X23+X24+X26+X48) -> 0 | Y50: =SUM(Y20+Y21+Y22+Y23+Y24+Y26+Y48) -> 0 | Z50: =SUM(Z20+Z21+Z22+Z23+Z24+Z26+Z48) -> 0 | AA50: =SUM(AA20+AA21+AA22+AA23+AA24+AA26+AA48) -> 0 | AB50: =SUM(AB20:AB48) -> 0 | AC50: =SUM(AC20+AC21+AC22+AC23+AC24+AC26+AC48) -> 0 | AD50: =SUM(AD20:AD48) -> 0 | AE50: =SUM(AE20+AE21+AE22+AE23+AE24+AE26+AE48) -> 0 | AF50: =SUM(AF20:AF48) -> 0
